Workbook

Sheet Übersicht
D1: Kreisrundenwettkampf | J1: Saison | K1: 2024/2025 | M1: 2. Kreisklasse | P1: Schützen
C3: Wettkampftag: | D3: 25.08. | E3: 08.09. | F3: 22.09. | G3: 06.10. | H3: 20.10. | I3: 24.11. | J3: Hinrunde | L3: 19.01. | M3: 02.02. | N3: 16.02. | O3: 02.03. | P3: 16.03. | Q3: 30.03. | R3: Rückrunde | T3: Serie komplett
A4: Pos. | B4: Verein / Gruppe | D4: Neuvrees | E4: Rastdorf | F4: Börger | G4: Esterwegen | H4: Börgerwald | I4: Spahnharrenstätte | J4: Schnitt | K4: Gesamt | L4: Esterwegen | M4: =E4 -> Rastdorf | N4: Börger | O4: Neuvrees | P4: Börgerwald | Q4: Spahnharrenstätte | R4: Schnitt | S4: Gesamt | T4: Schnitt | U4: Gesamt | V4: Differenz
A6: 1 | B6: ='Übersicht Gruppen'!B2 -> Rastdorf III | D6: ='Übersicht Gruppen'!C2 -> 946.0 | E6: ='Übersicht Gruppen'!D2 -> 938.7 | F6: ='Übersicht Gruppen'!E2 -> 935.6 | G6: ='Übersicht Gruppen'!F2 -> 929.8 | H6: ='Übersicht Gruppen'!G2 -> 946.3 | I6: ='Übersicht Gruppen'!H2 -> 939.2 | J6: ='Übersicht Gruppen'!I2 -> 939.27 | K6: =SUM(D6:I6) -> 5,635.6 | L6: ='Übersicht Gruppen'!K2 -> 936.4 | M6: ='Übersicht Gruppen'!L2 -> 934.4 | N6: ='Übersicht Gruppen'!M2 -> 936.0 | O6: ='Übersicht Gruppen'!N2 -> 923.3 | P6: ='Übersicht Gruppen'!O2 -> 945.9 | Q6: ='Übersicht Gruppen'!P2 -> 935.5 | R6: ='Übersicht Gruppen'!Q2 -> 935.25 | S6: =SUM(L6:Q6) -> 5,611.5 | T6: ='Übersicht Gruppen'!S2 -> 937.26 | U6: =SUM(S6+K6) -> 11,247.1
A7: 2 | B7: ='Übersicht Gruppen'!B3 -> Esterwegen III | D7: ='Übersicht Gruppen'!C3 -> 933.3 | E7: ='Übersicht Gruppen'!D3 -> 936.7 | F7: ='Übersicht Gruppen'!E3 -> 935.7 | G7: ='Übersicht Gruppen'!F3 -> 938.6 | H7: ='Übersicht Gruppen'!G3 -> 941.7 | I7: ='Übersicht Gruppen'!H3 -> 936.1 | J7: ='Übersicht Gruppen'!I3 -> 937.02 | K7: 5,622.1 | L7: ='Übersicht Gruppen'!K3 -> 937.1 | M7: ='Übersicht Gruppen'!L3 -> 934.1 | N7: ='Übersicht Gruppen'!M3 -> 932.5 | O7: ='Übersicht Gruppen'!N3 -> 938.9 | P7: ='Übersicht Gruppen'!O3 -> 939.4 | Q7: ='Übersicht Gruppen'!P3 -> 941.9 | R7: ='Übersicht Gruppen'!Q3 -> 937.32 | S7: 5,623.9 | T7: ='Übersicht Gruppen'!S3 -> 937.17 | U7: =SUM(S7+K7) -> 11,246.0 | V7: =(U6-U7)*-1 -> -1.1
A8: 3 | B8: ='Übersicht Gruppen'!B4 -> Spahnharrenstätte II | D8: ='Übersicht Gruppen'!C4 -> 928.7 | E8: ='Übersicht Gruppen'!D4 -> 934.5 | F8: ='Übersicht Gruppen'!E4 -> 931.6 | G8: ='Übersicht Gruppen'!F4 -> 935.7 | H8: ='Übersicht Gruppen'!G4 -> 940.9 | I8: ='Übersicht Gruppen'!H4 -> 937.0 | J8: ='Übersicht Gruppen'!I4 -> 934.73 | K8: 5,608.4 | L8: ='Übersicht Gruppen'!K4 -> 931.1 | M8: ='Übersicht Gruppen'!L4 -> 934.4 | N8: ='Übersicht Gruppen'!M4 -> 915.8 | O8: ='Übersicht Gruppen'!N4 -> 924.5 | P8: ='Übersicht Gruppen'!O4 -> 933.6 | Q8: ='Übersicht Gruppen'!P4 -> 931.4 | R8: ='Übersicht Gruppen'!Q4 -> 928.47 | S8: 5,570.8 | T8: ='Übersicht Gruppen'!S4 -> 931.60 | U8: 11,179.2 | V8: =(U7-U8)*-1 -> -66.8
A9: 4 | B9: ='Übersicht Gruppen'!B5 -> Neuvrees I | D9: ='Übersicht Gruppen'!C5 -> 938.6 | E9: ='Übersicht Gruppen'!D5 -> 931.2 | F9: ='Übersicht Gruppen'!E5 -> 924.7 | G9: ='Übersicht Gruppen'!F5 -> 929.7 | H9: ='Übersicht Gruppen'!G5 -> 936.5 | I9: ='Übersicht Gruppen'!H5 -> 934.1 | J9: ='Übersicht Gruppen'!I5 -> 932.47 | K9: 5,594.8 | L9: ='Übersicht Gruppen'!K5 -> 929.6 | M9: ='Übersicht Gruppen'!L5 -> 929.5 | N9: ='Übersicht Gruppen'!M5 -> 931.7 | O9: ='Übersicht Gruppen'!N5 -> 923.2 | P9: ='Übersicht Gruppen'!O5 -> 934.5 | Q9: ='Übersicht Gruppen'!P5 -> 935.0 | R9: ='Übersicht Gruppen'!Q5 -> 930.58 | S9: 5,583.5 | T9: ='Übersicht Gruppen'!S5 -> 931.53 | U9: 11,178.3 | V9: -0.9
A10: 5 | B10: ='Übersicht Gruppen'!B6 -> Börgerwald II | D10: ='Übersicht Gruppen'!C6 -> 929.6 | E10: ='Übersicht Gruppen'!D6 -> 922.8 | F10: ='Übersicht Gruppen'!E6 -> 930.4 | G10: ='Übersicht Gruppen'!F6 -> 931.3 | H10: ='Übersicht Gruppen'!G6 -> 931.3 | I10: ='Übersicht Gruppen'!H6 -> 930.7 | J10: ='Übersicht Gruppen'!I6 -> 929.35 | K10: 5,576.1 | L10: ='Übersicht Gruppen'!K6 -> 924.5 | M10: ='Übersicht Gruppen'!L6 -> 930.7 | N10: ='Übersicht Gruppen'!M6 -> 933.5 | O10: ='Übersicht Gruppen'!N6 -> 931.6 | P10: ='Übersicht Gruppen'!O6 -> 942.3 | Q10: ='Übersicht Gruppen'!P6 -> 939.6 | R10: ='Übersicht Gruppen'!Q6 -> 933.70 | S10: 5,602.2 | T10: ='Übersicht Gruppen'!S6 -> 931.53 | U10: 11,178.3 | V10: 0.0
A11: 6 | B11: ='Übersicht Gruppen'!B7 -> Börger II | D11: ='Übersicht Gruppen'!C7 -> 935.7 | E11: ='Übersicht Gruppen'!D7 -> 916.1 | F11: ='Übersicht Gruppen'!E7 -> 923.6 | G11: ='Übersicht Gruppen'!F7 -> 923.5 | H11: ='Übersicht Gruppen'!G7 -> 934.2 | I11: ='Übersicht Gruppen'!H7 -> 923.2 | J11: ='Übersicht Gruppen'!I7 -> 926.05 | K11: 5,556.3 | L11: ='Übersicht Gruppen'!K7 -> 918.7 | M11: ='Übersicht Gruppen'!L7 -> 928.2 | N11: ='Übersicht Gruppen'!M7 -> 928.9 | O11: ='Übersicht Gruppen'!N7 -> 916.6 | P11: ='Übersicht Gruppen'!O7 -> 935.0 | Q11: ='Übersicht Gruppen'!P7 -> 930.7 | R11: ='Übersicht Gruppen'!Q7 -> 926.35 | S11: 5,558.1 | T11: ='Übersicht Gruppen'!S7 -> 926.20 | U11: 11,114.4 | V11: -63.9
C13: Schnitt: | D13: =AVERAGE(D6:D11) -> 935.3 | E13: =AVERAGE(E6:E11) -> 930.0 | F13: 930.3 | G13: 931.4 | H13: 938.5 | I13: 933.4 | J13: 933.15 | K13: =SUM(K6:K11)/6 -> 5,598.9 | L13: 929.6 | M13: 931.9 | N13: 929.7 | O13: 926.4 | P13: 938.5 | Q13: 935.7 | R13: 931.94 | S13: 5591.7 | T13: 932.55 | U13: 11,190.6
J15: Hinrunde | R15: Rückrunde | T15: Serie komplett | V15: Differenz
A16: Pos. | B16: Vorname Name | C16: Verein / Gruppe | J16: Schnitt | K16: Gesamt | R16: Schnitt | S16: Gesamt | T16: Schnitt | U16: Gesamt
A17: 1 | B17: ='Übersicht Schützen'!A2 -> Meibers Michael | C17: ='Übersicht Schützen'!B2 -> Esterwegen III | D17: ='Übersicht Schützen'!C2 -> 310.3 | E17: ='Übersicht Schützen'!D2 -> 315.0 | F17: ='Übersicht Schützen'!E2 -> 315.8 | G17: ='Übersicht Schützen'!F2 -> 312.1 | H17: ='Übersicht Schützen'!G2 -> 316.4 | I17: ='Übersicht Schützen'!H2 -> 313.3 | J17: ='Übersicht Schützen'!I2 -> 313.82 | K17: =SUM(D17:I17) -> 1,882.9 | L17: ='Übersicht Schützen'!L2 -> 317.9 | M17: ='Übersicht Schützen'!M2 -> 314.6 | N17: ='Übersicht Schützen'!N2 -> 317.6 | O17: ='Übersicht Schützen'!O2 -> 315.6 | P17: ='Übersicht Schützen'!P2 -> 315.0 | Q17: ='Übersicht Schützen'!Q2 -> 315.8 | R17: ='Übersicht Schützen'!R2 -> 316.08 | S17: =SUM(L17:Q17) -> 1,896.5 | T17: ='Übersicht Schützen'!U2 -> 314.95 | U17: =SUM(K17+S17) -> 3,779.4
A18: 2 | B18: ='Übersicht Schützen'!A3 -> Zdralik Ingo | C18: ='Übersicht Schützen'!B3 -> Börger II | D18: ='Übersicht Schützen'!C3 -> 315.8 | E18: ='Übersicht Schützen'!D3 -> 311.1 | F18: ='Übersicht Schützen'!E3 -> 310.9 | G18: ='Übersicht Schützen'!F3 -> 313.7 | H18: ='Übersicht Schützen'!G3 -> 318.8 | I18: ='Übersicht Schützen'!H3 -> 305.4 | J18: ='Übersicht Schützen'!I3 -> 312.62 | K18: =SUM(D18:I18) -> 1,875.7 | L18: ='Übersicht Schützen'!L3 -> 314.0 | M18: ='Übersicht Schützen'!M3 -> 315.4 | N18: ='Übersicht Schützen'!N3 -> 312.8 | O18: ='Übersicht Schützen'!O3 -> 314.5 | P18: ='Übersicht Schützen'!P3 -> 315.7 | Q18: ='Übersicht Schützen'!Q3 -> 315.8 | R18: ='Übersicht Schützen'!R3 -> 314.70 | S18: =SUM(L18:Q18) -> 1,888.2 | T18: ='Übersicht Schützen'!U3 -> 313.66 | U18: =SUM(K18+S18) -> 3,763.9 | V18: =(U17-U18)*-1 -> -15.5
A19: 3 | B19: ='Übersicht Schützen'!A4 -> Bookjans Günther | C19: ='Übersicht Schützen'!B4 -> Rastdorf III | D19: ='Übersicht Schützen'!C4 -> 311.7 | E19: ='Übersicht Schützen'!D4 -> 315.8 | F19: ='Übersicht Schützen'!E4 -> 311.5 | G19: ='Übersicht Schützen'!F4 -> 308.0 | H19: ='Übersicht Schützen'!G4 -> 316.7 | I19: ='Übersicht Schützen'!H4 -> 314.1 | J19: ='Übersicht Schützen'!I4 -> 312.97 | K19: =SUM(D19:I19) -> 1,877.8 | L19: ='Übersicht Schützen'!L4 -> 314.2 | M19: ='Übersicht Schützen'!M4 -> 313.4 | N19: ='Übersicht Schützen'!N4 -> 309.2 | O19: ='Übersicht Schützen'!O4 -> 311.7 | P19: ='Übersicht Schützen'!P4 -> 318.4 | Q19: ='Übersicht Schützen'!Q4 -> 309.5 | R19: ='Übersicht Schützen'!R4 -> 312.73 | S19: 1,876.4 | T19: ='Übersicht Schützen'!U4 -> 312.85 | U19: 3,754.2 | V19: =(U18-U19)*-1 -> -9.7
A20: 4 | B20: ='Übersicht Schützen'!A5 -> Wotte Robert | C20: ='Übersicht Schützen'!B5 -> Rastdorf III | D20: ='Übersicht Schützen'!C5 -> 317.6 | E20: ='Übersicht Schützen'!D5 -> 309.4 | F20: ='Übersicht Schützen'!E5 -> 313.7 | G20: ='Übersicht Schützen'!F5 -> 308.4 | H20: ='Übersicht Schützen'!G5 -> 315.3 | I20: ='Übersicht Schützen'!H5 -> 313.1 | J20: ='Übersicht Schützen'!I5 -> 312.92 | K20: 1,877.5 | L20: ='Übersicht Schützen'!L5 -> 311.7 | M20: ='Übersicht Schützen'!M5 -> 310.9 | N20: ='Übersicht Schützen'!N5 -> 314.4 | O20: ='Übersicht Schützen'!O5 -> 308.4 | P20: ='Übersicht Schützen'!P5 -> 315.0 | Q20: ='Übersicht Schützen'!Q5 -> 312.3 | R20: ='Übersicht Schützen'!R5 -> 312.12 | S20: 1,872.7 | T20: ='Übersicht Schützen'!U5 -> 312.52 | U20: 3,750.2 | V20: -4.0
A21: 5 | B21: ='Übersicht Schützen'!A6 -> Janßen Markus | C21: ='Übersicht Schützen'!B6 -> Neuvrees I | D21: ='Übersicht Schützen'!C6 -> 314.0 | E21: ='Übersicht Schützen'!D6 -> 311.8 | F21: ='Übersicht Schützen'!E6 -> 310.5 | G21: ='Übersicht Schützen'!F6 -> 313.2 | H21: ='Übersicht Schützen'!G6 -> 315.6 | I21: ='Übersicht Schützen'!H6 -> 309.6 | J21: ='Übersicht Schützen'!I6 -> 312.45 | K21: 1,874.7 | L21: ='Übersicht Schützen'!L6 -> 312.3 | M21: ='Übersicht Schützen'!M6 -> 310.8 | N21: ='Übersicht Schützen'!N6 -> 312.1 | O21: ='Übersicht Schützen'!O6 -> 305.4 | P21: ='Übersicht Schützen'!P6 -> 314.2 | Q21: ='Übersicht Schützen'!Q6 -> 313.9 | R21: ='Übersicht Schützen'!R6 -> 311.45 | S21: 1,868.7 | T21: ='Übersicht Schützen'!U6 -> 311.95 | U21: 3,743.4 | V21: -6.8
A22: 6 | B22: ='Übersicht Schützen'!A7 -> Middendorf Peter | C22: ='Übersicht Schützen'!B7 -> Esterwegen III | D22: ='Übersicht Schützen'!C7 -> 312.2 | E22: ='Übersicht Schützen'!D7 -> 311.3 | F22: ='Übersicht Schützen'!E7 -> 303.2 | G22: ='Übersicht Schützen'!F7 -> 313.8 | H22: ='Übersicht Schützen'!G7 -> 313.4 | I22: ='Übersicht Schützen'!H7 -> 314.3 | J22: ='Übersicht Schützen'!I7 -> 311.37 | K22: 1,868.2 | L22: ='Übersicht Schützen'!L7 -> 313.0 | M22: ='Übersicht Schützen'!M7 -> 310.9 | N22: ='Übersicht Schützen'!N7 -> 306.6 | O22: ='Übersicht Schützen'!O7 -> 315.5 | P22: ='Übersicht Schützen'!P7 -> 311.9 | Q22: ='Übersicht Schützen'!Q7 -> 316.1 | R22: ='Übersicht Schützen'!R7 -> 312.33 | S22: 1,874.0 | T22: ='Übersicht Schützen'!U7 -> 311.85 | U22: 3,742.2 | V22: -1.2
A23: 7 | B23: ='Übersicht Schützen'!A8 -> Breyer Wilfried | C23: ='Übersicht Schützen'!B8 -> Neuvrees I | D23: ='Übersicht Schützen'!C8 -> 312.0 | E23: ='Übersicht Schützen'!D8 -> 312.4 | F23: ='Übersicht Schützen'!E8 -> 308.5 | G23: ='Übersicht Schützen'!F8 -> 311.3 | H23: ='Übersicht Schützen'!G8 -> 312.1 | I23: ='Übersicht Schützen'!H8 -> 312.9 | J23: ='Übersicht Schützen'!I8 -> 311.53 | K23: 1,869.2 | L23: ='Übersicht Schützen'!L8 -> 310.1 | M23: ='Übersicht Schützen'!M8 -> 308.4 | N23: ='Übersicht Schützen'!N8 -> 313.0 | O23: ='Übersicht Schützen'!O8 -> 310.0 | P23: ='Übersicht Schützen'!P8 -> 310.6 | Q23: ='Übersicht Schützen'!Q8 -> 311.5 | R23: ='Übersicht Schützen'!R8 -> 310.60 | S23: 1,863.6 | T23: ='Übersicht Schützen'!U8 -> 311.07 | U23: 3,732.8 | V23: -9.4
A24: 8 | B24: ='Übersicht Schützen'!A9 -> Micksch Heiko | C24: ='Übersicht Schützen'!B9 -> Spahnharrenstätte II | D24: ='Übersicht Schützen'!C9 -> 310.6 | E24: ='Übersicht Schützen'!D9 -> 308.4 | F24: ='Übersicht Schützen'!E9 -> 308.7 | G24: ='Übersicht Schützen'!F9 -> 312.8 | H24: ='Übersicht Schützen'!G9 -> 314.8 | I24: ='Übersicht Schützen'!H9 -> 312.6 | J24: ='Übersicht Schützen'!I9 -> 311.32 | K24: 1,867.9 | L24: ='Übersicht Schützen'!L9 -> 312.0 | M24: ='Übersicht Schützen'!M9 -> 311.0 | N24: ='Übersicht Schützen'!N9 -> 307.3 | O24: ='Übersicht Schützen'!O9 -> 309.1 | P24: ='Übersicht Schützen'!P9 -> 314.2 | Q24: ='Übersicht Schützen'!Q9 -> 310.8 | R24: ='Übersicht Schützen'!R9 -> 310.73 | S24: 1,864.4 | T24: ='Übersicht Schützen'!U9 -> 311.03 | U24: 3,732.3 | V24: -0.5
A25: 9 | B25: ='Übersicht Schützen'!A10 -> Hanenkamp Andre | C25: ='Übersicht Schützen'!B10 -> Börgerwald II | D25: ='Übersicht Schützen'!C10 -> 313.3 | E25: ='Übersicht Schützen'!D10 -> 304.4 | F25: ='Übersicht Schützen'!E10 -> 311.3 | G25: ='Übersicht Schützen'!F10 -> 313.0 | H25: ='Übersicht Schützen'!G10 -> 310.9 | I25: ='Übersicht Schützen'!H10 -> 313.1 | J25: ='Übersicht Schützen'!I10 -> 311.00 | K25: 1,866.0 | L25: ='Übersicht Schützen'!L10 -> 309.3 | M25: ='Übersicht Schützen'!M10 -> 310.2 | N25: ='Übersicht Schützen'!N10 -> 311.9 | O25: ='Übersicht Schützen'!O10 -> 312.2 | P25: ='Übersicht Schützen'!P10 -> 312.6 | Q25: ='Übersicht Schützen'!Q10 -> 308.9 | R25: ='Übersicht Schützen'!R10 -> 310.85 | S25: 1,865.1 | T25: ='Übersicht Schützen'!U10 -> 310.93 | U25: 3,731.1 | V25: -1.2
A26: 10 | B26: ='Übersicht Schützen'!A11 -> Meer Michael | C26: ='Übersicht Schützen'!B11 -> Rastdorf III | D26: ='Übersicht Schützen'!C11 -> 312.6 | E26: ='Übersicht Schützen'!D11 -> 313.5 | F26: ='Übersicht Schützen'!E11 -> 310.4 | G26: ='Übersicht Schützen'!F11 -> 313.4 | H26: ='Übersicht Schützen'!G11 -> 314.3 | I26: ='Übersicht Schützen'!H11 -> 311.8 | J26: ='Übersicht Schützen'!I11 -> 312.67 | K26: 1,876.0 | L26: ='Übersicht Schützen'!L11 -> 310.5 | M26: ='Übersicht Schützen'!M11 -> 304.9 | N26: ='Übersicht Schützen'!N11 -> 305.6 | O26: ='Übersicht Schützen'!O11 -> 303.2 | P26: ='Übersicht Schützen'!P11 -> 312.5 | Q26: ='Übersicht Schützen'!Q11 -> 313.7 | R26: ='Übersicht Schützen'!R11 -> 308.40 | S26: 1,850.4 | T26: ='Übersicht Schützen'!U11 -> 310.53 | U26: 3,726.4 | V26: -4.7
A27: 11 | B27: ='Übersicht Schützen'!A12 -> Schröer Friedhelm | C27: ='Übersicht Schützen'!B12 -> Börgerwald II | D27: ='Übersicht Schützen'!C12 -> 306.3 | E27: ='Übersicht Schützen'!D12 -> 309.3 | F27: ='Übersicht Schützen'!E12 -> 307.8 | G27: ='Übersicht Schützen'!F12 -> 310.5 | H27: ='Übersicht Schützen'!G12 -> 311.3 | I27: ='Übersicht Schützen'!H12 -> 311.1 | J27: ='Übersicht Schützen'!I12 -> 309.38 | K27: 1,856.3 | L27: ='Übersicht Schützen'!L12 -> 306.4 | M27: ='Übersicht Schützen'!M12 -> 310.5 | N27: ='Übersicht Schützen'!N12 -> 312.0 | O27: ='Übersicht Schützen'!O12 -> 311.3 | P27: ='Übersicht Schützen'!P12 -> 312.0 | Q27: ='Übersicht Schützen'!Q12 -> 315.7 | R27: ='Übersicht Schützen'!R12 -> 311.32 | S27: 1,867.9 | T27: ='Übersicht Schützen'!U12 -> 310.35 | U27: 3,724.2 | V27: -2.2
A28: 12 | B28: ='Übersicht Schützen'!A13 -> Will Achim | C28: ='Übersicht Schützen'!B13 -> Spahnharrenstätte II | D28: ='Übersicht Schützen'!C13 -> 307.0 | E28: ='Übersicht Schützen'!D13 -> 313.5 | F28: ='Übersicht Schützen'!E13 -> 309.9 | G28: ='Übersicht Schützen'!F13 -> 310.0 | H28: ='Übersicht Schützen'!G13 -> 312.0 | I28: ='Übersicht Schützen'!H13 -> 313.7 | J28: ='Übersicht Schützen'!I13 -> 311.02 | K28: 1,866.1 | L28: ='Übersicht Schützen'!L13 -> 308.6 | M28: ='Übersicht Schützen'!M13 -> 309.4 | N28: ='Übersicht Schützen'!N13 -> 310.3 | O28: ='Übersicht Schützen'!O13 -> 305.9 | P28: ='Übersicht Schützen'!P13 -> 308.1 | Q28: ='Übersicht Schützen'!Q13 -> 312.7 | R28: ='Übersicht Schützen'!R13 -> 309.17 | S28: 1,855.0 | T28: ='Übersicht Schützen'!U13 -> 310.09 | U28: 3,721.1 | V28: -3.1
A29: 13 | B29: ='Übersicht Schützen'!A14 -> Schulte Mathias | C29: ='Übersicht Schützen'!B14 -> Esterwegen III | D29: ='Übersicht Schützen'!C14 -> 310.8 | E29: ='Übersicht Schützen'!D14 -> 308.4 | F29: ='Übersicht Schützen'!E14 -> 310.6 | G29: ='Übersicht Schützen'!F14 -> 312.7 | H29: ='Übersicht Schützen'!G14 -> 311.9 | I29: ='Übersicht Schützen'!H14 -> 308.5 | J29: ='Übersicht Schützen'!I14 -> 310.48 | K29: 1,862.9 | L29: ='Übersicht Schützen'!L14 -> 306.2 | M29: ='Übersicht Schützen'!M14 -> 308.6 | N29: ='Übersicht Schützen'!N14 -> 308.3 | O29: ='Übersicht Schützen'!O14 -> 307.8 | P29: ='Übersicht Schützen'!P14 -> 312.5 | Q29: ='Übersicht Schützen'!Q14 -> 310.0 | R29: ='Übersicht Schützen'!R14 -> 308.90 | S29: 1,853.4 | T29: ='Übersicht Schützen'!U14 -> 309.69 | U29: 3,716.3 | V29: -4.8
A30: 14 | B30: ='Übersicht Schützen'!A15 -> Müller Helmut | C30: ='Übersicht Schützen'!B15 -> Rastdorf III | D30: ='Übersicht Schützen'!C15 -> 315.8 | E30: ='Übersicht Schützen'!D15 -> 309.0 | F30: ='Übersicht Schützen'!E15 -> 309.8 | G30: ='Übersicht Schützen'!F15 -> 306.9 | H30: ='Übersicht Schützen'!G15 -> 308.3 | I30: ='Übersicht Schützen'!H15 -> 312.0 | J30: ='Übersicht Schützen'!I15 -> 310.30 | K30: 1,861.8 | L30: ='Übersicht Schützen'!L15 -> 310.1 | M30: ='Übersicht Schützen'!M15 -> 310.1 | N30: ='Übersicht Schützen'!N15 -> 312.4 | O30: ='Übersicht Schützen'!O15 -> 302.8 | P30: ='Übersicht Schützen'!P15 -> 310.2 | Q30: ='Übersicht Schützen'!Q15 -> 308.3 | R30: ='Übersicht Schützen'!R15 -> 308.98 | S30: 1,853.9 | T30: ='Übersicht Schützen'!U15 -> 309.64 | U30: 3,715.7 | V30: -0.6
A31: 15 | B31: ='Übersicht Schützen'!A16 -> Antons Mathias | C31: ='Übersicht Schützen'!B16 -> Börgerwald II | D31: ='Übersicht Schützen'!C16 -> 308.9 | E31: ='Übersicht Schützen'!D16 -> 309.0 | F31: ='Übersicht Schützen'!E16 -> 308.3 | G31: ='Übersicht Schützen'!F16 -> 303.3 | H31: ='Übersicht Schützen'!G16 -> 309.1 | I31: ='Übersicht Schützen'!H16 -> 306.5 | J31: ='Übersicht Schützen'!I16 -> 307.52 | K31: 1,845.1 | L31: ='Übersicht Schützen'!L16 -> 308.8 | M31: ='Übersicht Schützen'!M16 -> 310.0 | N31: ='Übersicht Schützen'!N16 -> 309.6 | O31: ='Übersicht Schützen'!O16 -> 306.2 | P31: ='Übersicht Schützen'!P16 -> 313.6 | Q31: ='Übersicht Schützen'!Q16 -> 312.1 | R31: ='Übersicht Schützen'!R16 -> 310.05 | S31: 1,860.3 | T31: ='Übersicht Schützen'!U16 -> 308.78 | U31: 3,705.4 | V31: -10.3
A32: 16 | B32: ='Übersicht Schützen'!A17 -> Hanneken Moritz | C32: ='Übersicht Schützen'!B17 -> Börgerwald II | D32: ='Übersicht Schützen'!C17 -> 307.4 | E32: ='Übersicht Schützen'!D17 -> 304.1 | F32: ='Übersicht Schützen'!E17 -> 310.8 | G32: ='Übersicht Schützen'!F17 -> 307.8 | H32: ='Übersicht Schützen'!G17 -> 306.8 | I32: ='Übersicht Schützen'!H17 -> 305.6 | J32: ='Übersicht Schützen'!I17 -> 307.08 | K32: 1,842.5 | L32: ='Übersicht Schützen'!L17 -> 306.4 | M32: ='Übersicht Schützen'!M17 -> 309.2 | N32: ='Übersicht Schützen'!N17 -> 307.3 | O32: ='Übersicht Schützen'!O17 -> 308.1 | P32: ='Übersicht Schützen'!P17 -> 316.1 | Q32: ='Übersicht Schützen'!Q17 -> 311.8 | R32: ='Übersicht Schützen'!R17 -> 309.82 | S32: 1,858.9 | T32: ='Übersicht Schützen'!U17 -> 308.45 | U32: 3,701.4 | V32: -4.0
A33: 17 | B33: ='Übersicht Schützen'!A18 -> Steenken Klaus | C33: ='Übersicht Schützen'!B18 -> Neuvrees I | D33: ='Übersicht Schützen'!C18 -> 304.2 | E33: ='Übersicht Schützen'!D18 -> 307.0 | F33: ='Übersicht Schützen'!E18 -> 305.7 | G33: ='Übersicht Schützen'!F18 -> 305.2 | H33: ='Übersicht Schützen'!G18 -> 308.1 | I33: ='Übersicht Schützen'!H18 -> 309.2 | J33: ='Übersicht Schützen'!I18 -> 306.57 | K33: 1,839.4 | L33: ='Übersicht Schützen'!L18 -> 307.2 | M33: ='Übersicht Schützen'!M18 -> 310.3 | N33: ='Übersicht Schützen'!N18 -> 306.6 | O33: ='Übersicht Schützen'!O18 -> 305.0 | P33: ='Übersicht Schützen'!P18 -> 309.7 | Q33: ='Übersicht Schützen'!Q18 -> 309.6 | R33: ='Übersicht Schützen'!R18 -> 308.07 | S33: 1,848.4 | T33: ='Übersicht Schützen'!U18 -> 307.32 | U33: 3,687.8 | V33: -13.6
A34: 18 | B34: ='Übersicht Schützen'!A19 -> Goldenstein Uwe | C34: ='Übersicht Schützen'!B19 -> Börger II | D34: ='Übersicht Schützen'!C19 -> 307.4 | E34: ='Übersicht Schützen'!D19 -> 304.8 | F34: ='Übersicht Schützen'!E19 -> 304.1 | G34: ='Übersicht Schützen'!F19 -> 304.8 | H34: ='Übersicht Schützen'!G19 -> 307.9 | I34: ='Übersicht Schützen'!H19 -> 308.7 | J34: ='Übersicht Schützen'!I19 -> 306.28 | K34: 1,837.7 | L34: ='Übersicht Schützen'!L19 -> 305.1 | M34: ='Übersicht Schützen'!M19 -> 304.6 | N34: ='Übersicht Schützen'!N19 -> 301.7 | O34: ='Übersicht Schützen'!O19 -> 302.3 | P34: ='Übersicht Schützen'!P19 -> 308.8 | Q34: ='Übersicht Schützen'!Q19 -> 305.3 | R34: ='Übersicht Schützen'!R19 -> 304.63 | S34: 1,827.8 | T34: ='Übersicht Schützen'!U19 -> 305.46 | U34: 3,665.5 | V34: -22.3
A35: 19 | B35: ='Übersicht Schützen'!A20 -> Rolfes Wilhelm | C35: ='Übersicht Schützen'!B20 -> Neuvrees I | D35: ='Übersicht Schützen'!C20 -> 312.6 | E35: ='Übersicht Schützen'!D20 -> 304.2 | F35: ='Übersicht Schützen'!E20 -> 293.4 | G35: ='Übersicht Schützen'!F20 -> 301.6 | H35: ='Übersicht Schützen'!G20 -> 308.8 | I35: ='Übersicht Schützen'!H20 -> 311.6 | J35: ='Übersicht Schützen'!I20 -> 305.37 | K35: 1,832.2 | L35: ='Übersicht Schützen'!L20 -> 305.8 | M35: ='Übersicht Schützen'!M20 -> 295.8 | N35: ='Übersicht Schützen'!N20 -> 306.3 | O35: ='Übersicht Schützen'!O20 -> 303.3 | P35: ='Übersicht Schützen'!P20 -> 307.1 | Q35: ='Übersicht Schützen'!Q20 -> 311.7 | R35: ='Übersicht Schützen'!R20 -> 305.00 | S35: 1,830.0 | T35: ='Übersicht Schützen'!U20 -> 305.18 | U35: 3,662.2 | V35: -3.3
A36: 20 | B36: ='Übersicht Schützen'!A21 -> Jungsthoefel Markus | C36: ='Übersicht Schützen'!B21 -> Börger II | D36: ='Übersicht Schützen'!C21 -> 308.3 | E36: ='Übersicht Schützen'!D21 -> 303.5 | F36: ='Übersicht Schützen'!E21 -> 305.4 | G36: ='Übersicht Schützen'!F21 -> 306.1 | H36: ='Übersicht Schützen'!G21 -> 307.5 | I36: ='Übersicht Schützen'!H21 -> 309.1 | J36: ='Übersicht Schützen'!I21 -> 306.65 | K36: 1,839.9 | L36: ='Übersicht Schützen'!L21 -> 299.6 | M36: ='Übersicht Schützen'!M21 -> 307.9 | N36: ='Übersicht Schützen'!N21 -> 308.6 | O36: ='Übersicht Schützen'!O21 -> 287.8 | P36: ='Übersicht Schützen'!P21 -> 301.6 | Q36: ='Übersicht Schützen'!Q21 -> 309.1 | R36: ='Übersicht Schützen'!R21 -> 302.43 | S36: 1,814.6 | T36: ='Übersicht Schützen'!U21 -> 304.54 | U36: 3,654.5 | V36: -7.7
A37: 21 | B37: ='Übersicht Schützen'!A22 -> Thyen Werner | C37: ='Übersicht Schützen'!B22 -> Neuvrees I | D37: ='Übersicht Schützen'!C22 -> 304.5 | E37: ='Übersicht Schützen'!D22 -> 295.7 | F37: ='Übersicht Schützen'!E22 -> 302.9 | G37: ='Übersicht Schützen'!F22 -> 304.7 | H37: ='Übersicht Schützen'!G22 -> 303.0 | I37: ='Übersicht Schützen'!H22 -> 303.3 | J37: ='Übersicht Schützen'!I22 -> 302.35 | K37: 1,814.1 | L37: ='Übersicht Schützen'!L22 -> 302.3 | M37: ='Übersicht Schützen'!M22 -> 306.1 | N37: ='Übersicht Schützen'!N22 -> 301.5 | O37: ='Übersicht Schützen'!O22 -> 307.8 | P37: ='Übersicht Schützen'!P22 -> 309.0 | Q37: ='Übersicht Schützen'!Q22 -> 308.8 | R37: ='Übersicht Schützen'!R22 -> 305.92 | S37: 1,835.5 | T37: ='Übersicht Schützen'!U22 -> 304.13 | U37: 3,649.6 | V37: -4.9
A38: 22 | B38: ='Übersicht Schützen'!A23 -> Sebers Tobias | C38: ='Übersicht Schützen'!B23 -> Börgerwald II | D38: ='Übersicht Schützen'!C23 -> 305.8 | E38: ='Übersicht Schützen'!D23 -> 304.5 | F38: ='Übersicht Schützen'!E23 -> 300.3 | G38: ='Übersicht Schützen'!F23 -> 307.7 | H38: ='Übersicht Schützen'!G23 -> 302.3 | I38: ='Übersicht Schützen'!H23 -> 304.3 | J38: ='Übersicht Schützen'!I23 -> 304.15 | K38: 1,824.9 | L38: ='Übersicht Schützen'!L23 -> 297.0 | M38: ='Übersicht Schützen'!M23 -> 301.2 | N38: ='Übersicht Schützen'!N23 -> 302.5 | O38: ='Übersicht Schützen'!O23 -> 298.7 | P38: ='Übersicht Schützen'!P23 -> 301.7 | Q38: ='Übersicht Schützen'!Q23 -> 305.1 | R38: ='Übersicht Schützen'!R23 -> 301.03 | S38: 1,806.2 | T38: ='Übersicht Schützen'!U23 -> 302.59 | U38: 3,631.1 | V38: -18.5
A39: 23 | B39: ='Übersicht Schützen'!A24 -> Meyer Dirk | C39: ='Übersicht Schützen'!B24 -> Spahnharrenstätte II | D39: ='Übersicht Schützen'!C24 -> 311.1 | E39: ='Übersicht Schützen'!D24 -> 312.6 | F39: ='Übersicht Schützen'!E24 -> 313.0 | G39: ='Übersicht Schützen'!F24 -> 312.9 | H39: ='Übersicht Schützen'!G24 -> 314.1 | I39: ='Übersicht Schützen'!H24 -> 310.7 | J39: ='Übersicht Schützen'!I24 -> 312.40 | K39: 1,874.4 | L39: ='Übersicht Schützen'!L24 -> 310.5 | M39: ='Übersicht Schützen'!M24 -> 314.0 | N39: ='Übersicht Schützen'!N24 -> 0.0 | O39: ='Übersicht Schützen'!O24 -> 309.5 | P39: ='Übersicht Schützen'!P24 -> 311.3 | Q39: ='Übersicht Schützen'!Q24 -> 307.9 | R39: ='Übersicht Schützen'!R24 -> 310.64 | S39: 1,553.2 | T39: ='Übersicht Schützen'!U24 -> 311.60 | U39: 3,427.6 | V39: -203.5
A40: 24 | B40: ='Übersicht Schützen'!A25 -> Eckmann Mark | C40: ='Übersicht Schützen'!B25 -> Börger II | D40: ='Übersicht Schützen'!C25 -> 310.3 | E40: ='Übersicht Schützen'!D25 -> 301.5 | F40: ='Übersicht Schützen'!E25 -> 304.1 | G40: ='Übersicht Schützen'!F25 -> 301.7 | H40: ='Übersicht Schützen'!G25 -> 311.3 | I40: ='Übersicht Schützen'!H25 -> 304.5 | J40: ='Übersicht Schützen'!I25 -> 305.57 | K40: 1,833.4 | L40: ='Übersicht Schützen'!L25 -> 303.7 | M40: ='Übersicht Schützen'!M25 -> 0.0 | N40: ='Übersicht Schützen'!N25 -> 304.0 | O40: ='Übersicht Schützen'!O25 -> 299.8 | P40: ='Übersicht Schützen'!P25 -> 310.5 | Q40: ='Übersicht Schützen'!Q25 -> 305.8 | R40: ='Übersicht Schützen'!R25 -> 304.76 | S40: 1,523.8 | T40: ='Übersicht Schützen'!U25 -> 305.20 | U40: 3,357.2 | V40: -70.4
A41: 25 | B41: ='Übersicht Schützen'!A26 -> Schulz Simon | C41: ='Übersicht Schützen'!B26 -> Börger II | D41: ='Übersicht Schützen'!C26 -> 305.7 | E41: ='Übersicht Schützen'!D26 -> 299.8 | F41: ='Übersicht Schützen'!E26 -> 308.7 | G41: ='Übersicht Schützen'!F26 -> 303.7 | H41: ='Übersicht Schützen'!G26 -> 304.8 | I41: ='Übersicht Schützen'!H26 -> 309.3 | J41: ='Übersicht Schützen'!I26 -> 305.33 | K41: 1,832.0 | L41: ='Übersicht Schützen'!L26 -> 298.2 | M41: ='Übersicht Schützen'!M26 -> 302.8 | N41: ='Übersicht Schützen'!N26 -> 296.8 | O41: ='Übersicht Schützen'!O26 -> 0.0 | P41: ='Übersicht Schützen'!P26 -> 299.8 | Q41: ='Übersicht Schützen'!Q26 -> 307.8 | R41: ='Übersicht Schützen'!R26 -> 301.08 | S41: 1,505.4 | T41: ='Übersicht Schützen'!U26 -> 303.40 | U41: 3,337.4 | V41: -19.8
A42: 26 | B42: ='Übersicht Schützen'!A27 -> Schwarte Hermann | C42: ='Übersicht Schützen'!B27 -> Börger II | D42: ='Übersicht Schützen'!C27 -> 309.6 | E42: ='Übersicht Schützen'!D27 -> 301.5 | F42: ='Übersicht Schützen'!E27 -> 307.3 | G42: ='Übersicht Schützen'!F27 -> 302.5 | H42: ='Übersicht Schützen'!G27 -> 304.7 | I42: ='Übersicht Schützen'!H27 -> 0.0 | J42: ='Übersicht Schützen'!I27 -> 305.12 | K42: 1,525.6 | L42: ='Übersicht Schützen'!L27 -> 303.1 | M42: ='Übersicht Schützen'!M27 -> 304.9 | N42: ='Übersicht Schützen'!N27 -> 307.5 | O42: ='Übersicht Schützen'!O27 -> 0.0 | P42: ='Übersicht Schützen'!P27 -> 305.1 | Q42: ='Übersicht Schützen'!Q27 -> 0.0 | R42: ='Übersicht Schützen'!R27 -> 305.15 | S42: 1,220.6 | T42: ='Übersicht Schützen'!U27 -> 305.13 | U42: 2,746.2 | V42: -591.2
A43: 27 | B43: ='Übersicht Schützen'!A28 -> Hahnenkamp Ulrich | C43: ='Übersicht Schützen'!B28 -> Spahnharrenstätte II | D43: ='Übersicht Schützen'!C28 -> 0.0 | E43: ='Übersicht Schützen'!D28 -> 286.5 | F43: ='Übersicht Schützen'!E28 -> 0.0 | G43: ='Übersicht Schützen'!F28 -> 291.8 | H43: ='Übersicht Schützen'!G28 -> 297.3 | I43: ='Übersicht Schützen'!H28 -> 0.0 | J43: ='Übersicht Schützen'!I28 -> 291.87 | K43: 875.6 | L43: ='Übersicht Schützen'!L28 -> 295.1 | M43: ='Übersicht Schützen'!M28 -> 284.3 | N43: ='Übersicht Schützen'!N28 -> 274.1 | O43: ='Übersicht Schützen'!O28 -> 301.2 | P43: ='Übersicht Schützen'!P28 -> 299.7 | Q43: ='Übersicht Schützen'!Q28 -> 291.1 | R43: ='Übersicht Schützen'!R28 -> 290.92 | S43: 1,745.5 | T43: ='Übersicht Schützen'!U28 -> 291.23 | U43: 2,621.1 | V43: -125.1
A44: 28 | B44: ='Übersicht Schützen'!A29 -> Lindemann Gerd | C44: ='Übersicht Schützen'!B29 -> Esterwegen III | D44: ='Übersicht Schützen'!C29 -> 301.5 | E44: ='Übersicht Schützen'!D29 -> 310.4 | F44: ='Übersicht Schützen'!E29 -> 300.8 | G44: ='Übersicht Schützen'!F29 -> 304.3 | H44: ='Übersicht Schützen'!G29 -> 0.0 | I44: ='Übersicht Schützen'!H29 -> 0.0 | J44: ='Übersicht Schützen'!I29 -> 304.25 | K44: 1,217.0 | L44: ='Übersicht Schützen'!L29 -> 0.0 | M44: ='Übersicht Schützen'!M29 -> 0.0 | N44: ='Übersicht Schützen'!N29 -> 303.3 | O44: ='Übersicht Schützen'!O29 -> 301.3 | P44: ='Übersicht Schützen'!P29 -> 305.1 | Q44: ='Übersicht Schützen'!Q29 -> 306.8 | R44: ='Übersicht Schützen'!R29 -> 304.13 | S44: 1,216.5 | T44: ='Übersicht Schützen'!U29 -> 304.19 | U44: 2,433.5 | V44: -187.6
A45: 29 | B45: ='Übersicht Schützen'!A30 -> Hahnenkamp Markus | C45: ='Übersicht Schützen'!B30 -> Spahnharrenstätte II | D45: ='Übersicht Schützen'!C30 -> 0.0 | E45: ='Übersicht Schützen'!D30 -> 0.0 | F45: ='Übersicht Schützen'!E30 -> 0.0 | G45: ='Übersicht Schützen'!F30 -> 0.0 | H45: ='Übersicht Schützen'!G30 -> 298.9 | I45: ='Übersicht Schützen'!H30 -> 295.3 | J45: ='Übersicht Schützen'!I30 -> 297.10 | K45: 594.2 | L45: ='Übersicht Schützen'!L30 -> 299.6 | M45: ='Übersicht Schützen'!M30 -> 304.0 | N45: ='Übersicht Schützen'!N30 -> 298.2 | O45: ='Übersicht Schützen'!O30 -> 0.0 | P45: ='Übersicht Schützen'!P30 -> 295.9 | Q45: ='Übersicht Schützen'!Q30 -> 300.0 | R45: ='Übersicht Schützen'!R30 -> 299.54 | S45: 1,497.7 | T45: ='Übersicht Schützen'!U30 -> 298.84 | U45: 2,091.9 | V45: 0.0
A46: 30 | B46: ='Übersicht Schützen'!A31 -> Walker Stefan | C46: ='Übersicht Schützen'!B31 -> Börgerwald II | D46: ='Übersicht Schützen'!C31 -> 0.0 | E46: ='Übersicht Schützen'!D31 -> 0.0 | F46: ='Übersicht Schützen'!E31 -> 0.0 | G46: ='Übersicht Schützen'!F31 -> 290.3 | H46: ='Übersicht Schützen'!G31 -> 287.9 | I46: ='Übersicht Schützen'!H31 -> 287.0 | J46: ='Übersicht Schützen'!I31 -> 288.40 | K46: 865.2 | L46: ='Übersicht Schützen'!L31 -> 0.0 | M46: ='Übersicht Schützen'!M31 -> 0.0 | N46: ='Übersicht Schützen'!N31 -> 0.0 | O46: ='Übersicht Schützen'!O31 -> 0.0 | P46: ='Übersicht Schützen'!P31 -> 304.9 | Q46: ='Übersicht Schützen'!Q31 -> 302.1 | R46: ='Übersicht Schützen'!R31 -> 303.50 | S46: 607.0 | T46: ='Übersicht Schützen'!U31 -> 294.44 | U46: 1,472.2 | V46: -619.7
A47: 31 | B47: ='Übersicht Schützen'!A32 -> Aldfeld Helmut | C47: ='Übersicht Schützen'!B32 -> Esterwegen III | D47: ='Übersicht Schützen'!C32 -> 298.7 | E47: ='Übersicht Schützen'!D32 -> 296.4 | F47: ='Übersicht Schützen'!E32 -> 0.0 | G47: ='Übersicht Schützen'!F32 -> 0.0 | H47: ='Übersicht Schützen'!G32 -> 304.6 | I47: ='Übersicht Schützen'!H32 -> 298.9 | J47: ='Übersicht Schützen'!I32 -> 299.65 | K47: 1,198.6 | L47: ='Übersicht Schützen'!L32 -> 0.0 | M47: ='Übersicht Schützen'!M32 -> 0.0 | N47: ='Übersicht Schützen'!N32 -> 0.0 | O47: ='Übersicht Schützen'!O32 -> 0.0 | P47: ='Übersicht Schützen'!P32 -> 0.0 | Q47: ='Übersicht Schützen'!Q32 -> 0.0 | R47: ='Übersicht Schützen'!R32 -> 0.00 | S47: 0.0 | T47: ='Übersicht Schützen'!U32 -> 299.65 | U47: 1,198.6 | V47: =(U46-U47)*-1 -> -273.6
A48: 32 | B48: ='Übersicht Schützen'!A33 -> Lindemann Rita | C48: ='Übersicht Schützen'!B33 -> Rastdorf III | D48: ='Übersicht Schützen'!C33 -> 0.0 | E48: ='Übersicht Schützen'!D33 -> 0.0 | F48: ='Übersicht Schützen'!E33 -> 0.0 | G48: ='Übersicht Schützen'!F33 -> 0.0 | H48: ='Übersicht Schützen'!G33 -> 0.0 | I48: ='Übersicht Schützen'!H33 -> 0.0 | J48: ='Übersicht Schützen'!I33 -> 0.00 | K48: 0.0 | L48: ='Übersicht Schützen'!L33 -> 317.9 | M48: ='Übersicht Schützen'!M33 -> 314.4 | N48: ='Übersicht Schützen'!N33 -> 0.0 | O48: ='Übersicht Schützen'!O33 -> 316.6 | P48: ='Übersicht Schützen'!P33 -> 0.0 | Q48: ='Übersicht Schützen'!Q33 -> 0.0 | R48: ='Übersicht Schützen'!R33 -> 316.30 | S48: 948.9 | T48: ='Übersicht Schützen'!U33 -> 316.30 | U48: 948.9 | V48: -249.7
A49: 33 | B49: ='Übersicht Schützen'!A34 -> Heidemann Jürgen | C49: ='Übersicht Schützen'!B34 -> Esterwegen III | D49: ='Übersicht Schützen'!C34 -> 305.9 | E49: ='Übersicht Schützen'!D34 -> 305.1 | F49: ='Übersicht Schützen'!E34 -> 309.3 | G49: ='Übersicht Schützen'!F34 -> 0.0 | H49: ='Übersicht Schützen'!G34 -> 0.0 | I49: ='Übersicht Schützen'!H34 -> 0.0 | J49: ='Übersicht Schützen'!I34 -> 306.77 | K49: 920.3 | L49: ='Übersicht Schützen'!L34 -> 0.0 | M49: ='Übersicht Schützen'!M34 -> 0.0 | N49: ='Übersicht Schützen'!N34 -> 0.0 | O49: ='Übersicht Schützen'!O34 -> 0.0 | P49: ='Übersicht Schützen'!P34 -> 0.0 | Q49: ='Übersicht Schützen'!Q34 -> 0.0 | R49: ='Übersicht Schützen'!R34 -> 0.00 | S49: 0.0 | T49: ='Übersicht Schützen'!U34 -> 306.77 | U49: 920.3 | V49: -28.6
A50: 34 | B50: ='Übersicht Schützen'!A35 -> Speeker Dietmar | C50: ='Übersicht Schützen'!B35 -> Börgerwald II | D50: ='Übersicht Schützen'!C35 -> 302.2 | E50: ='Übersicht Schützen'!D35 -> 0.0 | F50: ='Übersicht Schützen'!E35 -> 0.0 | G50: ='Übersicht Schützen'!F35 -> 0.0 | H50: ='Übersicht Schützen'!G35 -> 0.0 | I50: ='Übersicht Schützen'!H35 -> 0.0 | J50: ='Übersicht Schützen'!I35 -> 302.20 | K50: 302.2 | L50: ='Übersicht Schützen'!L35 -> 0.0 | M50: ='Übersicht Schützen'!M35 -> 0.0 | N50: ='Übersicht Schützen'!N35 -> 0.0 | O50: ='Übersicht Schützen'!O35 -> 0.0 | P50: ='Übersicht Schützen'!P35 -> 0.0 | Q50: ='Übersicht Schützen'!Q35 -> 0.0 | R50: ='Übersicht Schützen'!R35 -> 0.00 | S50: 0.0 | T50: ='Übersicht Schützen'!U35 -> 302.20 | U50: 302.2 | V50: -618.1
A51: 35 | B51: ='Übersicht Schützen'!A36 -> Olliges Kai | C51: ='Übersicht Schützen'!B36 -> Börgerwald II | D51: ='Übersicht Schützen'!C36 -> 0.0 | E51: ='Übersicht Schützen'!D36 -> 0.0 | F51: ='Übersicht Schützen'!E36 -> 0.0 | G51: ='Übersicht Schützen'!F36 -> 0.0 | H51: ='Übersicht Schützen'!G36 -> 0.0 | I51: ='Übersicht Schützen'!H36 -> 0.0 | J51: ='Übersicht Schützen'!I36 -> 0.00 | K51: 0.0 | L51: ='Übersicht Schützen'!L36 -> 259.6 | M51: ='Übersicht Schützen'!M36 -> 0.0 | N51: ='Übersicht Schützen'!N36 -> 0.0 | O51: ='Übersicht Schützen'!O36 -> 0.0 | P51: ='Übersicht Schützen'!P36 -> 0.0 | Q51: ='Übersicht Schützen'!Q36 -> 0.0 | R51: ='Übersicht Schützen'!R36 -> 259.60 | S51: 259.6 | T51: ='Übersicht Schützen'!U36 -> 259.60 | U51: 259.6 | V51: =(U50-U51)*-1 -> -42.6
A52: 36 | B52: ='Übersicht Schützen'!A37 -> Peters Carsten | C52: ='Übersicht Schützen'!B37 -> Neuvrees I | D52: ='Übersicht Schützen'!C37 -> 0.0 | E52: ='Übersicht Schützen'!D37 -> 0.0 | F52: ='Übersicht Schützen'!E37 -> 0.0 | G52: ='Übersicht Schützen'!F37 -> 0.0 | H52: ='Übersicht Schützen'!G37 -> 0.0 | I52: ='Übersicht Schützen'!H37 -> 0.0 | J52: ='Übersicht Schützen'!I37 -> 0.00 | K52: 0.0 | L52: ='Übersicht Schützen'!L37 -> 0.0 | M52: ='Übersicht Schützen'!M37 -> 0.0 | N52: ='Übersicht Schützen'!N37 -> 0.0 | O52: ='Übersicht Schützen'!O37 -> 0.0 | P52: ='Übersicht Schützen'!P37 -> 0.0 | Q52: ='Übersicht Schützen'!Q37 -> 0.0 | R52: ='Übersicht Schützen'!R37 -> 0.00 | S52: 0.0 | T52: ='Übersicht Schützen'!U37 -> 0.00 | U52: 0.0 | V52: -259.6
C54: Schnitt: | D54: =IF(Formelhilfe!B45 > 0, SUM(D17:D52)/Formelhilfe!B45, 0) -> 309.1 | E54: =IF(Formelhilfe!C45 > 0, SUM(E17:E52)/Formelhilfe!C45, 0) -> 306.7 | F54: =IF(Formelhilfe!D45 > 0, SUM(F17:F52)/Formelhilfe!D45, 0) -> 307.7 | G54: =IF(Formelhilfe!E45 > 0, SUM(G17:G52)/Formelhilfe!E45, 0) -> 307.2 | H54: =IF(Formelhilfe!F45 > 0, SUM(H17:H52)/Formelhilfe!F45, 0) -> 309.0 | I54: =IF(Formelhilfe!G45 > 0, SUM(I17:I52)/Formelhilfe!G45, 0) -> 308.2 | J54: =IF(SUM(J17:J52)<>0,AVERAGEIF(J17:J52,"<>0"),0) -> 306.92 | K54: =IF(SUM(K17:K52)<>0,AVERAGEIF(K17:K52,"<>0"),0) -> 1633.25 | L54: =IF(Formelhilfe!I45 > 0, SUM(L17:L52)/Formelhilfe!I45, 0) -> 305.9 | M54: =IF(Formelhilfe!J45 > 0, SUM(M17:M52)/Formelhilfe!J45, 0) -> 307.8 | N54: =IF(Formelhilfe!K45 > 0, SUM(N17:N52)/Formelhilfe!K45, 0) -> 306.5 | O54: =IF(Formelhilfe!L45 > 0, SUM(O17:O52)/Formelhilfe!L45, 0) -> 306.7 | P54: =IF(Formelhilfe!M45 > 0, SUM(P17:P52)/Formelhilfe!M45, 0) -> 309.4 | Q54: =IF(Formelhilfe!N45 > 0, SUM(Q17:Q52)/Formelhilfe!N45, 0) -> 309.3 | R54: =IF(SUM(R17:R52)<>0,AVERAGEIF(R17:R52,"<>0"),0) -> 306.28 | S54: =IF(SUM(S17:S52)<>0,AVERAGEIF(S17:S52,"<>0"),0) -> 1653.44 | T54: 305.89 | U54: =(K54+S54) -> 3,286.69

Sheet Wettkampf 1
B1: Verein / Gruppe | D1: Ergebnisse | X1: Austragungsort: | Y1: =Übersicht!D4 -> Neuvrees
A2: 1 | B2: Neuvrees I | D2: =G46 -> 938.6 | E2: =IF(H46>4,"Es sind zu viele Schützen in Wertung!"," ") ->  | X2: Wettkampftag: | Y2: =Übersicht!D3 -> 25.08.
A3: 2 | B3: Rastdorf III | D3: =I46 -> 946.0 | E3: =IF(J46>4,"Es sind zu viele Schützen in Wertung!"," ") -> 
A4: 3 | B4: Börger II | D4: =K46 -> 935.7 | E4: =IF(L46>4,"Es sind zu viele Schützen in Wertung!"," ") ->  | Z4: Ansprechpartner für Rückfragen:
A5: 4 | B5: Esterwegen III | D5: =M46 -> 933.3 | E5: =IF(N46>4,"Es sind zu viele Schützen in Wertung!"," ") ->  | X5: Name: | Y5: Janßen Markus
A6: 5 | B6: Börgerwald II | D6: =O46 -> 929.6 | E6: =IF(P46>4,"Es sind zu viele Schützen in Wertung!"," ") ->  | X6: Tel: | Y6: 01705453583
A7: 6 | B7: Spahnharrenstätte II | D7: =Q46 -> 928.7 | E7: =IF(R46>4,"Es sind zu viele Schützen in Wertung!"," ") ->  | X7: Standaufsicht: | Y7: Janßen Markus
B9: Einzelergebnisse: | C9: Verein/Gruppe (per Dropdown-Feld einzutragen) | D9: Ergebnisse | E9: AW? Dann x eintippen | G9: Verein 1 | I9: Verein 2 | K9: Verein 3 | M9: Verein 4 | O9: Verein 5 | Q9: Verein 6 | U9: Geburtsdatum | W9: Proberechnung bei Streifen:
A10: 1 | B10: Rolfes Wilhelm | C10: Neuvrees I | D10: 312.6 | F10: =IF(E10="x","0",D10) -> 312.6 | G10: =IF(C10=$B$2,F10,0) -> 312.6 | H10: =(IF(AND($E10="",$C10=$B$2),1,0)) -> 1 | I10: =IF($C10=$B$3,F10,0) -> 0 | J10: =(IF(AND($E10="",$C10=$B$3),1,0)) -> 0 | K10: =IF($C10=$B$4,F10,0) -> 0 | L10: =(IF(AND($E10="",$C10=$B$4),1,0)) -> 0 | M10: =IF($C10=$B$5,F10,0) -> 0 | N10: =(IF(AND($E10="",$C10=$B$5),1,0)) -> 0 | O10: =IF($C10=$B$6,F10,0) -> 0 | P10: =(IF(AND($E10="",$C10=$B$6),1,0)) -> 0 | Q10: =IF($C10=$B$7,F10,0) -> 0 | R10: =(IF(AND($E10="",$C10=$B$7),1,0)) -> 0 | W10: 103.2 | X10: 104.6 | Y10: 104.8 | Z10: =W10+X10+Y10 -> 312.6 | AA10: =IF(Z10=D10,1,0) -> 1 | AB10: =IF(Z10=0,0,1) -> 1 | AC10: =IF(AA10+AB10=2,"Korrekt","") -> Korrekt
A11: 2 | B11: Steenken Klaus | C11: Neuvrees I | D11: 304.2 | F11: =IF(E11="x","0",D11) -> 304.2 | G11: =IF(C11=$B$2,F11,0) -> 304.2 | H11: =(IF(AND($E11="",$C11=$B$2),1,0)) -> 1 | I11: =IF($C11=$B$3,F11,0) -> 0 | J11: =(IF(AND($E11="",$C11=$B$3),1,0)) -> 0 | K11: =IF($C11=$B$4,F11,0) -> 0 | L11: =(IF(AND($E11="",$C11=$B$4),1,0)) -> 0 | M11: =IF($C11=$B$5,F11,0) -> 0 | N11: =(IF(AND($E11="",$C11=$B$5),1,0)) -> 0 | O11: =IF($C11=$B$6,F11,0) -> 0 | P11: =(IF(AND($E11="",$C11=$B$6),1,0)) -> 0 | Q11: =IF($C11=$B$7,F11,0) -> 0 | R11: =(IF(AND($E11="",$C11=$B$7),1,0)) -> 0 | W11: 101.7 | X11: 101.8 | Y11: 100.7 | Z11: =W11+X11+Y11 -> 304.2 | AA11: =IF(Z11=D11,1,0) -> 1 | AB11: =IF(Z11=0,0,1) -> 1 | AC11: =IF(AA11+AB11=2,"Korrekt","") -> Korrekt
A12: 3 | B12: Breyer Wilfried | C12: Neuvrees I | D12: 312.0 | F12: 312 | G12: 312 | H12: 1 | I12: 0 | J12: 0 | K12: 0 | L12: 0 | M12: 0 | N12: 0 | O12: 0 | P12: 0 | Q12: 0 | R12: 0 | W12: 101.7 | X12: 103.8 | Y12: 106.5 | Z12: 312.0 | AA12: 1 | AB12: 1 | AC12: Korrekt
A13: 4 | B13: Janßen Markus | C13: Neuvrees I | D13: 314.0 | F13: 314 | G13: 314 | H13: 1 | I13: 0 | J13: 0 | K13: 0 | L13: 0 | M13: 0 | N13: 0 | O13: 0 | P13: 0 | Q13: 0 | R13: 0 | W13: 104.3 | X13: 105.4 | Y13: 104.3 | Z13: 314.0 | AA13: 1 | AB13: 1 | AC13: Korrekt
A14: 5 | B14: Thyen Werner | C14: Neuvrees I | D14: 304.5 | E14: x | F14: 0 | G14: 0 | H14: 0 | I14: 0 | J14: 0 | K14: 0 | L14: 0 | M14: 0 | N14: 0 | O14: 0 | P14: 0 | Q14: 0 | R14: 0 | W14: 103.3 | X14: 100.6 | Y14: 100.6 | Z14: 304.5 | AA14: 1 | AB14: 1 | AC14: Korrekt
A15: 6 | B15: Peters Carsten | C15: Neuvrees I | D15: 0.0 | E15: x | F15: 0 | G15: 0 | H15: 0 | I15: 0 | J15: 0 | K15: 0 | L15: 0 | M15: 0 | N15: 0 | O15: 0 | P15: 0 | Q15: 0 | R15: 0 | W15: 0.0 | X15: 0.0 | Y15: 0.0 | Z15: 0.0 | AA15: 1 | AB15: 0
A16: 7 | B16: Wotte Robert | C16: Rastdorf III | D16: 317.6 | F16: 317.6 | G16: 0 | H16: 0 | I16: 317.6 | J16: 1 | K16: 0 | L16: 0 | M16: 0 | N16: 0 | O16: 0 | P16: 0 | Q16: 0 | R16: 0 | W16: 106.1 | X16: 106.3 | Y16: 105.2 | Z16: 317.6 | AA16: 1 | AB16: 1 | AC16: Korrekt
A17: 8 | B17: Müller Helmut | C17: Rastdorf III | D17: 315.8 | F17: 315.8 | G17: 0 | H17: 0 | I17: 315.8 | J17: 1 | K17: 0 | L17: 0 | M17: 0 | N17: 0 | O17: 0 | P17: 0 | Q17: 0 | R17: 0 | W17: 105.6 | X17: 104.5 | Y17: 105.7 | Z17: 315.8 | AA17: 1 | AB17: 1 | AC17: Korrekt
A18: 9 | B18: Bookjans Günther | C18: Rastdorf III | D18: 311.7 | F18: 311.7 | G18: 0 | H18: 0 | I18: 311.7 | J18: 1 | K18: 0 | L18: 0 | M18: 0 | N18: 0 | O18: 0 | P18: 0 | Q18: 0 | R18: 0 | W18: 105.1 | X18: 103.5 | Y18: 103.1 | Z18: 311.7 | AA18: 1 | AB18: 1 | AC18: Korrekt
A19: 10 | B19: Meer Michael | C19: Rastdorf III | D19: 312.6 | F19: 312.6 | G19: 0 | H19: 0 | I19: 312.6 | J19: 1 | K19: 0 | L19: 0 | M19: 0 | N19: 0 | O19: 0 | P19: 0 | Q19: 0 | R19: 0 | W19: 104.4 | X19: 105.1 | Y19: 103.1 | Z19: 312.6 | AA19: 1 | AB19: 1 | AC19: Korrekt
A20: 11 | B20: Lindemann Rita | C20: Rastdorf III | D20: 0.0 | E20: x | F20: 0 | G20: 0 | H20: 0 | I20: 0 | J20: 0 | K20: 0 | L20: 0 | M20: 0 | N20: 0 | O20: 0 | P20: 0 | Q20: 0 | R20: 0 | Z20: 0.0 | AA20: 1 | AB20: 0
A21: 12 | B21: Olliges Kai | C21: Börgerwald II | D21: 0.0 | E21: x | F21: 0 | G21: 0 | H21: 0 | I21: 0 | J21: 0 | K21: 0 | L21: 0 | M21: 0 | N21: 0 | O21: 0 | P21: 0 | Q21: 0 | R21: 0 | Z21: 0.0 | AA21: 1 | AB21: 0
A22: 13 | B22: Zdralik Ingo | C22: Börger II | D22: 315.8 | F22: 315.8 | G22: 0 | H22: 0 | I22: 0 | J22: 0 | K22: 315.8 | L22: 1 | M22: 0 | N22: 0 | O22: 0 | P22: 0 | Q22: 0 | R22: 0 | W22: 105.7 | X22: 105.7 | Y22: 104.4 | Z22: 315.8 | AA22: 1 | AB22: 1 | AC22: Korrekt
A23: 14 | B23: Goldenstein Uwe | C23: Börger II | D23: 307.4 | E23: x | F23: 0 | G23: 0 | H23: 0 | I23: 0 | J23: 0 | K23: 0 | L23: 0 | M23: 0 | N23: 0 | O23: 0 | P23: 0 | Q23: 0 | R23: 0 | W23: 104.2 | X23: 101.6 | Y23: 101.6 | Z23: 307.4 | AA23: 1 | AB23: 1 | AC23: Korrekt
A24: 15 | B24: Eckmann Mark | C24: Börger II | D24: 310.3 | F24: 310.3 | G24: 0 | H24: 0 | I24: 0 | J24: 0 | K24: 310.3 | L24: 1 | M24: 0 | N24: 0 | O24: 0 | P24: 0 | Q24: 0 | R24: 0 | W24: 104.8 | X24: 103.7 | Y24: 101.8 | Z24: 310.3 | AA24: 1 | AB24: 1 | AC24: Korrekt
A25: 16 | B25: Schulz Simon | C25: Börger II | D25: 305.7 | E25: x | F25: 0 | G25: 0 | H25: 0 | I25: 0 | J25: 0 | K25: 0 | L25: 0 | M25: 0 | N25: 0 | O25: 0 | P25: 0 | Q25: 0 | R25: 0 | W25: 101.7 | X25: 101.3 | Y25: 102.7 | Z25: 305.7 | AA25: 1 | AB25: 1 | AC25: Korrekt
A26: 17 | B26: Schwarte Hermann | C26: Börger II | D26: 309.6 | F26: 309.6 | G26: 0 | H26: 0 | I26: 0 | J26: 0 | K26: 309.6 | L26: 1 | M26: 0 | N26: 0 | O26: 0 | P26: 0 | Q26: 0 | R26: 0 | W26: 102.3 | X26: 103.4 | Y26: 103.9 | Z26: 309.6 | AA26: 1 | AB26: 1 | AC26: Korrekt
A27: 18 | B27: Jungsthoefel Markus | C27: Börger II | D27: 308.3 | F27: 308.3 | G27: 0 | H27: 0 | I27: 0 | J27: 0 | K27: 308.3 | L27: 1 | M27: 0 | N27: 0 | O27: 0 | P27: 0 | Q27: 0 | R27: 0 | W27: 103.0 | X27: 102.9 | Y27: 102.4 | Z27: 308.3 | AA27: 1 | AB27: 1 | AC27: Korrekt
A28: 19 | B28: Aldfeld Helmut | C28: Esterwegen III | D28: 298.7 | E28: x | F28: 0 | G28: 0 | H28: 0 | I28: 0 | J28: 0 | K28: 0 | L28: 0 | M28: 0 | N28: 0 | O28: 0 | P28: 0 | Q28: 0 | R28: 0 | W28: 95.2 | X28: 101.0 | Y28: 102.5 | Z28: 298.7 | AA28: 1 | AB28: 1 | AC28: Korrekt
A29: 20 | B29: Schulte Mathias | C29: Esterwegen III | D29: 310.8 | F29: 310.8 | G29: 0 | H29: 0 | I29: 0 | J29: 0 | K29: 0 | L29: 0 | M29: 310.8 | N29: 1 | O29: 0 | P29: 0 | Q29: 0 | R29: 0 | W29: 103.8 | X29: 102.1 | Y29: 104.9 | Z29: 310.8 | AA29: 1 | AB29: 1 | AC29: Korrekt
A30: 21 | B30: Middendorf Peter | C30: Esterwegen III | D30: 312.2 | F30: 312.2 | G30: 0 | H30: 0 | I30: 0 | J30: 0 | K30: 0 | L30: 0 | M30: 312.2 | N30: 1 | O30: 0 | P30: 0 | Q30: 0 | R30: 0 | W30: 104.0 | X30: 106.4 | Y30: 101.8 | Z30: 312.2 | AA30: 1 | AB30: 1 | AC30: Korrekt
A31: 22 | B31: Meibers Michael | C31: Esterwegen III | D31: 310.3 | F31: 310.3 | G31: 0 | H31: 0 | I31: 0 | J31: 0 | K31: 0 | L31: 0 | M31: 310.3 | N31: 1 | O31: 0 | P31: 0 | Q31: 0 | R31: 0 | W31: 102.0 | X31: 106.0 | Y31: 102.3 | Z31: 310.3 | AA31: 1 | AB31: 1 | AC31: Korrekt
A32: 23 | B32: Heidemann Jürgen | C32: Esterwegen III | D32: 305.9 | F32: 305.9 | G32: 0 | H32: 0 | I32: 0 | J32: 0 | K32: 0 | L32: 0 | M32: 305.9 | N32: 1 | O32: 0 | P32: 0 | Q32: 0 | R32: 0 | W32: 103.7 | X32: 101.2 | Y32: 101.0 | Z32: 305.9 | AA32: 1 | AB32: 1 | AC32: Korrekt
A33: 24 | B33: Lindemann Gerd | C33: Esterwegen III | D33: 301.5 | E33: x | F33: 0 | G33: 0 | H33: 0 | I33: 0 | J33: 0 | K33: 0 | L33: 0 | M33: 0 | N33: 0 | O33: 0 | P33: 0 | Q33: 0 | R33: 0 | W33: 102.2 | X33: 99.6 | Y33: 99.7 | Z33: 301.5 | AA33: 1 | AB33: 1 | AC33: Korrekt
A34: 25 | B34: Hanenkamp Andre | C34: Börgerwald II | D34: 313.3 | F34: 313.3 | G34: 0 | H34: 0 | I34: 0 | J34: 0 | K34: 0 | L34: 0 | M34: 0 | N34: 0 | O34: 313.3 | P34: 1 | Q34: 0 | R34: 0 | W34: 104.5 | X34: 104.9 | Y34: 103.9 | Z34: 313.3 | AA34: 1 | AB34: 1 | AC34: Korrekt
A35: 26 | B35: Antons Mathias | C35: Börgerwald II | D35: 308.9 | F35: 308.9 | G35: 0 | H35: 0 | I35: 0 | J35: 0 | K35: 0 | L35: 0 | M35: 0 | N35: 0 | O35: 308.9 | P35: 1 | Q35: 0 | R35: 0 | W35: 101.6 | X35: 103.5 | Y35: 103.8 | Z35: 308.9 | AA35: 1 | AB35: 1 | AC35: Korrekt
A36: 27 | B36: Schröer Friedhelm | C36: Börgerwald II | D36: 306.3 | F36: 306.3 | G36: 0 | H36: 0 | I36: 0 | J36: 0 | K36: 0 | L36: 0 | M36: 0 | N36: 0 | O36: 306.3 | P36: 1 | Q36: 0 | R36: 0 | W36: 98.9 | X36: 103.9 | Y36: 103.5 | Z36: 306.3 | AA36: 1 | AB36: 1 | AC36: Korrekt
A37: 28 | B37: Sebers Tobias | C37: Börgerwald II | D37: 305.8 | E37: x | F37: 0 | G37: 0 | H37: 0 | I37: 0 | J37: 0 | K37: 0 | L37: 0 | M37: 0 | N37: 0 | O37: 0 | P37: 0 | Q37: 0 | R37: 0 | W37: 103.4 | X37: 102.1 | Y37: 100.3 | Z37: 305.8 | AA37: 1 | AB37: 1 | AC37: Korrekt
A38: 29 | B38: Hanneken Moritz | C38: Börgerwald II | D38: 307.4 | F38: 307.4 | G38: 0 | H38: 0 | I38: 0 | J38: 0 | K38: 0 | L38: 0 | M38: 0 | N38: 0 | O38: 307.4 | P38: 1 | Q38: 0 | R38: 0 | W38: 101.8 | X38: 103.9 | Y38: 101.7 | Z38: 307.4 | AA38: 1 | AB38: 1 | AC38: Korrekt
A39: 30 | B39: Speeker Dietmar | C39: Börgerwald II | D39: 302.2 | E39: x | F39: 0 | G39: 0 | H39: 0 | I39: 0 | J39: 0 | K39: 0 | L39: 0 | M39: 0 | N39: 0 | O39: 0 | P39: 0 | Q39: 0 | R39: 0 | W39: 98.0 | X39: 102.6 | Y39: 101.6 | Z39: 302.2 | AA39: 1 | AB39: 1 | AC39: Korrekt
A40: 31 | B40: Will Achim | C40: Spahnharrenstätte II | D40: 307.0 | F40: 307 | G40: 0 | H40: 0 | I40: 0 | J40: 0 | K40: 0 | L40: 0 | M40: 0 | N40: 0 | O40: 0 | P40: 0 | Q40: 307 | R40: 1 | W40: 101.0 | X40: 103.7 | Y40: 102.3 | Z40: =W40+X40+Y40 -> 307.0 | AA40: =IF(Z40=D40,1,0) -> 1 | AB40: =IF(Z40=0,0,1) -> 1 | AC40: =IF(AA40+AB40=2,"Korrekt","") -> Korrekt
A41: 32 | B41: Meyer Dirk | C41: Spahnharrenstätte II | D41: 311.1 | F41: 311.1 | G41: 0 | H41: 0 | I41: 0 | J41: 0 | K41: 0 | L41: 0 | M41: 0 | N41: 0 | O41: 0 | P41: 0 | Q41: 311.1 | R41: 1 | W41: 101.7 | X41: 104.6 | Y41: 104.8 | Z41: 311.1 | AA41: 1 | AB41: 1 | AC41: Korrekt
A42: 33 | B42: Micksch Heiko | C42: Spahnharrenstätte II | D42: 310.6 | F42: 310.6 | G42: 0 | H42: 0 | I42: 0 | J42: 0 | K42: 0 | L42: 0 | M42: 0 | N42: 0 | O42: 0 | P42: 0 | Q42: 310.6 | R42: 1 | W42: 103.6 | X42: 102.9 | Y42: 104.1 | Z42: 310.6 | AA42: 1 | AB42: 1 | AC42: Korrekt
A43: 34 | B43: Hahnenkamp Ulrich | C43: Spahnharrenstätte II | D43: 0.0 | E43: x | F43: 0 | G43: 0 | H43: 0 | I43: 0 | J43: 0 | K43: 0 | L43: 0 | M43: 0 | N43: 0 | O43: 0 | P43: 0 | Q43: 0 | R43: 0 | Z43: 0.0 | AA43: 1 | AB43: 0
A44: 35 | B44: Hahnenkamp Markus | C44: Spahnharrenstätte II | D44: 0.0 | E44: x | F44: 0 | G44: 0 | H44: 0 | I44: 0 | J44: 0 | K44: 0 | L44: 0 | M44: 0 | N44: 0 | O44: 0 | P44: 0 | Q44: 0 | R44: 0 | Z44: 0.0 | AA44: 1 | AB44: 0
A45: 36 | B45: Walker Stefan | C45: Börgerwald II | D45: 0.0 | E45: x | F45: 0 | G45: 0 | H45: 0 | I45: 0 | J45: 0 | K45: 0 | L45: 0 | M45: 0 | N45: 0 | O45: 0 | P45: 0 | Q45: 0 | R45: 0 | Z45: =W45+X45+Y45 -> 0.0 | AA45: =IF(Z45=D45,1,0) -> 1 | AB45: =IF(Z45=0,0,1) -> 0 | AC45: =IF(AA45+AB45=2,"Korrekt","") -> 
G46: =LARGE(G10:G45,1)+LARGE(G10:G45,2)+LARGE(G10:G45,3) -> 938.6 | H46: =SUM(H10:H45) -> 4 | I46: =LARGE(I10:I45,1)+LARGE(I10:I45,2)+LARGE(I10:I45,3) -> 946 | J46: =SUM(J10:J45) -> 4 | K46: =LARGE(K10:K45,1)+LARGE(K10:K45,2)+LARGE(K10:K45,3) -> 935.7 | L46: =SUM(L10:L45) -> 4 | M46: =LARGE(M10:M45,1)+LARGE(M10:M45,2)+LARGE(M10:M45,3) -> 933.3 | N46: =SUM(N10:N45) -> 4 | O46: =LARGE(O10:O45,1)+LARGE(O10:O45,2)+LARGE(O10:O45,3) -> 929.6 | P46: =SUM(P10:P45) -> 4 | Q46: =LARGE(Q10:Q45,1)+LARGE(Q10:Q45,2)+LARGE(Q10:Q45,3) -> 928.7 | R46: =SUM(R10:S45) -> 3
C47: per Email an: sk-huemmling@gmx.de

Sheet 2
B1: Verein / Gruppe | D1: Ergebnisse | V1: Austragungsort: | W1: =Übersicht!E4 -> Rastdorf
A2: 1 | B2: ='Wettkampf 1'!B2 -> Neuvrees I | D2: =G46 -> 931.2 | E2: =IF(H46>4,"Es sind zu viele Schützen in Wertung!"," ") ->  | V2: Wettkampftag: | W2: =Übersicht!E3 -> 08.09.
A3: 2 | B3: ='Wettkampf 1'!B3 -> Rastdorf III | D3: =I46 -> 938.7 | E3: =IF(J46>4,"Es sind zu viele Schützen in Wertung!"," ") -> 
A4: 3 | B4: ='Wettkampf 1'!B4 -> Börger II | D4: =K46 -> 916.1 | E4: =IF(L46>4,"Es sind zu viele Schützen in Wertung!"," ") ->  | X4: Ansprechpartner für Rückfragen:
A5: 4 | B5: ='Wettkampf 1'!B5 -> Esterwegen III | D5: =M46 -> 936.7 | E5: =IF(N46>4,"Es sind zu viele Schützen in Wertung!"," ") ->  | V5: Name: | W5: Michael Meer
A6: 5 | B6: ='Wettkampf 1'!B6 -> Börgerwald II | D6: =O46 -> 922.8 | E6: =IF(P46>4,"Es sind zu viele Schützen in Wertung!"," ") ->  | V6: Tel: | W6: 059569269838
A7: 6 | B7: ='Wettkampf 1'!B7 -> Spahnharrenstätte II | D7: =Q46 -> 934.5 | E7: =IF(R46>4,"Es sind zu viele Schützen in Wertung!"," ") ->  | V7: Standaufsicht: | W7: R.Wotte
B9: Einzelergebnisse: | C9: Verein / Gruppe | D9: Ergebnisse (mindestens 0 eintragen) | E9: AW? Dann x eintippen | G9: Verein 1 | I9: Verein 2 | K9: Verein 3 | M9: Verein 4 | O9: Verein 5 | Q9: Verein 6 | U9: Proberechnung bei Streifen:
A10: 1 | B10: ='Wettkampf 1'!B10 -> Rolfes Wilhelm | C10: ='Wettkampf 1'!C10 -> Neuvrees I | D10: 304.2 | F10: =IF(E10="x","0",D10) -> 304.2 | G10: =IF(C10=$B$2,F10,0) -> 304.2 | H10: =(IF(AND($E10="",$C10=$B$2),1,0)) -> 1 | I10: =IF($C10=$B$3,F10,0) -> 0 | J10: =(IF(AND($E10="",$C10=$B$3),1,0)) -> 0 | K10: =IF($C10=$B$4,F10,0) -> 0 | L10: =(IF(AND($E10="",$C10=$B$4),1,0)) -> 0 | M10: =IF($C10=$B$5,F10,0) -> 0 | N10: =(IF(AND($E10="",$C10=$B$5),1,0)) -> 0 | O10: =IF($C10=$B$6,F10,0) -> 0 | P10: =(IF(AND($E10="",$C10=$B$6),1,0)) -> 0 | Q10: =IF($C10=$B$7,F10,0) -> 0 | R10: =(IF(AND($E10="",$C10=$B$7),1,0)) -> 0 | X10: =U10+V10+W10 -> 0.0 | Y10: =IF(X10=D10,1,0) -> 0 | Z10: =IF(X10=0,0,1) -> 0 | AA10: =IF(Y10+Z10=2,"Korrekt","") -> 
A11: 2 | B11: ='Wettkampf 1'!B11 -> Steenken Klaus | C11: ='Wettkampf 1'!C11 -> Neuvrees I | D11: 307.0 | F11: =IF(E11="x","0",D11) -> 307.0 | G11: =IF(C11=$B$2,F11,0) -> 307 | H11: =(IF(AND($E11="",$C11=$B$2),1,0)) -> 1 | I11: =IF($C11=$B$3,F11,0) -> 0 | J11: =(IF(AND($E11="",$C11=$B$3),1,0)) -> 0 | K11: =IF($C11=$B$4,F11,0) -> 0 | L11: =(IF(AND($E11="",$C11=$B$4),1,0)) -> 0 | M11: =IF($C11=$B$5,F11,0) -> 0 | N11: =(IF(AND($E11="",$C11=$B$5),1,0)) -> 0 | O11: =IF($C11=$B$6,F11,0) -> 0 | P11: =(IF(AND($E11="",$C11=$B$6),1,0)) -> 0 | Q11: =IF($C11=$B$7,F11,0) -> 0 | R11: =(IF(AND($E11="",$C11=$B$7),1,0)) -> 0 | X11: =U11+V11+W11 -> 0.0 | Y11: =IF(X11=D11,1,0) -> 0 | Z11: =IF(X11=0,0,1) -> 0 | AA11: =IF(Y11+Z11=2,"Korrekt","") -> 
A12: 3 | B12: ='Wettkampf 1'!B12 -> Breyer Wilfried | C12: ='Wettkampf 1'!C12 -> Neuvrees I | D12: 312.4 | F12: 312.4 | G12: 312.4 | H12: 1 | I12: 0 | J12: 0 | K12: 0 | L12: 0 | M12: 0 | N12: 0 | O12: 0 | P12: 0 | Q12: 0 | R12: 0 | X12: 0.0 | Y12: 0 | Z12: 0
A13: 4 | B13: ='Wettkampf 1'!B13 -> Janßen Markus | C13: ='Wettkampf 1'!C13 -> Neuvrees I | D13: 311.8 | F13: 311.8 | G13: 311.8 | H13: 1 | I13: 0 | J13: 0 | K13: 0 | L13: 0 | M13: 0 | N13: 0 | O13: 0 | P13: 0 | Q13: 0 | R13: 0 | X13: 0.0 | Y13: 0 | Z13: 0
A14: 5 | B14: ='Wettkampf 1'!B14 -> Thyen Werner | C14: ='Wettkampf 1'!C14 -> Neuvrees I | D14: 295.7 | E14: x | F14: 0 | G14: 0 | H14: 0 | I14: 0 | J14: 0 | K14: 0 | L14: 0 | M14: 0 | N14: 0 | O14: 0 | P14: 0 | Q14: 0 | R14: 0 | X14: 0.0 | Y14: 0 | Z14: 0
A15: 6 | B15: ='Wettkampf 1'!B15 -> Peters Carsten | C15: ='Wettkampf 1'!C15 -> Neuvrees I | D15: 0.0 | E15: x | F15: 0 | G15: 0 | H15: 0 | I15: 0 | J15: 0 | K15: 0 | L15: 0 | M15: 0 | N15: 0 | O15: 0 | P15: 0 | Q15: 0 | R15: 0 | X15: 0.0 | Y15: 1 | Z15: 0
A16: 7 | B16: ='Wettkampf 1'!B16 -> Wotte Robert | C16: ='Wettkampf 1'!C16 -> Rastdorf III | D16: 309.4 | F16: 309.4 | G16: 0 | H16: 0 | I16: 309.4 | J16: 1 | K16: 0 | L16: 0 | M16: 0 | N16: 0 | O16: 0 | P16: 0 | Q16: 0 | R16: 0 | X16: 0.0 | Y16: 0 | Z16: 0
A17: 8 | B17: ='Wettkampf 1'!B17 -> Müller Helmut | C17: ='Wettkampf 1'!C17 -> Rastdorf III | D17: 309.0 | F17: 309.0 | G17: 0 | H17: 0 | I17: 309 | J17: 1 | K17: 0 | L17: 0 | M17: 0 | N17: 0 | O17: 0 | P17: 0 | Q17: 0 | R17: 0 | X17: 0.0 | Y17: 0 | Z17: 0
A18: 9 | B18: ='Wettkampf 1'!B18 -> Bookjans Günther | C18: ='Wettkampf 1'!C18 -> Rastdorf III | D18: 315.8 | F18: 315.8 | G18: 0 | H18: 0 | I18: 315.8 | J18: 1 | K18: 0 | L18: 0 | M18: 0 | N18: 0 | O18: 0 | P18: 0 | Q18: 0 | R18: 0 | X18: 0.0 | Y18: 0 | Z18: 0
A19: 10 | B19: ='Wettkampf 1'!B19 -> Meer Michael | C19: ='Wettkampf 1'!C19 -> Rastdorf III | D19: 313.5 | F19: 313.5 | G19: 0 | H19: 0 | I19: 313.5 | J19: 1 | K19: 0 | L19: 0 | M19: 0 | N19: 0 | O19: 0 | P19: 0 | Q19: 0 | R19: 0 | X19: 0.0 | Y19: 0 | Z19: 0
A20: 11 | B20: ='Wettkampf 1'!B20 -> Lindemann Rita | C20: ='Wettkampf 1'!C20 -> Rastdorf III | E20: x | F20: 0 | G20: 0 | H20: 0 | I20: 0 | J20: 0 | K20: 0 | L20: 0 | M20: 0 | N20: 0 | O20: 0 | P20: 0 | Q20: 0 | R20: 0 | X20: 0.0 | Y20: 1 | Z20: 0
A21: 12 | B21: ='Wettkampf 1'!B21 -> Olliges Kai | C21: ='Wettkampf 1'!C21 -> Börgerwald II | E21: x | F21: 0 | G21: 0 | H21: 0 | I21: 0 | J21: 0 | K21: 0 | L21: 0 | M21: 0 | N21: 0 | O21: 0 | P21: 0 | Q21: 0 | R21: 0 | X21: 0.0 | Y21: 1 | Z21: 0
A22: 13 | B22: ='Wettkampf 1'!B22 -> Zdralik Ingo | C22: ='Wettkampf 1'!C22 -> Börger II | D22: 311.1 | F22: 311.1 | G22: 0 | H22: 0 | I22: 0 | J22: 0 | K22: 311.1 | L22: 1 | M22: 0 | N22: 0 | O22: 0 | P22: 0 | Q22: 0 | R22: 0 | X22: 0.0 | Y22: 0 | Z22: 0
A23: 14 | B23: ='Wettkampf 1'!B23 -> Goldenstein Uwe | C23: ='Wettkampf 1'!C23 -> Börger II | D23: 304.8 | E23: x | F23: 0 | G23: 0 | H23: 0 | I23: 0 | J23: 0 | K23: 0 | L23: 0 | M23: 0 | N23: 0 | O23: 0 | P23: 0 | Q23: 0 | R23: 0 | X23: 0.0 | Y23: 0 | Z23: 0
A24: 15 | B24: ='Wettkampf 1'!B24 -> Eckmann Mark | C24: ='Wettkampf 1'!C24 -> Börger II | D24: 301.5 | F24: 301.5 | G24: 0 | H24: 0 | I24: 0 | J24: 0 | K24: 301.5 | L24: 1 | M24: 0 | N24: 0 | O24: 0 | P24: 0 | Q24: 0 | R24: 0 | X24: 0.0 | Y24: 0 | Z24: 0
A25: 16 | B25: ='Wettkampf 1'!B25 -> Schulz Simon | C25: ='Wettkampf 1'!C25 -> Börger II | D25: 299.8 | E25: x | F25: 0 | G25: 0 | H25: 0 | I25: 0 | J25: 0 | K25: 0 | L25: 0 | M25: 0 | N25: 0 | O25: 0 | P25: 0 | Q25: 0 | R25: 0 | X25: 0.0 | Y25: 0 | Z25: 0
A26: 17 | B26: ='Wettkampf 1'!B26 -> Schwarte Hermann | C26: ='Wettkampf 1'!C26 -> Börger II | D26: 301.5 | F26: 301.5 | G26: 0 | H26: 0 | I26: 0 | J26: 0 | K26: 301.5 | L26: 1 | M26: 0 | N26: 0 | O26: 0 | P26: 0 | Q26: 0 | R26: 0 | X26: 0.0 | Y26: 0 | Z26: 0
A27: 18 | B27: ='Wettkampf 1'!B27 -> Jungsthoefel Markus | C27: ='Wettkampf 1'!C27 -> Börger II | D27: 303.5 | F27: 303.5 | G27: 0 | H27: 0 | I27: 0 | J27: 0 | K27: 303.5 | L27: 1 | M27: 0 | N27: 0 | O27: 0 | P27: 0 | Q27: 0 | R27: 0 | X27: 0.0 | Y27: 0 | Z27: 0
A28: 19 | B28: ='Wettkampf 1'!B28 -> Aldfeld Helmut | C28: ='Wettkampf 1'!C28 -> Esterwegen III | D28: 296.4 | E28: x | F28: 0 | G28: 0 | H28: 0 | I28: 0 | J28: 0 | K28: 0 | L28: 0 | M28: 0 | N28: 0 | O28: 0 | P28: 0 | Q28: 0 | R28: 0 | X28: 0.0 | Y28: 0 | Z28: 0
A29: 20 | B29: ='Wettkampf 1'!B29 -> Schulte Mathias | C29: ='Wettkampf 1'!C29 -> Esterwegen III | D29: 308.4 | F29: 308.4 | G29: 0 | H29: 0 | I29: 0 | J29: 0 | K29: 0 | L29: 0 | M29: 308.4 | N29: 1 | O29: 0 | P29: 0 | Q29: 0 | R29: 0 | X29: 0.0 | Y29: 0 | Z29: 0
A30: 21 | B30: ='Wettkampf 1'!B30 -> Middendorf Peter | C30: ='Wettkampf 1'!C30 -> Esterwegen III | D30: 311.3 | F30: 311.3 | G30: 0 | H30: 0 | I30: 0 | J30: 0 | K30: 0 | L30: 0 | M30: 311.3 | N30: 1 | O30: 0 | P30: 0 | Q30: 0 | R30: 0 | X30: 0.0 | Y30: 0 | Z30: 0
A31: 22 | B31: ='Wettkampf 1'!B31 -> Meibers Michael | C31: ='Wettkampf 1'!C31 -> Esterwegen III | D31: 315.0 | F31: 315.0 | G31: 0 | H31: 0 | I31: 0 | J31: 0 | K31: 0 | L31: 0 | M31: 315 | N31: 1 | O31: 0 | P31: 0 | Q31: 0 | R31: 0 | X31: 0.0 | Y31: 0 | Z31: 0
A32: 23 | B32: ='Wettkampf 1'!B32 -> Heidemann Jürgen | C32: ='Wettkampf 1'!C32 -> Esterwegen III | D32: 305.1 | E32: x | F32: 0 | G32: 0 | H32: 0 | I32: 0 | J32: 0 | K32: 0 | L32: 0 | M32: 0 | N32: 0 | O32: 0 | P32: 0 | Q32: 0 | R32: 0 | X32: 0.0 | Y32: 0 | Z32: 0
A33: 24 | B33: ='Wettkampf 1'!B33 -> Lindemann Gerd | C33: ='Wettkampf 1'!C33 -> Esterwegen III | D33: 310.4 | F33: 310.4 | G33: 0 | H33: 0 | I33: 0 | J33: 0 | K33: 0 | L33: 0 | M33: 310.4 | N33: 1 | O33: 0 | P33: 0 | Q33: 0 | R33: 0 | X33: 0.0 | Y33: 0 | Z33: 0
A34: 25 | B34: ='Wettkampf 1'!B34 -> Hanenkamp Andre | C34: ='Wettkampf 1'!C34 -> Börgerwald II | D34: 304.4 | F34: 304.4 | G34: 0 | H34: 0 | I34: 0 | J34: 0 | K34: 0 | L34: 0 | M34: 0 | N34: 0 | O34: 304.4 | P34: 1 | Q34: 0 | R34: 0 | X34: 0.0 | Y34: 0 | Z34: 0
A35: 26 | B35: ='Wettkampf 1'!B35 -> Antons Mathias | C35: ='Wettkampf 1'!C35 -> Börgerwald II | D35: 309.0 | F35: 309.0 | G35: 0 | H35: 0 | I35: 0 | J35: 0 | K35: 0 | L35: 0 | M35: 0 | N35: 0 | O35: 309 | P35: 1 | Q35: 0 | R35: 0 | X35: 0.0 | Y35: 0 | Z35: 0
A36: 27 | B36: ='Wettkampf 1'!B36 -> Schröer Friedhelm | C36: ='Wettkampf 1'!C36 -> Börgerwald II | D36: 309.3 | F36: 309.3 | G36: 0 | H36: 0 | I36: 0 | J36: 0 | K36: 0 | L36: 0 | M36: 0 | N36: 0 | O36: 309.3 | P36: 1 | Q36: 0 | R36: 0 | X36: 0.0 | Y36: 0 | Z36: 0
A37: 28 | B37: ='Wettkampf 1'!B37 -> Sebers Tobias | C37: ='Wettkampf 1'!C37 -> Börgerwald II | D37: 304.5 | F37: 304.5 | G37: 0 | H37: 0 | I37: 0 | J37: 0 | K37: 0 | L37: 0 | M37: 0 | N37: 0 | O37: 304.5 | P37: 1 | Q37: 0 | R37: 0 | X37: 0.0 | Y37: 0 | Z37: 0
A38: 29 | B38: ='Wettkampf 1'!B38 -> Hanneken Moritz | C38: ='Wettkampf 1'!C38 -> Börgerwald II | D38: 304.1 | E38: x | F38: 0 | G38: 0 | H38: 0 | I38: 0 | J38: 0 | K38: 0 | L38: 0 | M38: 0 | N38: 0 | O38: 0 | P38: 0 | Q38: 0 | R38: 0 | X38: 0.0 | Y38: 0 | Z38: 0
A39: 30 | B39: ='Wettkampf 1'!B39 -> Speeker Dietmar | C39: ='Wettkampf 1'!C39 -> Börgerwald II | D39: 0.0 | E39: x | F39: 0 | G39: 0 | H39: 0 | I39: 0 | J39: 0 | K39: 0 | L39: 0 | M39: 0 | N39: 0 | O39: 0 | P39: 0 | Q39: 0 | R39: 0 | X39: 0.0 | Y39: 1 | Z39: 0
A40: 31 | B40: ='Wettkampf 1'!B40 -> Will Achim | C40: ='Wettkampf 1'!C40 -> Spahnharrenstätte II | D40: 313.5 | F40: 313.5 | G40: 0 | H40: 0 | I40: 0 | J40: 0 | K40: 0 | L40: 0 | M40: 0 | N40: 0 | O40: 0 | P40: 0 | Q40: 313.5 | R40: 1 | X40: =U40+V40+W40 -> 0.0 | Y40: =IF(X40=D40,1,0) -> 0 | Z40: =IF(X40=0,0,1) -> 0 | AA40: =IF(Y40+Z40=2,"Korrekt","") -> 
A41: 32 | B41: ='Wettkampf 1'!B41 -> Meyer Dirk | C41: ='Wettkampf 1'!C41 -> Spahnharrenstätte II | D41: 312.6 | F41: 312.6 | G41: 0 | H41: 0 | I41: 0 | J41: 0 | K41: 0 | L41: 0 | M41: 0 | N41: 0 | O41: 0 | P41: 0 | Q41: 312.6 | R41: 1 | X41: 0.0 | Y41: 0 | Z41: 0
A42: 33 | B42: ='Wettkampf 1'!B42 -> Micksch Heiko | C42: ='Wettkampf 1'!C42 -> Spahnharrenstätte II | D42: 308.4 | F42: 308.4 | G42: 0 | H42: 0 | I42: 0 | J42: 0 | K42: 0 | L42: 0 | M42: 0 | N42: 0 | O42: 0 | P42: 0 | Q42: 308.4 | R42: 1 | X42: 0.0 | Y42: 0 | Z42: 0
A43: 34 | B43: ='Wettkampf 1'!B43 -> Hahnenkamp Ulrich | C43: ='Wettkampf 1'!C43 -> Spahnharrenstätte II | D43: 286.5 | F43: 286.5 | G43: 0 | H43: 0 | I43: 0 | J43: 0 | K43: 0 | L43: 0 | M43: 0 | N43: 0 | O43: 0 | P43: 0 | Q43: 286.5 | R43: 1 | X43: 0.0 | Y43: 0 | Z43: 0
A44: 35 | B44: ='Wettkampf 1'!B44 -> Hahnenkamp Markus | C44: ='Wettkampf 1'!C44 -> Spahnharrenstätte II | E44: x | F44: 0 | G44: 0 | H44: 0 | I44: 0 | J44: 0 | K44: 0 | L44: 0 | M44: 0 | N44: 0 | O44: 0 | P44: 0 | Q44: 0 | R44: 0 | X44: 0.0 | Y44: 1 | Z44: 0
A45: 36 | B45: ='Wettkampf 1'!B45 -> Walker Stefan | C45: ='Wettkampf 1'!C45 -> Börgerwald II | E45: x | F45: 0 | G45: 0 | H45: 0 | I45: 0 | J45: 0 | K45: 0 | L45: 0 | M45: 0 | N45: 0 | O45: 0 | P45: 0 | Q45: 0 | R45: 0 | X45: =U45+V45+W45 -> 0.0 | Y45: =IF(X45=D45,1,0) -> 1 | Z45: =IF(X45=0,0,1) -> 0 | AA45: =IF(Y45+Z45=2,"Korrekt","") -> 
G46: =LARGE(G10:G45,1)+LARGE(G10:G45,2)+LARGE(G10:G45,3) -> 931.2 | H46: =SUM(H10:H45) -> 4 | I46: =LARGE(I10:I45,1)+LARGE(I10:I45,2)+LARGE(I10:I45,3) -> 938.7 | J46: =SUM(J10:J45) -> 4 | K46: =LARGE(K10:K45,1)+LARGE(K10:K45,2)+LARGE(K10:K45,3) -> 916.1 | L46: =SUM(L10:L45) -> 4 | M46: =LARGE(M10:M45,1)+LARGE(M10:M45,2)+LARGE(M10:M45,3) -> 936.7 | N46: =SUM(N10:N45) -> 4 | O46: =LARGE(O10:O45,1)+LARGE(O10:O45,2)+LARGE(O10:O45,3) -> 922.8 | P46: =SUM(P10:P45) -> 4 | Q46: =LARGE(Q10:Q45,1)+LARGE(Q10:Q45,2)+LARGE(Q10:Q45,3) -> 934.5 | R46: =SUM(R10:S45) -> 4
C47: per Email an: sk-huemmling@gmx.de

Sheet 3
B1: Verein / Gruppe | D1: Ergebnisse | V1: Austragungsort: | W1: =Übersicht!F4 -> Börger
A2: 1 | B2: ='Wettkampf 1'!B2 -> Neuvrees I | D2: =G46 -> 924.7 | E2: =IF(H46>4,"Es sind zu viele Schützen in Wertung!"," ") ->  | V2: Wettkampftag: | W2: =Übersicht!F3 -> 22.09.
A3: 2 | B3: ='Wettkampf 1'!B3 -> Rastdorf III | D3: =I46 -> 935.6 | E3: =IF(J46>4,"Es sind zu viele Schützen in Wertung!"," ") -> 
A4: 3 | B4: ='Wettkampf 1'!B4 -> Börger II | D4: =K46 -> 923.6 | E4: =IF(L46>4,"Es sind zu viele Schützen in Wertung!"," ") ->  | X4: Ansprechpartner für Rückfragen:
A5: 4 | B5: ='Wettkampf 1'!B5 -> Esterwegen III | D5: =M46 -> 935.7 | E5: =IF(N46>4,"Es sind zu viele Schützen in Wertung!"," ") ->  | V5: Name: | W5: Zdralik
A6: 5 | B6: ='Wettkampf 1'!B6 -> Börgerwald II | D6: =O46 -> 930.4 | E6: =IF(P46>4,"Es sind zu viele Schützen in Wertung!"," ") ->  | V6: Tel: | W6: 01713283862
A7: 6 | B7: ='Wettkampf 1'!B7 -> Spahnharrenstätte II | D7: =Q46 -> 931.6 | E7: =IF(R46>4,"Es sind zu viele Schützen in Wertung!"," ") ->  | V7: Standaufsicht: | W7: Zdralik
B9: Einzelergebnisse: | C9: Verein / Gruppe | D9: Ergebnisse (mindestens 0 eintragen) | E9: AW? Dann x eintippen | G9: Verein 1 | I9: Verein 2 | K9: Verein 3 | M9: Verein 4 | O9: Verein 5 | Q9: Verein 6 | U9: Proberechnung bei Streifen:
A10: 1 | B10: ='Wettkampf 1'!B10 -> Rolfes Wilhelm | C10: ='Wettkampf 1'!C10 -> Neuvrees I | D10: 293.4 | E10: x | F10: =IF(E10="x","0",D10) -> 0 | G10: =IF(C10=$B$2,F10,0) -> 0 | H10: =(IF(AND($E10="",$C10=$B$2),1,0)) -> 0 | I10: =IF($C10=$B$3,F10,0) -> 0 | J10: =(IF(AND($E10="",$C10=$B$3),1,0)) -> 0 | K10: =IF($C10=$B$4,F10,0) -> 0 | L10: =(IF(AND($E10="",$C10=$B$4),1,0)) -> 0 | M10: =IF($C10=$B$5,F10,0) -> 0 | N10: =(IF(AND($E10="",$C10=$B$5),1,0)) -> 0 | O10: =IF($C10=$B$6,F10,0) -> 0 | P10: =(IF(AND($E10="",$C10=$B$6),1,0)) -> 0 | Q10: =IF($C10=$B$7,F10,0) -> 0 | R10: =(IF(AND($E10="",$C10=$B$7),1,0)) -> 0 | X10: =U10+V10+W10 -> 0.0 | Y10: =IF(X10=D10,1,0) -> 0 | Z10: =IF(X10=0,0,1) -> 0 | AA10: =IF(Y10+Z10=2,"Korrekt","") -> 
A11: 2 | B11: ='Wettkampf 1'!B11 -> Steenken Klaus | C11: ='Wettkampf 1'!C11 -> Neuvrees I | D11: 305.7 | F11: =IF(E11="x","0",D11) -> 305.7 | G11: =IF(C11=$B$2,F11,0) -> 305.7 | H11: =(IF(AND($E11="",$C11=$B$2),1,0)) -> 1 | I11: =IF($C11=$B$3,F11,0) -> 0 | J11: =(IF(AND($E11="",$C11=$B$3),1,0)) -> 0 | K11: =IF($C11=$B$4,F11,0) -> 0 | L11: =(IF(AND($E11="",$C11=$B$4),1,0)) -> 0 | M11: =IF($C11=$B$5,F11,0) -> 0 | N11: =(IF(AND($E11="",$C11=$B$5),1,0)) -> 0 | O11: =IF($C11=$B$6,F11,0) -> 0 | P11: =(IF(AND($E11="",$C11=$B$6),1,0)) -> 0 | Q11: =IF($C11=$B$7,F11,0) -> 0 | R11: =(IF(AND($E11="",$C11=$B$7),1,0)) -> 0 | X11: =U11+V11+W11 -> 0.0 | Y11: =IF(X11=D11,1,0) -> 0 | Z11: =IF(X11=0,0,1) -> 0 | AA11: =IF(Y11+Z11=2,"Korrekt","") -> 
A12: 3 | B12: ='Wettkampf 1'!B12 -> Breyer Wilfried | C12: ='Wettkampf 1'!C12 -> Neuvrees I | D12: 308.5 | F12: 308.5 | G12: 308.5 | H12: 1 | I12: 0 | J12: 0 | K12: 0 | L12: 0 | M12: 0 | N12: 0 | O12: 0 | P12: 0 | Q12: 0 | R12: 0 | X12: 0.0 | Y12: 0 | Z12: 0
A13: 4 | B13: ='Wettkampf 1'!B13 -> Janßen Markus | C13: ='Wettkampf 1'!C13 -> Neuvrees I | D13: 310.5 | F13: 310.5 | G13: 310.5 | H13: 1 | I13: 0 | J13: 0 | K13: 0 | L13: 0 | M13: 0 | N13: 0 | O13: 0 | P13: 0 | Q13: 0 | R13: 0 | X13: 0.0 | Y13: 0 | Z13: 0
A14: 5 | B14: ='Wettkampf 1'!B14 -> Thyen Werner | C14: ='Wettkampf 1'!C14 -> Neuvrees I | D14: 302.9 | F14: 302.9 | G14: 302.9 | H14: 1 | I14: 0 | J14: 0 | K14: 0 | L14: 0 | M14: 0 | N14: 0 | O14: 0 | P14: 0 | Q14: 0 | R14: 0 | X14: 0.0 | Y14: 0 | Z14: 0
A15: 6 | B15: ='Wettkampf 1'!B15 -> Peters Carsten | C15: ='Wettkampf 1'!C15 -> Neuvrees I | D15: 0.0 | E15: x | F15: 0 | G15: 0 | H15: 0 | I15: 0 | J15: 0 | K15: 0 | L15: 0 | M15: 0 | N15: 0 | O15: 0 | P15: 0 | Q15: 0 | R15: 0 | X15: 0.0 | Y15: 1 | Z15: 0
A16: 7 | B16: ='Wettkampf 1'!B16 -> Wotte Robert | C16: ='Wettkampf 1'!C16 -> Rastdorf III | D16: 313.7 | F16: 313.7 | G16: 0 | H16: 0 | I16: 313.7 | J16: 1 | K16: 0 | L16: 0 | M16: 0 | N16: 0 | O16: 0 | P16: 0 | Q16: 0 | R16: 0 | X16: 0.0 | Y16: 0 | Z16: 0
A17: 8 | B17: ='Wettkampf 1'!B17 -> Müller Helmut | C17: ='Wettkampf 1'!C17 -> Rastdorf III | D17: 309.8 | F17: 309.8 | G17: 0 | H17: 0 | I17: 309.8 | J17: 1 | K17: 0 | L17: 0 | M17: 0 | N17: 0 | O17: 0 | P17: 0 | Q17: 0 | R17: 0 | X17: 0.0 | Y17: 0 | Z17: 0
A18: 9 | B18: ='Wettkampf 1'!B18 -> Bookjans Günther | C18: ='Wettkampf 1'!C18 -> Rastdorf III | D18: 311.5 | F18: 311.5 | G18: 0 | H18: 0 | I18: 311.5 | J18: 1 | K18: 0 | L18: 0 | M18: 0 | N18: 0 | O18: 0 | P18: 0 | Q18: 0 | R18: 0 | X18: 0.0 | Y18: 0 | Z18: 0
A19: 10 | B19: ='Wettkampf 1'!B19 -> Meer Michael | C19: ='Wettkampf 1'!C19 -> Rastdorf III | D19: 310.4 | F19: 310.4 | G19: 0 | H19: 0 | I19: 310.4 | J19: 1 | K19: 0 | L19: 0 | M19: 0 | N19: 0 | O19: 0 | P19: 0 | Q19: 0 | R19: 0 | X19: 0.0 | Y19: 0 | Z19: 0
A20: 11 | B20: ='Wettkampf 1'!B20 -> Lindemann Rita | C20: ='Wettkampf 1'!C20 -> Rastdorf III | E20: x | F20: 0 | G20: 0 | H20: 0 | I20: 0 | J20: 0 | K20: 0 | L20: 0 | M20: 0 | N20: 0 | O20: 0 | P20: 0 | Q20: 0 | R20: 0 | X20: 0.0 | Y20: 1 | Z20: 0
A21: 12 | B21: ='Wettkampf 1'!B21 -> Olliges Kai | C21: ='Wettkampf 1'!C21 -> Börgerwald II | E21: x | F21: 0 | G21: 0 | H21: 0 | I21: 0 | J21: 0 | K21: 0 | L21: 0 | M21: 0 | N21: 0 | O21: 0 | P21: 0 | Q21: 0 | R21: 0 | X21: 0.0 | Y21: 1 | Z21: 0
A22: 13 | B22: ='Wettkampf 1'!B22 -> Zdralik Ingo | C22: ='Wettkampf 1'!C22 -> Börger II | D22: 310.9 | F22: 310.9 | G22: 0 | H22: 0 | I22: 0 | J22: 0 | K22: 310.9 | L22: 1 | M22: 0 | N22: 0 | O22: 0 | P22: 0 | Q22: 0 | R22: 0 | X22: 0.0 | Y22: 0 | Z22: 0
A23: 14 | B23: ='Wettkampf 1'!B23 -> Goldenstein Uwe | C23: ='Wettkampf 1'!C23 -> Börger II | D23: 304.1 | F23: 304.1 | G23: 0 | H23: 0 | I23: 0 | J23: 0 | K23: 304.1 | L23: 1 | M23: 0 | N23: 0 | O23: 0 | P23: 0 | Q23: 0 | R23: 0 | X23: 0.0 | Y23: 0 | Z23: 0
A24: 15 | B24: ='Wettkampf 1'!B24 -> Eckmann Mark | C24: ='Wettkampf 1'!C24 -> Börger II | D24: 304.1 | E24: x | F24: 0 | G24: 0 | H24: 0 | I24: 0 | J24: 0 | K24: 0 | L24: 0 | M24: 0 | N24: 0 | O24: 0 | P24: 0 | Q24: 0 | R24: 0 | X24: 0.0 | Y24: 0 | Z24: 0
A25: 16 | B25: ='Wettkampf 1'!B25 -> Schulz Simon | C25: ='Wettkampf 1'!C25 -> Börger II | D25: 308.7 | E25: x | F25: 0 | G25: 0 | H25: 0 | I25: 0 | J25: 0 | K25: 0 | L25: 0 | M25: 0 | N25: 0 | O25: 0 | P25: 0 | Q25: 0 | R25: 0 | X25: 0.0 | Y25: 0 | Z25: 0
A26: 17 | B26: ='Wettkampf 1'!B26 -> Schwarte Hermann | C26: ='Wettkampf 1'!C26 -> Börger II | D26: 307.3 | F26: 307.3 | G26: 0 | H26: 0 | I26: 0 | J26: 0 | K26: 307.3 | L26: 1 | M26: 0 | N26: 0 | O26: 0 | P26: 0 | Q26: 0 | R26: 0 | X26: 0.0 | Y26: 0 | Z26: 0
A27: 18 | B27: ='Wettkampf 1'!B27 -> Jungsthoefel Markus | C27: ='Wettkampf 1'!C27 -> Börger II | D27: 305.4 | F27: 305.4 | G27: 0 | H27: 0 | I27: 0 | J27: 0 | K27: 305.4 | L27: 1 | M27: 0 | N27: 0 | O27: 0 | P27: 0 | Q27: 0 | R27: 0 | X27: 0.0 | Y27: 0 | Z27: 0
A28: 19 | B28: ='Wettkampf 1'!B28 -> Aldfeld Helmut | C28: ='Wettkampf 1'!C28 -> Esterwegen III | D28: 0.0 | E28: x | F28: 0 | G28: 0 | H28: 0 | I28: 0 | J28: 0 | K28: 0 | L28: 0 | M28: 0 | N28: 0 | O28: 0 | P28: 0 | Q28: 0 | R28: 0 | X28: 0.0 | Y28: 1 | Z28: 0
A29: 20 | B29: ='Wettkampf 1'!B29 -> Schulte Mathias | C29: ='Wettkampf 1'!C29 -> Esterwegen III | D29: 310.6 | F29: 310.6 | G29: 0 | H29: 0 | I29: 0 | J29: 0 | K29: 0 | L29: 0 | M29: 310.6 | N29: 1 | O29: 0 | P29: 0 | Q29: 0 | R29: 0 | X29: 0.0 | Y29: 0 | Z29: 0
A30: 21 | B30: ='Wettkampf 1'!B30 -> Middendorf Peter | C30: ='Wettkampf 1'!C30 -> Esterwegen III | D30: 303.2 | F30: 303.2 | G30: 0 | H30: 0 | I30: 0 | J30: 0 | K30: 0 | L30: 0 | M30: 303.2 | N30: 1 | O30: 0 | P30: 0 | Q30: 0 | R30: 0 | X30: 0.0 | Y30: 0 | Z30: 0
A31: 22 | B31: ='Wettkampf 1'!B31 -> Meibers Michael | C31: ='Wettkampf 1'!C31 -> Esterwegen III | D31: 315.8 | F31: 315.8 | G31: 0 | H31: 0 | I31: 0 | J31: 0 | K31: 0 | L31: 0 | M31: 315.8 | N31: 1 | O31: 0 | P31: 0 | Q31: 0 | R31: 0 | X31: 0.0 | Y31: 0 | Z31: 0
A32: 23 | B32: ='Wettkampf 1'!B32 -> Heidemann Jürgen | C32: ='Wettkampf 1'!C32 -> Esterwegen III | D32: 309.3 | F32: 309.3 | G32: 0 | H32: 0 | I32: 0 | J32: 0 | K32: 0 | L32: 0 | M32: 309.3 | N32: 1 | O32: 0 | P32: 0 | Q32: 0 | R32: 0 | X32: 0.0 | Y32: 0 | Z32: 0
A33: 24 | B33: ='Wettkampf 1'!B33 -> Lindemann Gerd | C33: ='Wettkampf 1'!C33 -> Esterwegen III | D33: 300.8 | E33: x | F33: 0 | G33: 0 | H33: 0 | I33: 0 | J33: 0 | K33: 0 | L33: 0 | M33: 0 | N33: 0 | O33: 0 | P33: 0 | Q33: 0 | R33: 0 | X33: 0.0 | Y33: 0 | Z33: 0
A34: 25 | B34: ='Wettkampf 1'!B34 -> Hanenkamp Andre | C34: ='Wettkampf 1'!C34 -> Börgerwald II | D34: 311.3 | F34: 311.3 | G34: 0 | H34: 0 | I34: 0 | J34: 0 | K34: 0 | L34: 0 | M34: 0 | N34: 0 | O34: 311.3 | P34: 1 | Q34: 0 | R34: 0 | X34: 0.0 | Y34: 0 | Z34: 0
A35: 26 | B35: ='Wettkampf 1'!B35 -> Antons Mathias | C35: ='Wettkampf 1'!C35 -> Börgerwald II | D35: 308.3 | F35: 308.3 | G35: 0 | H35: 0 | I35: 0 | J35: 0 | K35: 0 | L35: 0 | M35: 0 | N35: 0 | O35: 308.3 | P35: 1 | Q35: 0 | R35: 0 | X35: 0.0 | Y35: 0 | Z35: 0
A36: 27 | B36: ='Wettkampf 1'!B36 -> Schröer Friedhelm | C36: ='Wettkampf 1'!C36 -> Börgerwald II | D36: 307.8 | F36: 307.8 | G36: 0 | H36: 0 | I36: 0 | J36: 0 | K36: 0 | L36: 0 | M36: 0 | N36: 0 | O36: 307.8 | P36: 1 | Q36: 0 | R36: 0 | X36: 0.0 | Y36: 0 | Z36: 0
A37: 28 | B37: ='Wettkampf 1'!B37 -> Sebers Tobias | C37: ='Wettkampf 1'!C37 -> Börgerwald II | D37: 300.3 | E37: x | F37: 0 | G37: 0 | H37: 0 | I37: 0 | J37: 0 | K37: 0 | L37: 0 | M37: 0 | N37: 0 | O37: 0 | P37: 0 | Q37: 0 | R37: 0 | X37: 0.0 | Y37: 0 | Z37: 0
A38: 29 | B38: ='Wettkampf 1'!B38 -> Hanneken Moritz | C38: ='Wettkampf 1'!C38 -> Börgerwald II | D38: 310.8 | F38: 310.8 | G38: 0 | H38: 0 | I38: 0 | J38: 0 | K38: 0 | L38: 0 | M38: 0 | N38: 0 | O38: 310.8 | P38: 1 | Q38: 0 | R38: 0 | X38: 0.0 | Y38: 0 | Z38: 0
A39: 30 | B39: ='Wettkampf 1'!B39 -> Speeker Dietmar | C39: ='Wettkampf 1'!C39 -> Börgerwald II | D39: 0.0 | E39: x | F39: 0 | G39: 0 | H39: 0 | I39: 0 | J39: 0 | K39: 0 | L39: 0 | M39: 0 | N39: 0 | O39: 0 | P39: 0 | Q39: 0 | R39: 0 | X39: 0.0 | Y39: 1 | Z39: 0
A40: 31 | B40: ='Wettkampf 1'!B40 -> Will Achim | C40: ='Wettkampf 1'!C40 -> Spahnharrenstätte II | D40: 309.9 | F40: 309.9 | G40: 0 | H40: 0 | I40: 0 | J40: 0 | K40: 0 | L40: 0 | M40: 0 | N40: 0 | O40: 0 | P40: 0 | Q40: 309.9 | R40: 1 | X40: 0.0 | Y40: 0 | Z40: 0
A41: 32 | B41: ='Wettkampf 1'!B41 -> Meyer Dirk | C41: ='Wettkampf 1'!C41 -> Spahnharrenstätte II | D41: 313.0 | F41: 313.0 | G41: 0 | H41: 0 | I41: 0 | J41: 0 | K41: 0 | L41: 0 | M41: 0 | N41: 0 | O41: 0 | P41: 0 | Q41: 313 | R41: 1 | X41: 0.0 | Y41: 0 | Z41: 0
A42: 33 | B42: ='Wettkampf 1'!B42 -> Micksch Heiko | C42: ='Wettkampf 1'!C42 -> Spahnharrenstätte II | D42: 308.7 | F42: 308.7 | G42: 0 | H42: 0 | I42: 0 | J42: 0 | K42: 0 | L42: 0 | M42: 0 | N42: 0 | O42: 0 | P42: 0 | Q42: 308.7 | R42: 1 | X42: 0.0 | Y42: 0 | Z42: 0
A43: 34 | B43: ='Wettkampf 1'!B43 -> Hahnenkamp Ulrich | C43: ='Wettkampf 1'!C43 -> Spahnharrenstätte II | F43: 0.0 | G43: 0 | H43: 0 | I43: 0 | J43: 0 | K43: 0 | L43: 0 | M43: 0 | N43: 0 | O43: 0 | P43: 0 | Q43: 0 | R43: 1 | X43: 0.0 | Y43: 1 | Z43: 0
A44: 35 | B44: ='Wettkampf 1'!B44 -> Hahnenkamp Markus | C44: ='Wettkampf 1'!C44 -> Spahnharrenstätte II | E44: x | F44: 0 | G44: 0 | H44: 0 | I44: 0 | J44: 0 | K44: 0 | L44: 0 | M44: 0 | N44: 0 | O44: 0 | P44: 0 | Q44: 0 | R44: 0 | X44: 0.0 | Y44: 1 | Z44: 0
A45: 36 | B45: ='Wettkampf 1'!B45 -> Walker Stefan | C45: ='Wettkampf 1'!C45 -> Börgerwald II | E45: x | F45: 0 | G45: 0 | H45: 0 | I45: 0 | J45: 0 | K45: 0 | L45: 0 | M45: 0 | N45: 0 | O45: 0 | P45: 0 | Q45: 0 | R45: 0 | X45: 0.0 | Y45: 1 | Z45: 0
G46: =LARGE(G10:G45,1)+LARGE(G10:G45,2)+LARGE(G10:G45,3) -> 924.7 | H46: =SUM(H10:H45) -> 4 | I46: =LARGE(I10:I45,1)+LARGE(I10:I45,2)+LARGE(I10:I45,3) -> 935.6 | J46: =SUM(J10:J45) -> 4 | K46: =LARGE(K10:K45,1)+LARGE(K10:K45,2)+LARGE(K10:K45,3) -> 923.6 | L46: =SUM(L10:L45) -> 4 | M46: =LARGE(M10:M45,1)+LARGE(M10:M45,2)+LARGE(M10:M45,3) -> 935.7 | N46: =SUM(N10:N45) -> 4 | O46: =LARGE(O10:O45,1)+LARGE(O10:O45,2)+LARGE(O10:O45,3) -> 930.4 | P46: =SUM(P10:P45) -> 4 | Q46: =LARGE(Q10:Q45,1)+LARGE(Q10:Q45,2)+LARGE(Q10:Q45,3) -> 931.6 | R46: =SUM(R10:S45) -> 4
C47: per Email an: sk-huemmling@gmx.de

Sheet 4
B1: Verein / Gruppe | D1: Ergebnisse | V1: Austragungsort: | W1: =Übersicht!G4 -> Esterwegen
A2: 1 | B2: ='Wettkampf 1'!B2 -> Neuvrees I | D2: =G46 -> 929.7 | E2: =IF(H46>4,"Es sind zu viele Schützen in Wertung!"," ") ->  | V2: Wettkampftag: | W2: =Übersicht!G3 -> 06.10.
A3: 2 | B3: ='Wettkampf 1'!B3 -> Rastdorf III | D3: =I46 -> 929.8 | E3: =IF(J46>4,"Es sind zu viele Schützen in Wertung!"," ") -> Es sind zu viele Schützen in Wertung!
A4: 3 | B4: ='Wettkampf 1'!B4 -> Börger II | D4: =K46 -> 923.5 | E4: =IF(L46>4,"Es sind zu viele Schützen in Wertung!"," ") ->  | X4: Ansprechpartner für Rückfragen:
A5: 4 | B5: ='Wettkampf 1'!B5 -> Esterwegen III | D5: =M46 -> 938.6 | E5: =IF(N46>4,"Es sind zu viele Schützen in Wertung!"," ") -> Es sind zu viele Schützen in Wertung! | V5: Name:
A6: 5 | B6: ='Wettkampf 1'!B6 -> Börgerwald II | D6: =O46 -> 931.3 | E6: =IF(P46>4,"Es sind zu viele Schützen in Wertung!"," ") -> Es sind zu viele Schützen in Wertung! | V6: Tel:
A7: 6 | B7: ='Wettkampf 1'!B7 -> Spahnharrenstätte II | D7: =Q46 -> 935.7 | E7: =IF(R46>4,"Es sind zu viele Schützen in Wertung!"," ") -> Es sind zu viele Schützen in Wertung! | V7: Standaufsicht: | W7: eintragen
B9: Einzelergebnisse: | C9: Verein / Gruppe | D9: Ergebnisse (mindestens 0 eintragen) | E9: AW? Dann x eintippen | G9: Verein 1 | I9: Verein 2 | K9: Verein 3 | M9: Verein 4 | O9: Verein 5 | Q9: Verein 6 | U9: Proberechnung bei Streifen:
A10: 1 | B10: ='Wettkampf 1'!B10 -> Rolfes Wilhelm | C10: ='Wettkampf 1'!C10 -> Neuvrees I | D10: 301.6 | E10: x | F10: =IF(E10="x","0",D10) -> 0 | G10: =IF(C10=$B$2,F10,0) -> 0 | H10: =(IF(AND($E10="",$C10=$B$2),1,0)) -> 0 | I10: =IF($C10=$B$3,F10,0) -> 0 | J10: =(IF(AND($E10="",$C10=$B$3),1,0)) -> 0 | K10: =IF($C10=$B$4,F10,0) -> 0 | L10: =(IF(AND($E10="",$C10=$B$4),1,0)) -> 0 | M10: =IF($C10=$B$5,F10,0) -> 0 | N10: =(IF(AND($E10="",$C10=$B$5),1,0)) -> 0 | O10: =IF($C10=$B$6,F10,0) -> 0 | P10: =(IF(AND($E10="",$C10=$B$6),1,0)) -> 0 | Q10: =IF($C10=$B$7,F10,0) -> 0 | R10: =(IF(AND($E10="",$C10=$B$7),1,0)) -> 0 | X10: =U10+V10+W10 -> 0.0 | Y10: =IF(X10=D10,1,0) -> 0 | Z10: =IF(X10=0,0,1) -> 0 | AA10: =IF(Y10+Z10=2,"Korrekt","") -> 
A11: 2 | B11: ='Wettkampf 1'!B11 -> Steenken Klaus | C11: ='Wettkampf 1'!C11 -> Neuvrees I | D11: 305.2 | F11: =IF(E11="x","0",D11) -> 305.2 | G11: =IF(C11=$B$2,F11,0) -> 305.2 | H11: =(IF(AND($E11="",$C11=$B$2),1,0)) -> 1 | I11: =IF($C11=$B$3,F11,0) -> 0 | J11: =(IF(AND($E11="",$C11=$B$3),1,0)) -> 0 | K11: =IF($C11=$B$4,F11,0) -> 0 | L11: =(IF(AND($E11="",$C11=$B$4),1,0)) -> 0 | M11: =IF($C11=$B$5,F11,0) -> 0 | N11: =(IF(AND($E11="",$C11=$B$5),1,0)) -> 0 | O11: =IF($C11=$B$6,F11,0) -> 0 | P11: =(IF(AND($E11="",$C11=$B$6),1,0)) -> 0 | Q11: =IF($C11=$B$7,F11,0) -> 0 | R11: =(IF(AND($E11="",$C11=$B$7),1,0)) -> 0 | X11: =U11+V11+W11 -> 0.0 | Y11: =IF(X11=D11,1,0) -> 0 | Z11: =IF(X11=0,0,1) -> 0 | AA11: =IF(Y11+Z11=2,"Korrekt","") -> 
A12: 3 | B12: ='Wettkampf 1'!B12 -> Breyer Wilfried | C12: ='Wettkampf 1'!C12 -> Neuvrees I | D12: 311.3 | F12: 311.3 | G12: 311.3 | H12: 1 | I12: 0 | J12: 0 | K12: 0 | L12: 0 | M12: 0 | N12: 0 | O12: 0 | P12: 0 | Q12: 0 | R12: 0 | X12: 0.0 | Y12: 0 | Z12: 0
A13: 4 | B13: ='Wettkampf 1'!B13 -> Janßen Markus | C13: ='Wettkampf 1'!C13 -> Neuvrees I | D13: 313.2 | F13: 313.2 | G13: 313.2 | H13: 1 | I13: 0 | J13: 0 | K13: 0 | L13: 0 | M13: 0 | N13: 0 | O13: 0 | P13: 0 | Q13: 0 | R13: 0 | X13: 0.0 | Y13: 0 | Z13: 0
A14: 5 | B14: ='Wettkampf 1'!B14 -> Thyen Werner | C14: ='Wettkampf 1'!C14 -> Neuvrees I | D14: 304.7 | E14: x | F14: 0 | G14: 0 | H14: 0 | I14: 0 | J14: 0 | K14: 0 | L14: 0 | M14: 0 | N14: 0 | O14: 0 | P14: 0 | Q14: 0 | R14: 0 | X14: 0.0 | Y14: 0 | Z14: 0
A15: 6 | B15: ='Wettkampf 1'!B15 -> Peters Carsten | C15: ='Wettkampf 1'!C15 -> Neuvrees I | F15: 0.0 | G15: 0 | H15: 1 | I15: 0 | J15: 0 | K15: 0 | L15: 0 | M15: 0 | N15: 0 | O15: 0 | P15: 0 | Q15: 0 | R15: 0 | X15: 0.0 | Y15: 1 | Z15: 0
A16: 7 | B16: ='Wettkampf 1'!B16 -> Wotte Robert | C16: ='Wettkampf 1'!C16 -> Rastdorf III | D16: 308.4 | F16: 308.4 | G16: 0 | H16: 0 | I16: 308.4 | J16: 1 | K16: 0 | L16: 0 | M16: 0 | N16: 0 | O16: 0 | P16: 0 | Q16: 0 | R16: 0 | X16: 0.0 | Y16: 0 | Z16: 0
A17: 8 | B17: ='Wettkampf 1'!B17 -> Müller Helmut | C17: ='Wettkampf 1'!C17 -> Rastdorf III | D17: 306.9 | F17: 306.9 | G17: 0 | H17: 0 | I17: 306.9 | J17: 1 | K17: 0 | L17: 0 | M17: 0 | N17: 0 | O17: 0 | P17: 0 | Q17: 0 | R17: 0 | X17: 0.0 | Y17: 0 | Z17: 0
A18: 9 | B18: ='Wettkampf 1'!B18 -> Bookjans Günther | C18: ='Wettkampf 1'!C18 -> Rastdorf III | D18: 308.0 | F18: 308.0 | G18: 0 | H18: 0 | I18: 308 | J18: 1 | K18: 0 | L18: 0 | M18: 0 | N18: 0 | O18: 0 | P18: 0 | Q18: 0 | R18: 0 | X18: 0.0 | Y18: 0 | Z18: 0
A19: 10 | B19: ='Wettkampf 1'!B19 -> Meer Michael | C19: ='Wettkampf 1'!C19 -> Rastdorf III | D19: 313.4 | F19: 313.4 | G19: 0 | H19: 0 | I19: 313.4 | J19: 1 | K19: 0 | L19: 0 | M19: 0 | N19: 0 | O19: 0 | P19: 0 | Q19: 0 | R19: 0 | X19: 0.0 | Y19: 0 | Z19: 0
A20: 11 | B20: ='Wettkampf 1'!B20 -> Lindemann Rita | C20: ='Wettkampf 1'!C20 -> Rastdorf III | F20: 0.0 | G20: 0 | H20: 0 | I20: 0 | J20: 1 | K20: 0 | L20: 0 | M20: 0 | N20: 0 | O20: 0 | P20: 0 | Q20: 0 | R20: 0 | X20: 0.0 | Y20: 1 | Z20: 0
A21: 12 | B21: ='Wettkampf 1'!B21 -> Olliges Kai | C21: ='Wettkampf 1'!C21 -> Börgerwald II | F21: 0.0 | G21: 0 | H21: 0 | I21: 0 | J21: 0 | K21: 0 | L21: 0 | M21: 0 | N21: 0 | O21: 0 | P21: 1 | Q21: 0 | R21: 0 | X21: 0.0 | Y21: 1 | Z21: 0
A22: 13 | B22: ='Wettkampf 1'!B22 -> Zdralik Ingo | C22: ='Wettkampf 1'!C22 -> Börger II | D22: 313.7 | F22: 313.7 | G22: 0 | H22: 0 | I22: 0 | J22: 0 | K22: 313.7 | L22: 1 | M22: 0 | N22: 0 | O22: 0 | P22: 0 | Q22: 0 | R22: 0 | X22: 0.0 | Y22: 0 | Z22: 0
A23: 14 | B23: ='Wettkampf 1'!B23 -> Goldenstein Uwe | C23: ='Wettkampf 1'!C23 -> Börger II | D23: 304.8 | E23: x | F23: 0 | G23: 0 | H23: 0 | I23: 0 | J23: 0 | K23: 0 | L23: 0 | M23: 0 | N23: 0 | O23: 0 | P23: 0 | Q23: 0 | R23: 0 | X23: 0.0 | Y23: 0 | Z23: 0
A24: 15 | B24: ='Wettkampf 1'!B24 -> Eckmann Mark | C24: ='Wettkampf 1'!C24 -> Börger II | D24: 301.7 | E24: x | F24: 0 | G24: 0 | H24: 0 | I24: 0 | J24: 0 | K24: 0 | L24: 0 | M24: 0 | N24: 0 | O24: 0 | P24: 0 | Q24: 0 | R24: 0 | X24: 0.0 | Y24: 0 | Z24: 0
A25: 16 | B25: ='Wettkampf 1'!B25 -> Schulz Simon | C25: ='Wettkampf 1'!C25 -> Börger II | D25: 303.7 | F25: 303.7 | G25: 0 | H25: 0 | I25: 0 | J25: 0 | K25: 303.7 | L25: 1 | M25: 0 | N25: 0 | O25: 0 | P25: 0 | Q25: 0 | R25: 0 | X25: 0.0 | Y25: 0 | Z25: 0
A26: 17 | B26: ='Wettkampf 1'!B26 -> Schwarte Hermann | C26: ='Wettkampf 1'!C26 -> Börger II | D26: 302.5 | F26: 302.5 | G26: 0 | H26: 0 | I26: 0 | J26: 0 | K26: 302.5 | L26: 1 | M26: 0 | N26: 0 | O26: 0 | P26: 0 | Q26: 0 | R26: 0 | X26: 0.0 | Y26: 0 | Z26: 0
A27: 18 | B27: ='Wettkampf 1'!B27 -> Jungsthoefel Markus | C27: ='Wettkampf 1'!C27 -> Börger II | D27: 306.1 | F27: 306.1 | G27: 0 | H27: 0 | I27: 0 | J27: 0 | K27: 306.1 | L27: 1 | M27: 0 | N27: 0 | O27: 0 | P27: 0 | Q27: 0 | R27: 0 | X27: 0.0 | Y27: 0 | Z27: 0
A28: 19 | B28: ='Wettkampf 1'!B28 -> Aldfeld Helmut | C28: ='Wettkampf 1'!C28 -> Esterwegen III | F28: 0.0 | G28: 0 | H28: 0 | I28: 0 | J28: 0 | K28: 0 | L28: 0 | M28: 0 | N28: 1 | O28: 0 | P28: 0 | Q28: 0 | R28: 0 | X28: 0.0 | Y28: 1 | Z28: 0
A29: 20 | B29: ='Wettkampf 1'!B29 -> Schulte Mathias | C29: ='Wettkampf 1'!C29 -> Esterwegen III | D29: 312.7 | F29: 312.7 | G29: 0 | H29: 0 | I29: 0 | J29: 0 | K29: 0 | L29: 0 | M29: 312.7 | N29: 1 | O29: 0 | P29: 0 | Q29: 0 | R29: 0 | X29: 0.0 | Y29: 0 | Z29: 0
A30: 21 | B30: ='Wettkampf 1'!B30 -> Middendorf Peter | C30: ='Wettkampf 1'!C30 -> Esterwegen III | D30: 313.8 | F30: 313.8 | G30: 0 | H30: 0 | I30: 0 | J30: 0 | K30: 0 | L30: 0 | M30: 313.8 | N30: 1 | O30: 0 | P30: 0 | Q30: 0 | R30: 0 | X30: 0.0 | Y30: 0 | Z30: 0
A31: 22 | B31: ='Wettkampf 1'!B31 -> Meibers Michael | C31: ='Wettkampf 1'!C31 -> Esterwegen III | D31: 312.1 | F31: 312.1 | G31: 0 | H31: 0 | I31: 0 | J31: 0 | K31: 0 | L31: 0 | M31: 312.1 | N31: 1 | O31: 0 | P31: 0 | Q31: 0 | R31: 0 | X31: 0.0 | Y31: 0 | Z31: 0
A32: 23 | B32: ='Wettkampf 1'!B32 -> Heidemann Jürgen | C32: ='Wettkampf 1'!C32 -> Esterwegen III | F32: 0.0 | G32: 0 | H32: 0 | I32: 0 | J32: 0 | K32: 0 | L32: 0 | M32: 0 | N32: 1 | O32: 0 | P32: 0 | Q32: 0 | R32: 0 | X32: 0.0 | Y32: 1 | Z32: 0
A33: 24 | B33: ='Wettkampf 1'!B33 -> Lindemann Gerd | C33: ='Wettkampf 1'!C33 -> Esterwegen III | D33: 304.3 | E33: x | F33: 0 | G33: 0 | H33: 0 | I33: 0 | J33: 0 | K33: 0 | L33: 0 | M33: 0 | N33: 0 | O33: 0 | P33: 0 | Q33: 0 | R33: 0 | X33: 0.0 | Y33: 0 | Z33: 0
A34: 25 | B34: ='Wettkampf 1'!B34 -> Hanenkamp Andre | C34: ='Wettkampf 1'!C34 -> Börgerwald II | D34: 313.0 | F34: 313.0 | G34: 0 | H34: 0 | I34: 0 | J34: 0 | K34: 0 | L34: 0 | M34: 0 | N34: 0 | O34: 313 | P34: 1 | Q34: 0 | R34: 0 | X34: 0.0 | Y34: 0 | Z34: 0
A35: 26 | B35: ='Wettkampf 1'!B35 -> Antons Mathias | C35: ='Wettkampf 1'!C35 -> Börgerwald II | D35: 303.3 | F35: 303.3 | G35: 0 | H35: 0 | I35: 0 | J35: 0 | K35: 0 | L35: 0 | M35: 0 | N35: 0 | O35: 303.3 | P35: 1 | Q35: 0 | R35: 0 | X35: 0.0 | Y35: 0 | Z35: 0
A36: 27 | B36: ='Wettkampf 1'!B36 -> Schröer Friedhelm | C36: ='Wettkampf 1'!C36 -> Börgerwald II | D36: 310.5 | F36: 310.5 | G36: 0 | H36: 0 | I36: 0 | J36: 0 | K36: 0 | L36: 0 | M36: 0 | N36: 0 | O36: 310.5 | P36: 1 | Q36: 0 | R36: 0 | X36: 0.0 | Y36: 0 | Z36: 0
A37: 28 | B37: ='Wettkampf 1'!B37 -> Sebers Tobias | C37: ='Wettkampf 1'!C37 -> Börgerwald II | D37: 307.7 | E37: x | F37: 0 | G37: 0 | H37: 0 | I37: 0 | J37: 0 | K37: 0 | L37: 0 | M37: 0 | N37: 0 | O37: 0 | P37: 0 | Q37: 0 | R37: 0 | X37: 0.0 | Y37: 0 | Z37: 0
A38: 29 | B38: ='Wettkampf 1'!B38 -> Hanneken Moritz | C38: ='Wettkampf 1'!C38 -> Börgerwald II | D38: 307.8 | F38: 307.8 | G38: 0 | H38: 0 | I38: 0 | J38: 0 | K38: 0 | L38: 0 | M38: 0 | N38: 0 | O38: 307.8 | P38: 1 | Q38: 0 | R38: 0 | X38: 0.0 | Y38: 0 | Z38: 0
A39: 30 | B39: ='Wettkampf 1'!B39 -> Speeker Dietmar | C39: ='Wettkampf 1'!C39 -> Börgerwald II | F39: 0.0 | G39: 0 | H39: 0 | I39: 0 | J39: 0 | K39: 0 | L39: 0 | M39: 0 | N39: 0 | O39: 0 | P39: 1 | Q39: 0 | R39: 0 | X39: 0.0 | Y39: 1 | Z39: 0
A40: 31 | B40: ='Wettkampf 1'!B40 -> Will Achim | C40: ='Wettkampf 1'!C40 -> Spahnharrenstätte II | D40: 310.0 | F40: 310.0 | G40: 0 | H40: 0 | I40: 0 | J40: 0 | K40: 0 | L40: 0 | M40: 0 | N40: 0 | O40: 0 | P40: 0 | Q40: 310 | R40: 1 | X40: 0.0 | Y40: 0 | Z40: 0
A41: 32 | B41: ='Wettkampf 1'!B41 -> Meyer Dirk | C41: ='Wettkampf 1'!C41 -> Spahnharrenstätte II | D41: 312.9 | F41: 312.9 | G41: 0 | H41: 0 | I41: 0 | J41: 0 | K41: 0 | L41: 0 | M41: 0 | N41: 0 | O41: 0 | P41: 0 | Q41: 312.9 | R41: 1 | X41: 0.0 | Y41: 0 | Z41: 0
A42: 33 | B42: ='Wettkampf 1'!B42 -> Micksch Heiko | C42: ='Wettkampf 1'!C42 -> Spahnharrenstätte II | D42: 312.8 | F42: 312.8 | G42: 0 | H42: 0 | I42: 0 | J42: 0 | K42: 0 | L42: 0 | M42: 0 | N42: 0 | O42: 0 | P42: 0 | Q42: 312.8 | R42: 1 | X42: 0.0 | Y42: 0 | Z42: 0
A43: 34 | B43: ='Wettkampf 1'!B43 -> Hahnenkamp Ulrich | C43: ='Wettkampf 1'!C43 -> Spahnharrenstätte II | D43: 291.8 | F43: 291.8 | G43: 0 | H43: 0 | I43: 0 | J43: 0 | K43: 0 | L43: 0 | M43: 0 | N43: 0 | O43: 0 | P43: 0 | Q43: 291.8 | R43: 1 | X43: 0.0 | Y43: 0 | Z43: 0
A44: 35 | B44: ='Wettkampf 1'!B44 -> Hahnenkamp Markus | C44: ='Wettkampf 1'!C44 -> Spahnharrenstätte II | F44: 0.0 | G44: 0 | H44: 0 | I44: 0 | J44: 0 | K44: 0 | L44: 0 | M44: 0 | N44: 0 | O44: 0 | P44: 0 | Q44: 0 | R44: 1 | X44: 0.0 | Y44: 1 | Z44: 0
A45: 36 | B45: ='Wettkampf 1'!B45 -> Walker Stefan | C45: ='Wettkampf 1'!C45 -> Börgerwald II | D45: 290.3 | E45: x | F45: 0 | G45: 0 | H45: 0 | I45: 0 | J45: 0 | K45: 0 | L45: 0 | M45: 0 | N45: 0 | O45: 0 | P45: 0 | Q45: 0 | R45: 0 | X45: 0.0 | Y45: 0 | Z45: 0
G46: =LARGE(G10:G45,1)+LARGE(G10:G45,2)+LARGE(G10:G45,3) -> 929.7 | H46: =SUM(H10:H45) -> 4 | I46: =LARGE(I10:I45,1)+LARGE(I10:I45,2)+LARGE(I10:I45,3) -> 929.8 | J46: =SUM(J10:J45) -> 5 | K46: =LARGE(K10:K45,1)+LARGE(K10:K45,2)+LARGE(K10:K45,3) -> 923.5 | L46: =SUM(L10:L45) -> 4 | M46: =LARGE(M10:M45,1)+LARGE(M10:M45,2)+LARGE(M10:M45,3) -> 938.6 | N46: =SUM(N10:N45) -> 5 | O46: =LARGE(O10:O45,1)+LARGE(O10:O45,2)+LARGE(O10:O45,3) -> 931.3 | P46: =SUM(P10:P45) -> 6 | Q46: =LARGE(Q10:Q45,1)+LARGE(Q10:Q45,2)+LARGE(Q10:Q45,3) -> 935.7 | R46: =SUM(R10:S45) -> 5
C47: per Email an: sk-huemmling@gmx.de

Sheet 5
B1: Verein / Gruppe | D1: Ergebnisse | V1: Austragungsort: | W1: =Übersicht!H4 -> Börgerwald
A2: 1 | B2: ='Wettkampf 1'!B2 -> Neuvrees I | D2: =G46 -> 936.5 | E2: =IF(H46>4,"Es sind zu viele Schützen in Wertung!"," ") ->  | V2: Wettkampftag: | W2: =Übersicht!H3 -> 20.10.
A3: 2 | B3: ='Wettkampf 1'!B3 -> Rastdorf III | D3: =I46 -> 946.3 | E3: =IF(J46>4,"Es sind zu viele Schützen in Wertung!"," ") -> 
A4: 3 | B4: ='Wettkampf 1'!B4 -> Börger II | D4: =K46 -> 934.2 | E4: =IF(L46>4,"Es sind zu viele Schützen in Wertung!"," ") ->  | X4: Ansprechpartner für Rückfragen:
A5: 4 | B5: ='Wettkampf 1'!B5 -> Esterwegen III | D5: =M46 -> 941.7 | E5: =IF(N46>4,"Es sind zu viele Schützen in Wertung!"," ") ->  | V5: Name: | W5: Antons, Mathis
A6: 5 | B6: ='Wettkampf 1'!B6 -> Börgerwald II | D6: =O46 -> 931.3 | E6: =IF(P46>4,"Es sind zu viele Schützen in Wertung!"," ") ->  | V6: Tel: | W6: 015252103868
A7: 6 | B7: ='Wettkampf 1'!B7 -> Spahnharrenstätte II | D7: =Q46 -> 940.9 | E7: =IF(R46>4,"Es sind zu viele Schützen in Wertung!"," ") ->  | V7: Standaufsicht: | W7: Antons, Mathis
B9: Einzelergebnisse: | C9: Verein / Gruppe | D9: Ergebnisse (mindestens 0 eintragen) | E9: AW? Dann x eintippen | G9: Verein 1 | I9: Verein 2 | K9: Verein 3 | M9: Verein 4 | O9: Verein 5 | Q9: Verein 6 | U9: Proberechnung bei Streifen:
A10: 1 | B10: ='Wettkampf 1'!B10 -> Rolfes Wilhelm | C10: ='Wettkampf 1'!C10 -> Neuvrees I | D10: 308.8 | F10: =IF(E10="x","0",D10) -> 308.8 | G10: =IF(C10=$B$2,F10,0) -> 308.8 | H10: =(IF(AND($E10="",$C10=$B$2),1,0)) -> 1 | I10: =IF($C10=$B$3,F10,0) -> 0 | J10: =(IF(AND($E10="",$C10=$B$3),1,0)) -> 0 | K10: =IF($C10=$B$4,F10,0) -> 0 | L10: =(IF(AND($E10="",$C10=$B$4),1,0)) -> 0 | M10: =IF($C10=$B$5,F10,0) -> 0 | N10: =(IF(AND($E10="",$C10=$B$5),1,0)) -> 0 | O10: =IF($C10=$B$6,F10,0) -> 0 | P10: =(IF(AND($E10="",$C10=$B$6),1,0)) -> 0 | Q10: =IF($C10=$B$7,F10,0) -> 0 | R10: =(IF(AND($E10="",$C10=$B$7),1,0)) -> 0 | U10: 103.1 | V10: 103.3 | W10: 102.4 | X10: =U10+V10+W10 -> 308.8 | Y10: =IF(X10=D10,1,0) -> 1 | Z10: =IF(X10=0,0,1) -> 1 | AA10: =IF(Y10+Z10=2,"Korrekt","") -> Korrekt
A11: 2 | B11: ='Wettkampf 1'!B11 -> Steenken Klaus | C11: ='Wettkampf 1'!C11 -> Neuvrees I | D11: 308.1 | F11: =IF(E11="x","0",D11) -> 308.1 | G11: =IF(C11=$B$2,F11,0) -> 308.1 | H11: =(IF(AND($E11="",$C11=$B$2),1,0)) -> 1 | I11: =IF($C11=$B$3,F11,0) -> 0 | J11: =(IF(AND($E11="",$C11=$B$3),1,0)) -> 0 | K11: =IF($C11=$B$4,F11,0) -> 0 | L11: =(IF(AND($E11="",$C11=$B$4),1,0)) -> 0 | M11: =IF($C11=$B$5,F11,0) -> 0 | N11: =(IF(AND($E11="",$C11=$B$5),1,0)) -> 0 | O11: =IF($C11=$B$6,F11,0) -> 0 | P11: =(IF(AND($E11="",$C11=$B$6),1,0)) -> 0 | Q11: =IF($C11=$B$7,F11,0) -> 0 | R11: =(IF(AND($E11="",$C11=$B$7),1,0)) -> 0 | U11: 103.9 | V11: 102.0 | W11: 102.2 | X11: =U11+V11+W11 -> 308.1 | Y11: =IF(X11=D11,1,0) -> 1 | Z11: =IF(X11=0,0,1) -> 1 | AA11: =IF(Y11+Z11=2,"Korrekt","") -> Korrekt
A12: 3 | B12: ='Wettkampf 1'!B12 -> Breyer Wilfried | C12: ='Wettkampf 1'!C12 -> Neuvrees I | D12: 312.1 | F12: 312.1 | G12: 312.1 | H12: 1 | I12: 0 | J12: 0 | K12: 0 | L12: 0 | M12: 0 | N12: 0 | O12: 0 | P12: 0 | Q12: 0 | R12: 0 | U12: 102.3 | V12: 104.8 | W12: 105.0 | X12: 312.1 | Y12: 1 | Z12: 1 | AA12: Korrekt
A13: 4 | B13: ='Wettkampf 1'!B13 -> Janßen Markus | C13: ='Wettkampf 1'!C13 -> Neuvrees I | D13: 315.6 | F13: 315.6 | G13: 315.6 | H13: 1 | I13: 0 | J13: 0 | K13: 0 | L13: 0 | M13: 0 | N13: 0 | O13: 0 | P13: 0 | Q13: 0 | R13: 0 | U13: 104.7 | V13: 105.9 | W13: 105.0 | X13: 315.6 | Y13: 1 | Z13: 1 | AA13: Korrekt
A14: 5 | B14: ='Wettkampf 1'!B14 -> Thyen Werner | C14: ='Wettkampf 1'!C14 -> Neuvrees I | D14: 303.0 | E14: x | F14: 0 | G14: 0 | H14: 0 | I14: 0 | J14: 0 | K14: 0 | L14: 0 | M14: 0 | N14: 0 | O14: 0 | P14: 0 | Q14: 0 | R14: 0 | U14: 100.1 | V14: 102.2 | W14: 100.7 | X14: 303.0 | Y14: 1 | Z14: 1 | AA14: Korrekt
A15: 6 | B15: ='Wettkampf 1'!B15 -> Peters Carsten | C15: ='Wettkampf 1'!C15 -> Neuvrees I | D15: 0.0 | E15: x | F15: 0 | G15: 0 | H15: 0 | I15: 0 | J15: 0 | K15: 0 | L15: 0 | M15: 0 | N15: 0 | O15: 0 | P15: 0 | Q15: 0 | R15: 0 | X15: 0.0 | Y15: 1 | Z15: 0
A16: 7 | B16: ='Wettkampf 1'!B16 -> Wotte Robert | C16: ='Wettkampf 1'!C16 -> Rastdorf III | D16: 315.3 | F16: 315.3 | G16: 0 | H16: 0 | I16: 315.3 | J16: 1 | K16: 0 | L16: 0 | M16: 0 | N16: 0 | O16: 0 | P16: 0 | Q16: 0 | R16: 0 | U16: 105.6 | V16: 105.1 | W16: 104.6 | X16: 315.3 | Y16: 1 | Z16: 1 | AA16: Korrekt
A17: 8 | B17: ='Wettkampf 1'!B17 -> Müller Helmut | C17: ='Wettkampf 1'!C17 -> Rastdorf III | D17: 308.3 | F17: 308.3 | G17: 0 | H17: 0 | I17: 308.3 | J17: 1 | K17: 0 | L17: 0 | M17: 0 | N17: 0 | O17: 0 | P17: 0 | Q17: 0 | R17: 0 | U17: 102.2 | V17: 103.6 | W17: 102.5 | X17: 308.3 | Y17: 1 | Z17: 1 | AA17: Korrekt
A18: 9 | B18: ='Wettkampf 1'!B18 -> Bookjans Günther | C18: ='Wettkampf 1'!C18 -> Rastdorf III | D18: 316.7 | F18: 316.7 | G18: 0 | H18: 0 | I18: 316.7 | J18: 1 | K18: 0 | L18: 0 | M18: 0 | N18: 0 | O18: 0 | P18: 0 | Q18: 0 | R18: 0 | U18: 105.2 | V18: 105.1 | W18: 106.4 | X18: 316.7 | Y18: 1 | Z18: 1 | AA18: Korrekt
A19: 10 | B19: ='Wettkampf 1'!B19 -> Meer Michael | C19: ='Wettkampf 1'!C19 -> Rastdorf III | D19: 314.3 | F19: 314.3 | G19: 0 | H19: 0 | I19: 314.3 | J19: 1 | K19: 0 | L19: 0 | M19: 0 | N19: 0 | O19: 0 | P19: 0 | Q19: 0 | R19: 0 | U19: 103.0 | V19: 105.0 | W19: 106.3 | X19: 314.3 | Y19: 1 | Z19: 1 | AA19: Korrekt
A20: 11 | B20: ='Wettkampf 1'!B20 -> Lindemann Rita | C20: ='Wettkampf 1'!C20 -> Rastdorf III | D20: 0.0 | E20: x | F20: 0 | G20: 0 | H20: 0 | I20: 0 | J20: 0 | K20: 0 | L20: 0 | M20: 0 | N20: 0 | O20: 0 | P20: 0 | Q20: 0 | R20: 0 | X20: 0.0 | Y20: 1 | Z20: 0
A21: 12 | B21: ='Wettkampf 1'!B21 -> Olliges Kai | C21: ='Wettkampf 1'!C21 -> Börgerwald II | D21: 0.0 | E21: x | F21: 0 | G21: 0 | H21: 0 | I21: 0 | J21: 0 | K21: 0 | L21: 0 | M21: 0 | N21: 0 | O21: 0 | P21: 0 | Q21: 0 | R21: 0 | X21: 0.0 | Y21: 1 | Z21: 0
A22: 13 | B22: ='Wettkampf 1'!B22 -> Zdralik Ingo | C22: ='Wettkampf 1'!C22 -> Börger II | D22: 318.8 | F22: 318.8 | G22: 0 | H22: 0 | I22: 0 | J22: 0 | K22: 318.8 | L22: 1 | M22: 0 | N22: 0 | O22: 0 | P22: 0 | Q22: 0 | R22: 0 | U22: 105.7 | V22: 106.7 | W22: 106.4 | X22: 318.8 | Y22: 1 | Z22: 1 | AA22: Korrekt
A23: 14 | B23: ='Wettkampf 1'!B23 -> Goldenstein Uwe | C23: ='Wettkampf 1'!C23 -> Börger II | D23: 307.9 | F23: 307.9 | G23: 0 | H23: 0 | I23: 0 | J23: 0 | K23: 307.9 | L23: 1 | M23: 0 | N23: 0 | O23: 0 | P23: 0 | Q23: 0 | R23: 0 | U23: 99.8 | V23: 104.2 | W23: 103.9 | X23: 307.9 | Y23: 1 | Z23: 1 | AA23: Korrekt
A24: 15 | B24: ='Wettkampf 1'!B24 -> Eckmann Mark | C24: ='Wettkampf 1'!C24 -> Börger II | D24: 311.3 | E24: x | F24: 0 | G24: 0 | H24: 0 | I24: 0 | J24: 0 | K24: 0 | L24: 0 | M24: 0 | N24: 0 | O24: 0 | P24: 0 | Q24: 0 | R24: 0 | U24: 102.7 | V24: 104.4 | W24: 104.2 | X24: 311.3 | Y24: 1 | Z24: 1 | AA24: Korrekt
A25: 16 | B25: ='Wettkampf 1'!B25 -> Schulz Simon | C25: ='Wettkampf 1'!C25 -> Börger II | D25: 304.8 | F25: 304.8 | G25: 0 | H25: 0 | I25: 0 | J25: 0 | K25: 304.8 | L25: 1 | M25: 0 | N25: 0 | O25: 0 | P25: 0 | Q25: 0 | R25: 0 | U25: 101.1 | V25: 102.7 | W25: 101.0 | X25: 304.8 | Y25: 1 | Z25: 1 | AA25: Korrekt
A26: 17 | B26: ='Wettkampf 1'!B26 -> Schwarte Hermann | C26: ='Wettkampf 1'!C26 -> Börger II | D26: 304.7 | E26: x | F26: 0 | G26: 0 | H26: 0 | I26: 0 | J26: 0 | K26: 0 | L26: 0 | M26: 0 | N26: 0 | O26: 0 | P26: 0 | Q26: 0 | R26: 0 | U26: 101.1 | V26: 100.3 | W26: 103.3 | X26: 304.7 | Y26: 1 | Z26: 1 | AA26: Korrekt
A27: 18 | B27: ='Wettkampf 1'!B27 -> Jungsthoefel Markus | C27: ='Wettkampf 1'!C27 -> Börger II | D27: 307.5 | F27: 307.5 | G27: 0 | H27: 0 | I27: 0 | J27: 0 | K27: 307.5 | L27: 1 | M27: 0 | N27: 0 | O27: 0 | P27: 0 | Q27: 0 | R27: 0 | U27: 101.7 | V27: 102.8 | W27: 103.0 | X27: 307.5 | Y27: 1 | Z27: 1 | AA27: Korrekt
A28: 19 | B28: ='Wettkampf 1'!B28 -> Aldfeld Helmut | C28: ='Wettkampf 1'!C28 -> Esterwegen III | D28: 304.6 | F28: 304.6 | G28: 0 | H28: 0 | I28: 0 | J28: 0 | K28: 0 | L28: 0 | M28: 304.6 | N28: 1 | O28: 0 | P28: 0 | Q28: 0 | R28: 0 | U28: 99.7 | V28: 101.5 | W28: 103.4 | X28: 304.6 | Y28: 1 | Z28: 1 | AA28: Korrekt
A29: 20 | B29: ='Wettkampf 1'!B29 -> Schulte Mathias | C29: ='Wettkampf 1'!C29 -> Esterwegen III | D29: 311.9 | F29: 311.9 | G29: 0 | H29: 0 | I29: 0 | J29: 0 | K29: 0 | L29: 0 | M29: 311.9 | N29: 1 | O29: 0 | P29: 0 | Q29: 0 | R29: 0 | U29: 102.2 | V29: 105.6 | W29: 104.1 | X29: 311.9 | Y29: 1 | Z29: 1 | AA29: Korrekt
A30: 21 | B30: ='Wettkampf 1'!B30 -> Middendorf Peter | C30: ='Wettkampf 1'!C30 -> Esterwegen III | D30: 313.4 | F30: 313.4 | G30: 0 | H30: 0 | I30: 0 | J30: 0 | K30: 0 | L30: 0 | M30: 313.4 | N30: 1 | O30: 0 | P30: 0 | Q30: 0 | R30: 0 | U30: 104.5 | V30: 103.7 | W30: 105.2 | X30: 313.4 | Y30: 1 | Z30: 1 | AA30: Korrekt
A31: 22 | B31: ='Wettkampf 1'!B31 -> Meibers Michael | C31: ='Wettkampf 1'!C31 -> Esterwegen III | D31: 316.4 | F31: 316.4 | G31: 0 | H31: 0 | I31: 0 | J31: 0 | K31: 0 | L31: 0 | M31: 316.4 | N31: 1 | O31: 0 | P31: 0 | Q31: 0 | R31: 0 | U31: 106.3 | V31: 104.6 | W31: 105.5 | X31: 316.4 | Y31: 1 | Z31: 1 | AA31: Korrekt
A32: 23 | B32: ='Wettkampf 1'!B32 -> Heidemann Jürgen | C32: ='Wettkampf 1'!C32 -> Esterwegen III | D32: 0.0 | E32: x | F32: 0 | G32: 0 | H32: 0 | I32: 0 | J32: 0 | K32: 0 | L32: 0 | M32: 0 | N32: 0 | O32: 0 | P32: 0 | Q32: 0 | R32: 0 | X32: 0.0 | Y32: 1 | Z32: 0
A33: 24 | B33: ='Wettkampf 1'!B33 -> Lindemann Gerd | C33: ='Wettkampf 1'!C33 -> Esterwegen III | D33: 0.0 | E33: x | F33: 0 | G33: 0 | H33: 0 | I33: 0 | J33: 0 | K33: 0 | L33: 0 | M33: 0 | N33: 0 | O33: 0 | P33: 0 | Q33: 0 | R33: 0 | X33: 0.0 | Y33: 1 | Z33: 0
A34: 25 | B34: ='Wettkampf 1'!B34 -> Hanenkamp Andre | C34: ='Wettkampf 1'!C34 -> Börgerwald II | D34: 310.9 | F34: 310.9 | G34: 0 | H34: 0 | I34: 0 | J34: 0 | K34: 0 | L34: 0 | M34: 0 | N34: 0 | O34: 310.9 | P34: 1 | Q34: 0 | R34: 0 | U34: 104.1 | V34: 103.1 | W34: 103.7 | X34: 310.9 | Y34: 1 | Z34: 1 | AA34: Korrekt
A35: 26 | B35: ='Wettkampf 1'!B35 -> Antons Mathias | C35: ='Wettkampf 1'!C35 -> Börgerwald II | D35: 309.1 | F35: 309.1 | G35: 0 | H35: 0 | I35: 0 | J35: 0 | K35: 0 | L35: 0 | M35: 0 | N35: 0 | O35: 309.1 | P35: 1 | Q35: 0 | R35: 0 | U35: 101.5 | V35: 104.3 | W35: 103.3 | X35: 309.1 | Y35: 1 | Z35: 1 | AA35: Korrekt
A36: 27 | B36: ='Wettkampf 1'!B36 -> Schröer Friedhelm | C36: ='Wettkampf 1'!C36 -> Börgerwald II | D36: 311.3 | F36: 311.3 | G36: 0 | H36: 0 | I36: 0 | J36: 0 | K36: 0 | L36: 0 | M36: 0 | N36: 0 | O36: 311.3 | P36: 1 | Q36: 0 | R36: 0 | U36: 103.1 | V36: 103.7 | W36: 104.5 | X36: 311.3 | Y36: 1 | Z36: 1 | AA36: Korrekt
A37: 28 | B37: ='Wettkampf 1'!B37 -> Sebers Tobias | C37: ='Wettkampf 1'!C37 -> Börgerwald II | D37: 302.3 | E37: x | F37: 0 | G37: 0 | H37: 0 | I37: 0 | J37: 0 | K37: 0 | L37: 0 | M37: 0 | N37: 0 | O37: 0 | P37: 0 | Q37: 0 | R37: 0 | U37: 100.8 | V37: 101.8 | W37: 99.7 | X37: 302.3 | Y37: 1 | Z37: 1 | AA37: Korrekt
A38: 29 | B38: ='Wettkampf 1'!B38 -> Hanneken Moritz | C38: ='Wettkampf 1'!C38 -> Börgerwald II | D38: 306.8 | F38: 306.8 | G38: 0 | H38: 0 | I38: 0 | J38: 0 | K38: 0 | L38: 0 | M38: 0 | N38: 0 | O38: 306.8 | P38: 1 | Q38: 0 | R38: 0 | U38: 102.3 | V38: 101.2 | W38: 103.3 | X38: 306.8 | Y38: 1 | Z38: 1 | AA38: Korrekt
A39: 30 | B39: ='Wettkampf 1'!B39 -> Speeker Dietmar | C39: ='Wettkampf 1'!C39 -> Börgerwald II | D39: 0.0 | E39: x | F39: 0 | G39: 0 | H39: 0 | I39: 0 | J39: 0 | K39: 0 | L39: 0 | M39: 0 | N39: 0 | O39: 0 | P39: 0 | Q39: 0 | R39: 0 | X39: 0.0 | Y39: 1 | Z39: 0
A40: 31 | B40: ='Wettkampf 1'!B40 -> Will Achim | C40: ='Wettkampf 1'!C40 -> Spahnharrenstätte II | D40: 312.0 | F40: 312.0 | G40: 0 | H40: 0 | I40: 0 | J40: 0 | K40: 0 | L40: 0 | M40: 0 | N40: 0 | O40: 0 | P40: 0 | Q40: 312 | R40: 1 | U40: 103.4 | V40: 103.5 | W40: 105.1 | X40: 312.0 | Y40: 1 | Z40: 1 | AA40: Korrekt
A41: 32 | B41: ='Wettkampf 1'!B41 -> Meyer Dirk | C41: ='Wettkampf 1'!C41 -> Spahnharrenstätte II | D41: 314.1 | F41: 314.1 | G41: 0 | H41: 0 | I41: 0 | J41: 0 | K41: 0 | L41: 0 | M41: 0 | N41: 0 | O41: 0 | P41: 0 | Q41: 314.1 | R41: 1 | U41: 104.3 | V41: 104.3 | W41: 105.5 | X41: 314.1 | Y41: 1 | Z41: 1 | AA41: Korrekt
A42: 33 | B42: ='Wettkampf 1'!B42 -> Micksch Heiko | C42: ='Wettkampf 1'!C42 -> Spahnharrenstätte II | D42: 314.8 | F42: 314.8 | G42: 0 | H42: 0 | I42: 0 | J42: 0 | K42: 0 | L42: 0 | M42: 0 | N42: 0 | O42: 0 | P42: 0 | Q42: 314.8 | R42: 1 | U42: 103.3 | V42: 105.6 | W42: 105.9 | X42: 314.8 | Y42: 1 | Z42: 1 | AA42: Korrekt
A43: 34 | B43: ='Wettkampf 1'!B43 -> Hahnenkamp Ulrich | C43: ='Wettkampf 1'!C43 -> Spahnharrenstätte II | D43: 297.3 | E43: x | F43: 0 | G43: 0 | H43: 0 | I43: 0 | J43: 0 | K43: 0 | L43: 0 | M43: 0 | N43: 0 | O43: 0 | P43: 0 | Q43: 0 | R43: 0 | U43: 101.2 | V43: 98.7 | W43: 97.4 | X43: 297.3 | Y43: 1 | Z43: 1 | AA43: Korrekt
A44: 35 | B44: ='Wettkampf 1'!B44 -> Hahnenkamp Markus | C44: ='Wettkampf 1'!C44 -> Spahnharrenstätte II | D44: 298.9 | F44: 298.9 | G44: 0 | H44: 0 | I44: 0 | J44: 0 | K44: 0 | L44: 0 | M44: 0 | N44: 0 | O44: 0 | P44: 0 | Q44: 298.9 | R44: 1 | U44: 98.8 | V44: 100.4 | W44: 99.7 | X44: 298.9 | Y44: 1 | Z44: 1 | AA44: Korrekt
A45: 36 | B45: ='Wettkampf 1'!B45 -> Walker Stefan | C45: ='Wettkampf 1'!C45 -> Börgerwald II | D45: 287.9 | E45: x | F45: 0 | G45: 0 | H45: 0 | I45: 0 | J45: 0 | K45: 0 | L45: 0 | M45: 0 | N45: 0 | O45: 0 | P45: 0 | Q45: 0 | R45: 0 | U45: 91.2 | V45: 95.7 | W45: 101.0 | X45: 287.9 | Y45: 1 | Z45: 1 | AA45: Korrekt
G46: =LARGE(G10:G45,1)+LARGE(G10:G45,2)+LARGE(G10:G45,3) -> 936.5 | H46: =SUM(H10:H45) -> 4 | I46: =LARGE(I10:I45,1)+LARGE(I10:I45,2)+LARGE(I10:I45,3) -> 946.3 | J46: =SUM(J10:J45) -> 4 | K46: =LARGE(K10:K45,1)+LARGE(K10:K45,2)+LARGE(K10:K45,3) -> 934.2 | L46: =SUM(L10:L45) -> 4 | M46: =LARGE(M10:M45,1)+LARGE(M10:M45,2)+LARGE(M10:M45,3) -> 941.7 | N46: =SUM(N10:N45) -> 4 | O46: =LARGE(O10:O45,1)+LARGE(O10:O45,2)+LARGE(O10:O45,3) -> 931.3 | P46: =SUM(P10:P45) -> 4 | Q46: =LARGE(Q10:Q45,1)+LARGE(Q10:Q45,2)+LARGE(Q10:Q45,3) -> 940.9 | R46: =SUM(R10:S45) -> 4
C47: per Email an: sk-huemmling@gmx.de

Sheet 6
B1: Verein / Gruppe | D1: Ergebnisse | V1: Austragungsort: | W1: =Übersicht!I4 -> Spahnharrenstätte
A2: 1 | B2: ='Wettkampf 1'!B2 -> Neuvrees I | D2: =G46 -> 934.1 | E2: =IF(H46>4,"Es sind zu viele Schützen in Wertung!"," ") ->  | V2: Wettkampftag: | W2: =Übersicht!I3 -> 24.11.
A3: 2 | B3: ='Wettkampf 1'!B3 -> Rastdorf III | D3: =I46 -> 939.2 | E3: =IF(J46>4,"Es sind zu viele Schützen in Wertung!"," ") -> 
A4: 3 | B4: ='Wettkampf 1'!B4 -> Börger II | D4: =K46 -> 923.2 | E4: =IF(L46>4,"Es sind zu viele Schützen in Wertung!"," ") ->  | X4: Ansprechpartner für Rückfragen:
A5: 4 | B5: ='Wettkampf 1'!B5 -> Esterwegen III | D5: =M46 -> 936.1 | E5: =IF(N46>4,"Es sind zu viele Schützen in Wertung!"," ") ->  | V5: Name: | W5: Achim Will
A6: 5 | B6: ='Wettkampf 1'!B6 -> Börgerwald II | D6: =O46 -> 930.7 | E6: =IF(P46>4,"Es sind zu viele Schützen in Wertung!"," ") ->  | V6: Tel:
A7: 6 | B7: ='Wettkampf 1'!B7 -> Spahnharrenstätte II | D7: =Q46 -> 937.0 | E7: =IF(R46>4,"Es sind zu viele Schützen in Wertung!"," ") ->  | V7: Standaufsicht: | W7: Achim Will
B9: Einzelergebnisse: | C9: Verein / Gruppe | D9: Ergebnisse (mindestens 0 eintragen) | E9: AW? Dann x eintippen | G9: Verein 1 | I9: Verein 2 | K9: Verein 3 | M9: Verein 4 | O9: Verein 5 | Q9: Verein 6 | U9: Proberechnung bei Streifen:
A10: 1 | B10: ='Wettkampf 1'!B10 -> Rolfes Wilhelm | C10: ='Wettkampf 1'!C10 -> Neuvrees I | D10: 311.6 | F10: =IF(E10="x","0",D10) -> 311.6 | G10: =IF(C10=$B$2,F10,0) -> 311.6 | H10: =(IF(AND($E10="",$C10=$B$2),1,0)) -> 1 | I10: =IF($C10=$B$3,F10,0) -> 0 | J10: =(IF(AND($E10="",$C10=$B$3),1,0)) -> 0 | K10: =IF($C10=$B$4,F10,0) -> 0 | L10: =(IF(AND($E10="",$C10=$B$4),1,0)) -> 0 | M10: =IF($C10=$B$5,F10,0) -> 0 | N10: =(IF(AND($E10="",$C10=$B$5),1,0)) -> 0 | O10: =IF($C10=$B$6,F10,0) -> 0 | P10: =(IF(AND($E10="",$C10=$B$6),1,0)) -> 0 | Q10: =IF($C10=$B$7,F10,0) -> 0 | R10: =(IF(AND($E10="",$C10=$B$7),1,0)) -> 0 | U10: 103.5 | V10: 104.4 | W10: 103.7 | X10: =U10+V10+W10 -> 311.6 | Y10: =IF(X10=D10,1,0) -> 1 | Z10: =IF(X10=0,0,1) -> 1 | AA10: =IF(Y10+Z10=2,"Korrekt","") -> Korrekt
A11: 2 | B11: ='Wettkampf 1'!B11 -> Steenken Klaus | C11: ='Wettkampf 1'!C11 -> Neuvrees I | D11: 309.2 | F11: =IF(E11="x","0",D11) -> 309.2 | G11: =IF(C11=$B$2,F11,0) -> 309.2 | H11: =(IF(AND($E11="",$C11=$B$2),1,0)) -> 1 | I11: =IF($C11=$B$3,F11,0) -> 0 | J11: =(IF(AND($E11="",$C11=$B$3),1,0)) -> 0 | K11: =IF($C11=$B$4,F11,0) -> 0 | L11: =(IF(AND($E11="",$C11=$B$4),1,0)) -> 0 | M11: =IF($C11=$B$5,F11,0) -> 0 | N11: =(IF(AND($E11="",$C11=$B$5),1,0)) -> 0 | O11: =IF($C11=$B$6,F11,0) -> 0 | P11: =(IF(AND($E11="",$C11=$B$6),1,0)) -> 0 | Q11: =IF($C11=$B$7,F11,0) -> 0 | R11: =(IF(AND($E11="",$C11=$B$7),1,0)) -> 0 | U11: 101.9 | V11: 103.9 | W11: 103.4 | X11: =U11+V11+W11 -> 309.2 | Y11: =IF(X11=D11,1,0) -> 1 | Z11: =IF(X11=0,0,1) -> 1 | AA11: =IF(Y11+Z11=2,"Korrekt","") -> Korrekt
A12: 3 | B12: ='Wettkampf 1'!B12 -> Breyer Wilfried | C12: ='Wettkampf 1'!C12 -> Neuvrees I | D12: 312.9 | F12: 312.9 | G12: 312.9 | H12: 1 | I12: 0 | J12: 0 | K12: 0 | L12: 0 | M12: 0 | N12: 0 | O12: 0 | P12: 0 | Q12: 0 | R12: 0 | U12: 103.8 | V12: 105.4 | W12: 103.7 | X12: 312.9 | Y12: 1 | Z12: 1 | AA12: Korrekt
A13: 4 | B13: ='Wettkampf 1'!B13 -> Janßen Markus | C13: ='Wettkampf 1'!C13 -> Neuvrees I | D13: 309.6 | F13: 309.6 | G13: 309.6 | H13: 1 | I13: 0 | J13: 0 | K13: 0 | L13: 0 | M13: 0 | N13: 0 | O13: 0 | P13: 0 | Q13: 0 | R13: 0 | U13: 103.6 | V13: 102.6 | W13: 103.6 | X13: 309.8 | Y13: 0 | Z13: 1
A14: 5 | B14: ='Wettkampf 1'!B14 -> Thyen Werner | C14: ='Wettkampf 1'!C14 -> Neuvrees I | D14: 303.3 | E14: X | F14: 0 | G14: 0 | H14: 0 | I14: 0 | J14: 0 | K14: 0 | L14: 0 | M14: 0 | N14: 0 | O14: 0 | P14: 0 | Q14: 0 | R14: 0 | U14: 101.3 | V14: 99.0 | W14: 103.0 | X14: 303.3 | Y14: 1 | Z14: 1 | AA14: Korrekt
A15: 6 | B15: ='Wettkampf 1'!B15 -> Peters Carsten | C15: ='Wettkampf 1'!C15 -> Neuvrees I | D15: 0.0 | E15: X | F15: 0 | G15: 0 | H15: 0 | I15: 0 | J15: 0 | K15: 0 | L15: 0 | M15: 0 | N15: 0 | O15: 0 | P15: 0 | Q15: 0 | R15: 0 | X15: 0.0 | Y15: 1 | Z15: 0
A16: 7 | B16: ='Wettkampf 1'!B16 -> Wotte Robert | C16: ='Wettkampf 1'!C16 -> Rastdorf III | D16: 313.1 | F16: 313.1 | G16: 0 | H16: 0 | I16: 313.1 | J16: 1 | K16: 0 | L16: 0 | M16: 0 | N16: 0 | O16: 0 | P16: 0 | Q16: 0 | R16: 0 | U16: 103.8 | V16: 104.9 | W16: 104.4 | X16: 313.1 | Y16: 1 | Z16: 1 | AA16: Korrekt
A17: 8 | B17: ='Wettkampf 1'!B17 -> Müller Helmut | C17: ='Wettkampf 1'!C17 -> Rastdorf III | D17: 312.0 | F17: 312.0 | G17: 0 | H17: 0 | I17: 312 | J17: 1 | K17: 0 | L17: 0 | M17: 0 | N17: 0 | O17: 0 | P17: 0 | Q17: 0 | R17: 0 | U17: 105.1 | V17: 102.8 | W17: 104.1 | X17: 312.0 | Y17: 1 | Z17: 1 | AA17: Korrekt
A18: 9 | B18: ='Wettkampf 1'!B18 -> Bookjans Günther | C18: ='Wettkampf 1'!C18 -> Rastdorf III | D18: 314.1 | F18: 314.1 | G18: 0 | H18: 0 | I18: 314.1 | J18: 1 | K18: 0 | L18: 0 | M18: 0 | N18: 0 | O18: 0 | P18: 0 | Q18: 0 | R18: 0 | U18: 104.8 | V18: 103.5 | W18: 105.8 | X18: 314.1 | Y18: 1 | Z18: 1 | AA18: Korrekt
A19: 10 | B19: ='Wettkampf 1'!B19 -> Meer Michael | C19: ='Wettkampf 1'!C19 -> Rastdorf III | D19: 311.8 | F19: 311.8 | G19: 0 | H19: 0 | I19: 311.8 | J19: 1 | K19: 0 | L19: 0 | M19: 0 | N19: 0 | O19: 0 | P19: 0 | Q19: 0 | R19: 0 | U19: 104.0 | V19: 105.0 | W19: 102.8 | X19: 311.8 | Y19: 1 | Z19: 1 | AA19: Korrekt
A20: 11 | B20: ='Wettkampf 1'!B20 -> Lindemann Rita | C20: ='Wettkampf 1'!C20 -> Rastdorf III | D20: 0.0 | E20: X | F20: 0 | G20: 0 | H20: 0 | I20: 0 | J20: 0 | K20: 0 | L20: 0 | M20: 0 | N20: 0 | O20: 0 | P20: 0 | Q20: 0 | R20: 0 | X20: 0.0 | Y20: 1 | Z20: 0
A21: 12 | B21: ='Wettkampf 1'!B21 -> Olliges Kai | C21: ='Wettkampf 1'!C21 -> Börgerwald II | D21: 0.0 | E21: X | F21: 0 | G21: 0 | H21: 0 | I21: 0 | J21: 0 | K21: 0 | L21: 0 | M21: 0 | N21: 0 | O21: 0 | P21: 0 | Q21: 0 | R21: 0 | X21: 0.0 | Y21: 1 | Z21: 0
A22: 13 | B22: ='Wettkampf 1'!B22 -> Zdralik Ingo | C22: ='Wettkampf 1'!C22 -> Börger II | D22: 305.4 | F22: 305.4 | G22: 0 | H22: 0 | I22: 0 | J22: 0 | K22: 305.4 | L22: 1 | M22: 0 | N22: 0 | O22: 0 | P22: 0 | Q22: 0 | R22: 0 | U22: 106.8 | V22: 94.0 | W22: 104.4 | X22: 305.2 | Y22: 0 | Z22: 1
A23: 14 | B23: ='Wettkampf 1'!B23 -> Goldenstein Uwe | C23: ='Wettkampf 1'!C23 -> Börger II | D23: 308.7 | F23: 308.7 | G23: 0 | H23: 0 | I23: 0 | J23: 0 | K23: 308.7 | L23: 1 | M23: 0 | N23: 0 | O23: 0 | P23: 0 | Q23: 0 | R23: 0 | U23: 103.5 | V23: 103.6 | W23: 101.6 | X23: 308.7 | Y23: 1 | Z23: 1 | AA23: Korrekt
A24: 15 | B24: ='Wettkampf 1'!B24 -> Eckmann Mark | C24: ='Wettkampf 1'!C24 -> Börger II | D24: 304.5 | F24: 304.5 | G24: 0 | H24: 0 | I24: 0 | J24: 0 | K24: 304.5 | L24: 1 | M24: 0 | N24: 0 | O24: 0 | P24: 0 | Q24: 0 | R24: 0 | U24: 100.5 | V24: 101.8 | W24: 102.2 | X24: 304.5 | Y24: 1 | Z24: 1 | AA24: Korrekt
A25: 16 | B25: ='Wettkampf 1'!B25 -> Schulz Simon | C25: ='Wettkampf 1'!C25 -> Börger II | D25: 309.3 | E25: X | F25: 0 | G25: 0 | H25: 0 | I25: 0 | J25: 0 | K25: 0 | L25: 0 | M25: 0 | N25: 0 | O25: 0 | P25: 0 | Q25: 0 | R25: 0 | U25: 101.9 | V25: 103.8 | W25: 103.6 | X25: 309.3 | Y25: 1 | Z25: 1 | AA25: Korrekt
A26: 17 | B26: ='Wettkampf 1'!B26 -> Schwarte Hermann | C26: ='Wettkampf 1'!C26 -> Börger II | D26: 0.0 | E26: X | F26: 0 | G26: 0 | H26: 0 | I26: 0 | J26: 0 | K26: 0 | L26: 0 | M26: 0 | N26: 0 | O26: 0 | P26: 0 | Q26: 0 | R26: 0 | X26: 0.0 | Y26: 1 | Z26: 0
A27: 18 | B27: ='Wettkampf 1'!B27 -> Jungsthoefel Markus | C27: ='Wettkampf 1'!C27 -> Börger II | D27: 309.1 | F27: 309.1 | G27: 0 | H27: 0 | I27: 0 | J27: 0 | K27: 309.1 | L27: 1 | M27: 0 | N27: 0 | O27: 0 | P27: 0 | Q27: 0 | R27: 0 | U27: 103.0 | V27: 102.5 | W27: 103.6 | X27: 309.1 | Y27: 1 | Z27: 1 | AA27: Korrekt
A28: 19 | B28: ='Wettkampf 1'!B28 -> Aldfeld Helmut | C28: ='Wettkampf 1'!C28 -> Esterwegen III | D28: 298.9 | F28: 298.9 | G28: 0 | H28: 0 | I28: 0 | J28: 0 | K28: 0 | L28: 0 | M28: 298.9 | N28: 1 | O28: 0 | P28: 0 | Q28: 0 | R28: 0 | U28: 99.5 | V28: 99.6 | W28: 99.8 | X28: 298.9 | Y28: 1 | Z28: 1 | AA28: Korrekt
A29: 20 | B29: ='Wettkampf 1'!B29 -> Schulte Mathias | C29: ='Wettkampf 1'!C29 -> Esterwegen III | D29: 308.5 | F29: 308.5 | G29: 0 | H29: 0 | I29: 0 | J29: 0 | K29: 0 | L29: 0 | M29: 308.5 | N29: 1 | O29: 0 | P29: 0 | Q29: 0 | R29: 0 | U29: 103.9 | V29: 102.1 | W29: 102.5 | X29: 308.5 | Y29: 1 | Z29: 1 | AA29: Korrekt
A30: 21 | B30: ='Wettkampf 1'!B30 -> Middendorf Peter | C30: ='Wettkampf 1'!C30 -> Esterwegen III | D30: 314.3 | F30: 314.3 | G30: 0 | H30: 0 | I30: 0 | J30: 0 | K30: 0 | L30: 0 | M30: 314.3 | N30: 1 | O30: 0 | P30: 0 | Q30: 0 | R30: 0 | U30: 104.9 | V30: 104.5 | W30: 104.9 | X30: 314.3 | Y30: 1 | Z30: 1 | AA30: Korrekt
A31: 22 | B31: ='Wettkampf 1'!B31 -> Meibers Michael | C31: ='Wettkampf 1'!C31 -> Esterwegen III | D31: 313.3 | F31: 313.3 | G31: 0 | H31: 0 | I31: 0 | J31: 0 | K31: 0 | L31: 0 | M31: 313.3 | N31: 1 | O31: 0 | P31: 0 | Q31: 0 | R31: 0 | U31: 105.6 | V31: 104.1 | W31: 103.6 | X31: 313.3 | Y31: 1 | Z31: 1 | AA31: Korrekt
A32: 23 | B32: ='Wettkampf 1'!B32 -> Heidemann Jürgen | C32: ='Wettkampf 1'!C32 -> Esterwegen III | D32: 0.0 | E32: X | F32: 0 | G32: 0 | H32: 0 | I32: 0 | J32: 0 | K32: 0 | L32: 0 | M32: 0 | N32: 0 | O32: 0 | P32: 0 | Q32: 0 | R32: 0 | X32: 0.0 | Y32: 1 | Z32: 0
A33: 24 | B33: ='Wettkampf 1'!B33 -> Lindemann Gerd | C33: ='Wettkampf 1'!C33 -> Esterwegen III | D33: 0.0 | E33: X | F33: 0 | G33: 0 | H33: 0 | I33: 0 | J33: 0 | K33: 0 | L33: 0 | M33: 0 | N33: 0 | O33: 0 | P33: 0 | Q33: 0 | R33: 0 | X33: 0.0 | Y33: 1 | Z33: 0
A34: 25 | B34: ='Wettkampf 1'!B34 -> Hanenkamp Andre | C34: ='Wettkampf 1'!C34 -> Börgerwald II | D34: 313.1 | F34: 313.1 | G34: 0 | H34: 0 | I34: 0 | J34: 0 | K34: 0 | L34: 0 | M34: 0 | N34: 0 | O34: 313.1 | P34: 1 | Q34: 0 | R34: 0 | U34: 104.3 | V34: 104.2 | W34: 104.6 | X34: 313.1 | Y34: 1 | Z34: 1 | AA34: Korrekt
A35: 26 | B35: ='Wettkampf 1'!B35 -> Antons Mathias | C35: ='Wettkampf 1'!C35 -> Börgerwald II | D35: 306.5 | F35: 306.5 | G35: 0 | H35: 0 | I35: 0 | J35: 0 | K35: 0 | L35: 0 | M35: 0 | N35: 0 | O35: 306.5 | P35: 1 | Q35: 0 | R35: 0 | U35: 100.9 | V35: 102.8 | W35: 102.8 | X35: 306.5 | Y35: 1 | Z35: 1 | AA35: Korrekt
A36: 27 | B36: ='Wettkampf 1'!B36 -> Schröer Friedhelm | C36: ='Wettkampf 1'!C36 -> Börgerwald II | D36: 311.1 | F36: 311.1 | G36: 0 | H36: 0 | I36: 0 | J36: 0 | K36: 0 | L36: 0 | M36: 0 | N36: 0 | O36: 311.1 | P36: 1 | Q36: 0 | R36: 0 | U36: 102.9 | V36: 103.7 | W36: 104.5 | X36: 311.1 | Y36: 1 | Z36: 1 | AA36: Korrekt
A37: 28 | B37: ='Wettkampf 1'!B37 -> Sebers Tobias | C37: ='Wettkampf 1'!C37 -> Börgerwald II | D37: 304.3 | E37: X | F37: 0 | G37: 0 | H37: 0 | I37: 0 | J37: 0 | K37: 0 | L37: 0 | M37: 0 | N37: 0 | O37: 0 | P37: 0 | Q37: 0 | R37: 0 | U37: 102.2 | V37: 101.5 | W37: 100.6 | X37: 304.3 | Y37: 1 | Z37: 1 | AA37: Korrekt
A38: 29 | B38: ='Wettkampf 1'!B38 -> Hanneken Moritz | C38: ='Wettkampf 1'!C38 -> Börgerwald II | D38: 305.6 | F38: 305.6 | G38: 0 | H38: 0 | I38: 0 | J38: 0 | K38: 0 | L38: 0 | M38: 0 | N38: 0 | O38: 305.6 | P38: 1 | Q38: 0 | R38: 0 | U38: 102.1 | V38: 104.0 | W38: 99.5 | X38: 305.6 | Y38: 1 | Z38: 1 | AA38: Korrekt
A39: 30 | B39: ='Wettkampf 1'!B39 -> Speeker Dietmar | C39: ='Wettkampf 1'!C39 -> Börgerwald II | D39: 0.0 | E39: X | F39: 0 | G39: 0 | H39: 0 | I39: 0 | J39: 0 | K39: 0 | L39: 0 | M39: 0 | N39: 0 | O39: 0 | P39: 0 | Q39: 0 | R39: 0 | X39: 0.0 | Y39: 1 | Z39: 0
A40: 31 | B40: ='Wettkampf 1'!B40 -> Will Achim | C40: ='Wettkampf 1'!C40 -> Spahnharrenstätte II | D40: 313.7 | F40: 313.7 | G40: 0 | H40: 0 | I40: 0 | J40: 0 | K40: 0 | L40: 0 | M40: 0 | N40: 0 | O40: 0 | P40: 0 | Q40: 313.7 | R40: 1 | U40: 104.0 | V40: 105.3 | W40: 104.4 | X40: 313.7 | Y40: 1 | Z40: 1 | AA40: Korrekt
A41: 32 | B41: ='Wettkampf 1'!B41 -> Meyer Dirk | C41: ='Wettkampf 1'!C41 -> Spahnharrenstätte II | D41: 310.7 | F41: 310.7 | G41: 0 | H41: 0 | I41: 0 | J41: 0 | K41: 0 | L41: 0 | M41: 0 | N41: 0 | O41: 0 | P41: 0 | Q41: 310.7 | R41: 1 | U41: 104.4 | V41: 102.8 | W41: 103.5 | X41: 310.7 | Y41: 1 | Z41: 1 | AA41: Korrekt
A42: 33 | B42: ='Wettkampf 1'!B42 -> Micksch Heiko | C42: ='Wettkampf 1'!C42 -> Spahnharrenstätte II | D42: 312.6 | F42: 312.6 | G42: 0 | H42: 0 | I42: 0 | J42: 0 | K42: 0 | L42: 0 | M42: 0 | N42: 0 | O42: 0 | P42: 0 | Q42: 312.6 | R42: 1 | U42: 104.3 | V42: 104.3 | W42: 104.0 | X42: 312.6 | Y42: 1 | Z42: 1 | AA42: Korrekt
A43: 34 | B43: ='Wettkampf 1'!B43 -> Hahnenkamp Ulrich | C43: ='Wettkampf 1'!C43 -> Spahnharrenstätte II | D43: 0.0 | E43: X | F43: 0 | G43: 0 | H43: 0 | I43: 0 | J43: 0 | K43: 0 | L43: 0 | M43: 0 | N43: 0 | O43: 0 | P43: 0 | Q43: 0 | R43: 0 | X43: 0.0 | Y43: 1 | Z43: 0
A44: 35 | B44: ='Wettkampf 1'!B44 -> Hahnenkamp Markus | C44: ='Wettkampf 1'!C44 -> Spahnharrenstätte II | D44: 295.3 | F44: 295.3 | G44: 0 | H44: 0 | I44: 0 | J44: 0 | K44: 0 | L44: 0 | M44: 0 | N44: 0 | O44: 0 | P44: 0 | Q44: 295.3 | R44: 1 | U44: 100.6 | V44: 96.5 | W44: 98.2 | X44: 295.3 | Y44: 1 | Z44: 1 | AA44: Korrekt
A45: 36 | B45: ='Wettkampf 1'!B45 -> Walker Stefan | C45: ='Wettkampf 1'!C45 -> Börgerwald II | D45: 287.0 | E45: X | F45: 0 | G45: 0 | H45: 0 | I45: 0 | J45: 0 | K45: 0 | L45: 0 | M45: 0 | N45: 0 | O45: 0 | P45: 0 | Q45: 0 | R45: 0 | U45: 95.4 | V45: 92.9 | W45: 98.7 | X45: 287.0 | Y45: 1 | Z45: 1 | AA45: Korrekt
G46: =LARGE(G10:G45,1)+LARGE(G10:G45,2)+LARGE(G10:G45,3) -> 934.1 | H46: =SUM(H10:H45) -> 4 | I46: =LARGE(I10:I45,1)+LARGE(I10:I45,2)+LARGE(I10:I45,3) -> 939.2 | J46: =SUM(J10:J45) -> 4 | K46: =LARGE(K10:K45,1)+LARGE(K10:K45,2)+LARGE(K10:K45,3) -> 923.2 | L46: =SUM(L10:L45) -> 4 | M46: =LARGE(M10:M45,1)+LARGE(M10:M45,2)+LARGE(M10:M45,3) -> 936.1 | N46: =SUM(N10:N45) -> 4 | O46: =LARGE(O10:O45,1)+LARGE(O10:O45,2)+LARGE(O10:O45,3) -> 930.7 | P46: =SUM(P10:P45) -> 4 | Q46: =LARGE(Q10:Q45,1)+LARGE(Q10:Q45,2)+LARGE(Q10:Q45,3) -> 937 | R46: =SUM(R10:S45) -> 4
C47: per Email an: sk-huemmling@gmx.de

Sheet 7
B1: Verein / Gruppe | D1: Ergebnisse | V1: Austragungsort: | W1: =Übersicht!L4 -> Esterwegen
A2: 1 | B2: ='Wettkampf 1'!B2 -> Neuvrees I | D2: =G46 -> 929.6 | E2: =IF(H46>4,"Es sind zu viele Schützen in Wertung!"," ") -> Es sind zu viele Schützen in Wertung! | V2: Wettkampftag: | W2: =Übersicht!L3 -> 19.01.
A3: 2 | B3: ='Wettkampf 1'!B3 -> Rastdorf III | D3: =I46 -> 936.4 | E3: =IF(J46>4,"Es sind zu viele Schützen in Wertung!"," ") -> 
A4: 3 | B4: ='Wettkampf 1'!B4 -> Börger II | D4: =K46 -> 918.7 | E4: =IF(L46>4,"Es sind zu viele Schützen in Wertung!"," ") ->  | X4: Ansprechpartner für Rückfragen:
A5: 4 | B5: ='Wettkampf 1'!B5 -> Esterwegen III | D5: =M46 -> 937.1 | E5: =IF(N46>4,"Es sind zu viele Schützen in Wertung!"," ") ->  | V5: Name: | W5: Michael Meibers
A6: 5 | B6: ='Wettkampf 1'!B6 -> Börgerwald II | D6: =O46 -> 924.5 | E6: =IF(P46>4,"Es sind zu viele Schützen in Wertung!"," ") -> Es sind zu viele Schützen in Wertung! | V6: Tel:
A7: 6 | B7: ='Wettkampf 1'!B7 -> Spahnharrenstätte II | D7: =Q46 -> 931.1 | E7: =IF(R46>4,"Es sind zu viele Schützen in Wertung!"," ") ->  | V7: Standaufsicht: | W7: Michael Meibers
B9: Einzelergebnisse: | C9: Verein / Gruppe | D9: Ergebnisse (mindestens 0 eintragen) | E9: AW? Dann x eintippen | G9: Verein 1 | I9: Verein 2 | K9: Verein 3 | M9: Verein 4 | O9: Verein 5 | Q9: Verein 6 | U9: Proberechnung bei Streifen:
A10: 1 | B10: ='Wettkampf 1'!B10 -> Rolfes Wilhelm | C10: ='Wettkampf 1'!C10 -> Neuvrees I | D10: 305.8 | F10: =IF(E10="x","0",D10) -> 305.8 | G10: =IF(C10=$B$2,F10,0) -> 305.8 | H10: =(IF(AND($E10="",$C10=$B$2),1,0)) -> 1 | I10: =IF($C10=$B$3,F10,0) -> 0 | J10: =(IF(AND($E10="",$C10=$B$3),1,0)) -> 0 | K10: =IF($C10=$B$4,F10,0) -> 0 | L10: =(IF(AND($E10="",$C10=$B$4),1,0)) -> 0 | M10: =IF($C10=$B$5,F10,0) -> 0 | N10: =(IF(AND($E10="",$C10=$B$5),1,0)) -> 0 | O10: =IF($C10=$B$6,F10,0) -> 0 | P10: =(IF(AND($E10="",$C10=$B$6),1,0)) -> 0 | Q10: =IF($C10=$B$7,F10,0) -> 0 | R10: =(IF(AND($E10="",$C10=$B$7),1,0)) -> 0 | X10: =U10+V10+W10 -> 0.0 | Y10: =IF(X10=D10,1,0) -> 0 | Z10: =IF(X10=0,0,1) -> 0 | AA10: =IF(Y10+Z10=2,"Korrekt","") -> 
A11: 2 | B11: ='Wettkampf 1'!B11 -> Steenken Klaus | C11: ='Wettkampf 1'!C11 -> Neuvrees I | D11: 307.2 | F11: =IF(E11="x","0",D11) -> 307.2 | G11: =IF(C11=$B$2,F11,0) -> 307.2 | H11: =(IF(AND($E11="",$C11=$B$2),1,0)) -> 1 | I11: =IF($C11=$B$3,F11,0) -> 0 | J11: =(IF(AND($E11="",$C11=$B$3),1,0)) -> 0 | K11: =IF($C11=$B$4,F11,0) -> 0 | L11: =(IF(AND($E11="",$C11=$B$4),1,0)) -> 0 | M11: =IF($C11=$B$5,F11,0) -> 0 | N11: =(IF(AND($E11="",$C11=$B$5),1,0)) -> 0 | O11: =IF($C11=$B$6,F11,0) -> 0 | P11: =(IF(AND($E11="",$C11=$B$6),1,0)) -> 0 | Q11: =IF($C11=$B$7,F11,0) -> 0 | R11: =(IF(AND($E11="",$C11=$B$7),1,0)) -> 0 | X11: =U11+V11+W11 -> 0.0 | Y11: =IF(X11=D11,1,0) -> 0 | Z11: =IF(X11=0,0,1) -> 0 | AA11: =IF(Y11+Z11=2,"Korrekt","") -> 
A12: 3 | B12: ='Wettkampf 1'!B12 -> Breyer Wilfried | C12: ='Wettkampf 1'!C12 -> Neuvrees I | D12: 310.1 | F12: 310.1 | G12: 310.1 | H12: 1 | I12: 0 | J12: 0 | K12: 0 | L12: 0 | M12: 0 | N12: 0 | O12: 0 | P12: 0 | Q12: 0 | R12: 0 | X12: 0.0 | Y12: 0 | Z12: 0
A13: 4 | B13: ='Wettkampf 1'!B13 -> Janßen Markus | C13: ='Wettkampf 1'!C13 -> Neuvrees I | D13: 312.3 | F13: 312.3 | G13: 312.3 | H13: 1 | I13: 0 | J13: 0 | K13: 0 | L13: 0 | M13: 0 | N13: 0 | O13: 0 | P13: 0 | Q13: 0 | R13: 0 | X13: 0.0 | Y13: 0 | Z13: 0
A14: 5 | B14: ='Wettkampf 1'!B14 -> Thyen Werner | C14: ='Wettkampf 1'!C14 -> Neuvrees I | D14: 302.3 | E14: x | F14: 0 | G14: 0 | H14: 0 | I14: 0 | J14: 0 | K14: 0 | L14: 0 | M14: 0 | N14: 0 | O14: 0 | P14: 0 | Q14: 0 | R14: 0 | X14: 0.0 | Y14: 0 | Z14: 0
A15: 6 | B15: ='Wettkampf 1'!B15 -> Peters Carsten | C15: ='Wettkampf 1'!C15 -> Neuvrees I | F15: 0.0 | G15: 0 | H15: 1 | I15: 0 | J15: 0 | K15: 0 | L15: 0 | M15: 0 | N15: 0 | O15: 0 | P15: 0 | Q15: 0 | R15: 0 | X15: 0.0 | Y15: 1 | Z15: 0
A16: 7 | B16: ='Wettkampf 1'!B16 -> Wotte Robert | C16: ='Wettkampf 1'!C16 -> Rastdorf III | D16: 311.7 | F16: 311.7 | G16: 0 | H16: 0 | I16: 311.7 | J16: 1 | K16: 0 | L16: 0 | M16: 0 | N16: 0 | O16: 0 | P16: 0 | Q16: 0 | R16: 0 | X16: 0.0 | Y16: 0 | Z16: 0
A17: 8 | B17: ='Wettkampf 1'!B17 -> Müller Helmut | C17: ='Wettkampf 1'!C17 -> Rastdorf III | D17: 310.1 | F17: 310.1 | G17: 0 | H17: 0 | I17: 310.1 | J17: 1 | K17: 0 | L17: 0 | M17: 0 | N17: 0 | O17: 0 | P17: 0 | Q17: 0 | R17: 0 | X17: 0.0 | Y17: 0 | Z17: 0
A18: 9 | B18: ='Wettkampf 1'!B18 -> Bookjans Günther | C18: ='Wettkampf 1'!C18 -> Rastdorf III | D18: 314.2 | F18: 314.2 | G18: 0 | H18: 0 | I18: 314.2 | J18: 1 | K18: 0 | L18: 0 | M18: 0 | N18: 0 | O18: 0 | P18: 0 | Q18: 0 | R18: 0 | X18: 0.0 | Y18: 0 | Z18: 0
A19: 10 | B19: ='Wettkampf 1'!B19 -> Meer Michael | C19: ='Wettkampf 1'!C19 -> Rastdorf III | D19: 310.5 | F19: 310.5 | G19: 0 | H19: 0 | I19: 310.5 | J19: 1 | K19: 0 | L19: 0 | M19: 0 | N19: 0 | O19: 0 | P19: 0 | Q19: 0 | R19: 0 | X19: 0.0 | Y19: 0 | Z19: 0
A20: 11 | B20: ='Wettkampf 1'!B20 -> Lindemann Rita | C20: ='Wettkampf 1'!C20 -> Rastdorf III | D20: 317.9 | E20: x | F20: 0 | G20: 0 | H20: 0 | I20: 0 | J20: 0 | K20: 0 | L20: 0 | M20: 0 | N20: 0 | O20: 0 | P20: 0 | Q20: 0 | R20: 0 | X20: 0.0 | Y20: 0 | Z20: 0
A21: 12 | B21: ='Wettkampf 1'!B21 -> Olliges Kai | C21: ='Wettkampf 1'!C21 -> Börgerwald II | D21: 259.6 | E21: x | F21: 0 | G21: 0 | H21: 0 | I21: 0 | J21: 0 | K21: 0 | L21: 0 | M21: 0 | N21: 0 | O21: 0 | P21: 0 | Q21: 0 | R21: 0 | X21: 0.0 | Y21: 0 | Z21: 0
A22: 13 | B22: ='Wettkampf 1'!B22 -> Zdralik Ingo | C22: ='Wettkampf 1'!C22 -> Börger II | D22: 314.0 | F22: 314.0 | G22: 0 | H22: 0 | I22: 0 | J22: 0 | K22: 314 | L22: 1 | M22: 0 | N22: 0 | O22: 0 | P22: 0 | Q22: 0 | R22: 0 | X22: 0.0 | Y22: 0 | Z22: 0
A23: 14 | B23: ='Wettkampf 1'!B23 -> Goldenstein Uwe | C23: ='Wettkampf 1'!C23 -> Börger II | D23: 305.1 | F23: 305.1 | G23: 0 | H23: 0 | I23: 0 | J23: 0 | K23: 305.1 | L23: 1 | M23: 0 | N23: 0 | O23: 0 | P23: 0 | Q23: 0 | R23: 0 | X23: 0.0 | Y23: 0 | Z23: 0
A24: 15 | B24: ='Wettkampf 1'!B24 -> Eckmann Mark | C24: ='Wettkampf 1'!C24 -> Börger II | D24: 303.7 | E24: x | F24: 0 | G24: 0 | H24: 0 | I24: 0 | J24: 0 | K24: 0 | L24: 0 | M24: 0 | N24: 0 | O24: 0 | P24: 0 | Q24: 0 | R24: 0 | X24: 0.0 | Y24: 0 | Z24: 0
A25: 16 | B25: ='Wettkampf 1'!B25 -> Schulz Simon | C25: ='Wettkampf 1'!C25 -> Börger II | D25: 298.2 | F25: 298.2 | G25: 0 | H25: 0 | I25: 0 | J25: 0 | K25: 298.2 | L25: 1 | M25: 0 | N25: 0 | O25: 0 | P25: 0 | Q25: 0 | R25: 0 | X25: 0.0 | Y25: 0 | Z25: 0
A26: 17 | B26: ='Wettkampf 1'!B26 -> Schwarte Hermann | C26: ='Wettkampf 1'!C26 -> Börger II | D26: 303.1 | E26: x | F26: 0 | G26: 0 | H26: 0 | I26: 0 | J26: 0 | K26: 0 | L26: 0 | M26: 0 | N26: 0 | O26: 0 | P26: 0 | Q26: 0 | R26: 0 | X26: 0.0 | Y26: 0 | Z26: 0
A27: 18 | B27: ='Wettkampf 1'!B27 -> Jungsthoefel Markus | C27: ='Wettkampf 1'!C27 -> Börger II | D27: 299.6 | F27: 299.6 | G27: 0 | H27: 0 | I27: 0 | J27: 0 | K27: 299.6 | L27: 1 | M27: 0 | N27: 0 | O27: 0 | P27: 0 | Q27: 0 | R27: 0 | X27: 0.0 | Y27: 0 | Z27: 0
A28: 19 | B28: ='Wettkampf 1'!B28 -> Aldfeld Helmut | C28: ='Wettkampf 1'!C28 -> Esterwegen III | F28: 0.0 | G28: 0 | H28: 0 | I28: 0 | J28: 0 | K28: 0 | L28: 0 | M28: 0 | N28: 1 | O28: 0 | P28: 0 | Q28: 0 | R28: 0 | X28: 0.0 | Y28: 1 | Z28: 0
A29: 20 | B29: ='Wettkampf 1'!B29 -> Schulte Mathias | C29: ='Wettkampf 1'!C29 -> Esterwegen III | D29: 306.2 | F29: 306.2 | G29: 0 | H29: 0 | I29: 0 | J29: 0 | K29: 0 | L29: 0 | M29: 306.2 | N29: 1 | O29: 0 | P29: 0 | Q29: 0 | R29: 0 | X29: 0.0 | Y29: 0 | Z29: 0
A30: 21 | B30: ='Wettkampf 1'!B30 -> Middendorf Peter | C30: ='Wettkampf 1'!C30 -> Esterwegen III | D30: 313.0 | F30: 313.0 | G30: 0 | H30: 0 | I30: 0 | J30: 0 | K30: 0 | L30: 0 | M30: 313 | N30: 1 | O30: 0 | P30: 0 | Q30: 0 | R30: 0 | X30: 0.0 | Y30: 0 | Z30: 0
A31: 22 | B31: ='Wettkampf 1'!B31 -> Meibers Michael | C31: ='Wettkampf 1'!C31 -> Esterwegen III | D31: 317.9 | F31: 317.9 | G31: 0 | H31: 0 | I31: 0 | J31: 0 | K31: 0 | L31: 0 | M31: 317.9 | N31: 1 | O31: 0 | P31: 0 | Q31: 0 | R31: 0 | X31: 0.0 | Y31: 0 | Z31: 0
A32: 23 | B32: ='Wettkampf 1'!B32 -> Heidemann Jürgen | C32: ='Wettkampf 1'!C32 -> Esterwegen III | E32: x | F32: 0 | G32: 0 | H32: 0 | I32: 0 | J32: 0 | K32: 0 | L32: 0 | M32: 0 | N32: 0 | O32: 0 | P32: 0 | Q32: 0 | R32: 0 | X32: 0.0 | Y32: 1 | Z32: 0
A33: 24 | B33: ='Wettkampf 1'!B33 -> Lindemann Gerd | C33: ='Wettkampf 1'!C33 -> Esterwegen III | E33: x | F33: 0 | G33: 0 | H33: 0 | I33: 0 | J33: 0 | K33: 0 | L33: 0 | M33: 0 | N33: 0 | O33: 0 | P33: 0 | Q33: 0 | R33: 0 | X33: 0.0 | Y33: 1 | Z33: 0
A34: 25 | B34: ='Wettkampf 1'!B34 -> Hanenkamp Andre | C34: ='Wettkampf 1'!C34 -> Börgerwald II | D34: 309.3 | F34: 309.3 | G34: 0 | H34: 0 | I34: 0 | J34: 0 | K34: 0 | L34: 0 | M34: 0 | N34: 0 | O34: 309.3 | P34: 1 | Q34: 0 | R34: 0 | X34: 0.0 | Y34: 0 | Z34: 0
A35: 26 | B35: ='Wettkampf 1'!B35 -> Antons Mathias | C35: ='Wettkampf 1'!C35 -> Börgerwald II | D35: 308.8 | F35: 308.8 | G35: 0 | H35: 0 | I35: 0 | J35: 0 | K35: 0 | L35: 0 | M35: 0 | N35: 0 | O35: 308.8 | P35: 1 | Q35: 0 | R35: 0 | X35: 0.0 | Y35: 0 | Z35: 0
A36: 27 | B36: ='Wettkampf 1'!B36 -> Schröer Friedhelm | C36: ='Wettkampf 1'!C36 -> Börgerwald II | D36: 306.4 | F36: 306.4 | G36: 0 | H36: 0 | I36: 0 | J36: 0 | K36: 0 | L36: 0 | M36: 0 | N36: 0 | O36: 306.4 | P36: 1 | Q36: 0 | R36: 0 | X36: 0.0 | Y36: 0 | Z36: 0
A37: 28 | B37: ='Wettkampf 1'!B37 -> Sebers Tobias | C37: ='Wettkampf 1'!C37 -> Börgerwald II | D37: 297.0 | E37: x | F37: 0 | G37: 0 | H37: 0 | I37: 0 | J37: 0 | K37: 0 | L37: 0 | M37: 0 | N37: 0 | O37: 0 | P37: 0 | Q37: 0 | R37: 0 | X37: 0.0 | Y37: 0 | Z37: 0
A38: 29 | B38: ='Wettkampf 1'!B38 -> Hanneken Moritz | C38: ='Wettkampf 1'!C38 -> Börgerwald II | D38: 306.4 | F38: 306.4 | G38: 0 | H38: 0 | I38: 0 | J38: 0 | K38: 0 | L38: 0 | M38: 0 | N38: 0 | O38: 306.4 | P38: 1 | Q38: 0 | R38: 0 | X38: 0.0 | Y38: 0 | Z38: 0
A39: 30 | B39: ='Wettkampf 1'!B39 -> Speeker Dietmar | C39: ='Wettkampf 1'!C39 -> Börgerwald II | F39: 0.0 | G39: 0 | H39: 0 | I39: 0 | J39: 0 | K39: 0 | L39: 0 | M39: 0 | N39: 0 | O39: 0 | P39: 1 | Q39: 0 | R39: 0 | X39: 0.0 | Y39: 1 | Z39: 0
A40: 31 | B40: ='Wettkampf 1'!B40 -> Will Achim | C40: ='Wettkampf 1'!C40 -> Spahnharrenstätte II | D40: 308.6 | F40: 308.6 | G40: 0 | H40: 0 | I40: 0 | J40: 0 | K40: 0 | L40: 0 | M40: 0 | N40: 0 | O40: 0 | P40: 0 | Q40: 308.6 | R40: 1 | X40: 0.0 | Y40: 0 | Z40: 0
A41: 32 | B41: ='Wettkampf 1'!B41 -> Meyer Dirk | C41: ='Wettkampf 1'!C41 -> Spahnharrenstätte II | D41: 310.5 | F41: 310.5 | G41: 0 | H41: 0 | I41: 0 | J41: 0 | K41: 0 | L41: 0 | M41: 0 | N41: 0 | O41: 0 | P41: 0 | Q41: 310.5 | R41: 1 | X41: 0.0 | Y41: 0 | Z41: 0
A42: 33 | B42: ='Wettkampf 1'!B42 -> Micksch Heiko | C42: ='Wettkampf 1'!C42 -> Spahnharrenstätte II | D42: 312.0 | F42: 312.0 | G42: 0 | H42: 0 | I42: 0 | J42: 0 | K42: 0 | L42: 0 | M42: 0 | N42: 0 | O42: 0 | P42: 0 | Q42: 312 | R42: 1 | X42: 0.0 | Y42: 0 | Z42: 0
A43: 34 | B43: ='Wettkampf 1'!B43 -> Hahnenkamp Ulrich | C43: ='Wettkampf 1'!C43 -> Spahnharrenstätte II | D43: 295.1 | E43: x | F43: 0 | G43: 0 | H43: 0 | I43: 0 | J43: 0 | K43: 0 | L43: 0 | M43: 0 | N43: 0 | O43: 0 | P43: 0 | Q43: 0 | R43: 0 | X43: 0.0 | Y43: 0 | Z43: 0
A44: 35 | B44: ='Wettkampf 1'!B44 -> Hahnenkamp Markus | C44: ='Wettkampf 1'!C44 -> Spahnharrenstätte II | D44: 299.6 | F44: 299.6 | G44: 0 | H44: 0 | I44: 0 | J44: 0 | K44: 0 | L44: 0 | M44: 0 | N44: 0 | O44: 0 | P44: 0 | Q44: 299.6 | R44: 1 | X44: 0.0 | Y44: 0 | Z44: 0
A45: 36 | B45: ='Wettkampf 1'!B45 -> Walker Stefan | C45: ='Wettkampf 1'!C45 -> Börgerwald II | F45: 0.0 | G45: 0 | H45: 0 | I45: 0 | J45: 0 | K45: 0 | L45: 0 | M45: 0 | N45: 0 | O45: 0 | P45: 1 | Q45: 0 | R45: 0 | X45: 0.0 | Y45: 1 | Z45: 0
G46: =LARGE(G10:G45,1)+LARGE(G10:G45,2)+LARGE(G10:G45,3) -> 929.6 | H46: =SUM(H10:H45) -> 5 | I46: =LARGE(I10:I45,1)+LARGE(I10:I45,2)+LARGE(I10:I45,3) -> 936.4 | J46: =SUM(J10:J45) -> 4 | K46: =LARGE(K10:K45,1)+LARGE(K10:K45,2)+LARGE(K10:K45,3) -> 918.7 | L46: =SUM(L10:L45) -> 4 | M46: =LARGE(M10:M45,1)+LARGE(M10:M45,2)+LARGE(M10:M45,3) -> 937.1 | N46: =SUM(N10:N45) -> 4 | O46: =LARGE(O10:O45,1)+LARGE(O10:O45,2)+LARGE(O10:O45,3) -> 924.5 | P46: =SUM(P10:P45) -> 6 | Q46: =LARGE(Q10:Q45,1)+LARGE(Q10:Q45,2)+LARGE(Q10:Q45,3) -> 931.1 | R46: =SUM(R10:S45) -> 4
C47: per Email an: sk-huemmling@gmx.de

Sheet 8
B1: Verein / Gruppe | D1: Ergebnisse | V1: Austragungsort: | W1: =Übersicht!M4 -> Rastdorf
A2: 1 | B2: ='Wettkampf 1'!B2 -> Neuvrees I | D2: =G46 -> 929.5 | E2: =IF(H46>4,"Es sind zu viele Schützen in Wertung!"," ") ->  | V2: Wettkampftag: | W2: =Übersicht!M3 -> 02.02.
A3: 2 | B3: ='Wettkampf 1'!B3 -> Rastdorf III | D3: =I46 -> 934.4 | E3: =IF(J46>4,"Es sind zu viele Schützen in Wertung!"," ") -> 
A4: 3 | B4: ='Wettkampf 1'!B4 -> Börger II | D4: =K46 -> 928.2 | E4: =IF(L46>4,"Es sind zu viele Schützen in Wertung!"," ") ->  | X4: Ansprechpartner für Rückfragen:
A5: 4 | B5: ='Wettkampf 1'!B5 -> Esterwegen III | D5: =M46 -> 934.1 | E5: =IF(N46>4,"Es sind zu viele Schützen in Wertung!"," ") ->  | V5: Name: | W5: M.Meer
A6: 5 | B6: ='Wettkampf 1'!B6 -> Börgerwald II | D6: =O46 -> 930.7 | E6: =IF(P46>4,"Es sind zu viele Schützen in Wertung!"," ") ->  | V6: Tel: | W6: 015226250201
A7: 6 | B7: ='Wettkampf 1'!B7 -> Spahnharrenstätte II | D7: =Q46 -> 934.4 | E7: =IF(R46>4,"Es sind zu viele Schützen in Wertung!"," ") ->  | V7: Standaufsicht: | W7: F.Sommerfeld
B9: Einzelergebnisse: | C9: Verein / Gruppe | D9: Ergebnisse (mindestens 0 eintragen) | E9: AW? Dann x eintippen | G9: Verein 1 | I9: Verein 2 | K9: Verein 3 | M9: Verein 4 | O9: Verein 5 | Q9: Verein 6 | U9: Proberechnung bei Streifen:
A10: 1 | B10: ='Wettkampf 1'!B10 -> Rolfes Wilhelm | C10: ='Wettkampf 1'!C10 -> Neuvrees I | D10: 295.8 | F10: =IF(E10="x","0",D10) -> 295.8 | G10: =IF(C10=$B$2,F10,0) -> 295.8 | H10: =(IF(AND($E10="",$C10=$B$2),1,0)) -> 0 | I10: =IF($C10=$B$3,F10,0) -> 0 | J10: =(IF(AND($E10="",$C10=$B$3),1,0)) -> 0 | K10: =IF($C10=$B$4,F10,0) -> 0 | L10: =(IF(AND($E10="",$C10=$B$4),1,0)) -> 0 | M10: =IF($C10=$B$5,F10,0) -> 0 | N10: =(IF(AND($E10="",$C10=$B$5),1,0)) -> 0 | O10: =IF($C10=$B$6,F10,0) -> 0 | P10: =(IF(AND($E10="",$C10=$B$6),1,0)) -> 0 | Q10: =IF($C10=$B$7,F10,0) -> 0 | R10: =(IF(AND($E10="",$C10=$B$7),1,0)) -> 0 | X10: =U10+V10+W10 -> 0.0 | Y10: =IF(X10=D10,1,0) -> 0 | Z10: =IF(X10=0,0,1) -> 0 | AA10: =IF(Y10+Z10=2,"Korrekt","") -> 
A11: 2 | B11: ='Wettkampf 1'!B11 -> Steenken Klaus | C11: ='Wettkampf 1'!C11 -> Neuvrees I | D11: 310.3 | F11: =IF(E11="x","0",D11) -> 310.3 | G11: =IF(C11=$B$2,F11,0) -> 310.3 | H11: =(IF(AND($E11="",$C11=$B$2),1,0)) -> 1 | I11: =IF($C11=$B$3,F11,0) -> 0 | J11: =(IF(AND($E11="",$C11=$B$3),1,0)) -> 0 | K11: =IF($C11=$B$4,F11,0) -> 0 | L11: =(IF(AND($E11="",$C11=$B$4),1,0)) -> 0 | M11: =IF($C11=$B$5,F11,0) -> 0 | N11: =(IF(AND($E11="",$C11=$B$5),1,0)) -> 0 | O11: =IF($C11=$B$6,F11,0) -> 0 | P11: =(IF(AND($E11="",$C11=$B$6),1,0)) -> 0 | Q11: =IF($C11=$B$7,F11,0) -> 0 | R11: =(IF(AND($E11="",$C11=$B$7),1,0)) -> 0 | X11: =U11+V11+W11 -> 0.0 | Y11: =IF(X11=D11,1,0) -> 0 | Z11: =IF(X11=0,0,1) -> 0 | AA11: =IF(Y11+Z11=2,"Korrekt","") -> 
A12: 3 | B12: ='Wettkampf 1'!B12 -> Breyer Wilfried | C12: ='Wettkampf 1'!C12 -> Neuvrees I | D12: 308.4 | F12: 308.4 | G12: 308.4 | H12: 1 | I12: 0 | J12: 0 | K12: 0 | L12: 0 | M12: 0 | N12: 0 | O12: 0 | P12: 0 | Q12: 0 | R12: 0 | X12: 0.0 | Y12: 0 | Z12: 0
A13: 4 | B13: ='Wettkampf 1'!B13 -> Janßen Markus | C13: ='Wettkampf 1'!C13 -> Neuvrees I | D13: 310.8 | F13: 310.8 | G13: 310.8 | H13: 1 | I13: 0 | J13: 0 | K13: 0 | L13: 0 | M13: 0 | N13: 0 | O13: 0 | P13: 0 | Q13: 0 | R13: 0 | X13: 0.0 | Y13: 0 | Z13: 0
A14: 5 | B14: ='Wettkampf 1'!B14 -> Thyen Werner | C14: ='Wettkampf 1'!C14 -> Neuvrees I | D14: 306.1 | E14: x | F14: 0 | G14: 0 | H14: 0 | I14: 0 | J14: 0 | K14: 0 | L14: 0 | M14: 0 | N14: 0 | O14: 0 | P14: 0 | Q14: 0 | R14: 0 | X14: 0.0 | Y14: 0 | Z14: 0
A15: 6 | B15: ='Wettkampf 1'!B15 -> Peters Carsten | C15: ='Wettkampf 1'!C15 -> Neuvrees I | D15: 0.0 | F15: 0.0 | G15: 0 | H15: 1 | I15: 0 | J15: 0 | K15: 0 | L15: 0 | M15: 0 | N15: 0 | O15: 0 | P15: 0 | Q15: 0 | R15: 0 | X15: 0.0 | Y15: 1 | Z15: 0
A16: 7 | B16: ='Wettkampf 1'!B16 -> Wotte Robert | C16: ='Wettkampf 1'!C16 -> Rastdorf III | D16: 310.9 | F16: 310.9 | G16: 0 | H16: 0 | I16: 310.9 | J16: 1 | K16: 0 | L16: 0 | M16: 0 | N16: 0 | O16: 0 | P16: 0 | Q16: 0 | R16: 0 | X16: 0.0 | Y16: 0 | Z16: 0
A17: 8 | B17: ='Wettkampf 1'!B17 -> Müller Helmut | C17: ='Wettkampf 1'!C17 -> Rastdorf III | D17: 310.1 | F17: 310.1 | G17: 0 | H17: 0 | I17: 310.1 | J17: 1 | K17: 0 | L17: 0 | M17: 0 | N17: 0 | O17: 0 | P17: 0 | Q17: 0 | R17: 0 | X17: 0.0 | Y17: 0 | Z17: 0
A18: 9 | B18: ='Wettkampf 1'!B18 -> Bookjans Günther | C18: ='Wettkampf 1'!C18 -> Rastdorf III | D18: 313.4 | F18: 313.4 | G18: 0 | H18: 0 | I18: 313.4 | J18: 1 | K18: 0 | L18: 0 | M18: 0 | N18: 0 | O18: 0 | P18: 0 | Q18: 0 | R18: 0 | X18: 0.0 | Y18: 0 | Z18: 0
A19: 10 | B19: ='Wettkampf 1'!B19 -> Meer Michael | C19: ='Wettkampf 1'!C19 -> Rastdorf III | D19: 304.9 | F19: 304.9 | G19: 0 | H19: 0 | I19: 304.9 | J19: 1 | K19: 0 | L19: 0 | M19: 0 | N19: 0 | O19: 0 | P19: 0 | Q19: 0 | R19: 0 | X19: 0.0 | Y19: 0 | Z19: 0
A20: 11 | B20: ='Wettkampf 1'!B20 -> Lindemann Rita | C20: ='Wettkampf 1'!C20 -> Rastdorf III | D20: 314.4 | E20: x | F20: 0 | G20: 0 | H20: 0 | I20: 0 | J20: 0 | K20: 0 | L20: 0 | M20: 0 | N20: 0 | O20: 0 | P20: 0 | Q20: 0 | R20: 0 | X20: 0.0 | Y20: 0 | Z20: 0
A21: 12 | B21: ='Wettkampf 1'!B21 -> Olliges Kai | C21: ='Wettkampf 1'!C21 -> Börgerwald II | D21: 0.0 | E21: x | F21: 0 | G21: 0 | H21: 0 | I21: 0 | J21: 0 | K21: 0 | L21: 0 | M21: 0 | N21: 0 | O21: 0 | P21: 0 | Q21: 0 | R21: 0 | X21: 0.0 | Y21: 1 | Z21: 0
A22: 13 | B22: ='Wettkampf 1'!B22 -> Zdralik Ingo | C22: ='Wettkampf 1'!C22 -> Börger II | D22: 315.4 | F22: 315.4 | G22: 0 | H22: 0 | I22: 0 | J22: 0 | K22: 315.4 | L22: 1 | M22: 0 | N22: 0 | O22: 0 | P22: 0 | Q22: 0 | R22: 0 | X22: 0.0 | Y22: 0 | Z22: 0
A23: 14 | B23: ='Wettkampf 1'!B23 -> Goldenstein Uwe | C23: ='Wettkampf 1'!C23 -> Börger II | D23: 304.6 | F23: 304.6 | G23: 0 | H23: 0 | I23: 0 | J23: 0 | K23: 304.6 | L23: 1 | M23: 0 | N23: 0 | O23: 0 | P23: 0 | Q23: 0 | R23: 0 | X23: 0.0 | Y23: 0 | Z23: 0
A24: 15 | B24: ='Wettkampf 1'!B24 -> Eckmann Mark | C24: ='Wettkampf 1'!C24 -> Börger II | D24: 0.0 | E24: x | F24: 0 | G24: 0 | H24: 0 | I24: 0 | J24: 0 | K24: 0 | L24: 0 | M24: 0 | N24: 0 | O24: 0 | P24: 0 | Q24: 0 | R24: 0 | X24: 0.0 | Y24: 1 | Z24: 0
A25: 16 | B25: ='Wettkampf 1'!B25 -> Schulz Simon | C25: ='Wettkampf 1'!C25 -> Börger II | D25: 302.8 | E25: x | F25: 0 | G25: 0 | H25: 0 | I25: 0 | J25: 0 | K25: 0 | L25: 0 | M25: 0 | N25: 0 | O25: 0 | P25: 0 | Q25: 0 | R25: 0 | X25: 0.0 | Y25: 0 | Z25: 0
A26: 17 | B26: ='Wettkampf 1'!B26 -> Schwarte Hermann | C26: ='Wettkampf 1'!C26 -> Börger II | D26: 304.9 | F26: 304.9 | G26: 0 | H26: 0 | I26: 0 | J26: 0 | K26: 304.9 | L26: 1 | M26: 0 | N26: 0 | O26: 0 | P26: 0 | Q26: 0 | R26: 0 | X26: 0.0 | Y26: 0 | Z26: 0
A27: 18 | B27: ='Wettkampf 1'!B27 -> Jungsthoefel Markus | C27: ='Wettkampf 1'!C27 -> Börger II | D27: 307.9 | F27: 307.9 | G27: 0 | H27: 0 | I27: 0 | J27: 0 | K27: 307.9 | L27: 1 | M27: 0 | N27: 0 | O27: 0 | P27: 0 | Q27: 0 | R27: 0 | X27: 0.0 | Y27: 0 | Z27: 0
A28: 19 | B28: ='Wettkampf 1'!B28 -> Aldfeld Helmut | C28: ='Wettkampf 1'!C28 -> Esterwegen III | D28: 0.0 | E28: x | F28: 0 | G28: 0 | H28: 0 | I28: 0 | J28: 0 | K28: 0 | L28: 0 | M28: 0 | N28: 0 | O28: 0 | P28: 0 | Q28: 0 | R28: 0 | X28: 0.0 | Y28: 1 | Z28: 0
A29: 20 | B29: ='Wettkampf 1'!B29 -> Schulte Mathias | C29: ='Wettkampf 1'!C29 -> Esterwegen III | D29: 308.6 | F29: 308.6 | G29: 0 | H29: 0 | I29: 0 | J29: 0 | K29: 0 | L29: 0 | M29: 308.6 | N29: 1 | O29: 0 | P29: 0 | Q29: 0 | R29: 0 | X29: 0.0 | Y29: 0 | Z29: 0
A30: 21 | B30: ='Wettkampf 1'!B30 -> Middendorf Peter | C30: ='Wettkampf 1'!C30 -> Esterwegen III | D30: 310.9 | F30: 310.9 | G30: 0 | H30: 0 | I30: 0 | J30: 0 | K30: 0 | L30: 0 | M30: 310.9 | N30: 1 | O30: 0 | P30: 0 | Q30: 0 | R30: 0 | X30: 0.0 | Y30: 0 | Z30: 0
A31: 22 | B31: ='Wettkampf 1'!B31 -> Meibers Michael | C31: ='Wettkampf 1'!C31 -> Esterwegen III | D31: 314.6 | F31: 314.6 | G31: 0 | H31: 0 | I31: 0 | J31: 0 | K31: 0 | L31: 0 | M31: 314.6 | N31: 1 | O31: 0 | P31: 0 | Q31: 0 | R31: 0 | X31: 0.0 | Y31: 0 | Z31: 0
A32: 23 | B32: ='Wettkampf 1'!B32 -> Heidemann Jürgen | C32: ='Wettkampf 1'!C32 -> Esterwegen III | D32: 0.0 | F32: 0.0 | G32: 0 | H32: 0 | I32: 0 | J32: 0 | K32: 0 | L32: 0 | M32: 0 | N32: 1 | O32: 0 | P32: 0 | Q32: 0 | R32: 0 | X32: 0.0 | Y32: 1 | Z32: 0
A33: 24 | B33: ='Wettkampf 1'!B33 -> Lindemann Gerd | C33: ='Wettkampf 1'!C33 -> Esterwegen III | D33: 0.0 | E33: x | F33: 0 | G33: 0 | H33: 0 | I33: 0 | J33: 0 | K33: 0 | L33: 0 | M33: 0 | N33: 0 | O33: 0 | P33: 0 | Q33: 0 | R33: 0 | X33: 0.0 | Y33: 1 | Z33: 0
A34: 25 | B34: ='Wettkampf 1'!B34 -> Hanenkamp Andre | C34: ='Wettkampf 1'!C34 -> Börgerwald II | D34: 310.2 | F34: 310.2 | G34: 0 | H34: 0 | I34: 0 | J34: 0 | K34: 0 | L34: 0 | M34: 0 | N34: 0 | O34: 310.2 | P34: 1 | Q34: 0 | R34: 0 | X34: 0.0 | Y34: 0 | Z34: 0
A35: 26 | B35: ='Wettkampf 1'!B35 -> Antons Mathias | C35: ='Wettkampf 1'!C35 -> Börgerwald II | D35: 310.0 | F35: 310.0 | G35: 0 | H35: 0 | I35: 0 | J35: 0 | K35: 0 | L35: 0 | M35: 0 | N35: 0 | O35: 310 | P35: 1 | Q35: 0 | R35: 0 | X35: 0.0 | Y35: 0 | Z35: 0
A36: 27 | B36: ='Wettkampf 1'!B36 -> Schröer Friedhelm | C36: ='Wettkampf 1'!C36 -> Börgerwald II | D36: 310.5 | F36: 310.5 | G36: 0 | H36: 0 | I36: 0 | J36: 0 | K36: 0 | L36: 0 | M36: 0 | N36: 0 | O36: 310.5 | P36: 1 | Q36: 0 | R36: 0 | X36: 0.0 | Y36: 0 | Z36: 0
A37: 28 | B37: ='Wettkampf 1'!B37 -> Sebers Tobias | C37: ='Wettkampf 1'!C37 -> Börgerwald II | D37: 301.2 | E37: x | F37: 0 | G37: 0 | H37: 0 | I37: 0 | J37: 0 | K37: 0 | L37: 0 | M37: 0 | N37: 0 | O37: 0 | P37: 0 | Q37: 0 | R37: 0 | X37: 0.0 | Y37: 0 | Z37: 0
A38: 29 | B38: ='Wettkampf 1'!B38 -> Hanneken Moritz | C38: ='Wettkampf 1'!C38 -> Börgerwald II | D38: 309.2 | F38: 309.2 | G38: 0 | H38: 0 | I38: 0 | J38: 0 | K38: 0 | L38: 0 | M38: 0 | N38: 0 | O38: 309.2 | P38: 1 | Q38: 0 | R38: 0 | X38: 0.0 | Y38: 0 | Z38: 0
A39: 30 | B39: ='Wettkampf 1'!B39 -> Speeker Dietmar | C39: ='Wettkampf 1'!C39 -> Börgerwald II | D39: 0.0 | E39: x | F39: 0 | G39: 0 | H39: 0 | I39: 0 | J39: 0 | K39: 0 | L39: 0 | M39: 0 | N39: 0 | O39: 0 | P39: 0 | Q39: 0 | R39: 0 | X39: 0.0 | Y39: 1 | Z39: 0
A40: 31 | B40: ='Wettkampf 1'!B40 -> Will Achim | C40: ='Wettkampf 1'!C40 -> Spahnharrenstätte II | D40: 309.4 | F40: 309.4 | G40: 0 | H40: 0 | I40: 0 | J40: 0 | K40: 0 | L40: 0 | M40: 0 | N40: 0 | O40: 0 | P40: 0 | Q40: 309.4 | R40: 1 | X40: 0.0 | Y40: 0 | Z40: 0
A41: 32 | B41: ='Wettkampf 1'!B41 -> Meyer Dirk | C41: ='Wettkampf 1'!C41 -> Spahnharrenstätte II | D41: 314.0 | F41: 314.0 | G41: 0 | H41: 0 | I41: 0 | J41: 0 | K41: 0 | L41: 0 | M41: 0 | N41: 0 | O41: 0 | P41: 0 | Q41: 314 | R41: 1 | X41: 0.0 | Y41: 0 | Z41: 0
A42: 33 | B42: ='Wettkampf 1'!B42 -> Micksch Heiko | C42: ='Wettkampf 1'!C42 -> Spahnharrenstätte II | D42: 311.0 | F42: 311.0 | G42: 0 | H42: 0 | I42: 0 | J42: 0 | K42: 0 | L42: 0 | M42: 0 | N42: 0 | O42: 0 | P42: 0 | Q42: 311 | R42: 1 | X42: 0.0 | Y42: 0 | Z42: 0
A43: 34 | B43: ='Wettkampf 1'!B43 -> Hahnenkamp Ulrich | C43: ='Wettkampf 1'!C43 -> Spahnharrenstätte II | D43: 284.3 | E43: x | F43: 0 | G43: 0 | H43: 0 | I43: 0 | J43: 0 | K43: 0 | L43: 0 | M43: 0 | N43: 0 | O43: 0 | P43: 0 | Q43: 0 | R43: 0 | X43: 0.0 | Y43: 0 | Z43: 0
A44: 35 | B44: ='Wettkampf 1'!B44 -> Hahnenkamp Markus | C44: ='Wettkampf 1'!C44 -> Spahnharrenstätte II | D44: 304.0 | F44: 304.0 | G44: 0 | H44: 0 | I44: 0 | J44: 0 | K44: 0 | L44: 0 | M44: 0 | N44: 0 | O44: 0 | P44: 0 | Q44: 304 | R44: 1 | X44: 0.0 | Y44: 0 | Z44: 0
A45: 36 | B45: ='Wettkampf 1'!B45 -> Walker Stefan | C45: ='Wettkampf 1'!C45 -> Börgerwald II | D45: 0.0 | E45: x | F45: 0 | G45: 0 | H45: 0 | I45: 0 | J45: 0 | K45: 0 | L45: 0 | M45: 0 | N45: 0 | O45: 0 | P45: 0 | Q45: 0 | R45: 0 | X45: 0.0 | Y45: 1 | Z45: 0
G46: =LARGE(G10:G45,1)+LARGE(G10:G45,2)+LARGE(G10:G45,3) -> 929.5 | H46: =SUM(H10:H45) -> 4 | I46: =LARGE(I10:I45,1)+LARGE(I10:I45,2)+LARGE(I10:I45,3) -> 934.4 | J46: =SUM(J10:J45) -> 4 | K46: =LARGE(K10:K45,1)+LARGE(K10:K45,2)+LARGE(K10:K45,3) -> 928.2 | L46: =SUM(L10:L45) -> 4 | M46: =LARGE(M10:M45,1)+LARGE(M10:M45,2)+LARGE(M10:M45,3) -> 934.1 | N46: =SUM(N10:N45) -> 4 | O46: =LARGE(O10:O45,1)+LARGE(O10:O45,2)+LARGE(O10:O45,3) -> 930.7 | P46: =SUM(P10:P45) -> 4 | Q46: =LARGE(Q10:Q45,1)+LARGE(Q10:Q45,2)+LARGE(Q10:Q45,3) -> 934.4 | R46: =SUM(R10:S45) -> 4
C47: per Email an: sk-huemmling@gmx.de

Sheet 9
B1: Verein / Gruppe | D1: Ergebnisse | V1: Austragungsort: | W1: =Übersicht!N4 -> Börger
A2: 1 | B2: ='Wettkampf 1'!B2 -> Neuvrees I | D2: =G46 -> 931.7 | E2: =IF(H46>4,"Es sind zu viele Schützen in Wertung!"," ") ->  | V2: Wettkampftag: | W2: =Übersicht!N3 -> 16.02.
A3: 2 | B3: ='Wettkampf 1'!B3 -> Rastdorf III | D3: =I46 -> 936.0 | E3: =IF(J46>4,"Es sind zu viele Schützen in Wertung!"," ") -> 
A4: 3 | B4: ='Wettkampf 1'!B4 -> Börger II | D4: =K46 -> 928.9 | E4: =IF(L46>4,"Es sind zu viele Schützen in Wertung!"," ") ->  | X4: Ansprechpartner für Rückfragen:
A5: 4 | B5: ='Wettkampf 1'!B5 -> Esterwegen III | D5: =M46 -> 932.5 | E5: =IF(N46>4,"Es sind zu viele Schützen in Wertung!"," ") ->  | V5: Name: | W5: Zdralik
A6: 5 | B6: ='Wettkampf 1'!B6 -> Börgerwald II | D6: =O46 -> 933.5 | E6: =IF(P46>4,"Es sind zu viele Schützen in Wertung!"," ") ->  | V6: Tel: | W6: 01713283862
A7: 6 | B7: ='Wettkampf 1'!B7 -> Spahnharrenstätte II | D7: =Q46 -> 915.8 | E7: =IF(R46>4,"Es sind zu viele Schützen in Wertung!"," ") ->  | V7: Standaufsicht: | W7: eintragen
B9: Einzelergebnisse: | C9: Verein / Gruppe | D9: Ergebnisse (mindestens 0 eintragen) | E9: AW? Dann x eintippen | G9: Verein 1 | I9: Verein 2 | K9: Verein 3 | M9: Verein 4 | O9: Verein 5 | Q9: Verein 6 | U9: Proberechnung bei Streifen:
A10: 1 | B10: ='Wettkampf 1'!B10 -> Rolfes Wilhelm | C10: ='Wettkampf 1'!C10 -> Neuvrees I | D10: 306.3 | F10: =IF(E10="x","0",D10) -> 306.3 | G10: =IF(C10=$B$2,F10,0) -> 306.3 | H10: =(IF(AND($E10="",$C10=$B$2),1,0)) -> 1 | I10: =IF($C10=$B$3,F10,0) -> 0 | J10: =(IF(AND($E10="",$C10=$B$3),1,0)) -> 0 | K10: =IF($C10=$B$4,F10,0) -> 0 | L10: =(IF(AND($E10="",$C10=$B$4),1,0)) -> 0 | M10: =IF($C10=$B$5,F10,0) -> 0 | N10: =(IF(AND($E10="",$C10=$B$5),1,0)) -> 0 | O10: =IF($C10=$B$6,F10,0) -> 0 | P10: =(IF(AND($E10="",$C10=$B$6),1,0)) -> 0 | Q10: =IF($C10=$B$7,F10,0) -> 0 | R10: =(IF(AND($E10="",$C10=$B$7),1,0)) -> 0 | X10: =U10+V10+W10 -> 0.0 | Y10: =IF(X10=D10,1,0) -> 0 | Z10: =IF(X10=0,0,1) -> 0 | AA10: =IF(Y10+Z10=2,"Korrekt","") -> 
A11: 2 | B11: ='Wettkampf 1'!B11 -> Steenken Klaus | C11: ='Wettkampf 1'!C11 -> Neuvrees I | D11: 306.6 | F11: =IF(E11="x","0",D11) -> 306.6 | G11: =IF(C11=$B$2,F11,0) -> 306.6 | H11: =(IF(AND($E11="",$C11=$B$2),1,0)) -> 1 | I11: =IF($C11=$B$3,F11,0) -> 0 | J11: =(IF(AND($E11="",$C11=$B$3),1,0)) -> 0 | K11: =IF($C11=$B$4,F11,0) -> 0 | L11: =(IF(AND($E11="",$C11=$B$4),1,0)) -> 0 | M11: =IF($C11=$B$5,F11,0) -> 0 | N11: =(IF(AND($E11="",$C11=$B$5),1,0)) -> 0 | O11: =IF($C11=$B$6,F11,0) -> 0 | P11: =(IF(AND($E11="",$C11=$B$6),1,0)) -> 0 | Q11: =IF($C11=$B$7,F11,0) -> 0 | R11: =(IF(AND($E11="",$C11=$B$7),1,0)) -> 0 | X11: =U11+V11+W11 -> 0.0 | Y11: =IF(X11=D11,1,0) -> 0 | Z11: =IF(X11=0,0,1) -> 0 | AA11: =IF(Y11+Z11=2,"Korrekt","") -> 
A12: 3 | B12: ='Wettkampf 1'!B12 -> Breyer Wilfried | C12: ='Wettkampf 1'!C12 -> Neuvrees I | D12: 313.0 | F12: 313.0 | G12: 313 | H12: 1 | I12: 0 | J12: 0 | K12: 0 | L12: 0 | M12: 0 | N12: 0 | O12: 0 | P12: 0 | Q12: 0 | R12: 0 | X12: 0.0 | Y12: 0 | Z12: 0
A13: 4 | B13: ='Wettkampf 1'!B13 -> Janßen Markus | C13: ='Wettkampf 1'!C13 -> Neuvrees I | D13: 312.1 | F13: 312.1 | G13: 312.1 | H13: 1 | I13: 0 | J13: 0 | K13: 0 | L13: 0 | M13: 0 | N13: 0 | O13: 0 | P13: 0 | Q13: 0 | R13: 0 | X13: 0.0 | Y13: 0 | Z13: 0
A14: 5 | B14: ='Wettkampf 1'!B14 -> Thyen Werner | C14: ='Wettkampf 1'!C14 -> Neuvrees I | D14: 301.5 | E14: x | F14: 0 | G14: 0 | H14: 0 | I14: 0 | J14: 0 | K14: 0 | L14: 0 | M14: 0 | N14: 0 | O14: 0 | P14: 0 | Q14: 0 | R14: 0 | X14: 0.0 | Y14: 0 | Z14: 0
A15: 6 | B15: ='Wettkampf 1'!B15 -> Peters Carsten | C15: ='Wettkampf 1'!C15 -> Neuvrees I | E15: x | F15: 0 | G15: 0 | H15: 0 | I15: 0 | J15: 0 | K15: 0 | L15: 0 | M15: 0 | N15: 0 | O15: 0 | P15: 0 | Q15: 0 | R15: 0 | X15: 0.0 | Y15: 1 | Z15: 0
A16: 7 | B16: ='Wettkampf 1'!B16 -> Wotte Robert | C16: ='Wettkampf 1'!C16 -> Rastdorf III | D16: 314.4 | F16: 314.4 | G16: 0 | H16: 0 | I16: 314.4 | J16: 1 | K16: 0 | L16: 0 | M16: 0 | N16: 0 | O16: 0 | P16: 0 | Q16: 0 | R16: 0 | X16: 0.0 | Y16: 0 | Z16: 0
A17: 8 | B17: ='Wettkampf 1'!B17 -> Müller Helmut | C17: ='Wettkampf 1'!C17 -> Rastdorf III | D17: 312.4 | F17: 312.4 | G17: 0 | H17: 0 | I17: 312.4 | J17: 1 | K17: 0 | L17: 0 | M17: 0 | N17: 0 | O17: 0 | P17: 0 | Q17: 0 | R17: 0 | X17: 0.0 | Y17: 0 | Z17: 0
A18: 9 | B18: ='Wettkampf 1'!B18 -> Bookjans Günther | C18: ='Wettkampf 1'!C18 -> Rastdorf III | D18: 309.2 | F18: 309.2 | G18: 0 | H18: 0 | I18: 309.2 | J18: 1 | K18: 0 | L18: 0 | M18: 0 | N18: 0 | O18: 0 | P18: 0 | Q18: 0 | R18: 0 | X18: 0.0 | Y18: 0 | Z18: 0
A19: 10 | B19: ='Wettkampf 1'!B19 -> Meer Michael | C19: ='Wettkampf 1'!C19 -> Rastdorf III | D19: 305.6 | F19: 305.6 | G19: 0 | H19: 0 | I19: 305.6 | J19: 1 | K19: 0 | L19: 0 | M19: 0 | N19: 0 | O19: 0 | P19: 0 | Q19: 0 | R19: 0 | X19: 0.0 | Y19: 0 | Z19: 0
A20: 11 | B20: ='Wettkampf 1'!B20 -> Lindemann Rita | C20: ='Wettkampf 1'!C20 -> Rastdorf III | E20: x | F20: 0 | G20: 0 | H20: 0 | I20: 0 | J20: 0 | K20: 0 | L20: 0 | M20: 0 | N20: 0 | O20: 0 | P20: 0 | Q20: 0 | R20: 0 | X20: 0.0 | Y20: 1 | Z20: 0
A21: 12 | B21: ='Wettkampf 1'!B21 -> Olliges Kai | C21: ='Wettkampf 1'!C21 -> Börgerwald II | E21: x | F21: 0 | G21: 0 | H21: 0 | I21: 0 | J21: 0 | K21: 0 | L21: 0 | M21: 0 | N21: 0 | O21: 0 | P21: 0 | Q21: 0 | R21: 0 | X21: 0.0 | Y21: 1 | Z21: 0
A22: 13 | B22: ='Wettkampf 1'!B22 -> Zdralik Ingo | C22: ='Wettkampf 1'!C22 -> Börger II | D22: 312.8 | F22: 312.8 | G22: 0 | H22: 0 | I22: 0 | J22: 0 | K22: 312.8 | L22: 1 | M22: 0 | N22: 0 | O22: 0 | P22: 0 | Q22: 0 | R22: 0 | X22: 0.0 | Y22: 0 | Z22: 0
A23: 14 | B23: ='Wettkampf 1'!B23 -> Goldenstein Uwe | C23: ='Wettkampf 1'!C23 -> Börger II | D23: 301.7 | F23: 301.7 | G23: 0 | H23: 0 | I23: 0 | J23: 0 | K23: 301.7 | L23: 1 | M23: 0 | N23: 0 | O23: 0 | P23: 0 | Q23: 0 | R23: 0 | X23: 0.0 | Y23: 0 | Z23: 0
A24: 15 | B24: ='Wettkampf 1'!B24 -> Eckmann Mark | C24: ='Wettkampf 1'!C24 -> Börger II | D24: 304.0 | E24: x | F24: 0 | G24: 0 | H24: 0 | I24: 0 | J24: 0 | K24: 0 | L24: 0 | M24: 0 | N24: 0 | O24: 0 | P24: 0 | Q24: 0 | R24: 0 | X24: 0.0 | Y24: 0 | Z24: 0
A25: 16 | B25: ='Wettkampf 1'!B25 -> Schulz Simon | C25: ='Wettkampf 1'!C25 -> Börger II | D25: 296.8 | E25: x | F25: 0 | G25: 0 | H25: 0 | I25: 0 | J25: 0 | K25: 0 | L25: 0 | M25: 0 | N25: 0 | O25: 0 | P25: 0 | Q25: 0 | R25: 0 | X25: 0.0 | Y25: 0 | Z25: 0
A26: 17 | B26: ='Wettkampf 1'!B26 -> Schwarte Hermann | C26: ='Wettkampf 1'!C26 -> Börger II | D26: 307.5 | F26: 307.5 | G26: 0 | H26: 0 | I26: 0 | J26: 0 | K26: 307.5 | L26: 1 | M26: 0 | N26: 0 | O26: 0 | P26: 0 | Q26: 0 | R26: 0 | X26: 0.0 | Y26: 0 | Z26: 0
A27: 18 | B27: ='Wettkampf 1'!B27 -> Jungsthoefel Markus | C27: ='Wettkampf 1'!C27 -> Börger II | D27: 308.6 | F27: 308.6 | G27: 0 | H27: 0 | I27: 0 | J27: 0 | K27: 308.6 | L27: 1 | M27: 0 | N27: 0 | O27: 0 | P27: 0 | Q27: 0 | R27: 0 | X27: 0.0 | Y27: 0 | Z27: 0
A28: 19 | B28: ='Wettkampf 1'!B28 -> Aldfeld Helmut | C28: ='Wettkampf 1'!C28 -> Esterwegen III | E28: x | F28: 0 | G28: 0 | H28: 0 | I28: 0 | J28: 0 | K28: 0 | L28: 0 | M28: 0 | N28: 0 | O28: 0 | P28: 0 | Q28: 0 | R28: 0 | X28: 0.0 | Y28: 1 | Z28: 0
A29: 20 | B29: ='Wettkampf 1'!B29 -> Schulte Mathias | C29: ='Wettkampf 1'!C29 -> Esterwegen III | D29: 308.3 | F29: 308.3 | G29: 0 | H29: 0 | I29: 0 | J29: 0 | K29: 0 | L29: 0 | M29: 308.3 | N29: 1 | O29: 0 | P29: 0 | Q29: 0 | R29: 0 | X29: 0.0 | Y29: 0 | Z29: 0
A30: 21 | B30: ='Wettkampf 1'!B30 -> Middendorf Peter | C30: ='Wettkampf 1'!C30 -> Esterwegen III | D30: 306.6 | F30: 306.6 | G30: 0 | H30: 0 | I30: 0 | J30: 0 | K30: 0 | L30: 0 | M30: 306.6 | N30: 1 | O30: 0 | P30: 0 | Q30: 0 | R30: 0 | X30: 0.0 | Y30: 0 | Z30: 0
A31: 22 | B31: ='Wettkampf 1'!B31 -> Meibers Michael | C31: ='Wettkampf 1'!C31 -> Esterwegen III | D31: 317.6 | F31: 317.6 | G31: 0 | H31: 0 | I31: 0 | J31: 0 | K31: 0 | L31: 0 | M31: 317.6 | N31: 1 | O31: 0 | P31: 0 | Q31: 0 | R31: 0 | X31: 0.0 | Y31: 0 | Z31: 0
A32: 23 | B32: ='Wettkampf 1'!B32 -> Heidemann Jürgen | C32: ='Wettkampf 1'!C32 -> Esterwegen III | E32: x | F32: 0 | G32: 0 | H32: 0 | I32: 0 | J32: 0 | K32: 0 | L32: 0 | M32: 0 | N32: 0 | O32: 0 | P32: 0 | Q32: 0 | R32: 0 | X32: 0.0 | Y32: 1 | Z32: 0
A33: 24 | B33: ='Wettkampf 1'!B33 -> Lindemann Gerd | C33: ='Wettkampf 1'!C33 -> Esterwegen III | D33: 303.3 | F33: 303.3 | G33: 0 | H33: 0 | I33: 0 | J33: 0 | K33: 0 | L33: 0 | M33: 303.3 | N33: 1 | O33: 0 | P33: 0 | Q33: 0 | R33: 0 | X33: 0.0 | Y33: 0 | Z33: 0
A34: 25 | B34: ='Wettkampf 1'!B34 -> Hanenkamp Andre | C34: ='Wettkampf 1'!C34 -> Börgerwald II | D34: 311.9 | F34: 311.9 | G34: 0 | H34: 0 | I34: 0 | J34: 0 | K34: 0 | L34: 0 | M34: 0 | N34: 0 | O34: 311.9 | P34: 1 | Q34: 0 | R34: 0 | X34: 0.0 | Y34: 0 | Z34: 0
A35: 26 | B35: ='Wettkampf 1'!B35 -> Antons Mathias | C35: ='Wettkampf 1'!C35 -> Börgerwald II | D35: 309.6 | F35: 309.6 | G35: 0 | H35: 0 | I35: 0 | J35: 0 | K35: 0 | L35: 0 | M35: 0 | N35: 0 | O35: 309.6 | P35: 1 | Q35: 0 | R35: 0 | X35: 0.0 | Y35: 0 | Z35: 0
A36: 27 | B36: ='Wettkampf 1'!B36 -> Schröer Friedhelm | C36: ='Wettkampf 1'!C36 -> Börgerwald II | D36: 312.0 | F36: 312.0 | G36: 0 | H36: 0 | I36: 0 | J36: 0 | K36: 0 | L36: 0 | M36: 0 | N36: 0 | O36: 312 | P36: 1 | Q36: 0 | R36: 0 | X36: 0.0 | Y36: 0 | Z36: 0
A37: 28 | B37: ='Wettkampf 1'!B37 -> Sebers Tobias | C37: ='Wettkampf 1'!C37 -> Börgerwald II | D37: 302.5 | E37: x | F37: 0 | G37: 0 | H37: 0 | I37: 0 | J37: 0 | K37: 0 | L37: 0 | M37: 0 | N37: 0 | O37: 0 | P37: 0 | Q37: 0 | R37: 0 | X37: 0.0 | Y37: 0 | Z37: 0
A38: 29 | B38: ='Wettkampf 1'!B38 -> Hanneken Moritz | C38: ='Wettkampf 1'!C38 -> Börgerwald II | D38: 307.3 | F38: 307.3 | G38: 0 | H38: 0 | I38: 0 | J38: 0 | K38: 0 | L38: 0 | M38: 0 | N38: 0 | O38: 307.3 | P38: 1 | Q38: 0 | R38: 0 | X38: 0.0 | Y38: 0 | Z38: 0
A39: 30 | B39: ='Wettkampf 1'!B39 -> Speeker Dietmar | C39: ='Wettkampf 1'!C39 -> Börgerwald II | E39: x | F39: 0 | G39: 0 | H39: 0 | I39: 0 | J39: 0 | K39: 0 | L39: 0 | M39: 0 | N39: 0 | O39: 0 | P39: 0 | Q39: 0 | R39: 0 | X39: 0.0 | Y39: 1 | Z39: 0
A40: 31 | B40: ='Wettkampf 1'!B40 -> Will Achim | C40: ='Wettkampf 1'!C40 -> Spahnharrenstätte II | D40: 310.3 | F40: 310.3 | G40: 0 | H40: 0 | I40: 0 | J40: 0 | K40: 0 | L40: 0 | M40: 0 | N40: 0 | O40: 0 | P40: 0 | Q40: 310.3 | R40: 1 | X40: 0.0 | Y40: 0 | Z40: 0
A41: 32 | B41: ='Wettkampf 1'!B41 -> Meyer Dirk | C41: ='Wettkampf 1'!C41 -> Spahnharrenstätte II | E41: x | F41: 0 | G41: 0 | H41: 0 | I41: 0 | J41: 0 | K41: 0 | L41: 0 | M41: 0 | N41: 0 | O41: 0 | P41: 0 | Q41: 0 | R41: 0 | X41: 0.0 | Y41: 1 | Z41: 0
A42: 33 | B42: ='Wettkampf 1'!B42 -> Micksch Heiko | C42: ='Wettkampf 1'!C42 -> Spahnharrenstätte II | D42: 307.3 | F42: 307.3 | G42: 0 | H42: 0 | I42: 0 | J42: 0 | K42: 0 | L42: 0 | M42: 0 | N42: 0 | O42: 0 | P42: 0 | Q42: 307.3 | R42: 1 | X42: 0.0 | Y42: 0 | Z42: 0
A43: 34 | B43: ='Wettkampf 1'!B43 -> Hahnenkamp Ulrich | C43: ='Wettkampf 1'!C43 -> Spahnharrenstätte II | D43: 274.1 | F43: 274.1 | G43: 0 | H43: 0 | I43: 0 | J43: 0 | K43: 0 | L43: 0 | M43: 0 | N43: 0 | O43: 0 | P43: 0 | Q43: 274.1 | R43: 1 | X43: 0.0 | Y43: 0 | Z43: 0
A44: 35 | B44: ='Wettkampf 1'!B44 -> Hahnenkamp Markus | C44: ='Wettkampf 1'!C44 -> Spahnharrenstätte II | D44: 298.2 | F44: 298.2 | G44: 0 | H44: 0 | I44: 0 | J44: 0 | K44: 0 | L44: 0 | M44: 0 | N44: 0 | O44: 0 | P44: 0 | Q44: 298.2 | R44: 1 | X44: 0.0 | Y44: 0 | Z44: 0
A45: 36 | B45: ='Wettkampf 1'!B45 -> Walker Stefan | C45: ='Wettkampf 1'!C45 -> Börgerwald II | E45: x | F45: 0 | G45: 0 | H45: 0 | I45: 0 | J45: 0 | K45: 0 | L45: 0 | M45: 0 | N45: 0 | O45: 0 | P45: 0 | Q45: 0 | R45: 0 | X45: 0.0 | Y45: 1 | Z45: 0
G46: =LARGE(G10:G45,1)+LARGE(G10:G45,2)+LARGE(G10:G45,3) -> 931.7 | H46: =SUM(H10:H45) -> 4 | I46: =LARGE(I10:I45,1)+LARGE(I10:I45,2)+LARGE(I10:I45,3) -> 936 | J46: =SUM(J10:J45) -> 4 | K46: =LARGE(K10:K45,1)+LARGE(K10:K45,2)+LARGE(K10:K45,3) -> 928.9 | L46: =SUM(L10:L45) -> 4 | M46: =LARGE(M10:M45,1)+LARGE(M10:M45,2)+LARGE(M10:M45,3) -> 932.5 | N46: =SUM(N10:N45) -> 4 | O46: =LARGE(O10:O45,1)+LARGE(O10:O45,2)+LARGE(O10:O45,3) -> 933.5 | P46: =SUM(P10:P45) -> 4 | Q46: =LARGE(Q10:Q45,1)+LARGE(Q10:Q45,2)+LARGE(Q10:Q45,3) -> 915.8 | R46: =SUM(R10:S45) -> 4
C47: per Email an: sk-huemmling@gmx.de

Sheet 10
B1: Verein / Gruppe | D1: Ergebnisse | V1: Austragungsort: | W1: =Übersicht!O4 -> Neuvrees
A2: 1 | B2: ='Wettkampf 1'!B2 -> Neuvrees I | D2: =G46 -> 923.2 | E2: =IF(H46>4,"Es sind zu viele Schützen in Wertung!"," ") ->  | V2: Wettkampftag: | W2: =Übersicht!O3 -> 02.03.
A3: 2 | B3: ='Wettkampf 1'!B3 -> Rastdorf III | D3: =I46 -> 923.3 | E3: =IF(J46>4,"Es sind zu viele Schützen in Wertung!"," ") -> 
A4: 3 | B4: ='Wettkampf 1'!B4 -> Börger II | D4: =K46 -> 916.6 | E4: =IF(L46>4,"Es sind zu viele Schützen in Wertung!"," ") ->  | X4: Ansprechpartner für Rückfragen:
A5: 4 | B5: ='Wettkampf 1'!B5 -> Esterwegen III | D5: =M46 -> 938.9 | E5: =IF(N46>4,"Es sind zu viele Schützen in Wertung!"," ") ->  | V5: Name: | W5: Markus Janßen
A6: 5 | B6: ='Wettkampf 1'!B6 -> Börgerwald II | D6: =O46 -> 931.6 | E6: =IF(P46>4,"Es sind zu viele Schützen in Wertung!"," ") ->  | V6: Tel:
A7: 6 | B7: ='Wettkampf 1'!B7 -> Spahnharrenstätte II | D7: =Q46 -> 924.5 | E7: =IF(R46>4,"Es sind zu viele Schützen in Wertung!"," ") ->  | V7: Standaufsicht: | W7: Markus Janßen
B9: Einzelergebnisse: | C9: Verein / Gruppe | D9: Ergebnisse (mindestens 0 eintragen) | E9: AW? Dann x eintippen | G9: Verein 1 | I9: Verein 2 | K9: Verein 3 | M9: Verein 4 | O9: Verein 5 | Q9: Verein 6 | U9: Proberechnung bei Streifen:
A10: 1 | B10: ='Wettkampf 1'!B10 -> Rolfes Wilhelm | C10: ='Wettkampf 1'!C10 -> Neuvrees I | D10: 303.3 | E10: x | F10: =IF(E10="x","0",D10) -> 0 | G10: =IF(C10=$B$2,F10,0) -> 0 | H10: =(IF(AND($E10="",$C10=$B$2),1,0)) -> 0 | I10: =IF($C10=$B$3,F10,0) -> 0 | J10: =(IF(AND($E10="",$C10=$B$3),1,0)) -> 0 | K10: =IF($C10=$B$4,F10,0) -> 0 | L10: =(IF(AND($E10="",$C10=$B$4),1,0)) -> 0 | M10: =IF($C10=$B$5,F10,0) -> 0 | N10: =(IF(AND($E10="",$C10=$B$5),1,0)) -> 0 | O10: =IF($C10=$B$6,F10,0) -> 0 | P10: =(IF(AND($E10="",$C10=$B$6),1,0)) -> 0 | Q10: =IF($C10=$B$7,F10,0) -> 0 | R10: =(IF(AND($E10="",$C10=$B$7),1,0)) -> 0 | U10: 99.4 | V10: 102.5 | W10: 101.4 | X10: =U10+V10+W10 -> 303.3 | Y10: =IF(X10=D10,1,0) -> 1 | Z10: =IF(X10=0,0,1) -> 1 | AA10: =IF(Y10+Z10=2,"Korrekt","") -> Korrekt
A11: 2 | B11: ='Wettkampf 1'!B11 -> Steenken Klaus | C11: ='Wettkampf 1'!C11 -> Neuvrees I | D11: 305.0 | F11: =IF(E11="x","0",D11) -> 305.0 | G11: =IF(C11=$B$2,F11,0) -> 305 | H11: =(IF(AND($E11="",$C11=$B$2),1,0)) -> 1 | I11: =IF($C11=$B$3,F11,0) -> 0 | J11: =(IF(AND($E11="",$C11=$B$3),1,0)) -> 0 | K11: =IF($C11=$B$4,F11,0) -> 0 | L11: =(IF(AND($E11="",$C11=$B$4),1,0)) -> 0 | M11: =IF($C11=$B$5,F11,0) -> 0 | N11: =(IF(AND($E11="",$C11=$B$5),1,0)) -> 0 | O11: =IF($C11=$B$6,F11,0) -> 0 | P11: =(IF(AND($E11="",$C11=$B$6),1,0)) -> 0 | Q11: =IF($C11=$B$7,F11,0) -> 0 | R11: =(IF(AND($E11="",$C11=$B$7),1,0)) -> 0 | U11: 101.1 | V11: 101.4 | W11: 102.5 | X11: =U11+V11+W11 -> 305.0 | Y11: =IF(X11=D11,1,0) -> 1 | Z11: =IF(X11=0,0,1) -> 1 | AA11: =IF(Y11+Z11=2,"Korrekt","") -> Korrekt
A12: 3 | B12: ='Wettkampf 1'!B12 -> Breyer Wilfried | C12: ='Wettkampf 1'!C12 -> Neuvrees I | D12: 310.0 | F12: 310.0 | G12: 310 | H12: 1 | I12: 0 | J12: 0 | K12: 0 | L12: 0 | M12: 0 | N12: 0 | O12: 0 | P12: 0 | Q12: 0 | R12: 0 | U12: 103.2 | V12: 102.6 | W12: 104.2 | X12: 310.0 | Y12: 1 | Z12: 1 | AA12: Korrekt
A13: 4 | B13: ='Wettkampf 1'!B13 -> Janßen Markus | C13: ='Wettkampf 1'!C13 -> Neuvrees I | D13: 305.4 | F13: 305.4 | G13: 305.4 | H13: 1 | I13: 0 | J13: 0 | K13: 0 | L13: 0 | M13: 0 | N13: 0 | O13: 0 | P13: 0 | Q13: 0 | R13: 0 | U13: 101.7 | V13: 102.2 | W13: 101.5 | X13: 305.4 | Y13: 1 | Z13: 1 | AA13: Korrekt
A14: 5 | B14: ='Wettkampf 1'!B14 -> Thyen Werner | C14: ='Wettkampf 1'!C14 -> Neuvrees I | D14: 307.8 | F14: 307.8 | G14: 307.8 | H14: 1 | I14: 0 | J14: 0 | K14: 0 | L14: 0 | M14: 0 | N14: 0 | O14: 0 | P14: 0 | Q14: 0 | R14: 0 | U14: 103.7 | V14: 101.0 | W14: 103.1 | X14: 307.8 | Y14: 1 | Z14: 1 | AA14: Korrekt
A15: 6 | B15: ='Wettkampf 1'!B15 -> Peters Carsten | C15: ='Wettkampf 1'!C15 -> Neuvrees I | E15: x | F15: 0 | G15: 0 | H15: 0 | I15: 0 | J15: 0 | K15: 0 | L15: 0 | M15: 0 | N15: 0 | O15: 0 | P15: 0 | Q15: 0 | R15: 0 | X15: 0.0 | Y15: 1 | Z15: 0
A16: 7 | B16: ='Wettkampf 1'!B16 -> Wotte Robert | C16: ='Wettkampf 1'!C16 -> Rastdorf III | D16: 308.4 | F16: 308.4 | G16: 0 | H16: 0 | I16: 308.4 | J16: 1 | K16: 0 | L16: 0 | M16: 0 | N16: 0 | O16: 0 | P16: 0 | Q16: 0 | R16: 0 | U16: 102.2 | V16: 103.7 | W16: 102.5 | X16: 308.4 | Y16: 1 | Z16: 1 | AA16: Korrekt
A17: 8 | B17: ='Wettkampf 1'!B17 -> Müller Helmut | C17: ='Wettkampf 1'!C17 -> Rastdorf III | D17: 302.8 | F17: 302.8 | G17: 0 | H17: 0 | I17: 302.8 | J17: 1 | K17: 0 | L17: 0 | M17: 0 | N17: 0 | O17: 0 | P17: 0 | Q17: 0 | R17: 0 | U17: 101.8 | V17: 99.8 | W17: 101.2 | X17: 302.8 | Y17: 1 | Z17: 1 | AA17: Korrekt
A18: 9 | B18: ='Wettkampf 1'!B18 -> Bookjans Günther | C18: ='Wettkampf 1'!C18 -> Rastdorf III | D18: 311.7 | F18: 311.7 | G18: 0 | H18: 0 | I18: 311.7 | J18: 1 | K18: 0 | L18: 0 | M18: 0 | N18: 0 | O18: 0 | P18: 0 | Q18: 0 | R18: 0 | U18: 104.9 | V18: 103.8 | W18: 103.0 | X18: 311.7 | Y18: 1 | Z18: 1 | AA18: Korrekt
A19: 10 | B19: ='Wettkampf 1'!B19 -> Meer Michael | C19: ='Wettkampf 1'!C19 -> Rastdorf III | D19: 303.2 | F19: 303.2 | G19: 0 | H19: 0 | I19: 303.2 | J19: 1 | K19: 0 | L19: 0 | M19: 0 | N19: 0 | O19: 0 | P19: 0 | Q19: 0 | R19: 0 | U19: 100.8 | V19: 101.6 | W19: 100.8 | X19: 303.2 | Y19: 1 | Z19: 1 | AA19: Korrekt
A20: 11 | B20: ='Wettkampf 1'!B20 -> Lindemann Rita | C20: ='Wettkampf 1'!C20 -> Rastdorf III | D20: 316.6 | E20: x | F20: 0 | G20: 0 | H20: 0 | I20: 0 | J20: 0 | K20: 0 | L20: 0 | M20: 0 | N20: 0 | O20: 0 | P20: 0 | Q20: 0 | R20: 0 | X20: 0.0 | Y20: 0 | Z20: 0
A21: 12 | B21: ='Wettkampf 1'!B21 -> Olliges Kai | C21: ='Wettkampf 1'!C21 -> Börgerwald II | E21: x | F21: 0 | G21: 0 | H21: 0 | I21: 0 | J21: 0 | K21: 0 | L21: 0 | M21: 0 | N21: 0 | O21: 0 | P21: 0 | Q21: 0 | R21: 0 | X21: 0.0 | Y21: 1 | Z21: 0
A22: 13 | B22: ='Wettkampf 1'!B22 -> Zdralik Ingo | C22: ='Wettkampf 1'!C22 -> Börger II | D22: 314.5 | F22: 314.5 | G22: 0 | H22: 0 | I22: 0 | J22: 0 | K22: 314.5 | L22: 1 | M22: 0 | N22: 0 | O22: 0 | P22: 0 | Q22: 0 | R22: 0 | U22: 104.0 | V22: 104.9 | W22: 105.6 | X22: 314.5 | Y22: 1 | Z22: 1 | AA22: Korrekt
A23: 14 | B23: ='Wettkampf 1'!B23 -> Goldenstein Uwe | C23: ='Wettkampf 1'!C23 -> Börger II | D23: 302.3 | F23: 302.3 | G23: 0 | H23: 0 | I23: 0 | J23: 0 | K23: 302.3 | L23: 1 | M23: 0 | N23: 0 | O23: 0 | P23: 0 | Q23: 0 | R23: 0 | U23: 102.2 | V23: 98.6 | W23: 101.5 | X23: 302.3 | Y23: 1 | Z23: 1 | AA23: Korrekt
A24: 15 | B24: ='Wettkampf 1'!B24 -> Eckmann Mark | C24: ='Wettkampf 1'!C24 -> Börger II | D24: 299.8 | F24: 299.8 | G24: 0 | H24: 0 | I24: 0 | J24: 0 | K24: 299.8 | L24: 1 | M24: 0 | N24: 0 | O24: 0 | P24: 0 | Q24: 0 | R24: 0 | U24: 101.5 | V24: 98.2 | W24: 100.1 | X24: 299.8 | Y24: 1 | Z24: 1 | AA24: Korrekt
A25: 16 | B25: ='Wettkampf 1'!B25 -> Schulz Simon | C25: ='Wettkampf 1'!C25 -> Börger II | E25: x | F25: 0 | G25: 0 | H25: 0 | I25: 0 | J25: 0 | K25: 0 | L25: 0 | M25: 0 | N25: 0 | O25: 0 | P25: 0 | Q25: 0 | R25: 0 | X25: 0.0 | Y25: 1 | Z25: 0
A26: 17 | B26: ='Wettkampf 1'!B26 -> Schwarte Hermann | C26: ='Wettkampf 1'!C26 -> Börger II | E26: x | F26: 0 | G26: 0 | H26: 0 | I26: 0 | J26: 0 | K26: 0 | L26: 0 | M26: 0 | N26: 0 | O26: 0 | P26: 0 | Q26: 0 | R26: 0 | X26: 0.0 | Y26: 1 | Z26: 0
A27: 18 | B27: ='Wettkampf 1'!B27 -> Jungsthoefel Markus | C27: ='Wettkampf 1'!C27 -> Börger II | D27: 287.8 | F27: 287.8 | G27: 0 | H27: 0 | I27: 0 | J27: 0 | K27: 287.8 | L27: 1 | M27: 0 | N27: 0 | O27: 0 | P27: 0 | Q27: 0 | R27: 0 | U27: 100.6 | V27: 99.0 | W27: 88.2 | X27: 287.8 | Y27: 1 | Z27: 1 | AA27: Korrekt
A28: 19 | B28: ='Wettkampf 1'!B28 -> Aldfeld Helmut | C28: ='Wettkampf 1'!C28 -> Esterwegen III | E28: x | F28: 0 | G28: 0 | H28: 0 | I28: 0 | J28: 0 | K28: 0 | L28: 0 | M28: 0 | N28: 0 | O28: 0 | P28: 0 | Q28: 0 | R28: 0 | X28: 0.0 | Y28: 1 | Z28: 0
A29: 20 | B29: ='Wettkampf 1'!B29 -> Schulte Mathias | C29: ='Wettkampf 1'!C29 -> Esterwegen III | D29: 307.8 | F29: 307.8 | G29: 0 | H29: 0 | I29: 0 | J29: 0 | K29: 0 | L29: 0 | M29: 307.8 | N29: 1 | O29: 0 | P29: 0 | Q29: 0 | R29: 0 | U29: 102.5 | V29: 101.8 | W29: 103.5 | X29: 307.8 | Y29: 1 | Z29: 1 | AA29: Korrekt
A30: 21 | B30: ='Wettkampf 1'!B30 -> Middendorf Peter | C30: ='Wettkampf 1'!C30 -> Esterwegen III | D30: 315.5 | F30: 315.5 | G30: 0 | H30: 0 | I30: 0 | J30: 0 | K30: 0 | L30: 0 | M30: 315.5 | N30: 1 | O30: 0 | P30: 0 | Q30: 0 | R30: 0 | U30: 106.0 | V30: 105.3 | W30: 104.2 | X30: 315.5 | Y30: 1 | Z30: 1 | AA30: Korrekt
A31: 22 | B31: ='Wettkampf 1'!B31 -> Meibers Michael | C31: ='Wettkampf 1'!C31 -> Esterwegen III | D31: 315.6 | F31: 315.6 | G31: 0 | H31: 0 | I31: 0 | J31: 0 | K31: 0 | L31: 0 | M31: 315.6 | N31: 1 | O31: 0 | P31: 0 | Q31: 0 | R31: 0 | U31: 105.5 | V31: 104.9 | W31: 105.2 | X31: 315.6 | Y31: 1 | Z31: 1 | AA31: Korrekt
A32: 23 | B32: ='Wettkampf 1'!B32 -> Heidemann Jürgen | C32: ='Wettkampf 1'!C32 -> Esterwegen III | E32: x | F32: 0 | G32: 0 | H32: 0 | I32: 0 | J32: 0 | K32: 0 | L32: 0 | M32: 0 | N32: 0 | O32: 0 | P32: 0 | Q32: 0 | R32: 0 | X32: 0.0 | Y32: 1 | Z32: 0
A33: 24 | B33: ='Wettkampf 1'!B33 -> Lindemann Gerd | C33: ='Wettkampf 1'!C33 -> Esterwegen III | D33: 301.3 | F33: 301.3 | G33: 0 | H33: 0 | I33: 0 | J33: 0 | K33: 0 | L33: 0 | M33: 301.3 | N33: 1 | O33: 0 | P33: 0 | Q33: 0 | R33: 0 | U33: 100.7 | V33: 97.7 | W33: 102.9 | X33: 301.3 | Y33: 1 | Z33: 1 | AA33: Korrekt
A34: 25 | B34: ='Wettkampf 1'!B34 -> Hanenkamp Andre | C34: ='Wettkampf 1'!C34 -> Börgerwald II | D34: 312.2 | F34: 312.2 | G34: 0 | H34: 0 | I34: 0 | J34: 0 | K34: 0 | L34: 0 | M34: 0 | N34: 0 | O34: 312.2 | P34: 1 | Q34: 0 | R34: 0 | U34: 104.2 | V34: 104.5 | W34: 103.5 | X34: 312.2 | Y34: 1 | Z34: 1 | AA34: Korrekt
A35: 26 | B35: ='Wettkampf 1'!B35 -> Antons Mathias | C35: ='Wettkampf 1'!C35 -> Börgerwald II | D35: 306.2 | F35: 306.2 | G35: 0 | H35: 0 | I35: 0 | J35: 0 | K35: 0 | L35: 0 | M35: 0 | N35: 0 | O35: 306.2 | P35: 1 | Q35: 0 | R35: 0 | U35: 102.3 | V35: 102.0 | W35: 101.9 | X35: 306.2 | Y35: 1 | Z35: 1 | AA35: Korrekt
A36: 27 | B36: ='Wettkampf 1'!B36 -> Schröer Friedhelm | C36: ='Wettkampf 1'!C36 -> Börgerwald II | D36: 311.3 | F36: 311.3 | G36: 0 | H36: 0 | I36: 0 | J36: 0 | K36: 0 | L36: 0 | M36: 0 | N36: 0 | O36: 311.3 | P36: 1 | Q36: 0 | R36: 0 | U36: 103.4 | V36: 104.5 | W36: 103.4 | X36: 311.3 | Y36: 1 | Z36: 1 | AA36: Korrekt
A37: 28 | B37: ='Wettkampf 1'!B37 -> Sebers Tobias | C37: ='Wettkampf 1'!C37 -> Börgerwald II | D37: 298.7 | E37: x | F37: 0 | G37: 0 | H37: 0 | I37: 0 | J37: 0 | K37: 0 | L37: 0 | M37: 0 | N37: 0 | O37: 0 | P37: 0 | Q37: 0 | R37: 0 | U37: 98.7 | V37: 100.1 | W37: 99.9 | X37: 298.7 | Y37: 1 | Z37: 1 | AA37: Korrekt
A38: 29 | B38: ='Wettkampf 1'!B38 -> Hanneken Moritz | C38: ='Wettkampf 1'!C38 -> Börgerwald II | D38: 308.1 | F38: 308.1 | G38: 0 | H38: 0 | I38: 0 | J38: 0 | K38: 0 | L38: 0 | M38: 0 | N38: 0 | O38: 308.1 | P38: 1 | Q38: 0 | R38: 0 | U38: 103.5 | V38: 101.3 | W38: 103.3 | X38: 308.1 | Y38: 1 | Z38: 1 | AA38: Korrekt
A39: 30 | B39: ='Wettkampf 1'!B39 -> Speeker Dietmar | C39: ='Wettkampf 1'!C39 -> Börgerwald II | E39: x | F39: 0 | G39: 0 | H39: 0 | I39: 0 | J39: 0 | K39: 0 | L39: 0 | M39: 0 | N39: 0 | O39: 0 | P39: 0 | Q39: 0 | R39: 0 | X39: 0.0 | Y39: 1 | Z39: 0
A40: 31 | B40: ='Wettkampf 1'!B40 -> Will Achim | C40: ='Wettkampf 1'!C40 -> Spahnharrenstätte II | D40: 305.9 | F40: 305.9 | G40: 0 | H40: 0 | I40: 0 | J40: 0 | K40: 0 | L40: 0 | M40: 0 | N40: 0 | O40: 0 | P40: 0 | Q40: 305.9 | R40: 1 | U40: 103.6 | V40: 101.9 | W40: 100.4 | X40: 305.9 | Y40: 1 | Z40: 1 | AA40: Korrekt
A41: 32 | B41: ='Wettkampf 1'!B41 -> Meyer Dirk | C41: ='Wettkampf 1'!C41 -> Spahnharrenstätte II | D41: 309.5 | F41: 309.5 | G41: 0 | H41: 0 | I41: 0 | J41: 0 | K41: 0 | L41: 0 | M41: 0 | N41: 0 | O41: 0 | P41: 0 | Q41: 309.5 | R41: 1 | U41: 105.2 | V41: 102.0 | W41: 102.3 | X41: 309.5 | Y41: 1 | Z41: 1 | AA41: Korrekt
A42: 33 | B42: ='Wettkampf 1'!B42 -> Micksch Heiko | C42: ='Wettkampf 1'!C42 -> Spahnharrenstätte II | D42: 309.1 | F42: 309.1 | G42: 0 | H42: 0 | I42: 0 | J42: 0 | K42: 0 | L42: 0 | M42: 0 | N42: 0 | O42: 0 | P42: 0 | Q42: 309.1 | R42: 1 | U42: 103.0 | V42: 102.9 | W42: 103.2 | X42: 309.1 | Y42: 1 | Z42: 1 | AA42: Korrekt
A43: 34 | B43: ='Wettkampf 1'!B43 -> Hahnenkamp Ulrich | C43: ='Wettkampf 1'!C43 -> Spahnharrenstätte II | D43: 301.2 | F43: 301.2 | G43: 0 | H43: 0 | I43: 0 | J43: 0 | K43: 0 | L43: 0 | M43: 0 | N43: 0 | O43: 0 | P43: 0 | Q43: 301.2 | R43: 1 | U43: 100.5 | V43: 99.6 | W43: 101.1 | X43: 301.2 | Y43: 1 | Z43: 1 | AA43: Korrekt
A44: 35 | B44: ='Wettkampf 1'!B44 -> Hahnenkamp Markus | C44: ='Wettkampf 1'!C44 -> Spahnharrenstätte II | E44: x | F44: 0 | G44: 0 | H44: 0 | I44: 0 | J44: 0 | K44: 0 | L44: 0 | M44: 0 | N44: 0 | O44: 0 | P44: 0 | Q44: 0 | R44: 0 | X44: 0.0 | Y44: 1 | Z44: 0
A45: 36 | B45: ='Wettkampf 1'!B45 -> Walker Stefan | C45: ='Wettkampf 1'!C45 -> Börgerwald II | E45: x | F45: 0 | G45: 0 | H45: 0 | I45: 0 | J45: 0 | K45: 0 | L45: 0 | M45: 0 | N45: 0 | O45: 0 | P45: 0 | Q45: 0 | R45: 0 | X45: 0.0 | Y45: 1 | Z45: 0
G46: =LARGE(G10:G45,1)+LARGE(G10:G45,2)+LARGE(G10:G45,3) -> 923.2 | H46: =SUM(H10:H45) -> 4 | I46: =LARGE(I10:I45,1)+LARGE(I10:I45,2)+LARGE(I10:I45,3) -> 923.3 | J46: =SUM(J10:J45) -> 4 | K46: =LARGE(K10:K45,1)+LARGE(K10:K45,2)+LARGE(K10:K45,3) -> 916.6 | L46: =SUM(L10:L45) -> 4 | M46: =LARGE(M10:M45,1)+LARGE(M10:M45,2)+LARGE(M10:M45,3) -> 938.9 | N46: =SUM(N10:N45) -> 4 | O46: =LARGE(O10:O45,1)+LARGE(O10:O45,2)+LARGE(O10:O45,3) -> 931.6 | P46: =SUM(P10:P45) -> 4 | Q46: =LARGE(Q10:Q45,1)+LARGE(Q10:Q45,2)+LARGE(Q10:Q45,3) -> 924.5 | R46: =SUM(R10:S45) -> 4
C47: per Email an: sk-huemmling@gmx.de

Sheet 11
B1: Verein / Gruppe | D1: Ergebnisse | V1: Austragungsort: | W1: =Übersicht!P4 -> Börgerwald
A2: 1 | B2: ='Wettkampf 1'!B2 -> Neuvrees I | D2: =G46 -> 934.5 | E2: =IF(H46>4,"Es sind zu viele Schützen in Wertung!"," ") ->  | V2: Wettkampftag: | W2: =Übersicht!P3 -> 16.03.
A3: 2 | B3: ='Wettkampf 1'!B3 -> Rastdorf III | D3: =I46 -> 945.9 | E3: =IF(J46>4,"Es sind zu viele Schützen in Wertung!"," ") -> 
A4: 3 | B4: ='Wettkampf 1'!B4 -> Börger II | D4: =K46 -> 935.0 | E4: =IF(L46>4,"Es sind zu viele Schützen in Wertung!"," ") ->  | X4: Ansprechpartner für Rückfragen:
A5: 4 | B5: ='Wettkampf 1'!B5 -> Esterwegen III | D5: =M46 -> 939.4 | E5: =IF(N46>4,"Es sind zu viele Schützen in Wertung!"," ") ->  | V5: Name: | W5: Mathis Antons
A6: 5 | B6: ='Wettkampf 1'!B6 -> Börgerwald II | D6: =O46 -> 942.3 | E6: =IF(P46>4,"Es sind zu viele Schützen in Wertung!"," ") ->  | V6: Tel: | W6: 015252103868
A7: 6 | B7: ='Wettkampf 1'!B7 -> Spahnharrenstätte II | D7: =Q46 -> 933.6 | E7: =IF(R46>4,"Es sind zu viele Schützen in Wertung!"," ") ->  | V7: Standaufsicht: | W7: Mathis Antons
B9: Einzelergebnisse: | C9: Verein / Gruppe | D9: Ergebnisse (mindestens 0 eintragen) | E9: AW? Dann x eintippen | G9: Verein 1 | I9: Verein 2 | K9: Verein 3 | M9: Verein 4 | O9: Verein 5 | Q9: Verein 6 | U9: Proberechnung bei Streifen:
A10: 1 | B10: ='Wettkampf 1'!B10 -> Rolfes Wilhelm | C10: ='Wettkampf 1'!C10 -> Neuvrees I | D10: 307.1 | E10: x | F10: =IF(E10="x","0",D10) -> 0 | G10: =IF(C10=$B$2,F10,0) -> 0 | H10: =(IF(AND($E10="",$C10=$B$2),1,0)) -> 0 | I10: =IF($C10=$B$3,F10,0) -> 0 | J10: =(IF(AND($E10="",$C10=$B$3),1,0)) -> 0 | K10: =IF($C10=$B$4,F10,0) -> 0 | L10: =(IF(AND($E10="",$C10=$B$4),1,0)) -> 0 | M10: =IF($C10=$B$5,F10,0) -> 0 | N10: =(IF(AND($E10="",$C10=$B$5),1,0)) -> 0 | O10: =IF($C10=$B$6,F10,0) -> 0 | P10: =(IF(AND($E10="",$C10=$B$6),1,0)) -> 0 | Q10: =IF($C10=$B$7,F10,0) -> 0 | R10: =(IF(AND($E10="",$C10=$B$7),1,0)) -> 0 | U10: 102.4 | V10: 103.5 | W10: 101.2 | X10: =U10+V10+W10 -> 307.1 | Y10: =IF(X10=D10,1,0) -> 1 | Z10: =IF(X10=0,0,1) -> 1 | AA10: =IF(Y10+Z10=2,"Korrekt","") -> Korrekt
A11: 2 | B11: ='Wettkampf 1'!B11 -> Steenken Klaus | C11: ='Wettkampf 1'!C11 -> Neuvrees I | D11: 309.7 | F11: =IF(E11="x","0",D11) -> 309.7 | G11: =IF(C11=$B$2,F11,0) -> 309.7 | H11: =(IF(AND($E11="",$C11=$B$2),1,0)) -> 1 | I11: =IF($C11=$B$3,F11,0) -> 0 | J11: =(IF(AND($E11="",$C11=$B$3),1,0)) -> 0 | K11: =IF($C11=$B$4,F11,0) -> 0 | L11: =(IF(AND($E11="",$C11=$B$4),1,0)) -> 0 | M11: =IF($C11=$B$5,F11,0) -> 0 | N11: =(IF(AND($E11="",$C11=$B$5),1,0)) -> 0 | O11: =IF($C11=$B$6,F11,0) -> 0 | P11: =(IF(AND($E11="",$C11=$B$6),1,0)) -> 0 | Q11: =IF($C11=$B$7,F11,0) -> 0 | R11: =(IF(AND($E11="",$C11=$B$7),1,0)) -> 0 | U11: 102.8 | V11: 105.3 | W11: 101.6 | X11: =U11+V11+W11 -> 309.7 | Y11: =IF(X11=D11,1,0) -> 1 | Z11: =IF(X11=0,0,1) -> 1 | AA11: =IF(Y11+Z11=2,"Korrekt","") -> Korrekt
A12: 3 | B12: ='Wettkampf 1'!B12 -> Breyer Wilfried | C12: ='Wettkampf 1'!C12 -> Neuvrees I | D12: 310.6 | F12: 310.6 | G12: 310.6 | H12: 1 | I12: 0 | J12: 0 | K12: 0 | L12: 0 | M12: 0 | N12: 0 | O12: 0 | P12: 0 | Q12: 0 | R12: 0 | U12: 103.1 | V12: 103.6 | W12: 103.9 | X12: 310.6 | Y12: 1 | Z12: 1 | AA12: Korrekt
A13: 4 | B13: ='Wettkampf 1'!B13 -> Janßen Markus | C13: ='Wettkampf 1'!C13 -> Neuvrees I | D13: 314.2 | F13: 314.2 | G13: 314.2 | H13: 1 | I13: 0 | J13: 0 | K13: 0 | L13: 0 | M13: 0 | N13: 0 | O13: 0 | P13: 0 | Q13: 0 | R13: 0 | U13: 103.0 | V13: 105.5 | W13: 105.7 | X13: 314.2 | Y13: 1 | Z13: 1 | AA13: Korrekt
A14: 5 | B14: ='Wettkampf 1'!B14 -> Thyen Werner | C14: ='Wettkampf 1'!C14 -> Neuvrees I | D14: 309.0 | F14: 309.0 | G14: 309 | H14: 1 | I14: 0 | J14: 0 | K14: 0 | L14: 0 | M14: 0 | N14: 0 | O14: 0 | P14: 0 | Q14: 0 | R14: 0 | U14: 101.4 | V14: 105.3 | W14: 102.3 | X14: 309.0 | Y14: 1 | Z14: 1 | AA14: Korrekt
A15: 6 | B15: ='Wettkampf 1'!B15 -> Peters Carsten | C15: ='Wettkampf 1'!C15 -> Neuvrees I | E15: x | F15: 0 | G15: 0 | H15: 0 | I15: 0 | J15: 0 | K15: 0 | L15: 0 | M15: 0 | N15: 0 | O15: 0 | P15: 0 | Q15: 0 | R15: 0 | X15: 0.0 | Y15: 1 | Z15: 0
A16: 7 | B16: ='Wettkampf 1'!B16 -> Wotte Robert | C16: ='Wettkampf 1'!C16 -> Rastdorf III | D16: 315.0 | F16: 315.0 | G16: 0 | H16: 0 | I16: 315 | J16: 1 | K16: 0 | L16: 0 | M16: 0 | N16: 0 | O16: 0 | P16: 0 | Q16: 0 | R16: 0 | U16: 105.2 | V16: 103.6 | W16: 106.2 | X16: 315.0 | Y16: 1 | Z16: 1 | AA16: Korrekt
A17: 8 | B17: ='Wettkampf 1'!B17 -> Müller Helmut | C17: ='Wettkampf 1'!C17 -> Rastdorf III | D17: 310.2 | F17: 310.2 | G17: 0 | H17: 0 | I17: 310.2 | J17: 1 | K17: 0 | L17: 0 | M17: 0 | N17: 0 | O17: 0 | P17: 0 | Q17: 0 | R17: 0 | U17: 103.0 | V17: 102.6 | W17: 104.6 | X17: 310.2 | Y17: 1 | Z17: 1 | AA17: Korrekt
A18: 9 | B18: ='Wettkampf 1'!B18 -> Bookjans Günther | C18: ='Wettkampf 1'!C18 -> Rastdorf III | D18: 318.4 | F18: 318.4 | G18: 0 | H18: 0 | I18: 318.4 | J18: 1 | K18: 0 | L18: 0 | M18: 0 | N18: 0 | O18: 0 | P18: 0 | Q18: 0 | R18: 0 | U18: 106.3 | V18: 106.5 | W18: 105.6 | X18: 318.4 | Y18: 1 | Z18: 1 | AA18: Korrekt
A19: 10 | B19: ='Wettkampf 1'!B19 -> Meer Michael | C19: ='Wettkampf 1'!C19 -> Rastdorf III | D19: 312.5 | F19: 312.5 | G19: 0 | H19: 0 | I19: 312.5 | J19: 1 | K19: 0 | L19: 0 | M19: 0 | N19: 0 | O19: 0 | P19: 0 | Q19: 0 | R19: 0 | U19: 105.1 | V19: 103.0 | W19: 104.4 | X19: 312.5 | Y19: 1 | Z19: 1 | AA19: Korrekt
A20: 11 | B20: ='Wettkampf 1'!B20 -> Lindemann Rita | C20: ='Wettkampf 1'!C20 -> Rastdorf III | E20: x | F20: 0 | G20: 0 | H20: 0 | I20: 0 | J20: 0 | K20: 0 | L20: 0 | M20: 0 | N20: 0 | O20: 0 | P20: 0 | Q20: 0 | R20: 0 | X20: 0.0 | Y20: 1 | Z20: 0
A21: 12 | B21: ='Wettkampf 1'!B21 -> Olliges Kai | C21: ='Wettkampf 1'!C21 -> Börgerwald II | E21: x | F21: 0 | G21: 0 | H21: 0 | I21: 0 | J21: 0 | K21: 0 | L21: 0 | M21: 0 | N21: 0 | O21: 0 | P21: 0 | Q21: 0 | R21: 0 | X21: 0.0 | Y21: 1 | Z21: 0
A22: 13 | B22: ='Wettkampf 1'!B22 -> Zdralik Ingo | C22: ='Wettkampf 1'!C22 -> Börger II | D22: 315.7 | F22: 315.7 | G22: 0 | H22: 0 | I22: 0 | J22: 0 | K22: 315.7 | L22: 1 | M22: 0 | N22: 0 | O22: 0 | P22: 0 | Q22: 0 | R22: 0 | U22: 106.2 | V22: 105.5 | W22: 104.0 | X22: 315.7 | Y22: 1 | Z22: 1 | AA22: Korrekt
A23: 14 | B23: ='Wettkampf 1'!B23 -> Goldenstein Uwe | C23: ='Wettkampf 1'!C23 -> Börger II | D23: 308.8 | F23: 308.8 | G23: 0 | H23: 0 | I23: 0 | J23: 0 | K23: 308.8 | L23: 1 | M23: 0 | N23: 0 | O23: 0 | P23: 0 | Q23: 0 | R23: 0 | U23: 102.0 | V23: 104.4 | W23: 102.4 | X23: 308.8 | Y23: 1 | Z23: 1 | AA23: Korrekt
A24: 15 | B24: ='Wettkampf 1'!B24 -> Eckmann Mark | C24: ='Wettkampf 1'!C24 -> Börger II | D24: 310.5 | F24: 310.5 | G24: 0 | H24: 0 | I24: 0 | J24: 0 | K24: 310.5 | L24: 1 | M24: 0 | N24: 0 | O24: 0 | P24: 0 | Q24: 0 | R24: 0 | U24: 104.9 | V24: 100.9 | W24: 104.7 | X24: 310.5 | Y24: 1 | Z24: 1 | AA24: Korrekt
A25: 16 | B25: ='Wettkampf 1'!B25 -> Schulz Simon | C25: ='Wettkampf 1'!C25 -> Börger II | D25: 299.8 | E25: x | F25: 0 | G25: 0 | H25: 0 | I25: 0 | J25: 0 | K25: 0 | L25: 0 | M25: 0 | N25: 0 | O25: 0 | P25: 0 | Q25: 0 | R25: 0 | U25: 98.0 | V25: 98.5 | W25: 103.3 | X25: 299.8 | Y25: 1 | Z25: 1 | AA25: Korrekt
A26: 17 | B26: ='Wettkampf 1'!B26 -> Schwarte Hermann | C26: ='Wettkampf 1'!C26 -> Börger II | D26: 305.1 | E26: x | F26: 0 | G26: 0 | H26: 0 | I26: 0 | J26: 0 | K26: 0 | L26: 0 | M26: 0 | N26: 0 | O26: 0 | P26: 0 | Q26: 0 | R26: 0 | U26: 101.9 | V26: 102.0 | W26: 101.2 | X26: 305.1 | Y26: 1 | Z26: 1 | AA26: Korrekt
A27: 18 | B27: ='Wettkampf 1'!B27 -> Jungsthoefel Markus | C27: ='Wettkampf 1'!C27 -> Börger II | D27: 301.6 | F27: 301.6 | G27: 0 | H27: 0 | I27: 0 | J27: 0 | K27: 301.6 | L27: 1 | M27: 0 | N27: 0 | O27: 0 | P27: 0 | Q27: 0 | R27: 0 | U27: 102.7 | V27: 101.1 | W27: 97.8 | X27: 301.6 | Y27: 1 | Z27: 1 | AA27: Korrekt
A28: 19 | B28: ='Wettkampf 1'!B28 -> Aldfeld Helmut | C28: ='Wettkampf 1'!C28 -> Esterwegen III | E28: x | F28: 0 | G28: 0 | H28: 0 | I28: 0 | J28: 0 | K28: 0 | L28: 0 | M28: 0 | N28: 0 | O28: 0 | P28: 0 | Q28: 0 | R28: 0 | X28: 0.0 | Y28: 1 | Z28: 0
A29: 20 | B29: ='Wettkampf 1'!B29 -> Schulte Mathias | C29: ='Wettkampf 1'!C29 -> Esterwegen III | D29: 312.5 | F29: 312.5 | G29: 0 | H29: 0 | I29: 0 | J29: 0 | K29: 0 | L29: 0 | M29: 312.5 | N29: 1 | O29: 0 | P29: 0 | Q29: 0 | R29: 0 | U29: 103.7 | V29: 104.9 | W29: 103.9 | X29: 312.5 | Y29: 1 | Z29: 1 | AA29: Korrekt
A30: 21 | B30: ='Wettkampf 1'!B30 -> Middendorf Peter | C30: ='Wettkampf 1'!C30 -> Esterwegen III | D30: 311.9 | F30: 311.9 | G30: 0 | H30: 0 | I30: 0 | J30: 0 | K30: 0 | L30: 0 | M30: 311.9 | N30: 1 | O30: 0 | P30: 0 | Q30: 0 | R30: 0 | U30: 101.6 | V30: 104.5 | W30: 105.8 | X30: 311.9 | Y30: 1 | Z30: 1 | AA30: Korrekt
A31: 22 | B31: ='Wettkampf 1'!B31 -> Meibers Michael | C31: ='Wettkampf 1'!C31 -> Esterwegen III | D31: 315.0 | F31: 315.0 | G31: 0 | H31: 0 | I31: 0 | J31: 0 | K31: 0 | L31: 0 | M31: 315 | N31: 1 | O31: 0 | P31: 0 | Q31: 0 | R31: 0 | U31: 105.5 | V31: 105.4 | W31: 104.1 | X31: 315.0 | Y31: 1 | Z31: 1 | AA31: Korrekt
A32: 23 | B32: ='Wettkampf 1'!B32 -> Heidemann Jürgen | C32: ='Wettkampf 1'!C32 -> Esterwegen III | E32: x | F32: 0 | G32: 0 | H32: 0 | I32: 0 | J32: 0 | K32: 0 | L32: 0 | M32: 0 | N32: 0 | O32: 0 | P32: 0 | Q32: 0 | R32: 0 | X32: 0.0 | Y32: 1 | Z32: 0
A33: 24 | B33: ='Wettkampf 1'!B33 -> Lindemann Gerd | C33: ='Wettkampf 1'!C33 -> Esterwegen III | D33: 305.1 | F33: 305.1 | G33: 0 | H33: 0 | I33: 0 | J33: 0 | K33: 0 | L33: 0 | M33: 305.1 | N33: 1 | O33: 0 | P33: 0 | Q33: 0 | R33: 0 | U33: 104.5 | V33: 101.4 | W33: 99.2 | X33: 305.1 | Y33: 1 | Z33: 1 | AA33: Korrekt
A34: 25 | B34: ='Wettkampf 1'!B34 -> Hanenkamp Andre | C34: ='Wettkampf 1'!C34 -> Börgerwald II | D34: 312.6 | F34: 312.6 | G34: 0 | H34: 0 | I34: 0 | J34: 0 | K34: 0 | L34: 0 | M34: 0 | N34: 0 | O34: 312.6 | P34: 1 | Q34: 0 | R34: 0 | U34: 104.2 | V34: 103.4 | W34: 105.0 | X34: 312.6 | Y34: 1 | Z34: 1 | AA34: Korrekt
A35: 26 | B35: ='Wettkampf 1'!B35 -> Antons Mathias | C35: ='Wettkampf 1'!C35 -> Börgerwald II | D35: 313.6 | F35: 313.6 | G35: 0 | H35: 0 | I35: 0 | J35: 0 | K35: 0 | L35: 0 | M35: 0 | N35: 0 | O35: 313.6 | P35: 1 | Q35: 0 | R35: 0 | U35: 105.0 | V35: 104.6 | W35: 104.0 | X35: 313.6 | Y35: 1 | Z35: 1 | AA35: Korrekt
A36: 27 | B36: ='Wettkampf 1'!B36 -> Schröer Friedhelm | C36: ='Wettkampf 1'!C36 -> Börgerwald II | D36: 312.0 | F36: 312.0 | G36: 0 | H36: 0 | I36: 0 | J36: 0 | K36: 0 | L36: 0 | M36: 0 | N36: 0 | O36: 312 | P36: 1 | Q36: 0 | R36: 0 | U36: 104.3 | V36: 103.2 | W36: 104.5 | X36: 312.0 | Y36: 1 | Z36: 1 | AA36: Korrekt
A37: 28 | B37: ='Wettkampf 1'!B37 -> Sebers Tobias | C37: ='Wettkampf 1'!C37 -> Börgerwald II | D37: 301.7 | E37: x | F37: 0 | G37: 0 | H37: 0 | I37: 0 | J37: 0 | K37: 0 | L37: 0 | M37: 0 | N37: 0 | O37: 0 | P37: 0 | Q37: 0 | R37: 0 | U37: 101.7 | V37: 100.7 | W37: 99.3 | X37: 301.7 | Y37: 1 | Z37: 1 | AA37: Korrekt
A38: 29 | B38: ='Wettkampf 1'!B38 -> Hanneken Moritz | C38: ='Wettkampf 1'!C38 -> Börgerwald II | D38: 316.1 | F38: 316.1 | G38: 0 | H38: 0 | I38: 0 | J38: 0 | K38: 0 | L38: 0 | M38: 0 | N38: 0 | O38: 316.1 | P38: 1 | Q38: 0 | R38: 0 | U38: 104.4 | V38: 105.0 | W38: 106.7 | X38: 316.1 | Y38: 1 | Z38: 1 | AA38: Korrekt
A39: 30 | B39: ='Wettkampf 1'!B39 -> Speeker Dietmar | C39: ='Wettkampf 1'!C39 -> Börgerwald II | E39: x | F39: 0 | G39: 0 | H39: 0 | I39: 0 | J39: 0 | K39: 0 | L39: 0 | M39: 0 | N39: 0 | O39: 0 | P39: 0 | Q39: 0 | R39: 0 | X39: 0.0 | Y39: 1 | Z39: 0
A40: 31 | B40: ='Wettkampf 1'!B40 -> Will Achim | C40: ='Wettkampf 1'!C40 -> Spahnharrenstätte II | D40: 308.1 | F40: 308.1 | G40: 0 | H40: 0 | I40: 0 | J40: 0 | K40: 0 | L40: 0 | M40: 0 | N40: 0 | O40: 0 | P40: 0 | Q40: 308.1 | R40: 1 | U40: 102.0 | V40: 102.0 | W40: 104.1 | X40: 308.1 | Y40: 1 | Z40: 1 | AA40: Korrekt
A41: 32 | B41: ='Wettkampf 1'!B41 -> Meyer Dirk | C41: ='Wettkampf 1'!C41 -> Spahnharrenstätte II | D41: 311.3 | F41: 311.3 | G41: 0 | H41: 0 | I41: 0 | J41: 0 | K41: 0 | L41: 0 | M41: 0 | N41: 0 | O41: 0 | P41: 0 | Q41: 311.3 | R41: 1 | U41: 103.3 | V41: 103.2 | W41: 104.8 | X41: 311.3 | Y41: 1 | Z41: 1 | AA41: Korrekt
A42: 33 | B42: ='Wettkampf 1'!B42 -> Micksch Heiko | C42: ='Wettkampf 1'!C42 -> Spahnharrenstätte II | D42: 314.2 | F42: 314.2 | G42: 0 | H42: 0 | I42: 0 | J42: 0 | K42: 0 | L42: 0 | M42: 0 | N42: 0 | O42: 0 | P42: 0 | Q42: 314.2 | R42: 1 | U42: 106.1 | V42: 104.0 | W42: 104.1 | X42: 314.2 | Y42: 1 | Z42: 1 | AA42: Korrekt
A43: 34 | B43: ='Wettkampf 1'!B43 -> Hahnenkamp Ulrich | C43: ='Wettkampf 1'!C43 -> Spahnharrenstätte II | D43: 299.7 | E43: x | F43: 0 | G43: 0 | H43: 0 | I43: 0 | J43: 0 | K43: 0 | L43: 0 | M43: 0 | N43: 0 | O43: 0 | P43: 0 | Q43: 0 | R43: 0 | U43: 98.1 | V43: 99.8 | W43: 101.8 | X43: 299.7 | Y43: 1 | Z43: 1 | AA43: Korrekt
A44: 35 | B44: ='Wettkampf 1'!B44 -> Hahnenkamp Markus | C44: ='Wettkampf 1'!C44 -> Spahnharrenstätte II | D44: 295.9 | F44: 295.9 | G44: 0 | H44: 0 | I44: 0 | J44: 0 | K44: 0 | L44: 0 | M44: 0 | N44: 0 | O44: 0 | P44: 0 | Q44: 295.9 | R44: 1 | U44: 101.2 | V44: 95.0 | W44: 99.7 | X44: 295.9 | Y44: 1 | Z44: 1 | AA44: Korrekt
A45: 36 | B45: ='Wettkampf 1'!B45 -> Walker Stefan | C45: ='Wettkampf 1'!C45 -> Börgerwald II | D45: 304.9 | E45: x | F45: 0 | G45: 0 | H45: 0 | I45: 0 | J45: 0 | K45: 0 | L45: 0 | M45: 0 | N45: 0 | O45: 0 | P45: 0 | Q45: 0 | R45: 0 | U45: 101.7 | V45: 103.1 | W45: 100.1 | X45: 304.9 | Y45: 1 | Z45: 1 | AA45: Korrekt
G46: =LARGE(G10:G45,1)+LARGE(G10:G45,2)+LARGE(G10:G45,3) -> 934.5 | H46: =SUM(H10:H45) -> 4 | I46: =LARGE(I10:I45,1)+LARGE(I10:I45,2)+LARGE(I10:I45,3) -> 945.9 | J46: =SUM(J10:J45) -> 4 | K46: =LARGE(K10:K45,1)+LARGE(K10:K45,2)+LARGE(K10:K45,3) -> 935 | L46: =SUM(L10:L45) -> 4 | M46: =LARGE(M10:M45,1)+LARGE(M10:M45,2)+LARGE(M10:M45,3) -> 939.4 | N46: =SUM(N10:N45) -> 4 | O46: =LARGE(O10:O45,1)+LARGE(O10:O45,2)+LARGE(O10:O45,3) -> 942.3 | P46: =SUM(P10:P45) -> 4 | Q46: =LARGE(Q10:Q45,1)+LARGE(Q10:Q45,2)+LARGE(Q10:Q45,3) -> 933.6 | R46: =SUM(R10:S45) -> 4
C47: per Email an: sk-huemmling@gmx.de

Sheet 12
B1: Verein / Gruppe | D1: Ergebnisse | V1: Austragungsort: | W1: =Übersicht!Q4 -> Spahnharrenstätte
A2: 1 | B2: ='Wettkampf 1'!B2 -> Neuvrees I | D2: =G46 -> 935.0 | E2: =IF(H46>4,"Es sind zu viele Schützen in Wertung!"," ") ->  | V2: Wettkampftag: | W2: =Übersicht!Q3 -> 30.03.
A3: 2 | B3: ='Wettkampf 1'!B3 -> Rastdorf III | D3: =I46 -> 935.5 | E3: =IF(J46>4,"Es sind zu viele Schützen in Wertung!"," ") -> 
A4: 3 | B4: ='Wettkampf 1'!B4 -> Börger II | D4: =K46 -> 930.7 | E4: =IF(L46>4,"Es sind zu viele Schützen in Wertung!"," ") ->  | X4: Ansprechpartner für Rückfragen:
A5: 4 | B5: ='Wettkampf 1'!B5 -> Esterwegen III | D5: =M46 -> 941.9 | E5: =IF(N46>4,"Es sind zu viele Schützen in Wertung!"," ") ->  | V5: Name: | W5: Achim Will
A6: 5 | B6: ='Wettkampf 1'!B6 -> Börgerwald II | D6: =O46 -> 939.6 | E6: =IF(P46>4,"Es sind zu viele Schützen in Wertung!"," ") ->  | V6: Tel:
A7: 6 | B7: ='Wettkampf 1'!B7 -> Spahnharrenstätte II | D7: =Q46 -> 931.4 | E7: =IF(R46>4,"Es sind zu viele Schützen in Wertung!"," ") ->  | V7: Standaufsicht: | W7: Achim Will
B9: Einzelergebnisse: | C9: Verein / Gruppe | D9: Ergebnisse (mindestens 0 eintragen) | E9: AW? Dann x eintippen | G9: Verein 1 | I9: Verein 2 | K9: Verein 3 | M9: Verein 4 | O9: Verein 5 | Q9: Verein 6 | U9: Proberechnung bei Streifen:
A10: 1 | B10: ='Wettkampf 1'!B10 -> Rolfes Wilhelm | C10: ='Wettkampf 1'!C10 -> Neuvrees I | D10: 311.7 | E10: X | F10: =IF(E10="x","0",D10) -> 0 | G10: =IF(C10=$B$2,F10,0) -> 0 | H10: =(IF(AND($E10="",$C10=$B$2),1,0)) -> 0 | I10: =IF($C10=$B$3,F10,0) -> 0 | J10: =(IF(AND($E10="",$C10=$B$3),1,0)) -> 0 | K10: =IF($C10=$B$4,F10,0) -> 0 | L10: =(IF(AND($E10="",$C10=$B$4),1,0)) -> 0 | M10: =IF($C10=$B$5,F10,0) -> 0 | N10: =(IF(AND($E10="",$C10=$B$5),1,0)) -> 0 | O10: =IF($C10=$B$6,F10,0) -> 0 | P10: =(IF(AND($E10="",$C10=$B$6),1,0)) -> 0 | Q10: =IF($C10=$B$7,F10,0) -> 0 | R10: =(IF(AND($E10="",$C10=$B$7),1,0)) -> 0 | X10: =U10+V10+W10 -> 0.0 | Y10: =IF(X10=D10,1,0) -> 0 | Z10: =IF(X10=0,0,1) -> 0 | AA10: =IF(Y10+Z10=2,"Korrekt","") -> 
A11: 2 | B11: ='Wettkampf 1'!B11 -> Steenken Klaus | C11: ='Wettkampf 1'!C11 -> Neuvrees I | D11: 309.6 | F11: =IF(E11="x","0",D11) -> 309.6 | G11: =IF(C11=$B$2,F11,0) -> 309.6 | H11: =(IF(AND($E11="",$C11=$B$2),1,0)) -> 1 | I11: =IF($C11=$B$3,F11,0) -> 0 | J11: =(IF(AND($E11="",$C11=$B$3),1,0)) -> 0 | K11: =IF($C11=$B$4,F11,0) -> 0 | L11: =(IF(AND($E11="",$C11=$B$4),1,0)) -> 0 | M11: =IF($C11=$B$5,F11,0) -> 0 | N11: =(IF(AND($E11="",$C11=$B$5),1,0)) -> 0 | O11: =IF($C11=$B$6,F11,0) -> 0 | P11: =(IF(AND($E11="",$C11=$B$6),1,0)) -> 0 | Q11: =IF($C11=$B$7,F11,0) -> 0 | R11: =(IF(AND($E11="",$C11=$B$7),1,0)) -> 0 | X11: =U11+V11+W11 -> 0.0 | Y11: =IF(X11=D11,1,0) -> 0 | Z11: =IF(X11=0,0,1) -> 0 | AA11: =IF(Y11+Z11=2,"Korrekt","") -> 
A12: 3 | B12: ='Wettkampf 1'!B12 -> Breyer Wilfried | C12: ='Wettkampf 1'!C12 -> Neuvrees I | D12: 311.5 | F12: 311.5 | G12: 311.5 | H12: 1 | I12: 0 | J12: 0 | K12: 0 | L12: 0 | M12: 0 | N12: 0 | O12: 0 | P12: 0 | Q12: 0 | R12: 0 | X12: 0.0 | Y12: 0 | Z12: 0
A13: 4 | B13: ='Wettkampf 1'!B13 -> Janßen Markus | C13: ='Wettkampf 1'!C13 -> Neuvrees I | D13: 313.9 | F13: 313.9 | G13: 313.9 | H13: 1 | I13: 0 | J13: 0 | K13: 0 | L13: 0 | M13: 0 | N13: 0 | O13: 0 | P13: 0 | Q13: 0 | R13: 0 | X13: 0.0 | Y13: 0 | Z13: 0
A14: 5 | B14: ='Wettkampf 1'!B14 -> Thyen Werner | C14: ='Wettkampf 1'!C14 -> Neuvrees I | D14: 308.8 | F14: 308.8 | G14: 308.8 | H14: 1 | I14: 0 | J14: 0 | K14: 0 | L14: 0 | M14: 0 | N14: 0 | O14: 0 | P14: 0 | Q14: 0 | R14: 0 | X14: 0.0 | Y14: 0 | Z14: 0
A15: 6 | B15: ='Wettkampf 1'!B15 -> Peters Carsten | C15: ='Wettkampf 1'!C15 -> Neuvrees I | D15: 0.0 | E15: X | F15: 0 | G15: 0 | H15: 0 | I15: 0 | J15: 0 | K15: 0 | L15: 0 | M15: 0 | N15: 0 | O15: 0 | P15: 0 | Q15: 0 | R15: 0 | X15: 0.0 | Y15: 1 | Z15: 0
A16: 7 | B16: ='Wettkampf 1'!B16 -> Wotte Robert | C16: ='Wettkampf 1'!C16 -> Rastdorf III | D16: 312.3 | F16: 312.3 | G16: 0 | H16: 0 | I16: 312.3 | J16: 1 | K16: 0 | L16: 0 | M16: 0 | N16: 0 | O16: 0 | P16: 0 | Q16: 0 | R16: 0 | X16: 0.0 | Y16: 0 | Z16: 0
A17: 8 | B17: ='Wettkampf 1'!B17 -> Müller Helmut | C17: ='Wettkampf 1'!C17 -> Rastdorf III | D17: 308.3 | F17: 308.3 | G17: 0 | H17: 0 | I17: 308.3 | J17: 1 | K17: 0 | L17: 0 | M17: 0 | N17: 0 | O17: 0 | P17: 0 | Q17: 0 | R17: 0 | X17: 0.0 | Y17: 0 | Z17: 0
A18: 9 | B18: ='Wettkampf 1'!B18 -> Bookjans Günther | C18: ='Wettkampf 1'!C18 -> Rastdorf III | D18: 309.5 | F18: 309.5 | G18: 0 | H18: 0 | I18: 309.5 | J18: 1 | K18: 0 | L18: 0 | M18: 0 | N18: 0 | O18: 0 | P18: 0 | Q18: 0 | R18: 0 | X18: 0.0 | Y18: 0 | Z18: 0
A19: 10 | B19: ='Wettkampf 1'!B19 -> Meer Michael | C19: ='Wettkampf 1'!C19 -> Rastdorf III | D19: 313.7 | F19: 313.7 | G19: 0 | H19: 0 | I19: 313.7 | J19: 1 | K19: 0 | L19: 0 | M19: 0 | N19: 0 | O19: 0 | P19: 0 | Q19: 0 | R19: 0 | X19: 0.0 | Y19: 0 | Z19: 0
A20: 11 | B20: ='Wettkampf 1'!B20 -> Lindemann Rita | C20: ='Wettkampf 1'!C20 -> Rastdorf III | D20: 0.0 | E20: X | F20: 0 | G20: 0 | H20: 0 | I20: 0 | J20: 0 | K20: 0 | L20: 0 | M20: 0 | N20: 0 | O20: 0 | P20: 0 | Q20: 0 | R20: 0 | X20: 0.0 | Y20: 1 | Z20: 0
A21: 12 | B21: ='Wettkampf 1'!B21 -> Olliges Kai | C21: ='Wettkampf 1'!C21 -> Börgerwald II | D21: 0.0 | E21: X | F21: 0 | G21: 0 | H21: 0 | I21: 0 | J21: 0 | K21: 0 | L21: 0 | M21: 0 | N21: 0 | O21: 0 | P21: 0 | Q21: 0 | R21: 0 | X21: 0.0 | Y21: 1 | Z21: 0
A22: 13 | B22: ='Wettkampf 1'!B22 -> Zdralik Ingo | C22: ='Wettkampf 1'!C22 -> Börger II | D22: 315.8 | F22: 315.8 | G22: 0 | H22: 0 | I22: 0 | J22: 0 | K22: 315.8 | L22: 1 | M22: 0 | N22: 0 | O22: 0 | P22: 0 | Q22: 0 | R22: 0 | X22: 0.0 | Y22: 0 | Z22: 0
A23: 14 | B23: ='Wettkampf 1'!B23 -> Goldenstein Uwe | C23: ='Wettkampf 1'!C23 -> Börger II | D23: 305.3 | F23: 305.3 | G23: 0 | H23: 0 | I23: 0 | J23: 0 | K23: 305.3 | L23: 1 | M23: 0 | N23: 0 | O23: 0 | P23: 0 | Q23: 0 | R23: 0 | X23: 0.0 | Y23: 0 | Z23: 0
A24: 15 | B24: ='Wettkampf 1'!B24 -> Eckmann Mark | C24: ='Wettkampf 1'!C24 -> Börger II | D24: 305.8 | F24: 305.8 | G24: 0 | H24: 0 | I24: 0 | J24: 0 | K24: 305.8 | L24: 1 | M24: 0 | N24: 0 | O24: 0 | P24: 0 | Q24: 0 | R24: 0 | X24: 0.0 | Y24: 0 | Z24: 0
A25: 16 | B25: ='Wettkampf 1'!B25 -> Schulz Simon | C25: ='Wettkampf 1'!C25 -> Börger II | D25: 307.8 | E25: X | F25: 0 | G25: 0 | H25: 0 | I25: 0 | J25: 0 | K25: 0 | L25: 0 | M25: 0 | N25: 0 | O25: 0 | P25: 0 | Q25: 0 | R25: 0 | X25: 0.0 | Y25: 0 | Z25: 0
A26: 17 | B26: ='Wettkampf 1'!B26 -> Schwarte Hermann | C26: ='Wettkampf 1'!C26 -> Börger II | D26: 0.0 | E26: X | F26: 0 | G26: 0 | H26: 0 | I26: 0 | J26: 0 | K26: 0 | L26: 0 | M26: 0 | N26: 0 | O26: 0 | P26: 0 | Q26: 0 | R26: 0 | X26: 0.0 | Y26: 1 | Z26: 0
A27: 18 | B27: ='Wettkampf 1'!B27 -> Jungsthoefel Markus | C27: ='Wettkampf 1'!C27 -> Börger II | D27: 309.1 | F27: 309.1 | G27: 0 | H27: 0 | I27: 0 | J27: 0 | K27: 309.1 | L27: 1 | M27: 0 | N27: 0 | O27: 0 | P27: 0 | Q27: 0 | R27: 0 | X27: 0.0 | Y27: 0 | Z27: 0
A28: 19 | B28: ='Wettkampf 1'!B28 -> Aldfeld Helmut | C28: ='Wettkampf 1'!C28 -> Esterwegen III | D28: 0.0 | E28: X | F28: 0 | G28: 0 | H28: 0 | I28: 0 | J28: 0 | K28: 0 | L28: 0 | M28: 0 | N28: 0 | O28: 0 | P28: 0 | Q28: 0 | R28: 0 | X28: 0.0 | Y28: 1 | Z28: 0
A29: 20 | B29: ='Wettkampf 1'!B29 -> Schulte Mathias | C29: ='Wettkampf 1'!C29 -> Esterwegen III | D29: 310.0 | F29: 310.0 | G29: 0 | H29: 0 | I29: 0 | J29: 0 | K29: 0 | L29: 0 | M29: 310 | N29: 1 | O29: 0 | P29: 0 | Q29: 0 | R29: 0 | X29: 0.0 | Y29: 0 | Z29: 0
A30: 21 | B30: ='Wettkampf 1'!B30 -> Middendorf Peter | C30: ='Wettkampf 1'!C30 -> Esterwegen III | D30: 316.1 | F30: 316.1 | G30: 0 | H30: 0 | I30: 0 | J30: 0 | K30: 0 | L30: 0 | M30: 316.1 | N30: 1 | O30: 0 | P30: 0 | Q30: 0 | R30: 0 | X30: 0.0 | Y30: 0 | Z30: 0
A31: 22 | B31: ='Wettkampf 1'!B31 -> Meibers Michael | C31: ='Wettkampf 1'!C31 -> Esterwegen III | D31: 315.8 | F31: 315.8 | G31: 0 | H31: 0 | I31: 0 | J31: 0 | K31: 0 | L31: 0 | M31: 315.8 | N31: 1 | O31: 0 | P31: 0 | Q31: 0 | R31: 0 | X31: 0.0 | Y31: 0 | Z31: 0
A32: 23 | B32: ='Wettkampf 1'!B32 -> Heidemann Jürgen | C32: ='Wettkampf 1'!C32 -> Esterwegen III | D32: 0.0 | E32: X | F32: 0 | G32: 0 | H32: 0 | I32: 0 | J32: 0 | K32: 0 | L32: 0 | M32: 0 | N32: 0 | O32: 0 | P32: 0 | Q32: 0 | R32: 0 | X32: 0.0 | Y32: 1 | Z32: 0
A33: 24 | B33: ='Wettkampf 1'!B33 -> Lindemann Gerd | C33: ='Wettkampf 1'!C33 -> Esterwegen III | D33: 306.8 | F33: 306.8 | G33: 0 | H33: 0 | I33: 0 | J33: 0 | K33: 0 | L33: 0 | M33: 306.8 | N33: 1 | O33: 0 | P33: 0 | Q33: 0 | R33: 0 | X33: 0.0 | Y33: 0 | Z33: 0
A34: 25 | B34: ='Wettkampf 1'!B34 -> Hanenkamp Andre | C34: ='Wettkampf 1'!C34 -> Börgerwald II | D34: 308.9 | F34: 308.9 | G34: 0 | H34: 0 | I34: 0 | J34: 0 | K34: 0 | L34: 0 | M34: 0 | N34: 0 | O34: 308.9 | P34: 1 | Q34: 0 | R34: 0 | X34: 0.0 | Y34: 0 | Z34: 0
A35: 26 | B35: ='Wettkampf 1'!B35 -> Antons Mathias | C35: ='Wettkampf 1'!C35 -> Börgerwald II | D35: 312.1 | F35: 312.1 | G35: 0 | H35: 0 | I35: 0 | J35: 0 | K35: 0 | L35: 0 | M35: 0 | N35: 0 | O35: 312.1 | P35: 1 | Q35: 0 | R35: 0 | X35: 0.0 | Y35: 0 | Z35: 0
A36: 27 | B36: ='Wettkampf 1'!B36 -> Schröer Friedhelm | C36: ='Wettkampf 1'!C36 -> Börgerwald II | D36: 315.7 | F36: 315.7 | G36: 0 | H36: 0 | I36: 0 | J36: 0 | K36: 0 | L36: 0 | M36: 0 | N36: 0 | O36: 315.7 | P36: 1 | Q36: 0 | R36: 0 | X36: 0.0 | Y36: 0 | Z36: 0
A37: 28 | B37: ='Wettkampf 1'!B37 -> Sebers Tobias | C37: ='Wettkampf 1'!C37 -> Börgerwald II | D37: 305.1 | E37: X | F37: 0 | G37: 0 | H37: 0 | I37: 0 | J37: 0 | K37: 0 | L37: 0 | M37: 0 | N37: 0 | O37: 0 | P37: 0 | Q37: 0 | R37: 0 | X37: 0.0 | Y37: 0 | Z37: 0
A38: 29 | B38: ='Wettkampf 1'!B38 -> Hanneken Moritz | C38: ='Wettkampf 1'!C38 -> Börgerwald II | D38: 311.8 | F38: 311.8 | G38: 0 | H38: 0 | I38: 0 | J38: 0 | K38: 0 | L38: 0 | M38: 0 | N38: 0 | O38: 311.8 | P38: 1 | Q38: 0 | R38: 0 | X38: 0.0 | Y38: 0 | Z38: 0
A39: 30 | B39: ='Wettkampf 1'!B39 -> Speeker Dietmar | C39: ='Wettkampf 1'!C39 -> Börgerwald II | D39: 0.0 | E39: X | F39: 0 | G39: 0 | H39: 0 | I39: 0 | J39: 0 | K39: 0 | L39: 0 | M39: 0 | N39: 0 | O39: 0 | P39: 0 | Q39: 0 | R39: 0 | X39: 0.0 | Y39: 1 | Z39: 0
A40: 31 | B40: ='Wettkampf 1'!B40 -> Will Achim | C40: ='Wettkampf 1'!C40 -> Spahnharrenstätte II | D40: 312.7 | F40: 312.7 | G40: 0 | H40: 0 | I40: 0 | J40: 0 | K40: 0 | L40: 0 | M40: 0 | N40: 0 | O40: 0 | P40: 0 | Q40: 312.7 | R40: 1 | X40: 0.0 | Y40: 0 | Z40: 0
A41: 32 | B41: ='Wettkampf 1'!B41 -> Meyer Dirk | C41: ='Wettkampf 1'!C41 -> Spahnharrenstätte II | D41: 307.9 | F41: 307.9 | G41: 0 | H41: 0 | I41: 0 | J41: 0 | K41: 0 | L41: 0 | M41: 0 | N41: 0 | O41: 0 | P41: 0 | Q41: 307.9 | R41: 1 | X41: 0.0 | Y41: 0 | Z41: 0
A42: 33 | B42: ='Wettkampf 1'!B42 -> Micksch Heiko | C42: ='Wettkampf 1'!C42 -> Spahnharrenstätte II | D42: 310.8 | F42: 310.8 | G42: 0 | H42: 0 | I42: 0 | J42: 0 | K42: 0 | L42: 0 | M42: 0 | N42: 0 | O42: 0 | P42: 0 | Q42: 310.8 | R42: 1 | X42: 0.0 | Y42: 0 | Z42: 0
A43: 34 | B43: ='Wettkampf 1'!B43 -> Hahnenkamp Ulrich | C43: ='Wettkampf 1'!C43 -> Spahnharrenstätte II | D43: 291.1 | E43: X | F43: 0 | G43: 0 | H43: 0 | I43: 0 | J43: 0 | K43: 0 | L43: 0 | M43: 0 | N43: 0 | O43: 0 | P43: 0 | Q43: 0 | R43: 0 | X43: 0.0 | Y43: 0 | Z43: 0
A44: 35 | B44: ='Wettkampf 1'!B44 -> Hahnenkamp Markus | C44: ='Wettkampf 1'!C44 -> Spahnharrenstätte II | D44: 300.0 | F44: 300.0 | G44: 0 | H44: 0 | I44: 0 | J44: 0 | K44: 0 | L44: 0 | M44: 0 | N44: 0 | O44: 0 | P44: 0 | Q44: 300 | R44: 1 | X44: 0.0 | Y44: 0 | Z44: 0
A45: 36 | B45: ='Wettkampf 1'!B45 -> Walker Stefan | C45: ='Wettkampf 1'!C45 -> Börgerwald II | D45: 302.1 | E45: X | F45: 0 | G45: 0 | H45: 0 | I45: 0 | J45: 0 | K45: 0 | L45: 0 | M45: 0 | N45: 0 | O45: 0 | P45: 0 | Q45: 0 | R45: 0 | X45: 0.0 | Y45: 0 | Z45: 0
G46: =LARGE(G10:G45,1)+LARGE(G10:G45,2)+LARGE(G10:G45,3) -> 935 | H46: =SUM(H10:H45) -> 4 | I46: =LARGE(I10:I45,1)+LARGE(I10:I45,2)+LARGE(I10:I45,3) -> 935.5 | J46: =SUM(J10:J45) -> 4 | K46: =LARGE(K10:K45,1)+LARGE(K10:K45,2)+LARGE(K10:K45,3) -> 930.7 | L46: =SUM(L10:L45) -> 4 | M46: =LARGE(M10:M45,1)+LARGE(M10:M45,2)+LARGE(M10:M45,3) -> 941.9 | N46: =SUM(N10:N45) -> 4 | O46: =LARGE(O10:O45,1)+LARGE(O10:O45,2)+LARGE(O10:O45,3) -> 939.6 | P46: =SUM(P10:P45) -> 4 | Q46: =LARGE(Q10:Q45,1)+LARGE(Q10:Q45,2)+LARGE(Q10:Q45,3) -> 931.4 | R46: =SUM(R10:S45) -> 4
C47: per Email an: sk-huemmling@gmx.de

Sheet Ausdruck
B1: Verein / Gruppe | C1: Ergebnisse | D1: =Übersicht!K1 -> 2024/2025 | X1: Austragungsort:
A2: 1 | B2: ='Wettkampf 1'!B2 -> Neuvrees I | D2: Klasse: | X2: Wettkampftag:
A3: 2 | B3: ='Wettkampf 1'!B3 -> Rastdorf III | D3: =Übersicht!M1 -> 2. Kreisklasse
A4: 3 | B4: ='Wettkampf 1'!B4 -> Börger II | D4: =Übersicht!P1 -> Schützen | Z4: Ansprechpartner für Rückfragen:
A5: 4 | B5: ='Wettkampf 1'!B5 -> Esterwegen III | X5: Name:
A6: 5 | B6: ='Wettkampf 1'!B6 -> Börgerwald II | X6: Tel:
A7: 6 | B7: ='Wettkampf 1'!B7 -> Spahnharrenstätte II | X7: Standaufsicht:
B9: Name Schütze | C9: Verein/Gruppe | D9: Ergebnis | E9: AW? | G9: Verein 1 | I9: Verein 2 | K9: Verein 3 | M9: Verein 4 | O9: Verein 5 | Q9: Verein 6 | U9: Geburts-datum | W9: Proberechnung bei Streifen:
A10: 1 | B10: ='Wettkampf 1'!B10 -> Rolfes Wilhelm | C10: ='Wettkampf 1'!C10 -> Neuvrees I | F10: =IF(E10="x","0",D10) -> 0 | G10: =IF(C10=$B$2,F10,0) -> 0 | H10: =(IF(AND($E10="",$C10=$B$2),1,0)) -> 1 | I10: =IF($C10=$B$3,F10,0) -> 0 | J10: =(IF(AND($E10="",$C10=$B$3),1,0)) -> 0 | K10: =IF($C10=$B$4,F10,0) -> 0 | L10: =(IF(AND($E10="",$C10=$B$4),1,0)) -> 0 | M10: =IF($C10=$B$5,F10,0) -> 0 | N10: =(IF(AND($E10="",$C10=$B$5),1,0)) -> 0 | O10: =IF($C10=$B$6,F10,0) -> 0 | P10: =(IF(AND($E10="",$C10=$B$6),1,0)) -> 0 | Q10: =IF($C10=$B$7,F10,0) -> 0 | R10: =(IF(AND($E10="",$C10=$B$7),1,0)) -> 0 | AA10: =IF(Z10=D10,1,0) -> 1 | AB10: =IF(Z10=0,0,1) -> 0 | AC10: =IF(AA10+AB10=2,"Korrekt","") -> 
A11: 2 | B11: ='Wettkampf 1'!B11 -> Steenken Klaus | C11: ='Wettkampf 1'!C11 -> Neuvrees I | F11: =IF(E11="x","0",D11) -> 0 | G11: =IF(C11=$B$2,F11,0) -> 0 | H11: =(IF(AND($E11="",$C11=$B$2),1,0)) -> 1 | I11: =IF($C11=$B$3,F11,0) -> 0 | J11: =(IF(AND($E11="",$C11=$B$3),1,0)) -> 0 | K11: =IF($C11=$B$4,F11,0) -> 0 | L11: =(IF(AND($E11="",$C11=$B$4),1,0)) -> 0 | M11: =IF($C11=$B$5,F11,0) -> 0 | N11: =(IF(AND($E11="",$C11=$B$5),1,0)) -> 0 | O11: =IF($C11=$B$6,F11,0) -> 0 | P11: =(IF(AND($E11="",$C11=$B$6),1,0)) -> 0 | Q11: =IF($C11=$B$7,F11,0) -> 0 | R11: =(IF(AND($E11="",$C11=$B$7),1,0)) -> 0 | AA11: =IF(Z11=D11,1,0) -> 1 | AB11: =IF(Z11=0,0,1) -> 0 | AC11: =IF(AA11+AB11=2,"Korrekt","") -> 
A12: 3 | B12: ='Wettkampf 1'!B12 -> Breyer Wilfried | C12: ='Wettkampf 1'!C12 -> Neuvrees I | F12: 0 | G12: 0 | H12: 1 | I12: 0 | J12: 0 | K12: 0 | L12: 0 | M12: 0 | N12: 0 | O12: 0 | P12: 0 | Q12: 0 | R12: 0 | AA12: 1 | AB12: 0
A13: 4 | B13: ='Wettkampf 1'!B13 -> Janßen Markus | C13: ='Wettkampf 1'!C13 -> Neuvrees I | F13: 0 | G13: 0 | H13: 1 | I13: 0 | J13: 0 | K13: 0 | L13: 0 | M13: 0 | N13: 0 | O13: 0 | P13: 0 | Q13: 0 | R13: 0 | AA13: 1 | AB13: 0
A14: 5 | B14: ='Wettkampf 1'!B14 -> Thyen Werner | C14: ='Wettkampf 1'!C14 -> Neuvrees I | F14: 0 | G14: 0 | H14: 1 | I14: 0 | J14: 0 | K14: 0 | L14: 0 | M14: 0 | N14: 0 | O14: 0 | P14: 0 | Q14: 0 | R14: 0 | AA14: 1 | AB14: 0
A15: 6 | B15: ='Wettkampf 1'!B15 -> Peters Carsten | C15: ='Wettkampf 1'!C15 -> Neuvrees I | F15: 0 | G15: 0 | H15: 1 | I15: 0 | J15: 0 | K15: 0 | L15: 0 | M15: 0 | N15: 0 | O15: 0 | P15: 0 | Q15: 0 | R15: 0 | AA15: 1 | AB15: 0
A16: 7 | B16: ='Wettkampf 1'!B16 -> Wotte Robert | C16: ='Wettkampf 1'!C16 -> Rastdorf III | F16: 0 | G16: 0 | H16: 0 | I16: 0 | J16: 1 | K16: 0 | L16: 0 | M16: 0 | N16: 0 | O16: 0 | P16: 0 | Q16: 0 | R16: 0 | AA16: 1 | AB16: 0
A17: 8 | B17: ='Wettkampf 1'!B17 -> Müller Helmut | C17: ='Wettkampf 1'!C17 -> Rastdorf III | F17: 0 | G17: 0 | H17: 0 | I17: 0 | J17: 1 | K17: 0 | L17: 0 | M17: 0 | N17: 0 | O17: 0 | P17: 0 | Q17: 0 | R17: 0 | AA17: 1 | AB17: 0
A18: 9 | B18: ='Wettkampf 1'!B18 -> Bookjans Günther | C18: ='Wettkampf 1'!C18 -> Rastdorf III | F18: 0 | G18: 0 | H18: 0 | I18: 0 | J18: 1 | K18: 0 | L18: 0 | M18: 0 | N18: 0 | O18: 0 | P18: 0 | Q18: 0 | R18: 0 | AA18: 1 | AB18: 0
A19: 10 | B19: ='Wettkampf 1'!B19 -> Meer Michael | C19: ='Wettkampf 1'!C19 -> Rastdorf III | F19: 0 | G19: 0 | H19: 0 | I19: 0 | J19: 1 | K19: 0 | L19: 0 | M19: 0 | N19: 0 | O19: 0 | P19: 0 | Q19: 0 | R19: 0 | AA19: 1 | AB19: 0
A20: 11 | B20: ='Wettkampf 1'!B20 -> Lindemann Rita | C20: ='Wettkampf 1'!C20 -> Rastdorf III | F20: 0 | G20: 0 | H20: 0 | I20: 0 | J20: 1 | K20: 0 | L20: 0 | M20: 0 | N20: 0 | O20: 0 | P20: 0 | Q20: 0 | R20: 0 | AA20: 1 | AB20: 0
A21: 12 | B21: ='Wettkampf 1'!B21 -> Olliges Kai | C21: ='Wettkampf 1'!C21 -> Börgerwald II | F21: 0 | G21: 0 | H21: 0 | I21: 0 | J21: 0 | K21: 0 | L21: 0 | M21: 0 | N21: 0 | O21: 0 | P21: 1 | Q21: 0 | R21: 0 | AA21: 1 | AB21: 0
A22: 13 | B22: ='Wettkampf 1'!B22 -> Zdralik Ingo | C22: ='Wettkampf 1'!C22 -> Börger II | F22: 0 | G22: 0 | H22: 0 | I22: 0 | J22: 0 | K22: 0 | L22: 1 | M22: 0 | N22: 0 | O22: 0 | P22: 0 | Q22: 0 | R22: 0 | AA22: 1 | AB22: 0
A23: 14 | B23: ='Wettkampf 1'!B23 -> Goldenstein Uwe | C23: ='Wettkampf 1'!C23 -> Börger II | F23: 0 | G23: 0 | H23: 0 | I23: 0 | J23: 0 | K23: 0 | L23: 1 | M23: 0 | N23: 0 | O23: 0 | P23: 0 | Q23: 0 | R23: 0 | AA23: 1 | AB23: 0
A24: 15 | B24: ='Wettkampf 1'!B24 -> Eckmann Mark | C24: ='Wettkampf 1'!C24 -> Börger II | F24: 0 | G24: 0 | H24: 0 | I24: 0 | J24: 0 | K24: 0 | L24: 1 | M24: 0 | N24: 0 | O24: 0 | P24: 0 | Q24: 0 | R24: 0 | AA24: 1 | AB24: 0
A25: 16 | B25: ='Wettkampf 1'!B25 -> Schulz Simon | C25: ='Wettkampf 1'!C25 -> Börger II | F25: 0 | G25: 0 | H25: 0 | I25: 0 | J25: 0 | K25: 0 | L25: 1 | M25: 0 | N25: 0 | O25: 0 | P25: 0 | Q25: 0 | R25: 0 | AA25: 1 | AB25: 0
A26: 17 | B26: ='Wettkampf 1'!B26 -> Schwarte Hermann | C26: ='Wettkampf 1'!C26 -> Börger II | F26: 0 | G26: 0 | H26: 0 | I26: 0 | J26: 0 | K26: 0 | L26: 1 | M26: 0 | N26: 0 | O26: 0 | P26: 0 | Q26: 0 | R26: 0 | AA26: 1 | AB26: 0
A27: 18 | B27: ='Wettkampf 1'!B27 -> Jungsthoefel Markus | C27: ='Wettkampf 1'!C27 -> Börger II | F27: 0 | G27: 0 | H27: 0 | I27: 0 | J27: 0 | K27: 0 | L27: 1 | M27: 0 | N27: 0 | O27: 0 | P27: 0 | Q27: 0 | R27: 0 | AA27: 1 | AB27: 0
A28: 19 | B28: ='Wettkampf 1'!B28 -> Aldfeld Helmut | C28: ='Wettkampf 1'!C28 -> Esterwegen III | F28: 0 | G28: 0 | H28: 0 | I28: 0 | J28: 0 | K28: 0 | L28: 0 | M28: 0 | N28: 1 | O28: 0 | P28: 0 | Q28: 0 | R28: 0 | AA28: 1 | AB28: 0
A29: 20 | B29: ='Wettkampf 1'!B29 -> Schulte Mathias | C29: ='Wettkampf 1'!C29 -> Esterwegen III | F29: 0 | G29: 0 | H29: 0 | I29: 0 | J29: 0 | K29: 0 | L29: 0 | M29: 0 | N29: 1 | O29: 0 | P29: 0 | Q29: 0 | R29: 0 | AA29: 1 | AB29: 0
A30: 21 | B30: ='Wettkampf 1'!B30 -> Middendorf Peter | C30: ='Wettkampf 1'!C30 -> Esterwegen III | F30: 0 | G30: 0 | H30: 0 | I30: 0 | J30: 0 | K30: 0 | L30: 0 | M30: 0 | N30: 1 | O30: 0 | P30: 0 | Q30: 0 | R30: 0 | AA30: 1 | AB30: 0
A31: 22 | B31: ='Wettkampf 1'!B31 -> Meibers Michael | C31: ='Wettkampf 1'!C31 -> Esterwegen III | F31: 0 | G31: 0 | H31: 0 | I31: 0 | J31: 0 | K31: 0 | L31: 0 | M31: 0 | N31: 1 | O31: 0 | P31: 0 | Q31: 0 | R31: 0 | AA31: 1 | AB31: 0
A32: 23 | B32: ='Wettkampf 1'!B32 -> Heidemann Jürgen | C32: ='Wettkampf 1'!C32 -> Esterwegen III | F32: 0 | G32: 0 | H32: 0 | I32: 0 | J32: 0 | K32: 0 | L32: 0 | M32: 0 | N32: 1 | O32: 0 | P32: 0 | Q32: 0 | R32: 0 | AA32: 1 | AB32: 0
A33: 24 | B33: ='Wettkampf 1'!B33 -> Lindemann Gerd | C33: ='Wettkampf 1'!C33 -> Esterwegen III | F33: 0 | G33: 0 | H33: 0 | I33: 0 | J33: 0 | K33: 0 | L33: 0 | M33: 0 | N33: 1 | O33: 0 | P33: 0 | Q33: 0 | R33: 0 | AA33: 1 | AB33: 0
A34: 25 | B34: ='Wettkampf 1'!B34 -> Hanenkamp Andre | C34: ='Wettkampf 1'!C34 -> Börgerwald II | F34: 0 | G34: 0 | H34: 0 | I34: 0 | J34: 0 | K34: 0 | L34: 0 | M34: 0 | N34: 0 | O34: 0 | P34: 1 | Q34: 0 | R34: 0 | AA34: 1 | AB34: 0
A35: 26 | B35: ='Wettkampf 1'!B35 -> Antons Mathias | C35: ='Wettkampf 1'!C35 -> Börgerwald II | F35: 0 | G35: 0 | H35: 0 | I35: 0 | J35: 0 | K35: 0 | L35: 0 | M35: 0 | N35: 0 | O35: 0 | P35: 1 | Q35: 0 | R35: 0 | AA35: 1 | AB35: 0
A36: 27 | B36: ='Wettkampf 1'!B36 -> Schröer Friedhelm | C36: ='Wettkampf 1'!C36 -> Börgerwald II | F36: 0 | G36: 0 | H36: 0 | I36: 0 | J36: 0 | K36: 0 | L36: 0 | M36: 0 | N36: 0 | O36: 0 | P36: 1 | Q36: 0 | R36: 0 | AA36: 1 | AB36: 0
A37: 28 | B37: ='Wettkampf 1'!B37 -> Sebers Tobias | C37: ='Wettkampf 1'!C37 -> Börgerwald II | F37: 0 | G37: 0 | H37: 0 | I37: 0 | J37: 0 | K37: 0 | L37: 0 | M37: 0 | N37: 0 | O37: 0 | P37: 1 | Q37: 0 | R37: 0 | AA37: 1 | AB37: 0
A38: 29 | B38: ='Wettkampf 1'!B38 -> Hanneken Moritz | C38: ='Wettkampf 1'!C38 -> Börgerwald II | F38: 0 | G38: 0 | H38: 0 | I38: 0 | J38: 0 | K38: 0 | L38: 0 | M38: 0 | N38: 0 | O38: 0 | P38: 1 | Q38: 0 | R38: 0 | AA38: 1 | AB38: 0
A39: 30 | B39: ='Wettkampf 1'!B39 -> Speeker Dietmar | C39: ='Wettkampf 1'!C39 -> Börgerwald II | F39: 0 | G39: 0 | H39: 0 | I39: 0 | J39: 0 | K39: 0 | L39: 0 | M39: 0 | N39: 0 | O39: 0 | P39: 1 | Q39: 0 | R39: 0 | AA39: 1 | AB39: 0
A40: 31 | B40: ='Wettkampf 1'!B40 -> Will Achim | C40: ='Wettkampf 1'!C40 -> Spahnharrenstätte II | F40: 0 | G40: 0 | H40: 0 | I40: 0 | J40: 0 | K40: 0 | L40: 0 | M40: 0 | N40: 0 | O40: 0 | P40: 0 | Q40: 0 | R40: 1 | AA40: 1 | AB40: 0
A41: 32 | B41: ='Wettkampf 1'!B41 -> Meyer Dirk | C41: ='Wettkampf 1'!C41 -> Spahnharrenstätte II | F41: 0 | G41: 0 | H41: 0 | I41: 0 | J41: 0 | K41: 0 | L41: 0 | M41: 0 | N41: 0 | O41: 0 | P41: 0 | Q41: 0 | R41: 1 | AA41: 1 | AB41: 0
A42: 33 | B42: ='Wettkampf 1'!B42 -> Micksch Heiko | C42: ='Wettkampf 1'!C42 -> Spahnharrenstätte II | F42: 0 | G42: 0 | H42: 0 | I42: 0 | J42: 0 | K42: 0 | L42: 0 | M42: 0 | N42: 0 | O42: 0 | P42: 0 | Q42: 0 | R42: 1 | AA42: 1 | AB42: 0
A43: 34 | B43: ='Wettkampf 1'!B43 -> Hahnenkamp Ulrich | C43: ='Wettkampf 1'!C43 -> Spahnharrenstätte II | F43: 0 | G43: 0 | H43: 0 | I43: 0 | J43: 0 | K43: 0 | L43: 0 | M43: 0 | N43: 0 | O43: 0 | P43: 0 | Q43: 0 | R43: 1 | AA43: 1 | AB43: 0
A44: 35 | B44: ='Wettkampf 1'!B44 -> Hahnenkamp Markus | C44: ='Wettkampf 1'!C44 -> Spahnharrenstätte II | F44: 0 | G44: 0 | H44: 0 | I44: 0 | J44: 0 | K44: 0 | L44: 0 | M44: 0 | N44: 0 | O44: 0 | P44: 0 | Q44: 0 | R44: 1 | AA44: 1 | AB44: 0
A45: 36 | B45: ='Wettkampf 1'!B45 -> Walker Stefan | C45: ='Wettkampf 1'!C45 -> Börgerwald II | F45: 0 | G45: 0 | H45: 0 | I45: 0 | J45: 0 | K45: 0 | L45: 0 | M45: 0 | N45: 0 | O45: 0 | P45: 1 | Q45: 0 | R45: 0 | AA45: 1 | AB45: 0
G46: =LARGE(G10:G45,1)+LARGE(G10:G45,2)+LARGE(G10:G45,3) -> 0 | H46: =SUM(H10:H45) -> 6 | I46: =LARGE(I10:I45,1)+LARGE(I10:I45,2)+LARGE(I10:I45,3) -> 0 | J46: =SUM(J10:J45) -> 5 | K46: =LARGE(K10:K45,1)+LARGE(K10:K45,2)+LARGE(K10:K45,3) -> 0 | L46: =SUM(L10:L45) -> 6 | M46: =LARGE(M10:M45,1)+LARGE(M10:M45,2)+LARGE(M10:M45,3) -> 0 | N46: =SUM(N10:N45) -> 6 | O46: =LARGE(O10:O45,1)+LARGE(O10:O45,2)+LARGE(O10:O45,3) -> 0 | P46: =SUM(P10:P45) -> 8 | Q46: =LARGE(Q10:Q45,1)+LARGE(Q10:Q45,2)+LARGE(Q10:Q45,3) -> 0 | R46: =SUM(R10:S45) -> 5
B48: Bitte beachtet, dass die Standaufsicht benannt werden muss

Sheet Ausdruck blank
B1: Verein / Gruppe | C1: Ergebnisse | D1: =Übersicht!K1 -> 2024/2025 | X1: Austragungsort:
A2: 1 | D2: Klasse: | X2: Wettkampftag:
A3: 2
A4: 3 | Z4: Ansprechpartner für Rückfragen:
A5: 4 | X5: Name:
A6: 5 | X6: Tel:
A7: 6 | X7: Standaufsicht:
B9: Name Schütze | C9: Verein/Gruppe | D9: Ergebnis | E9: AW? | G9: Verein 1 | I9: Verein 2 | K9: Verein 3 | M9: Verein 4 | O9: Verein 5 | Q9: Verein 6 | U9: Geburts-datum | W9: Proberechnung bei Streifen:
A10: 1 | F10: =IF(E10="x","0",D10) -> 0 | G10: =IF(C10=$B$2,F10,0) -> 0 | H10: =(IF(AND($E10="",$C10=$B$2),1,0)) -> 1 | I10: =IF($C10=$B$3,F10,0) -> 0 | J10: =(IF(AND($E10="",$C10=$B$3),1,0)) -> 1 | K10: =IF($C10=$B$4,F10,0) -> 0 | L10: =(IF(AND($E10="",$C10=$B$4),1,0)) -> 1 | M10: =IF($C10=$B$5,F10,0) -> 0 | N10: =(IF(AND($E10="",$C10=$B$5),1,0)) -> 1 | O10: =IF($C10=$B$6,F10,0) -> 0 | P10: =(IF(AND($E10="",$C10=$B$6),1,0)) -> 1 | Q10: =IF($C10=$B$7,F10,0) -> 0 | R10: =(IF(AND($E10="",$C10=$B$7),1,0)) -> 1 | AA10: =IF(Z10=D10,1,0) -> 1 | AB10: =IF(Z10=0,0,1) -> 0 | AC10: =IF(AA10+AB10=2,"Korrekt","") -> 
A11: 2 | F11: =IF(E11="x","0",D11) -> 0 | G11: =IF(C11=$B$2,F11,0) -> 0 | H11: =(IF(AND($E11="",$C11=$B$2),1,0)) -> 1 | I11: =IF($C11=$B$3,F11,0) -> 0 | J11: =(IF(AND($E11="",$C11=$B$3),1,0)) -> 1 | K11: =IF($C11=$B$4,F11,0) -> 0 | L11: =(IF(AND($E11="",$C11=$B$4),1,0)) -> 1 | M11: =IF($C11=$B$5,F11,0) -> 0 | N11: =(IF(AND($E11="",$C11=$B$5),1,0)) -> 1 | O11: =IF($C11=$B$6,F11,0) -> 0 | P11: =(IF(AND($E11="",$C11=$B$6),1,0)) -> 1 | Q11: =IF($C11=$B$7,F11,0) -> 0 | R11: =(IF(AND($E11="",$C11=$B$7),1,0)) -> 1 | AA11: =IF(Z11=D11,1,0) -> 1 | AB11: =IF(Z11=0,0,1) -> 0 | AC11: =IF(AA11+AB11=2,"Korrekt","") -> 
A12: 3 | F12: 0 | G12: 0 | H12: 1 | I12: 0 | J12: 1 | K12: 0 | L12: 1 | M12: 0 | N12: 1 | O12: 0 | P12: 1 | Q12: 0 | R12: 1 | AA12: 1 | AB12: 0
A13: 4 | F13: 0 | G13: 0 | H13: 1 | I13: 0 | J13: 1 | K13: 0 | L13: 1 | M13: 0 | N13: 1 | O13: 0 | P13: 1 | Q13: 0 | R13: 1 | AA13: 1 | AB13: 0
A14: 5 | F14: 0 | G14: 0 | H14: 1 | I14: 0 | J14: 1 | K14: 0 | L14: 1 | M14: 0 | N14: 1 | O14: 0 | P14: 1 | Q14: 0 | R14: 1 | AA14: 1 | AB14: 0
A15: 6 | F15: 0 | G15: 0 | H15: 1 | I15: 0 | J15: 1 | K15: 0 | L15: 1 | M15: 0 | N15: 1 | O15: 0 | P15: 1 | Q15: 0 | R15: 1 | AA15: 1 | AB15: 0
A16: 7 | F16: 0 | G16: 0 | H16: 1 | I16: 0 | J16: 1 | K16: 0 | L16: 1 | M16: 0 | N16: 1 | O16: 0 | P16: 1 | Q16: 0 | R16: 1 | AA16: 1 | AB16: 0
A17: 8 | F17: 0 | G17: 0 | H17: 1 | I17: 0 | J17: 1 | K17: 0 | L17: 1 | M17: 0 | N17: 1 | O17: 0 | P17: 1 | Q17: 0 | R17: 1 | AA17: 1 | AB17: 0
A18: 9 | F18: 0 | G18: 0 | H18: 1 | I18: 0 | J18: 1 | K18: 0 | L18: 1 | M18: 0 | N18: 1 | O18: 0 | P18: 1 | Q18: 0 | R18: 1 | AA18: 1 | AB18: 0
A19: 10 | F19: 0 | G19: 0 | H19: 1 | I19: 0 | J19: 1 | K19: 0 | L19: 1 | M19: 0 | N19: 1 | O19: 0 | P19: 1 | Q19: 0 | R19: 1 | AA19: 1 | AB19: 0
A20: 11 | F20: 0 | G20: 0 | H20: 1 | I20: 0 | J20: 1 | K20: 0 | L20: 1 | M20: 0 | N20: 1 | O20: 0 | P20: 1 | Q20: 0 | R20: 1 | AA20: 1 | AB20: 0
A21: 12 | F21: 0 | G21: 0 | H21: 1 | I21: 0 | J21: 1 | K21: 0 | L21: 1 | M21: 0 | N21: 1 | O21: 0 | P21: 1 | Q21: 0 | R21: 1 | AA21: 1 | AB21: 0
A22: 13 | F22: 0 | G22: 0 | H22: 1 | I22: 0 | J22: 1 | K22: 0 | L22: 1 | M22: 0 | N22: 1 | O22: 0 | P22: 1 | Q22: 0 | R22: 1 | AA22: 1 | AB22: 0
A23: 14 | F23: 0 | G23: 0 | H23: 1 | I23: 0 | J23: 1 | K23: 0 | L23: 1 | M23: 0 | N23: 1 | O23: 0 | P23: 1 | Q23: 0 | R23: 1 | AA23: 1 | AB23: 0
A24: 15 | F24: 0 | G24: 0 | H24: 1 | I24: 0 | J24: 1 | K24: 0 | L24: 1 | M24: 0 | N24: 1 | O24: 0 | P24: 1 | Q24: 0 | R24: 1 | AA24: 1 | AB24: 0
A25: 16 | F25: 0 | G25: 0 | H25: 1 | I25: 0 | J25: 1 | K25: 0 | L25: 1 | M25: 0 | N25: 1 | O25: 0 | P25: 1 | Q25: 0 | R25: 1 | AA25: 1 | AB25: 0
A26: 17 | F26: 0 | G26: 0 | H26: 1 | I26: 0 | J26: 1 | K26: 0 | L26: 1 | M26: 0 | N26: 1 | O26: 0 | P26: 1 | Q26: 0 | R26: 1 | AA26: 1 | AB26: 0
A27: 18 | F27: 0 | G27: 0 | H27: 1 | I27: 0 | J27: 1 | K27: 0 | L27: 1 | M27: 0 | N27: 1 | O27: 0 | P27: 1 | Q27: 0 | R27: 1 | AA27: 1 | AB27: 0
A28: 19 | F28: 0 | G28: 0 | H28: 1 | I28: 0 | J28: 1 | K28: 0 | L28: 1 | M28: 0 | N28: 1 | O28: 0 | P28: 1 | Q28: 0 | R28: 1 | AA28: 1 | AB28: 0
A29: 20 | F29: 0 | G29: 0 | H29: 1 | I29: 0 | J29: 1 | K29: 0 | L29: 1 | M29: 0 | N29: 1 | O29: 0 | P29: 1 | Q29: 0 | R29: 1 | AA29: 1 | AB29: 0
A30: 21 | F30: 0 | G30: 0 | H30: 1 | I30: 0 | J30: 1 | K30: 0 | L30: 1 | M30: 0 | N30: 1 | O30: 0 | P30: 1 | Q30: 0 | R30: 1 | AA30: 1 | AB30: 0
A31: 22 | F31: 0 | G31: 0 | H31: 1 | I31: 0 | J31: 1 | K31: 0 | L31: 1 | M31: 0 | N31: 1 | O31: 0 | P31: 1 | Q31: 0 | R31: 1 | AA31: 1 | AB31: 0
A32: 23 | F32: 0 | G32: 0 | H32: 1 | I32: 0 | J32: 1 | K32: 0 | L32: 1 | M32: 0 | N32: 1 | O32: 0 | P32: 1 | Q32: 0 | R32: 1 | AA32: 1 | AB32: 0
A33: 24 | F33: 0 | G33: 0 | H33: 1 | I33: 0 | J33: 1 | K33: 0 | L33: 1 | M33: 0 | N33: 1 | O33: 0 | P33: 1 | Q33: 0 | R33: 1 | AA33: 1 | AB33: 0
A34: 25 | F34: 0 | G34: 0 | H34: 1 | I34: 0 | J34: 1 | K34: 0 | L34: 1 | M34: 0 | N34: 1 | O34: 0 | P34: 1 | Q34: 0 | R34: 1 | AA34: 1 | AB34: 0
A35: 26 | F35: 0 | G35: 0 | H35: 1 | I35: 0 | J35: 1 | K35: 0 | L35: 1 | M35: 0 | N35: 1 | O35: 0 | P35: 1 | Q35: 0 | R35: 1 | AA35: 1 | AB35: 0
A36: 27 | F36: 0 | G36: 0 | H36: 1 | I36: 0 | J36: 1 | K36: 0 | L36: 1 | M36: 0 | N36: 1 | O36: 0 | P36: 1 | Q36: 0 | R36: 1 | AA36: 1 | AB36: 0
A37: 28 | F37: 0 | G37: 0 | H37: 1 | I37: 0 | J37: 1 | K37: 0 | L37: 1 | M37: 0 | N37: 1 | O37: 0 | P37: 1 | Q37: 0 | R37: 1 | AA37: 1 | AB37: 0
A38: 29 | F38: 0 | G38: 0 | H38: 1 | I38: 0 | J38: 1 | K38: 0 | L38: 1 | M38: 0 | N38: 1 | O38: 0 | P38: 1 | Q38: 0 | R38: 1 | AA38: 1 | AB38: 0
A39: 30 | F39: 0 | G39: 0 | H39: 1 | I39: 0 | J39: 1 | K39: 0 | L39: 1 | M39: 0 | N39: 1 | O39: 0 | P39: 1 | Q39: 0 | R39: 1 | AA39: 1 | AB39: 0
A40: 31 | F40: 0 | G40: 0 | H40: 1 | I40: 0 | J40: 1 | K40: 0 | L40: 1 | M40: 0 | N40: 1 | O40: 0 | P40: 1 | Q40: 0 | R40: 1 | AA40: 1 | AB40: 0
A41: 32 | F41: 0 | G41: 0 | H41: 1 | I41: 0 | J41: 1 | K41: 0 | L41: 1 | M41: 0 | N41: 1 | O41: 0 | P41: 1 | Q41: 0 | R41: 1 | AA41: 1 | AB41: 0
A42: 33 | F42: 0 | G42: 0 | H42: 1 | I42: 0 | J42: 1 | K42: 0 | L42: 1 | M42: 0 | N42: 1 | O42: 0 | P42: 1 | Q42: 0 | R42: 1 | AA42: 1 | AB42: 0
A43: 34 | F43: 0 | G43: 0 | H43: 1 | I43: 0 | J43: 1 | K43: 0 | L43: 1 | M43: 0 | N43: 1 | O43: 0 | P43: 1 | Q43: 0 | R43: 1 | AA43: 1 | AB43: 0
A44: 35 | F44: 0 | G44: 0 | H44: 1 | I44: 0 | J44: 1 | K44: 0 | L44: 1 | M44: 0 | N44: 1 | O44: 0 | P44: 1 | Q44: 0 | R44: 1 | AA44: 1 | AB44: 0
A45: 36 | F45: 0 | G45: 0 | H45: 1 | I45: 0 | J45: 1 | K45: 0 | L45: 1 | M45: 0 | N45: 1 | O45: 0 | P45: 1 | Q45: 0 | R45: 1 | AA45: 1 | AB45: 0
G46: =LARGE(G10:G45,1)+LARGE(G10:G45,2)+LARGE(G10:G45,3) -> 0 | H46: =SUM(H10:H45) -> 36 | I46: =LARGE(I10:I45,1)+LARGE(I10:I45,2)+LARGE(I10:I45,3) -> 0 | J46: =SUM(J10:J45) -> 36 | K46: =LARGE(K10:K45,1)+LARGE(K10:K45,2)+LARGE(K10:K45,3) -> 0 | L46: =SUM(L10:L45) -> 36 | M46: =LARGE(M10:M45,1)+LARGE(M10:M45,2)+LARGE(M10:M45,3) -> 0 | N46: =SUM(N10:N45) -> 36 | O46: =LARGE(O10:O45,1)+LARGE(O10:O45,2)+LARGE(O10:O45,3) -> 0 | P46: =SUM(P10:P45) -> 36 | Q46: =LARGE(Q10:Q45,1)+LARGE(Q10:Q45,2)+LARGE(Q10:Q45,3) -> 0 | R46: =SUM(R10:S45) -> 36
B48: Bitte beachtet, dass die Standaufsicht benannt werden muss

Sheet Übersicht Schützen (hidden)
C1: 1.0 | D1: 2.0 | E1: 3.0 | F1: 4.0 | G1: 5.0 | H1: 6.0 | L1: 7.0 | M1: 8.0 | N1: 9.0 | O1: 10.0 | P1: 11.0 | Q1: 12.0
A2: Meibers Michael | B2: =VLOOKUP(A2,'Wettkampf 1'!$B$10:$C$45,2,FALSE) -> Esterwegen III | C2: =VLOOKUP(A2,'Wettkampf 1'!$B$10:$D$45,3,FALSE) -> 310.3 | D2: =VLOOKUP($A2,'2'!$B$10:$D$45,3,FALSE) -> 315.0 | E2: =VLOOKUP($A2,'3'!$B$10:$D$45,3,FALSE) -> 315.8 | F2: =VLOOKUP($A2,'4'!$B$10:$D$45,3,FALSE) -> 312.1 | G2: =VLOOKUP($A2,'5'!$B$10:$D$45,3,FALSE) -> 316.4 | H2: =VLOOKUP($A2,'6'!$B$10:$D$45,3,FALSE) -> 313.3 | I2: =IF(J2 > 0,K2/J2,0) -> 313.8 | J2: =VLOOKUP(A2,Formelhilfe!$A$9:$H$44,8,FALSE) -> 6.0 | K2: =SUM(C2:H2) -> 1,882.9 | L2: =VLOOKUP($A2,'7'!$B$10:$D$45,3,FALSE) -> 317.9 | M2: =VLOOKUP($A2,'8'!$B$10:$D$45,3,FALSE) -> 314.6 | N2: =VLOOKUP($A2,'9'!$B$10:$D$45,3,FALSE) -> 317.6 | O2: =VLOOKUP($A2,'10'!$B$10:$D$45,3,FALSE) -> 315.6 | P2: =VLOOKUP($A2,'11'!$B$10:$D$45,3,FALSE) -> 315.0 | Q2: =VLOOKUP($A2,'12'!$B$10:$D$45,3,FALSE) -> 315.8 | R2: =IF(S2 >0,T2/S2,0) -> 316.1 | S2: =VLOOKUP(A2,Formelhilfe!$A$9:$O$44,15,FALSE) -> 6.0 | T2: =SUM(L2:Q2) -> 1,896.5 | U2: =IF(V2>0,W2/V2,0) -> 315.0 | V2: =VLOOKUP(A2,Formelhilfe!$A$9:$P$44,16,FALSE) -> 12.0 | W2: =SUM(C2:H2,L2:Q2) -> 3,779.4
A3: Zdralik Ingo | B3: =VLOOKUP(A3,'Wettkampf 1'!$B$10:$C$45,2,FALSE) -> Börger II | C3: =VLOOKUP(A3,'Wettkampf 1'!$B$10:$D$45,3,FALSE) -> 315.8 | D3: =VLOOKUP($A3,'2'!$B$10:$D$45,3,FALSE) -> 311.1 | E3: =VLOOKUP($A3,'3'!$B$10:$D$45,3,FALSE) -> 310.9 | F3: =VLOOKUP($A3,'4'!$B$10:$D$45,3,FALSE) -> 313.7 | G3: =VLOOKUP($A3,'5'!$B$10:$D$45,3,FALSE) -> 318.8 | H3: =VLOOKUP($A3,'6'!$B$10:$D$45,3,FALSE) -> 305.4 | I3: =IF(J3 > 0,K3/J3,0) -> 312.6 | J3: =VLOOKUP(A3,Formelhilfe!$A$9:$H$44,8,FALSE) -> 6.0 | K3: =SUM(C3:H3) -> 1,875.7 | L3: =VLOOKUP($A3,'7'!$B$10:$D$45,3,FALSE) -> 314.0 | M3: =VLOOKUP($A3,'8'!$B$10:$D$45,3,FALSE) -> 315.4 | N3: =VLOOKUP($A3,'9'!$B$10:$D$45,3,FALSE) -> 312.8 | O3: =VLOOKUP($A3,'10'!$B$10:$D$45,3,FALSE) -> 314.5 | P3: =VLOOKUP($A3,'11'!$B$10:$D$45,3,FALSE) -> 315.7 | Q3: =VLOOKUP($A3,'12'!$B$10:$D$45,3,FALSE) -> 315.8 | R3: =IF(S3 >0,T3/S3,0) -> 314.7 | S3: =VLOOKUP(A3,Formelhilfe!$A$9:$O$44,15,FALSE) -> 6.0 | T3: =SUM(L3:Q3) -> 1,888.2 | U3: =IF(V3>0,W3/V3,0) -> 313.7 | V3: =VLOOKUP(A3,Formelhilfe!$A$9:$P$44,16,FALSE) -> 12.0 | W3: =SUM(C3:H3,L3:Q3) -> 3,763.9
A4: Bookjans Günther | B4: =VLOOKUP(A4,'Wettkampf 1'!$B$10:$C$45,2,FALSE) -> Rastdorf III | C4: =VLOOKUP(A4,'Wettkampf 1'!$B$10:$D$45,3,FALSE) -> 311.7 | D4: =VLOOKUP($A4,'2'!$B$10:$D$45,3,FALSE) -> 315.8 | E4: =VLOOKUP($A4,'3'!$B$10:$D$45,3,FALSE) -> 311.5 | F4: =VLOOKUP($A4,'4'!$B$10:$D$45,3,FALSE) -> 308.0 | G4: =VLOOKUP($A4,'5'!$B$10:$D$45,3,FALSE) -> 316.7 | H4: =VLOOKUP($A4,'6'!$B$10:$D$45,3,FALSE) -> 314.1 | I4: =IF(J4 > 0,K4/J4,0) -> 313.0 | J4: =VLOOKUP(A4,Formelhilfe!$A$9:$H$44,8,FALSE) -> 6.0 | K4: =SUM(C4:H4) -> 1,877.8 | L4: =VLOOKUP($A4,'7'!$B$10:$D$45,3,FALSE) -> 314.2 | M4: =VLOOKUP($A4,'8'!$B$10:$D$45,3,FALSE) -> 313.4 | N4: =VLOOKUP($A4,'9'!$B$10:$D$45,3,FALSE) -> 309.2 | O4: =VLOOKUP($A4,'10'!$B$10:$D$45,3,FALSE) -> 311.7 | P4: =VLOOKUP($A4,'11'!$B$10:$D$45,3,FALSE) -> 318.4 | Q4: =VLOOKUP($A4,'12'!$B$10:$D$45,3,FALSE) -> 309.5 | R4: =IF(S4 >0,T4/S4,0) -> 312.7 | S4: =VLOOKUP(A4,Formelhilfe!$A$9:$O$44,15,FALSE) -> 6.0 | T4: =SUM(L4:Q4) -> 1,876.4 | U4: =IF(V4>0,W4/V4,0) -> 312.9 | V4: =VLOOKUP(A4,Formelhilfe!$A$9:$P$44,16,FALSE) -> 12.0 | W4: =SUM(C4:H4,L4:Q4) -> 3,754.2
A5: Wotte Robert | B5: =VLOOKUP(A5,'Wettkampf 1'!$B$10:$C$45,2,FALSE) -> Rastdorf III | C5: =VLOOKUP(A5,'Wettkampf 1'!$B$10:$D$45,3,FALSE) -> 317.6 | D5: =VLOOKUP($A5,'2'!$B$10:$D$45,3,FALSE) -> 309.4 | E5: =VLOOKUP($A5,'3'!$B$10:$D$45,3,FALSE) -> 313.7 | F5: =VLOOKUP($A5,'4'!$B$10:$D$45,3,FALSE) -> 308.4 | G5: =VLOOKUP($A5,'5'!$B$10:$D$45,3,FALSE) -> 315.3 | H5: =VLOOKUP($A5,'6'!$B$10:$D$45,3,FALSE) -> 313.1 | I5: =IF(J5 > 0,K5/J5,0) -> 312.9 | J5: =VLOOKUP(A5,Formelhilfe!$A$9:$H$44,8,FALSE) -> 6.0 | K5: =SUM(C5:H5) -> 1,877.5 | L5: =VLOOKUP($A5,'7'!$B$10:$D$45,3,FALSE) -> 311.7 | M5: =VLOOKUP($A5,'8'!$B$10:$D$45,3,FALSE) -> 310.9 | N5: =VLOOKUP($A5,'9'!$B$10:$D$45,3,FALSE) -> 314.4 | O5: =VLOOKUP($A5,'10'!$B$10:$D$45,3,FALSE) -> 308.4 | P5: =VLOOKUP($A5,'11'!$B$10:$D$45,3,FALSE) -> 315.0 | Q5: =VLOOKUP($A5,'12'!$B$10:$D$45,3,FALSE) -> 312.3 | R5: =IF(S5 >0,T5/S5,0) -> 312.1 | S5: =VLOOKUP(A5,Formelhilfe!$A$9:$O$44,15,FALSE) -> 6.0 | T5: =SUM(L5:Q5) -> 1,872.7 | U5: =IF(V5>0,W5/V5,0) -> 312.5 | V5: =VLOOKUP(A5,Formelhilfe!$A$9:$P$44,16,FALSE) -> 12.0 | W5: =SUM(C5:H5,L5:Q5) -> 3,750.2
A6: Janßen Markus | B6: =VLOOKUP(A6,'Wettkampf 1'!$B$10:$C$45,2,FALSE) -> Neuvrees I | C6: =VLOOKUP(A6,'Wettkampf 1'!$B$10:$D$45,3,FALSE) -> 314.0 | D6: =VLOOKUP($A6,'2'!$B$10:$D$45,3,FALSE) -> 311.8 | E6: =VLOOKUP($A6,'3'!$B$10:$D$45,3,FALSE) -> 310.5 | F6: =VLOOKUP($A6,'4'!$B$10:$D$45,3,FALSE) -> 313.2 | G6: =VLOOKUP($A6,'5'!$B$10:$D$45,3,FALSE) -> 315.6 | H6: =VLOOKUP($A6,'6'!$B$10:$D$45,3,FALSE) -> 309.6 | I6: =IF(J6 > 0,K6/J6,0) -> 312.5 | J6: =VLOOKUP(A6,Formelhilfe!$A$9:$H$44,8,FALSE) -> 6.0 | K6: =SUM(C6:H6) -> 1,874.7 | L6: =VLOOKUP($A6,'7'!$B$10:$D$45,3,FALSE) -> 312.3 | M6: =VLOOKUP($A6,'8'!$B$10:$D$45,3,FALSE) -> 310.8 | N6: =VLOOKUP($A6,'9'!$B$10:$D$45,3,FALSE) -> 312.1 | O6: =VLOOKUP($A6,'10'!$B$10:$D$45,3,FALSE) -> 305.4 | P6: =VLOOKUP($A6,'11'!$B$10:$D$45,3,FALSE) -> 314.2 | Q6: =VLOOKUP($A6,'12'!$B$10:$D$45,3,FALSE) -> 313.9 | R6: =IF(S6 >0,T6/S6,0) -> 311.5 | S6: =VLOOKUP(A6,Formelhilfe!$A$9:$O$44,15,FALSE) -> 6.0 | T6: =SUM(L6:Q6) -> 1,868.7 | U6: =IF(V6>0,W6/V6,0) -> 312.0 | V6: =VLOOKUP(A6,Formelhilfe!$A$9:$P$44,16,FALSE) -> 12.0 | W6: =SUM(C6:H6,L6:Q6) -> 3,743.4
A7: Middendorf Peter | B7: =VLOOKUP(A7,'Wettkampf 1'!$B$10:$C$45,2,FALSE) -> Esterwegen III | C7: =VLOOKUP(A7,'Wettkampf 1'!$B$10:$D$45,3,FALSE) -> 312.2 | D7: =VLOOKUP($A7,'2'!$B$10:$D$45,3,FALSE) -> 311.3 | E7: =VLOOKUP($A7,'3'!$B$10:$D$45,3,FALSE) -> 303.2 | F7: =VLOOKUP($A7,'4'!$B$10:$D$45,3,FALSE) -> 313.8 | G7: =VLOOKUP($A7,'5'!$B$10:$D$45,3,FALSE) -> 313.4 | H7: =VLOOKUP($A7,'6'!$B$10:$D$45,3,FALSE) -> 314.3 | I7: =IF(J7 > 0,K7/J7,0) -> 311.4 | J7: =VLOOKUP(A7,Formelhilfe!$A$9:$H$44,8,FALSE) -> 6.0 | K7: =SUM(C7:H7) -> 1,868.2 | L7: =VLOOKUP($A7,'7'!$B$10:$D$45,3,FALSE) -> 313.0 | M7: =VLOOKUP($A7,'8'!$B$10:$D$45,3,FALSE) -> 310.9 | N7: =VLOOKUP($A7,'9'!$B$10:$D$45,3,FALSE) -> 306.6 | O7: =VLOOKUP($A7,'10'!$B$10:$D$45,3,FALSE) -> 315.5 | P7: =VLOOKUP($A7,'11'!$B$10:$D$45,3,FALSE) -> 311.9 | Q7: =VLOOKUP($A7,'12'!$B$10:$D$45,3,FALSE) -> 316.1 | R7: =IF(S7 >0,T7/S7,0) -> 312.3 | S7: =VLOOKUP(A7,Formelhilfe!$A$9:$O$44,15,FALSE) -> 6.0 | T7: =SUM(L7:Q7) -> 1,874.0 | U7: =IF(V7>0,W7/V7,0) -> 311.9 | V7: =VLOOKUP(A7,Formelhilfe!$A$9:$P$44,16,FALSE) -> 12.0 | W7: =SUM(C7:H7,L7:Q7) -> 3,742.2
A8: Breyer Wilfried | B8: =VLOOKUP(A8,'Wettkampf 1'!$B$10:$C$45,2,FALSE) -> Neuvrees I | C8: =VLOOKUP(A8,'Wettkampf 1'!$B$10:$D$45,3,FALSE) -> 312.0 | D8: =VLOOKUP($A8,'2'!$B$10:$D$45,3,FALSE) -> 312.4 | E8: =VLOOKUP($A8,'3'!$B$10:$D$45,3,FALSE) -> 308.5 | F8: =VLOOKUP($A8,'4'!$B$10:$D$45,3,FALSE) -> 311.3 | G8: =VLOOKUP($A8,'5'!$B$10:$D$45,3,FALSE) -> 312.1 | H8: =VLOOKUP($A8,'6'!$B$10:$D$45,3,FALSE) -> 312.9 | I8: =IF(J8 > 0,K8/J8,0) -> 311.5 | J8: =VLOOKUP(A8,Formelhilfe!$A$9:$H$44,8,FALSE) -> 6.0 | K8: =SUM(C8:H8) -> 1,869.2 | L8: =VLOOKUP($A8,'7'!$B$10:$D$45,3,FALSE) -> 310.1 | M8: =VLOOKUP($A8,'8'!$B$10:$D$45,3,FALSE) -> 308.4 | N8: =VLOOKUP($A8,'9'!$B$10:$D$45,3,FALSE) -> 313.0 | O8: =VLOOKUP($A8,'10'!$B$10:$D$45,3,FALSE) -> 310.0 | P8: =VLOOKUP($A8,'11'!$B$10:$D$45,3,FALSE) -> 310.6 | Q8: =VLOOKUP($A8,'12'!$B$10:$D$45,3,FALSE) -> 311.5 | R8: =IF(S8 >0,T8/S8,0) -> 310.6 | S8: =VLOOKUP(A8,Formelhilfe!$A$9:$O$44,15,FALSE) -> 6.0 | T8: =SUM(L8:Q8) -> 1,863.6 | U8: =IF(V8>0,W8/V8,0) -> 311.1 | V8: =VLOOKUP(A8,Formelhilfe!$A$9:$P$44,16,FALSE) -> 12.0 | W8: =SUM(C8:H8,L8:Q8) -> 3,732.8
A9: Micksch Heiko | B9: =VLOOKUP(A9,'Wettkampf 1'!$B$10:$C$45,2,FALSE) -> Spahnharrenstätte II | C9: =VLOOKUP(A9,'Wettkampf 1'!$B$10:$D$45,3,FALSE) -> 310.6 | D9: =VLOOKUP($A9,'2'!$B$10:$D$45,3,FALSE) -> 308.4 | E9: =VLOOKUP($A9,'3'!$B$10:$D$45,3,FALSE) -> 308.7 | F9: =VLOOKUP($A9,'4'!$B$10:$D$45,3,FALSE) -> 312.8 | G9: =VLOOKUP($A9,'5'!$B$10:$D$45,3,FALSE) -> 314.8 | H9: =VLOOKUP($A9,'6'!$B$10:$D$45,3,FALSE) -> 312.6 | I9: =IF(J9 > 0,K9/J9,0) -> 311.3 | J9: =VLOOKUP(A9,Formelhilfe!$A$9:$H$44,8,FALSE) -> 6.0 | K9: =SUM(C9:H9) -> 1,867.9 | L9: =VLOOKUP($A9,'7'!$B$10:$D$45,3,FALSE) -> 312.0 | M9: =VLOOKUP($A9,'8'!$B$10:$D$45,3,FALSE) -> 311.0 | N9: =VLOOKUP($A9,'9'!$B$10:$D$45,3,FALSE) -> 307.3 | O9: =VLOOKUP($A9,'10'!$B$10:$D$45,3,FALSE) -> 309.1 | P9: =VLOOKUP($A9,'11'!$B$10:$D$45,3,FALSE) -> 314.2 | Q9: =VLOOKUP($A9,'12'!$B$10:$D$45,3,FALSE) -> 310.8 | R9: =IF(S9 >0,T9/S9,0) -> 310.7 | S9: =VLOOKUP(A9,Formelhilfe!$A$9:$O$44,15,FALSE) -> 6.0 | T9: =SUM(L9:Q9) -> 1,864.4 | U9: =IF(V9>0,W9/V9,0) -> 311.0 | V9: =VLOOKUP(A9,Formelhilfe!$A$9:$P$44,16,FALSE) -> 12.0 | W9: =SUM(C9:H9,L9:Q9) -> 3,732.3
A10: Hanenkamp Andre | B10: =VLOOKUP(A10,'Wettkampf 1'!$B$10:$C$45,2,FALSE) -> Börgerwald II | C10: =VLOOKUP(A10,'Wettkampf 1'!$B$10:$D$45,3,FALSE) -> 313.3 | D10: =VLOOKUP($A10,'2'!$B$10:$D$45,3,FALSE) -> 304.4 | E10: =VLOOKUP($A10,'3'!$B$10:$D$45,3,FALSE) -> 311.3 | F10: =VLOOKUP($A10,'4'!$B$10:$D$45,3,FALSE) -> 313.0 | G10: =VLOOKUP($A10,'5'!$B$10:$D$45,3,FALSE) -> 310.9 | H10: =VLOOKUP($A10,'6'!$B$10:$D$45,3,FALSE) -> 313.1 | I10: =IF(J10 > 0,K10/J10,0) -> 311.0 | J10: =VLOOKUP(A10,Formelhilfe!$A$9:$H$44,8,FALSE) -> 6.0 | K10: =SUM(C10:H10) -> 1,866.0 | L10: =VLOOKUP($A10,'7'!$B$10:$D$45,3,FALSE) -> 309.3 | M10: =VLOOKUP($A10,'8'!$B$10:$D$45,3,FALSE) -> 310.2 | N10: =VLOOKUP($A10,'9'!$B$10:$D$45,3,FALSE) -> 311.9 | O10: =VLOOKUP($A10,'10'!$B$10:$D$45,3,FALSE) -> 312.2 | P10: =VLOOKUP($A10,'11'!$B$10:$D$45,3,FALSE) -> 312.6 | Q10: =VLOOKUP($A10,'12'!$B$10:$D$45,3,FALSE) -> 308.9 | R10: =IF(S10 >0,T10/S10,0) -> 310.9 | S10: =VLOOKUP(A10,Formelhilfe!$A$9:$O$44,15,FALSE) -> 6.0 | T10: =SUM(L10:Q10) -> 1,865.1 | U10: =IF(V10>0,W10/V10,0) -> 310.9 | V10: =VLOOKUP(A10,Formelhilfe!$A$9:$P$44,16,FALSE) -> 12.0 | W10: =SUM(C10:H10,L10:Q10) -> 3,731.1
A11: Meer Michael | B11: =VLOOKUP(A11,'Wettkampf 1'!$B$10:$C$45,2,FALSE) -> Rastdorf III | C11: =VLOOKUP(A11,'Wettkampf 1'!$B$10:$D$45,3,FALSE) -> 312.6 | D11: =VLOOKUP($A11,'2'!$B$10:$D$45,3,FALSE) -> 313.5 | E11: =VLOOKUP($A11,'3'!$B$10:$D$45,3,FALSE) -> 310.4 | F11: =VLOOKUP($A11,'4'!$B$10:$D$45,3,FALSE) -> 313.4 | G11: =VLOOKUP($A11,'5'!$B$10:$D$45,3,FALSE) -> 314.3 | H11: =VLOOKUP($A11,'6'!$B$10:$D$45,3,FALSE) -> 311.8 | I11: =IF(J11 > 0,K11/J11,0) -> 312.7 | J11: =VLOOKUP(A11,Formelhilfe!$A$9:$H$44,8,FALSE) -> 6.0 | K11: =SUM(C11:H11) -> 1,876.0 | L11: =VLOOKUP($A11,'7'!$B$10:$D$45,3,FALSE) -> 310.5 | M11: =VLOOKUP($A11,'8'!$B$10:$D$45,3,FALSE) -> 304.9 | N11: =VLOOKUP($A11,'9'!$B$10:$D$45,3,FALSE) -> 305.6 | O11: =VLOOKUP($A11,'10'!$B$10:$D$45,3,FALSE) -> 303.2 | P11: =VLOOKUP($A11,'11'!$B$10:$D$45,3,FALSE) -> 312.5 | Q11: =VLOOKUP($A11,'12'!$B$10:$D$45,3,FALSE) -> 313.7 | R11: =IF(S11 >0,T11/S11,0) -> 308.4 | S11: =VLOOKUP(A11,Formelhilfe!$A$9:$O$44,15,FALSE) -> 6.0 | T11: =SUM(L11:Q11) -> 1,850.4 | U11: =IF(V11>0,W11/V11,0) -> 310.5 | V11: =VLOOKUP(A11,Formelhilfe!$A$9:$P$44,16,FALSE) -> 12.0 | W11: =SUM(C11:H11,L11:Q11) -> 3,726.4
A12: Schröer Friedhelm | B12: =VLOOKUP(A12,'Wettkampf 1'!$B$10:$C$45,2,FALSE) -> Börgerwald II | C12: =VLOOKUP(A12,'Wettkampf 1'!$B$10:$D$45,3,FALSE) -> 306.3 | D12: =VLOOKUP($A12,'2'!$B$10:$D$45,3,FALSE) -> 309.3 | E12: =VLOOKUP($A12,'3'!$B$10:$D$45,3,FALSE) -> 307.8 | F12: =VLOOKUP($A12,'4'!$B$10:$D$45,3,FALSE) -> 310.5 | G12: =VLOOKUP($A12,'5'!$B$10:$D$45,3,FALSE) -> 311.3 | H12: =VLOOKUP($A12,'6'!$B$10:$D$45,3,FALSE) -> 311.1 | I12: =IF(J12 > 0,K12/J12,0) -> 309.4 | J12: =VLOOKUP(A12,Formelhilfe!$A$9:$H$44,8,FALSE) -> 6.0 | K12: =SUM(C12:H12) -> 1,856.3 | L12: =VLOOKUP($A12,'7'!$B$10:$D$45,3,FALSE) -> 306.4 | M12: =VLOOKUP($A12,'8'!$B$10:$D$45,3,FALSE) -> 310.5 | N12: =VLOOKUP($A12,'9'!$B$10:$D$45,3,FALSE) -> 312.0 | O12: =VLOOKUP($A12,'10'!$B$10:$D$45,3,FALSE) -> 311.3 | P12: =VLOOKUP($A12,'11'!$B$10:$D$45,3,FALSE) -> 312.0 | Q12: =VLOOKUP($A12,'12'!$B$10:$D$45,3,FALSE) -> 315.7 | R12: =IF(S12 >0,T12/S12,0) -> 311.3 | S12: =VLOOKUP(A12,Formelhilfe!$A$9:$O$44,15,FALSE) -> 6.0 | T12: =SUM(L12:Q12) -> 1,867.9 | U12: =IF(V12>0,W12/V12,0) -> 310.4 | V12: =VLOOKUP(A12,Formelhilfe!$A$9:$P$44,16,FALSE) -> 12.0 | W12: =SUM(C12:H12,L12:Q12) -> 3,724.2
A13: Will Achim | B13: =VLOOKUP(A13,'Wettkampf 1'!$B$10:$C$45,2,FALSE) -> Spahnharrenstätte II | C13: =VLOOKUP(A13,'Wettkampf 1'!$B$10:$D$45,3,FALSE) -> 307.0 | D13: =VLOOKUP($A13,'2'!$B$10:$D$45,3,FALSE) -> 313.5 | E13: =VLOOKUP($A13,'3'!$B$10:$D$45,3,FALSE) -> 309.9 | F13: =VLOOKUP($A13,'4'!$B$10:$D$45,3,FALSE) -> 310.0 | G13: =VLOOKUP($A13,'5'!$B$10:$D$45,3,FALSE) -> 312.0 | H13: =VLOOKUP($A13,'6'!$B$10:$D$45,3,FALSE) -> 313.7 | I13: =IF(J13 > 0,K13/J13,0) -> 311.0 | J13: =VLOOKUP(A13,Formelhilfe!$A$9:$H$44,8,FALSE) -> 6.0 | K13: =SUM(C13:H13) -> 1,866.1 | L13: =VLOOKUP($A13,'7'!$B$10:$D$45,3,FALSE) -> 308.6 | M13: =VLOOKUP($A13,'8'!$B$10:$D$45,3,FALSE) -> 309.4 | N13: =VLOOKUP($A13,'9'!$B$10:$D$45,3,FALSE) -> 310.3 | O13: =VLOOKUP($A13,'10'!$B$10:$D$45,3,FALSE) -> 305.9 | P13: =VLOOKUP($A13,'11'!$B$10:$D$45,3,FALSE) -> 308.1 | Q13: =VLOOKUP($A13,'12'!$B$10:$D$45,3,FALSE) -> 312.7 | R13: =IF(S13 >0,T13/S13,0) -> 309.2 | S13: =VLOOKUP(A13,Formelhilfe!$A$9:$O$44,15,FALSE) -> 6.0 | T13: =SUM(L13:Q13) -> 1,855.0 | U13: =IF(V13>0,W13/V13,0) -> 310.1 | V13: =VLOOKUP(A13,Formelhilfe!$A$9:$P$44,16,FALSE) -> 12.0 | W13: =SUM(C13:H13,L13:Q13) -> 3,721.1
A14: Schulte Mathias | B14: =VLOOKUP(A14,'Wettkampf 1'!$B$10:$C$45,2,FALSE) -> Esterwegen III | C14: =VLOOKUP(A14,'Wettkampf 1'!$B$10:$D$45,3,FALSE) -> 310.8 | D14: =VLOOKUP($A14,'2'!$B$10:$D$45,3,FALSE) -> 308.4 | E14: =VLOOKUP($A14,'3'!$B$10:$D$45,3,FALSE) -> 310.6 | F14: =VLOOKUP($A14,'4'!$B$10:$D$45,3,FALSE) -> 312.7 | G14: =VLOOKUP($A14,'5'!$B$10:$D$45,3,FALSE) -> 311.9 | H14: =VLOOKUP($A14,'6'!$B$10:$D$45,3,FALSE) -> 308.5 | I14: =IF(J14 > 0,K14/J14,0) -> 310.5 | J14: =VLOOKUP(A14,Formelhilfe!$A$9:$H$44,8,FALSE) -> 6.0 | K14: =SUM(C14:H14) -> 1,862.9 | L14: =VLOOKUP($A14,'7'!$B$10:$D$45,3,FALSE) -> 306.2 | M14: =VLOOKUP($A14,'8'!$B$10:$D$45,3,FALSE) -> 308.6 | N14: =VLOOKUP($A14,'9'!$B$10:$D$45,3,FALSE) -> 308.3 | O14: =VLOOKUP($A14,'10'!$B$10:$D$45,3,FALSE) -> 307.8 | P14: =VLOOKUP($A14,'11'!$B$10:$D$45,3,FALSE) -> 312.5 | Q14: =VLOOKUP($A14,'12'!$B$10:$D$45,3,FALSE) -> 310.0 | R14: =IF(S14 >0,T14/S14,0) -> 308.9 | S14: =VLOOKUP(A14,Formelhilfe!$A$9:$O$44,15,FALSE) -> 6.0 | T14: =SUM(L14:Q14) -> 1,853.4 | U14: =IF(V14>0,W14/V14,0) -> 309.7 | V14: =VLOOKUP(A14,Formelhilfe!$A$9:$P$44,16,FALSE) -> 12.0 | W14: =SUM(C14:H14,L14:Q14) -> 3,716.3
A15: Müller Helmut | B15: =VLOOKUP(A15,'Wettkampf 1'!$B$10:$C$45,2,FALSE) -> Rastdorf III | C15: =VLOOKUP(A15,'Wettkampf 1'!$B$10:$D$45,3,FALSE) -> 315.8 | D15: =VLOOKUP($A15,'2'!$B$10:$D$45,3,FALSE) -> 309.0 | E15: =VLOOKUP($A15,'3'!$B$10:$D$45,3,FALSE) -> 309.8 | F15: =VLOOKUP($A15,'4'!$B$10:$D$45,3,FALSE) -> 306.9 | G15: =VLOOKUP($A15,'5'!$B$10:$D$45,3,FALSE) -> 308.3 | H15: =VLOOKUP($A15,'6'!$B$10:$D$45,3,FALSE) -> 312.0 | I15: =IF(J15 > 0,K15/J15,0) -> 310.3 | J15: =VLOOKUP(A15,Formelhilfe!$A$9:$H$44,8,FALSE) -> 6.0 | K15: =SUM(C15:H15) -> 1,861.8 | L15: =VLOOKUP($A15,'7'!$B$10:$D$45,3,FALSE) -> 310.1 | M15: =VLOOKUP($A15,'8'!$B$10:$D$45,3,FALSE) -> 310.1 | N15: =VLOOKUP($A15,'9'!$B$10:$D$45,3,FALSE) -> 312.4 | O15: =VLOOKUP($A15,'10'!$B$10:$D$45,3,FALSE) -> 302.8 | P15: =VLOOKUP($A15,'11'!$B$10:$D$45,3,FALSE) -> 310.2 | Q15: =VLOOKUP($A15,'12'!$B$10:$D$45,3,FALSE) -> 308.3 | R15: =IF(S15 >0,T15/S15,0) -> 309.0 | S15: =VLOOKUP(A15,Formelhilfe!$A$9:$O$44,15,FALSE) -> 6.0 | T15: =SUM(L15:Q15) -> 1,853.9 | U15: =IF(V15>0,W15/V15,0) -> 309.6 | V15: =VLOOKUP(A15,Formelhilfe!$A$9:$P$44,16,FALSE) -> 12.0 | W15: =SUM(C15:H15,L15:Q15) -> 3,715.7
A16: Antons Mathias | B16: =VLOOKUP(A16,'Wettkampf 1'!$B$10:$C$45,2,FALSE) -> Börgerwald II | C16: =VLOOKUP(A16,'Wettkampf 1'!$B$10:$D$45,3,FALSE) -> 308.9 | D16: =VLOOKUP($A16,'2'!$B$10:$D$45,3,FALSE) -> 309.0 | E16: =VLOOKUP($A16,'3'!$B$10:$D$45,3,FALSE) -> 308.3 | F16: =VLOOKUP($A16,'4'!$B$10:$D$45,3,FALSE) -> 303.3 | G16: =VLOOKUP($A16,'5'!$B$10:$D$45,3,FALSE) -> 309.1 | H16: =VLOOKUP($A16,'6'!$B$10:$D$45,3,FALSE) -> 306.5 | I16: =IF(J16 > 0,K16/J16,0) -> 307.5 | J16: =VLOOKUP(A16,Formelhilfe!$A$9:$H$44,8,FALSE) -> 6.0 | K16: =SUM(C16:H16) -> 1,845.1 | L16: =VLOOKUP($A16,'7'!$B$10:$D$45,3,FALSE) -> 308.8 | M16: =VLOOKUP($A16,'8'!$B$10:$D$45,3,FALSE) -> 310.0 | N16: =VLOOKUP($A16,'9'!$B$10:$D$45,3,FALSE) -> 309.6 | O16: =VLOOKUP($A16,'10'!$B$10:$D$45,3,FALSE) -> 306.2 | P16: =VLOOKUP($A16,'11'!$B$10:$D$45,3,FALSE) -> 313.6 | Q16: =VLOOKUP($A16,'12'!$B$10:$D$45,3,FALSE) -> 312.1 | R16: =IF(S16 >0,T16/S16,0) -> 310.1 | S16: =VLOOKUP(A16,Formelhilfe!$A$9:$O$44,15,FALSE) -> 6.0 | T16: =SUM(L16:Q16) -> 1,860.3 | U16: =IF(V16>0,W16/V16,0) -> 308.8 | V16: =VLOOKUP(A16,Formelhilfe!$A$9:$P$44,16,FALSE) -> 12.0 | W16: =SUM(C16:H16,L16:Q16) -> 3,705.4
A17: Hanneken Moritz | B17: =VLOOKUP(A17,'Wettkampf 1'!$B$10:$C$45,2,FALSE) -> Börgerwald II | C17: =VLOOKUP(A17,'Wettkampf 1'!$B$10:$D$45,3,FALSE) -> 307.4 | D17: =VLOOKUP($A17,'2'!$B$10:$D$45,3,FALSE) -> 304.1 | E17: =VLOOKUP($A17,'3'!$B$10:$D$45,3,FALSE) -> 310.8 | F17: =VLOOKUP($A17,'4'!$B$10:$D$45,3,FALSE) -> 307.8 | G17: =VLOOKUP($A17,'5'!$B$10:$D$45,3,FALSE) -> 306.8 | H17: =VLOOKUP($A17,'6'!$B$10:$D$45,3,FALSE) -> 305.6 | I17: =IF(J17 > 0,K17/J17,0) -> 307.1 | J17: =VLOOKUP(A17,Formelhilfe!$A$9:$H$44,8,FALSE) -> 6.0 | K17: =SUM(C17:H17) -> 1,842.5 | L17: =VLOOKUP($A17,'7'!$B$10:$D$45,3,FALSE) -> 306.4 | M17: =VLOOKUP($A17,'8'!$B$10:$D$45,3,FALSE) -> 309.2 | N17: =VLOOKUP($A17,'9'!$B$10:$D$45,3,FALSE) -> 307.3 | O17: =VLOOKUP($A17,'10'!$B$10:$D$45,3,FALSE) -> 308.1 | P17: =VLOOKUP($A17,'11'!$B$10:$D$45,3,FALSE) -> 316.1 | Q17: =VLOOKUP($A17,'12'!$B$10:$D$45,3,FALSE) -> 311.8 | R17: =IF(S17 >0,T17/S17,0) -> 309.8 | S17: =VLOOKUP(A17,Formelhilfe!$A$9:$O$44,15,FALSE) -> 6.0 | T17: =SUM(L17:Q17) -> 1,858.9 | U17: =IF(V17>0,W17/V17,0) -> 308.5 | V17: =VLOOKUP(A17,Formelhilfe!$A$9:$P$44,16,FALSE) -> 12.0 | W17: =SUM(C17:H17,L17:Q17) -> 3,701.4
A18: Steenken Klaus | B18: =VLOOKUP(A18,'Wettkampf 1'!$B$10:$C$45,2,FALSE) -> Neuvrees I | C18: =VLOOKUP(A18,'Wettkampf 1'!$B$10:$D$45,3,FALSE) -> 304.2 | D18: =VLOOKUP($A18,'2'!$B$10:$D$45,3,FALSE) -> 307.0 | E18: =VLOOKUP($A18,'3'!$B$10:$D$45,3,FALSE) -> 305.7 | F18: =VLOOKUP($A18,'4'!$B$10:$D$45,3,FALSE) -> 305.2 | G18: =VLOOKUP($A18,'5'!$B$10:$D$45,3,FALSE) -> 308.1 | H18: =VLOOKUP($A18,'6'!$B$10:$D$45,3,FALSE) -> 309.2 | I18: =IF(J18 > 0,K18/J18,0) -> 306.6 | J18: =VLOOKUP(A18,Formelhilfe!$A$9:$H$44,8,FALSE) -> 6.0 | K18: =SUM(C18:H18) -> 1,839.4 | L18: =VLOOKUP($A18,'7'!$B$10:$D$45,3,FALSE) -> 307.2 | M18: =VLOOKUP($A18,'8'!$B$10:$D$45,3,FALSE) -> 310.3 | N18: =VLOOKUP($A18,'9'!$B$10:$D$45,3,FALSE) -> 306.6 | O18: =VLOOKUP($A18,'10'!$B$10:$D$45,3,FALSE) -> 305.0 | P18: =VLOOKUP($A18,'11'!$B$10:$D$45,3,FALSE) -> 309.7 | Q18: =VLOOKUP($A18,'12'!$B$10:$D$45,3,FALSE) -> 309.6 | R18: =IF(S18 >0,T18/S18,0) -> 308.1 | S18: =VLOOKUP(A18,Formelhilfe!$A$9:$O$44,15,FALSE) -> 6.0 | T18: =SUM(L18:Q18) -> 1,848.4 | U18: =IF(V18>0,W18/V18,0) -> 307.3 | V18: =VLOOKUP(A18,Formelhilfe!$A$9:$P$44,16,FALSE) -> 12.0 | W18: =SUM(C18:H18,L18:Q18) -> 3,687.8
A19: Goldenstein Uwe | B19: =VLOOKUP(A19,'Wettkampf 1'!$B$10:$C$45,2,FALSE) -> Börger II | C19: =VLOOKUP(A19,'Wettkampf 1'!$B$10:$D$45,3,FALSE) -> 307.4 | D19: =VLOOKUP($A19,'2'!$B$10:$D$45,3,FALSE) -> 304.8 | E19: =VLOOKUP($A19,'3'!$B$10:$D$45,3,FALSE) -> 304.1 | F19: =VLOOKUP($A19,'4'!$B$10:$D$45,3,FALSE) -> 304.8 | G19: =VLOOKUP($A19,'5'!$B$10:$D$45,3,FALSE) -> 307.9 | H19: =VLOOKUP($A19,'6'!$B$10:$D$45,3,FALSE) -> 308.7 | I19: =IF(J19 > 0,K19/J19,0) -> 306.3 | J19: =VLOOKUP(A19,Formelhilfe!$A$9:$H$44,8,FALSE) -> 6.0 | K19: =SUM(C19:H19) -> 1,837.7 | L19: =VLOOKUP($A19,'7'!$B$10:$D$45,3,FALSE) -> 305.1 | M19: =VLOOKUP($A19,'8'!$B$10:$D$45,3,FALSE) -> 304.6 | N19: =VLOOKUP($A19,'9'!$B$10:$D$45,3,FALSE) -> 301.7 | O19: =VLOOKUP($A19,'10'!$B$10:$D$45,3,FALSE) -> 302.3 | P19: =VLOOKUP($A19,'11'!$B$10:$D$45,3,FALSE) -> 308.8 | Q19: =VLOOKUP($A19,'12'!$B$10:$D$45,3,FALSE) -> 305.3 | R19: =IF(S19 >0,T19/S19,0) -> 304.6 | S19: =VLOOKUP(A19,Formelhilfe!$A$9:$O$44,15,FALSE) -> 6.0 | T19: =SUM(L19:Q19) -> 1,827.8 | U19: =IF(V19>0,W19/V19,0) -> 305.5 | V19: =VLOOKUP(A19,Formelhilfe!$A$9:$P$44,16,FALSE) -> 12.0 | W19: =SUM(C19:H19,L19:Q19) -> 3,665.5
A20: Rolfes Wilhelm | B20: =VLOOKUP(A20,'Wettkampf 1'!$B$10:$C$45,2,FALSE) -> Neuvrees I | C20: =VLOOKUP(A20,'Wettkampf 1'!$B$10:$D$45,3,FALSE) -> 312.6 | D20: =VLOOKUP($A20,'2'!$B$10:$D$45,3,FALSE) -> 304.2 | E20: =VLOOKUP($A20,'3'!$B$10:$D$45,3,FALSE) -> 293.4 | F20: =VLOOKUP($A20,'4'!$B$10:$D$45,3,FALSE) -> 301.6 | G20: =VLOOKUP($A20,'5'!$B$10:$D$45,3,FALSE) -> 308.8 | H20: =VLOOKUP($A20,'6'!$B$10:$D$45,3,FALSE) -> 311.6 | I20: =IF(J20 > 0,K20/J20,0) -> 305.4 | J20: =VLOOKUP(A20,Formelhilfe!$A$9:$H$44,8,FALSE) -> 6.0 | K20: =SUM(C20:H20) -> 1,832.2 | L20: =VLOOKUP($A20,'7'!$B$10:$D$45,3,FALSE) -> 305.8 | M20: =VLOOKUP($A20,'8'!$B$10:$D$45,3,FALSE) -> 295.8 | N20: =VLOOKUP($A20,'9'!$B$10:$D$45,3,FALSE) -> 306.3 | O20: =VLOOKUP($A20,'10'!$B$10:$D$45,3,FALSE) -> 303.3 | P20: =VLOOKUP($A20,'11'!$B$10:$D$45,3,FALSE) -> 307.1 | Q20: =VLOOKUP($A20,'12'!$B$10:$D$45,3,FALSE) -> 311.7 | R20: =IF(S20 >0,T20/S20,0) -> 305.0 | S20: =VLOOKUP(A20,Formelhilfe!$A$9:$O$44,15,FALSE) -> 6.0 | T20: =SUM(L20:Q20) -> 1,830.0 | U20: =IF(V20>0,W20/V20,0) -> 305.2 | V20: =VLOOKUP(A20,Formelhilfe!$A$9:$P$44,16,FALSE) -> 12.0 | W20: =SUM(C20:H20,L20:Q20) -> 3,662.2
A21: Jungsthoefel Markus | B21: =VLOOKUP(A21,'Wettkampf 1'!$B$10:$C$45,2,FALSE) -> Börger II | C21: =VLOOKUP(A21,'Wettkampf 1'!$B$10:$D$45,3,FALSE) -> 308.3 | D21: =VLOOKUP($A21,'2'!$B$10:$D$45,3,FALSE) -> 303.5 | E21: =VLOOKUP($A21,'3'!$B$10:$D$45,3,FALSE) -> 305.4 | F21: =VLOOKUP($A21,'4'!$B$10:$D$45,3,FALSE) -> 306.1 | G21: =VLOOKUP($A21,'5'!$B$10:$D$45,3,FALSE) -> 307.5 | H21: =VLOOKUP($A21,'6'!$B$10:$D$45,3,FALSE) -> 309.1 | I21: =IF(J21 > 0,K21/J21,0) -> 306.7 | J21: =VLOOKUP(A21,Formelhilfe!$A$9:$H$44,8,FALSE) -> 6.0 | K21: =SUM(C21:H21) -> 1,839.9 | L21: =VLOOKUP($A21,'7'!$B$10:$D$45,3,FALSE) -> 299.6 | M21: =VLOOKUP($A21,'8'!$B$10:$D$45,3,FALSE) -> 307.9 | N21: =VLOOKUP($A21,'9'!$B$10:$D$45,3,FALSE) -> 308.6 | O21: =VLOOKUP($A21,'10'!$B$10:$D$45,3,FALSE) -> 287.8 | P21: =VLOOKUP($A21,'11'!$B$10:$D$45,3,FALSE) -> 301.6 | Q21: =VLOOKUP($A21,'12'!$B$10:$D$45,3,FALSE) -> 309.1 | R21: =IF(S21 >0,T21/S21,0) -> 302.4 | S21: =VLOOKUP(A21,Formelhilfe!$A$9:$O$44,15,FALSE) -> 6.0 | T21: =SUM(L21:Q21) -> 1,814.6 | U21: =IF(V21>0,W21/V21,0) -> 304.5 | V21: =VLOOKUP(A21,Formelhilfe!$A$9:$P$44,16,FALSE) -> 12.0 | W21: =SUM(C21:H21,L21:Q21) -> 3,654.5
A22: Thyen Werner | B22: =VLOOKUP(A22,'Wettkampf 1'!$B$10:$C$45,2,FALSE) -> Neuvrees I | C22: =VLOOKUP(A22,'Wettkampf 1'!$B$10:$D$45,3,FALSE) -> 304.5 | D22: =VLOOKUP($A22,'2'!$B$10:$D$45,3,FALSE) -> 295.7 | E22: =VLOOKUP($A22,'3'!$B$10:$D$45,3,FALSE) -> 302.9 | F22: =VLOOKUP($A22,'4'!$B$10:$D$45,3,FALSE) -> 304.7 | G22: =VLOOKUP($A22,'5'!$B$10:$D$45,3,FALSE) -> 303.0 | H22: =VLOOKUP($A22,'6'!$B$10:$D$45,3,FALSE) -> 303.3 | I22: =IF(J22 > 0,K22/J22,0) -> 302.4 | J22: =VLOOKUP(A22,Formelhilfe!$A$9:$H$44,8,FALSE) -> 6.0 | K22: =SUM(C22:H22) -> 1,814.1 | L22: =VLOOKUP($A22,'7'!$B$10:$D$45,3,FALSE) -> 302.3 | M22: =VLOOKUP($A22,'8'!$B$10:$D$45,3,FALSE) -> 306.1 | N22: =VLOOKUP($A22,'9'!$B$10:$D$45,3,FALSE) -> 301.5 | O22: =VLOOKUP($A22,'10'!$B$10:$D$45,3,FALSE) -> 307.8 | P22: =VLOOKUP($A22,'11'!$B$10:$D$45,3,FALSE) -> 309.0 | Q22: =VLOOKUP($A22,'12'!$B$10:$D$45,3,FALSE) -> 308.8 | R22: =IF(S22 >0,T22/S22,0) -> 305.9 | S22: =VLOOKUP(A22,Formelhilfe!$A$9:$O$44,15,FALSE) -> 6.0 | T22: =SUM(L22:Q22) -> 1,835.5 | U22: =IF(V22>0,W22/V22,0) -> 304.1 | V22: =VLOOKUP(A22,Formelhilfe!$A$9:$P$44,16,FALSE) -> 12.0 | W22: =SUM(C22:H22,L22:Q22) -> 3,649.6
A23: Sebers Tobias | B23: =VLOOKUP(A23,'Wettkampf 1'!$B$10:$C$45,2,FALSE) -> Börgerwald II | C23: =VLOOKUP(A23,'Wettkampf 1'!$B$10:$D$45,3,FALSE) -> 305.8 | D23: =VLOOKUP($A23,'2'!$B$10:$D$45,3,FALSE) -> 304.5 | E23: =VLOOKUP($A23,'3'!$B$10:$D$45,3,FALSE) -> 300.3 | F23: =VLOOKUP($A23,'4'!$B$10:$D$45,3,FALSE) -> 307.7 | G23: =VLOOKUP($A23,'5'!$B$10:$D$45,3,FALSE) -> 302.3 | H23: =VLOOKUP($A23,'6'!$B$10:$D$45,3,FALSE) -> 304.3 | I23: =IF(J23 > 0,K23/J23,0) -> 304.2 | J23: =VLOOKUP(A23,Formelhilfe!$A$9:$H$44,8,FALSE) -> 6.0 | K23: =SUM(C23:H23) -> 1,824.9 | L23: =VLOOKUP($A23,'7'!$B$10:$D$45,3,FALSE) -> 297.0 | M23: =VLOOKUP($A23,'8'!$B$10:$D$45,3,FALSE) -> 301.2 | N23: =VLOOKUP($A23,'9'!$B$10:$D$45,3,FALSE) -> 302.5 | O23: =VLOOKUP($A23,'10'!$B$10:$D$45,3,FALSE) -> 298.7 | P23: =VLOOKUP($A23,'11'!$B$10:$D$45,3,FALSE) -> 301.7 | Q23: =VLOOKUP($A23,'12'!$B$10:$D$45,3,FALSE) -> 305.1 | R23: =IF(S23 >0,T23/S23,0) -> 301.0 | S23: =VLOOKUP(A23,Formelhilfe!$A$9:$O$44,15,FALSE) -> 6.0 | T23: =SUM(L23:Q23) -> 1,806.2 | U23: =IF(V23>0,W23/V23,0) -> 302.6 | V23: =VLOOKUP(A23,Formelhilfe!$A$9:$P$44,16,FALSE) -> 12.0 | W23: =SUM(C23:H23,L23:Q23) -> 3,631.1
A24: Meyer Dirk | B24: =VLOOKUP(A24,'Wettkampf 1'!$B$10:$C$45,2,FALSE) -> Spahnharrenstätte II | C24: =VLOOKUP(A24,'Wettkampf 1'!$B$10:$D$45,3,FALSE) -> 311.1 | D24: =VLOOKUP($A24,'2'!$B$10:$D$45,3,FALSE) -> 312.6 | E24: =VLOOKUP($A24,'3'!$B$10:$D$45,3,FALSE) -> 313.0 | F24: =VLOOKUP($A24,'4'!$B$10:$D$45,3,FALSE) -> 312.9 | G24: =VLOOKUP($A24,'5'!$B$10:$D$45,3,FALSE) -> 314.1 | H24: =VLOOKUP($A24,'6'!$B$10:$D$45,3,FALSE) -> 310.7 | I24: =IF(J24 > 0,K24/J24,0) -> 312.4 | J24: =VLOOKUP(A24,Formelhilfe!$A$9:$H$44,8,FALSE) -> 6.0 | K24: =SUM(C24:H24) -> 1,874.4 | L24: =VLOOKUP($A24,'7'!$B$10:$D$45,3,FALSE) -> 310.5 | M24: =VLOOKUP($A24,'8'!$B$10:$D$45,3,FALSE) -> 314.0 | N24: =VLOOKUP($A24,'9'!$B$10:$D$45,3,FALSE) -> 0.0 | O24: =VLOOKUP($A24,'10'!$B$10:$D$45,3,FALSE) -> 309.5 | P24: =VLOOKUP($A24,'11'!$B$10:$D$45,3,FALSE) -> 311.3 | Q24: =VLOOKUP($A24,'12'!$B$10:$D$45,3,FALSE) -> 307.9 | R24: =IF(S24 >0,T24/S24,0) -> 310.6 | S24: =VLOOKUP(A24,Formelhilfe!$A$9:$O$44,15,FALSE) -> 5.0 | T24: =SUM(L24:Q24) -> 1,553.2 | U24: =IF(V24>0,W24/V24,0) -> 311.6 | V24: =VLOOKUP(A24,Formelhilfe!$A$9:$P$44,16,FALSE) -> 11.0 | W24: =SUM(C24:H24,L24:Q24) -> 3,427.6
A25: Eckmann Mark | B25: =VLOOKUP(A25,'Wettkampf 1'!$B$10:$C$45,2,FALSE) -> Börger II | C25: =VLOOKUP(A25,'Wettkampf 1'!$B$10:$D$45,3,FALSE) -> 310.3 | D25: =VLOOKUP($A25,'2'!$B$10:$D$45,3,FALSE) -> 301.5 | E25: =VLOOKUP($A25,'3'!$B$10:$D$45,3,FALSE) -> 304.1 | F25: =VLOOKUP($A25,'4'!$B$10:$D$45,3,FALSE) -> 301.7 | G25: =VLOOKUP($A25,'5'!$B$10:$D$45,3,FALSE) -> 311.3 | H25: =VLOOKUP($A25,'6'!$B$10:$D$45,3,FALSE) -> 304.5 | I25: =IF(J25 > 0,K25/J25,0) -> 305.6 | J25: =VLOOKUP(A25,Formelhilfe!$A$9:$H$44,8,FALSE) -> 6.0 | K25: =SUM(C25:H25) -> 1,833.4 | L25: =VLOOKUP($A25,'7'!$B$10:$D$45,3,FALSE) -> 303.7 | M25: =VLOOKUP($A25,'8'!$B$10:$D$45,3,FALSE) -> 0.0 | N25: =VLOOKUP($A25,'9'!$B$10:$D$45,3,FALSE) -> 304.0 | O25: =VLOOKUP($A25,'10'!$B$10:$D$45,3,FALSE) -> 299.8 | P25: =VLOOKUP($A25,'11'!$B$10:$D$45,3,FALSE) -> 310.5 | Q25: =VLOOKUP($A25,'12'!$B$10:$D$45,3,FALSE) -> 305.8 | R25: =IF(S25 >0,T25/S25,0) -> 304.8 | S25: =VLOOKUP(A25,Formelhilfe!$A$9:$O$44,15,FALSE) -> 5.0 | T25: =SUM(L25:Q25) -> 1,523.8 | U25: =IF(V25>0,W25/V25,0) -> 305.2 | V25: =VLOOKUP(A25,Formelhilfe!$A$9:$P$44,16,FALSE) -> 11.0 | W25: =SUM(C25:H25,L25:Q25) -> 3,357.2
A26: Schulz Simon | B26: =VLOOKUP(A26,'Wettkampf 1'!$B$10:$C$45,2,FALSE) -> Börger II | C26: =VLOOKUP(A26,'Wettkampf 1'!$B$10:$D$45,3,FALSE) -> 305.7 | D26: =VLOOKUP($A26,'2'!$B$10:$D$45,3,FALSE) -> 299.8 | E26: =VLOOKUP($A26,'3'!$B$10:$D$45,3,FALSE) -> 308.7 | F26: =VLOOKUP($A26,'4'!$B$10:$D$45,3,FALSE) -> 303.7 | G26: =VLOOKUP($A26,'5'!$B$10:$D$45,3,FALSE) -> 304.8 | H26: =VLOOKUP($A26,'6'!$B$10:$D$45,3,FALSE) -> 309.3 | I26: =IF(J26 > 0,K26/J26,0) -> 305.3 | J26: =VLOOKUP(A26,Formelhilfe!$A$9:$H$44,8,FALSE) -> 6.0 | K26: =SUM(C26:H26) -> 1,832.0 | L26: =VLOOKUP($A26,'7'!$B$10:$D$45,3,FALSE) -> 298.2 | M26: =VLOOKUP($A26,'8'!$B$10:$D$45,3,FALSE) -> 302.8 | N26: =VLOOKUP($A26,'9'!$B$10:$D$45,3,FALSE) -> 296.8 | O26: =VLOOKUP($A26,'10'!$B$10:$D$45,3,FALSE) -> 0.0 | P26: =VLOOKUP($A26,'11'!$B$10:$D$45,3,FALSE) -> 299.8 | Q26: =VLOOKUP($A26,'12'!$B$10:$D$45,3,FALSE) -> 307.8 | R26: =IF(S26 >0,T26/S26,0) -> 301.1 | S26: =VLOOKUP(A26,Formelhilfe!$A$9:$O$44,15,FALSE) -> 5.0 | T26: =SUM(L26:Q26) -> 1,505.4 | U26: =IF(V26>0,W26/V26,0) -> 303.4 | V26: =VLOOKUP(A26,Formelhilfe!$A$9:$P$44,16,FALSE) -> 11.0 | W26: =SUM(C26:H26,L26:Q26) -> 3,337.4
A27: Schwarte Hermann | B27: =VLOOKUP(A27,'Wettkampf 1'!$B$10:$C$45,2,FALSE) -> Börger II | C27: =VLOOKUP(A27,'Wettkampf 1'!$B$10:$D$45,3,FALSE) -> 309.6 | D27: =VLOOKUP($A27,'2'!$B$10:$D$45,3,FALSE) -> 301.5 | E27: =VLOOKUP($A27,'3'!$B$10:$D$45,3,FALSE) -> 307.3 | F27: =VLOOKUP($A27,'4'!$B$10:$D$45,3,FALSE) -> 302.5 | G27: =VLOOKUP($A27,'5'!$B$10:$D$45,3,FALSE) -> 304.7 | H27: =VLOOKUP($A27,'6'!$B$10:$D$45,3,FALSE) -> 0.0 | I27: =IF(J27 > 0,K27/J27,0) -> 305.1 | J27: =VLOOKUP(A27,Formelhilfe!$A$9:$H$44,8,FALSE) -> 5.0 | K27: =SUM(C27:H27) -> 1,525.6 | L27: =VLOOKUP($A27,'7'!$B$10:$D$45,3,FALSE) -> 303.1 | M27: =VLOOKUP($A27,'8'!$B$10:$D$45,3,FALSE) -> 304.9 | N27: =VLOOKUP($A27,'9'!$B$10:$D$45,3,FALSE) -> 307.5 | O27: =VLOOKUP($A27,'10'!$B$10:$D$45,3,FALSE) -> 0.0 | P27: =VLOOKUP($A27,'11'!$B$10:$D$45,3,FALSE) -> 305.1 | Q27: =VLOOKUP($A27,'12'!$B$10:$D$45,3,FALSE) -> 0.0 | R27: =IF(S27 >0,T27/S27,0) -> 305.2 | S27: =VLOOKUP(A27,Formelhilfe!$A$9:$O$44,15,FALSE) -> 4.0 | T27: =SUM(L27:Q27) -> 1,220.6 | U27: =IF(V27>0,W27/V27,0) -> 305.1 | V27: =VLOOKUP(A27,Formelhilfe!$A$9:$P$44,16,FALSE) -> 9.0 | W27: =SUM(C27:H27,L27:Q27) -> 2,746.2
A28: Hahnenkamp Ulrich | B28: =VLOOKUP(A28,'Wettkampf 1'!$B$10:$C$45,2,FALSE) -> Spahnharrenstätte II | C28: =VLOOKUP(A28,'Wettkampf 1'!$B$10:$D$45,3,FALSE) -> 0.0 | D28: =VLOOKUP($A28,'2'!$B$10:$D$45,3,FALSE) -> 286.5 | E28: =VLOOKUP($A28,'3'!$B$10:$D$45,3,FALSE) -> 0.0 | F28: =VLOOKUP($A28,'4'!$B$10:$D$45,3,FALSE) -> 291.8 | G28: =VLOOKUP($A28,'5'!$B$10:$D$45,3,FALSE) -> 297.3 | H28: =VLOOKUP($A28,'6'!$B$10:$D$45,3,FALSE) -> 0.0 | I28: =IF(J28 > 0,K28/J28,0) -> 291.9 | J28: =VLOOKUP(A28,Formelhilfe!$A$9:$H$44,8,FALSE) -> 3.0 | K28: =SUM(C28:H28) -> 875.6 | L28: =VLOOKUP($A28,'7'!$B$10:$D$45,3,FALSE) -> 295.1 | M28: =VLOOKUP($A28,'8'!$B$10:$D$45,3,FALSE) -> 284.3 | N28: =VLOOKUP($A28,'9'!$B$10:$D$45,3,FALSE) -> 274.1 | O28: =VLOOKUP($A28,'10'!$B$10:$D$45,3,FALSE) -> 301.2 | P28: =VLOOKUP($A28,'11'!$B$10:$D$45,3,FALSE) -> 299.7 | Q28: =VLOOKUP($A28,'12'!$B$10:$D$45,3,FALSE) -> 291.1 | R28: =IF(S28 >0,T28/S28,0) -> 290.9 | S28: =VLOOKUP(A28,Formelhilfe!$A$9:$O$44,15,FALSE) -> 6.0 | T28: =SUM(L28:Q28) -> 1,745.5 | U28: =IF(V28>0,W28/V28,0) -> 291.2 | V28: =VLOOKUP(A28,Formelhilfe!$A$9:$P$44,16,FALSE) -> 9.0 | W28: =SUM(C28:H28,L28:Q28) -> 2,621.1
A29: Lindemann Gerd | B29: =VLOOKUP(A29,'Wettkampf 1'!$B$10:$C$45,2,FALSE) -> Esterwegen III | C29: =VLOOKUP(A29,'Wettkampf 1'!$B$10:$D$45,3,FALSE) -> 301.5 | D29: =VLOOKUP($A29,'2'!$B$10:$D$45,3,FALSE) -> 310.4 | E29: =VLOOKUP($A29,'3'!$B$10:$D$45,3,FALSE) -> 300.8 | F29: =VLOOKUP($A29,'4'!$B$10:$D$45,3,FALSE) -> 304.3 | G29: =VLOOKUP($A29,'5'!$B$10:$D$45,3,FALSE) -> 0.0 | H29: =VLOOKUP($A29,'6'!$B$10:$D$45,3,FALSE) -> 0.0 | I29: =IF(J29 > 0,K29/J29,0) -> 304.3 | J29: =VLOOKUP(A29,Formelhilfe!$A$9:$H$44,8,FALSE) -> 4.0 | K29: =SUM(C29:H29) -> 1,217.0 | L29: =VLOOKUP($A29,'7'!$B$10:$D$45,3,FALSE) -> 0.0 | M29: =VLOOKUP($A29,'8'!$B$10:$D$45,3,FALSE) -> 0.0 | N29: =VLOOKUP($A29,'9'!$B$10:$D$45,3,FALSE) -> 303.3 | O29: =VLOOKUP($A29,'10'!$B$10:$D$45,3,FALSE) -> 301.3 | P29: =VLOOKUP($A29,'11'!$B$10:$D$45,3,FALSE) -> 305.1 | Q29: =VLOOKUP($A29,'12'!$B$10:$D$45,3,FALSE) -> 306.8 | R29: =IF(S29 >0,T29/S29,0) -> 304.1 | S29: =VLOOKUP(A29,Formelhilfe!$A$9:$O$44,15,FALSE) -> 4.0 | T29: =SUM(L29:Q29) -> 1,216.5 | U29: =IF(V29>0,W29/V29,0) -> 304.2 | V29: =VLOOKUP(A29,Formelhilfe!$A$9:$P$44,16,FALSE) -> 8.0 | W29: =SUM(C29:H29,L29:Q29) -> 2,433.5
A30: Hahnenkamp Markus | B30: =VLOOKUP(A30,'Wettkampf 1'!$B$10:$C$45,2,FALSE) -> Spahnharrenstätte II | C30: =VLOOKUP(A30,'Wettkampf 1'!$B$10:$D$45,3,FALSE) -> 0.0 | D30: =VLOOKUP($A30,'2'!$B$10:$D$45,3,FALSE) -> 0.0 | E30: =VLOOKUP($A30,'3'!$B$10:$D$45,3,FALSE) -> 0.0 | F30: =VLOOKUP($A30,'4'!$B$10:$D$45,3,FALSE) -> 0.0 | G30: =VLOOKUP($A30,'5'!$B$10:$D$45,3,FALSE) -> 298.9 | H30: =VLOOKUP($A30,'6'!$B$10:$D$45,3,FALSE) -> 295.3 | I30: =IF(J30 > 0,K30/J30,0) -> 297.1 | J30: =VLOOKUP(A30,Formelhilfe!$A$9:$H$44,8,FALSE) -> 2.0 | K30: =SUM(C30:H30) -> 594.2 | L30: =VLOOKUP($A30,'7'!$B$10:$D$45,3,FALSE) -> 299.6 | M30: =VLOOKUP($A30,'8'!$B$10:$D$45,3,FALSE) -> 304.0 | N30: =VLOOKUP($A30,'9'!$B$10:$D$45,3,FALSE) -> 298.2 | O30: =VLOOKUP($A30,'10'!$B$10:$D$45,3,FALSE) -> 0.0 | P30: =VLOOKUP($A30,'11'!$B$10:$D$45,3,FALSE) -> 295.9 | Q30: =VLOOKUP($A30,'12'!$B$10:$D$45,3,FALSE) -> 300.0 | R30: =IF(S30 >0,T30/S30,0) -> 299.5 | S30: =VLOOKUP(A30,Formelhilfe!$A$9:$O$44,15,FALSE) -> 5.0 | T30: =SUM(L30:Q30) -> 1,497.7 | U30: =IF(V30>0,W30/V30,0) -> 298.8 | V30: =VLOOKUP(A30,Formelhilfe!$A$9:$P$44,16,FALSE) -> 7.0 | W30: =SUM(C30:H30,L30:Q30) -> 2,091.9
A31: Walker Stefan | B31: =VLOOKUP(A31,'Wettkampf 1'!$B$10:$C$45,2,FALSE) -> Börgerwald II | C31: =VLOOKUP(A31,'Wettkampf 1'!$B$10:$D$45,3,FALSE) -> 0.0 | D31: =VLOOKUP($A31,'2'!$B$10:$D$45,3,FALSE) -> 0.0 | E31: =VLOOKUP($A31,'3'!$B$10:$D$45,3,FALSE) -> 0.0 | F31: =VLOOKUP($A31,'4'!$B$10:$D$45,3,FALSE) -> 290.3 | G31: =VLOOKUP($A31,'5'!$B$10:$D$45,3,FALSE) -> 287.9 | H31: =VLOOKUP($A31,'6'!$B$10:$D$45,3,FALSE) -> 287.0 | I31: =IF(J31 > 0,K31/J31,0) -> 288.4 | J31: =VLOOKUP(A31,Formelhilfe!$A$9:$H$44,8,FALSE) -> 3.0 | K31: =SUM(C31:H31) -> 865.2 | L31: =VLOOKUP($A31,'7'!$B$10:$D$45,3,FALSE) -> 0.0 | M31: =VLOOKUP($A31,'8'!$B$10:$D$45,3,FALSE) -> 0.0 | N31: =VLOOKUP($A31,'9'!$B$10:$D$45,3,FALSE) -> 0.0 | O31: =VLOOKUP($A31,'10'!$B$10:$D$45,3,FALSE) -> 0.0 | P31: =VLOOKUP($A31,'11'!$B$10:$D$45,3,FALSE) -> 304.9 | Q31: =VLOOKUP($A31,'12'!$B$10:$D$45,3,FALSE) -> 302.1 | R31: =IF(S31 >0,T31/S31,0) -> 303.5 | S31: =VLOOKUP(A31,Formelhilfe!$A$9:$O$44,15,FALSE) -> 2.0 | T31: =SUM(L31:Q31) -> 607.0 | U31: =IF(V31>0,W31/V31,0) -> 294.4 | V31: =VLOOKUP(A31,Formelhilfe!$A$9:$P$44,16,FALSE) -> 5.0 | W31: =SUM(C31:H31,L31:Q31) -> 1,472.2
A32: Aldfeld Helmut | B32: =VLOOKUP(A32,'Wettkampf 1'!$B$10:$C$45,2,FALSE) -> Esterwegen III | C32: =VLOOKUP(A32,'Wettkampf 1'!$B$10:$D$45,3,FALSE) -> 298.7 | D32: =VLOOKUP($A32,'2'!$B$10:$D$45,3,FALSE) -> 296.4 | E32: =VLOOKUP($A32,'3'!$B$10:$D$45,3,FALSE) -> 0.0 | F32: =VLOOKUP($A32,'4'!$B$10:$D$45,3,FALSE) -> 0.0 | G32: =VLOOKUP($A32,'5'!$B$10:$D$45,3,FALSE) -> 304.6 | H32: =VLOOKUP($A32,'6'!$B$10:$D$45,3,FALSE) -> 298.9 | I32: =IF(J32 > 0,K32/J32,0) -> 299.7 | J32: =VLOOKUP(A32,Formelhilfe!$A$9:$H$44,8,FALSE) -> 4.0 | K32: =SUM(C32:H32) -> 1,198.6 | L32: =VLOOKUP($A32,'7'!$B$10:$D$45,3,FALSE) -> 0.0 | M32: =VLOOKUP($A32,'8'!$B$10:$D$45,3,FALSE) -> 0.0 | N32: =VLOOKUP($A32,'9'!$B$10:$D$45,3,FALSE) -> 0.0 | O32: =VLOOKUP($A32,'10'!$B$10:$D$45,3,FALSE) -> 0.0 | P32: =VLOOKUP($A32,'11'!$B$10:$D$45,3,FALSE) -> 0.0 | Q32: =VLOOKUP($A32,'12'!$B$10:$D$45,3,FALSE) -> 0.0 | R32: =IF(S32 >0,T32/S32,0) -> 0.0 | S32: =VLOOKUP(A32,Formelhilfe!$A$9:$O$44,15,FALSE) -> 0.0 | T32: =SUM(L32:Q32) -> 0.0 | U32: =IF(V32>0,W32/V32,0) -> 299.7 | V32: =VLOOKUP(A32,Formelhilfe!$A$9:$P$44,16,FALSE) -> 4.0 | W32: =SUM(C32:H32,L32:Q32) -> 1,198.6
A33: Lindemann Rita | B33: =VLOOKUP(A33,'Wettkampf 1'!$B$10:$C$45,2,FALSE) -> Rastdorf III | C33: =VLOOKUP(A33,'Wettkampf 1'!$B$10:$D$45,3,FALSE) -> 0.0 | D33: =VLOOKUP($A33,'2'!$B$10:$D$45,3,FALSE) -> 0.0 | E33: =VLOOKUP($A33,'3'!$B$10:$D$45,3,FALSE) -> 0.0 | F33: =VLOOKUP($A33,'4'!$B$10:$D$45,3,FALSE) -> 0.0 | G33: =VLOOKUP($A33,'5'!$B$10:$D$45,3,FALSE) -> 0.0 | H33: =VLOOKUP($A33,'6'!$B$10:$D$45,3,FALSE) -> 0.0 | I33: =IF(J33 > 0,K33/J33,0) -> 0.0 | J33: =VLOOKUP(A33,Formelhilfe!$A$9:$H$44,8,FALSE) -> 0.0 | K33: =SUM(C33:H33) -> 0.0 | L33: =VLOOKUP($A33,'7'!$B$10:$D$45,3,FALSE) -> 317.9 | M33: =VLOOKUP($A33,'8'!$B$10:$D$45,3,FALSE) -> 314.4 | N33: =VLOOKUP($A33,'9'!$B$10:$D$45,3,FALSE) -> 0.0 | O33: =VLOOKUP($A33,'10'!$B$10:$D$45,3,FALSE) -> 316.6 | P33: =VLOOKUP($A33,'11'!$B$10:$D$45,3,FALSE) -> 0.0 | Q33: =VLOOKUP($A33,'12'!$B$10:$D$45,3,FALSE) -> 0.0 | R33: =IF(S33 >0,T33/S33,0) -> 316.3 | S33: =VLOOKUP(A33,Formelhilfe!$A$9:$O$44,15,FALSE) -> 3.0 | T33: =SUM(L33:Q33) -> 948.9 | U33: =IF(V33>0,W33/V33,0) -> 316.3 | V33: =VLOOKUP(A33,Formelhilfe!$A$9:$P$44,16,FALSE) -> 3.0 | W33: =SUM(C33:H33,L33:Q33) -> 948.9
A34: Heidemann Jürgen | B34: =VLOOKUP(A34,'Wettkampf 1'!$B$10:$C$45,2,FALSE) -> Esterwegen III | C34: =VLOOKUP(A34,'Wettkampf 1'!$B$10:$D$45,3,FALSE) -> 305.9 | D34: =VLOOKUP($A34,'2'!$B$10:$D$45,3,FALSE) -> 305.1 | E34: =VLOOKUP($A34,'3'!$B$10:$D$45,3,FALSE) -> 309.3 | F34: =VLOOKUP($A34,'4'!$B$10:$D$45,3,FALSE) -> 0.0 | G34: =VLOOKUP($A34,'5'!$B$10:$D$45,3,FALSE) -> 0.0 | H34: =VLOOKUP($A34,'6'!$B$10:$D$45,3,FALSE) -> 0.0 | I34: =IF(J34 > 0,K34/J34,0) -> 306.8 | J34: =VLOOKUP(A34,Formelhilfe!$A$9:$H$44,8,FALSE) -> 3.0 | K34: =SUM(C34:H34) -> 920.3 | L34: =VLOOKUP($A34,'7'!$B$10:$D$45,3,FALSE) -> 0.0 | M34: =VLOOKUP($A34,'8'!$B$10:$D$45,3,FALSE) -> 0.0 | N34: =VLOOKUP($A34,'9'!$B$10:$D$45,3,FALSE) -> 0.0 | O34: =VLOOKUP($A34,'10'!$B$10:$D$45,3,FALSE) -> 0.0 | P34: =VLOOKUP($A34,'11'!$B$10:$D$45,3,FALSE) -> 0.0 | Q34: =VLOOKUP($A34,'12'!$B$10:$D$45,3,FALSE) -> 0.0 | R34: =IF(S34 >0,T34/S34,0) -> 0.0 | S34: =VLOOKUP(A34,Formelhilfe!$A$9:$O$44,15,FALSE) -> 0.0 | T34: =SUM(L34:Q34) -> 0.0 | U34: =IF(V34>0,W34/V34,0) -> 306.8 | V34: =VLOOKUP(A34,Formelhilfe!$A$9:$P$44,16,FALSE) -> 3.0 | W34: =SUM(C34:H34,L34:Q34) -> 920.3
A35: Speeker Dietmar | B35: =VLOOKUP(A35,'Wettkampf 1'!$B$10:$C$45,2,FALSE) -> Börgerwald II | C35: =VLOOKUP(A35,'Wettkampf 1'!$B$10:$D$45,3,FALSE) -> 302.2 | D35: =VLOOKUP($A35,'2'!$B$10:$D$45,3,FALSE) -> 0.0 | E35: =VLOOKUP($A35,'3'!$B$10:$D$45,3,FALSE) -> 0.0 | F35: =VLOOKUP($A35,'4'!$B$10:$D$45,3,FALSE) -> 0.0 | G35: =VLOOKUP($A35,'5'!$B$10:$D$45,3,FALSE) -> 0.0 | H35: =VLOOKUP($A35,'6'!$B$10:$D$45,3,FALSE) -> 0.0 | I35: =IF(J35 > 0,K35/J35,0) -> 302.2 | J35: =VLOOKUP(A35,Formelhilfe!$A$9:$H$44,8,FALSE) -> 1.0 | K35: =SUM(C35:H35) -> 302.2 | L35: =VLOOKUP($A35,'7'!$B$10:$D$45,3,FALSE) -> 0.0 | M35: =VLOOKUP($A35,'8'!$B$10:$D$45,3,FALSE) -> 0.0 | N35: =VLOOKUP($A35,'9'!$B$10:$D$45,3,FALSE) -> 0.0 | O35: =VLOOKUP($A35,'10'!$B$10:$D$45,3,FALSE) -> 0.0 | P35: =VLOOKUP($A35,'11'!$B$10:$D$45,3,FALSE) -> 0.0 | Q35: =VLOOKUP($A35,'12'!$B$10:$D$45,3,FALSE) -> 0.0 | R35: =IF(S35 >0,T35/S35,0) -> 0.0 | S35: =VLOOKUP(A35,Formelhilfe!$A$9:$O$44,15,FALSE) -> 0.0 | T35: =SUM(L35:Q35) -> 0.0 | U35: =IF(V35>0,W35/V35,0) -> 302.2 | V35: =VLOOKUP(A35,Formelhilfe!$A$9:$P$44,16,FALSE) -> 1.0 | W35: =SUM(C35:H35,L35:Q35) -> 302.2
A36: Olliges Kai | B36: =VLOOKUP(A36,'Wettkampf 1'!$B$10:$C$45,2,FALSE) -> Börgerwald II | C36: =VLOOKUP(A36,'Wettkampf 1'!$B$10:$D$45,3,FALSE) -> 0.0 | D36: =VLOOKUP($A36,'2'!$B$10:$D$45,3,FALSE) -> 0.0 | E36: =VLOOKUP($A36,'3'!$B$10:$D$45,3,FALSE) -> 0.0 | F36: =VLOOKUP($A36,'4'!$B$10:$D$45,3,FALSE) -> 0.0 | G36: =VLOOKUP($A36,'5'!$B$10:$D$45,3,FALSE) -> 0.0 | H36: =VLOOKUP($A36,'6'!$B$10:$D$45,3,FALSE) -> 0.0 | I36: =IF(J36 > 0,K36/J36,0) -> 0.0 | J36: =VLOOKUP(A36,Formelhilfe!$A$9:$H$44,8,FALSE) -> 0.0 | K36: =SUM(C36:H36) -> 0.0 | L36: =VLOOKUP($A36,'7'!$B$10:$D$45,3,FALSE) -> 259.6 | M36: =VLOOKUP($A36,'8'!$B$10:$D$45,3,FALSE) -> 0.0 | N36: =VLOOKUP($A36,'9'!$B$10:$D$45,3,FALSE) -> 0.0 | O36: =VLOOKUP($A36,'10'!$B$10:$D$45,3,FALSE) -> 0.0 | P36: =VLOOKUP($A36,'11'!$B$10:$D$45,3,FALSE) -> 0.0 | Q36: =VLOOKUP($A36,'12'!$B$10:$D$45,3,FALSE) -> 0.0 | R36: =IF(S36 >0,T36/S36,0) -> 259.6 | S36: =VLOOKUP(A36,Formelhilfe!$A$9:$O$44,15,FALSE) -> 1.0 | T36: =SUM(L36:Q36) -> 259.6 | U36: =IF(V36>0,W36/V36,0) -> 259.6 | V36: =VLOOKUP(A36,Formelhilfe!$A$9:$P$44,16,FALSE) -> 1.0 | W36: =SUM(C36:H36,L36:Q36) -> 259.6
A37: Peters Carsten | B37: =VLOOKUP(A37,'Wettkampf 1'!$B$10:$C$45,2,FALSE) -> Neuvrees I | C37: =VLOOKUP(A37,'Wettkampf 1'!$B$10:$D$45,3,FALSE) -> 0.0 | D37: =VLOOKUP($A37,'2'!$B$10:$D$45,3,FALSE) -> 0.0 | E37: =VLOOKUP($A37,'3'!$B$10:$D$45,3,FALSE) -> 0.0 | F37: =VLOOKUP($A37,'4'!$B$10:$D$45,3,FALSE) -> 0.0 | G37: =VLOOKUP($A37,'5'!$B$10:$D$45,3,FALSE) -> 0.0 | H37: =VLOOKUP($A37,'6'!$B$10:$D$45,3,FALSE) -> 0.0 | I37: =IF(J37 > 0,K37/J37,0) -> 0.0 | J37: =VLOOKUP(A37,Formelhilfe!$A$9:$H$44,8,FALSE) -> 0.0 | K37: =SUM(C37:H37) -> 0.0 | L37: =VLOOKUP($A37,'7'!$B$10:$D$45,3,FALSE) -> 0.0 | M37: =VLOOKUP($A37,'8'!$B$10:$D$45,3,FALSE) -> 0.0 | N37: =VLOOKUP($A37,'9'!$B$10:$D$45,3,FALSE) -> 0.0 | O37: =VLOOKUP($A37,'10'!$B$10:$D$45,3,FALSE) -> 0.0 | P37: =VLOOKUP($A37,'11'!$B$10:$D$45,3,FALSE) -> 0.0 | Q37: =VLOOKUP($A37,'12'!$B$10:$D$45,3,FALSE) -> 0.0 | R37: =IF(S37 >0,T37/S37,0) -> 0.0 | S37: =VLOOKUP(A37,Formelhilfe!$A$9:$O$44,15,FALSE) -> 0.0 | T37: =SUM(L37:Q37) -> 0.0 | U37: =IF(V37>0,W37/V37,0) -> 0.0 | V37: =VLOOKUP(A37,Formelhilfe!$A$9:$P$44,16,FALSE) -> 0.0 | W37: =SUM(C37:H37,L37:Q37) -> 0.0

Sheet Formelhilfe (hidden)
B1: 1 | C1: 2 | D1: 3 | E1: 4 | F1: 5 | G1: 6 | H1: Hinrunde Schnitt | I1: 7 | J1: 8 | K1: 9 | L1: 10 | M1: 11 | N1: 12 | O1: Rückrunde Schnitt | P1: Gesamt Schnitt | S1: Kreisoberliga | T1: Schützen | U1: 2023/2024
A2: ='Wettkampf 1'!B2 -> Neuvrees I | B2: =IF('Wettkampf 1'!D2>0,1,0) -> 1 | C2: =IF('2'!$D2>0,1,0) -> 1 | D2: =IF('3'!$D2>0,1,0) -> 1 | E2: =IF('4'!$D2>0,1,0) -> 1 | F2: =IF('5'!$D2>0,1,0) -> 1 | G2: =IF('6'!$D2>0,1,0) -> 1 | H2: =SUM(B2:G2) -> 6 | I2: =IF('7'!$D2>0,1,0) -> 1 | J2: =IF('8'!$D2>0,1,0) -> 1 | K2: =IF('9'!$D2>0,1,0) -> 1 | L2: =IF('10'!$D2>0,1,0) -> 1 | M2: =IF('11'!$D2>0,1,0) -> 1 | N2: =IF('12'!$D2>0,1,0) -> 1 | O2: =SUM(I2:N2) -> 6 | P2: =O2+H2 -> 12 | S2: 1. Kreisliga | T2: Damen | U2: 2024/2025
A3: ='Wettkampf 1'!B3 -> Rastdorf III | B3: =IF('Wettkampf 1'!D3>0,1,0) -> 1 | C3: =IF('2'!$D3>0,1,0) -> 1 | D3: =IF('3'!$D3>0,1,0) -> 1 | E3: =IF('4'!$D3>0,1,0) -> 1 | F3: =IF('5'!$D3>0,1,0) -> 1 | G3: =IF('6'!$D3>0,1,0) -> 1 | H3: =SUM(B3:G3) -> 6 | I3: =IF('7'!$D3>0,1,0) -> 1 | J3: =IF('8'!$D3>0,1,0) -> 1 | K3: =IF('9'!$D3>0,1,0) -> 1 | L3: =IF('10'!$D3>0,1,0) -> 1 | M3: =IF('11'!$D3>0,1,0) -> 1 | N3: =IF('12'!$D3>0,1,0) -> 1 | O3: =SUM(I3:N3) -> 6 | P3: =O3+H3 -> 12 | S3: 2. Kreisliga | T3: Altersgruppe | U3: 2025/2026
A4: ='Wettkampf 1'!B4 -> Börger II | B4: =IF('Wettkampf 1'!D4>0,1,0) -> 1 | C4: =IF('2'!$D4>0,1,0) -> 1 | D4: =IF('3'!$D4>0,1,0) -> 1 | E4: =IF('4'!$D4>0,1,0) -> 1 | F4: =IF('5'!$D4>0,1,0) -> 1 | G4: =IF('6'!$D4>0,1,0) -> 1 | H4: 6 | I4: =IF('7'!$D4>0,1,0) -> 1 | J4: =IF('8'!$D4>0,1,0) -> 1 | K4: =IF('9'!$D4>0,1,0) -> 1 | L4: =IF('10'!$D4>0,1,0) -> 1 | M4: =IF('11'!$D4>0,1,0) -> 1 | N4: =IF('12'!$D4>0,1,0) -> 1 | O4: 6 | P4: 12 | S4: 1. Kreisklasse | T4: Senioren | U4: 2026/2027
A5: ='Wettkampf 1'!B5 -> Esterwegen III | B5: =IF('Wettkampf 1'!D5>0,1,0) -> 1 | C5: =IF('2'!$D5>0,1,0) -> 1 | D5: =IF('3'!$D5>0,1,0) -> 1 | E5: =IF('4'!$D5>0,1,0) -> 1 | F5: =IF('5'!$D5>0,1,0) -> 1 | G5: =IF('6'!$D5>0,1,0) -> 1 | H5: 6 | I5: =IF('7'!$D5>0,1,0) -> 1 | J5: =IF('8'!$D5>0,1,0) -> 1 | K5: =IF('9'!$D5>0,1,0) -> 1 | L5: =IF('10'!$D5>0,1,0) -> 1 | M5: =IF('11'!$D5>0,1,0) -> 1 | N5: =IF('12'!$D5>0,1,0) -> 1 | O5: 6 | P5: 12 | S5: 2. Kreisklasse | T5: Jugend | U5: 2027/2028
A6: ='Wettkampf 1'!B6 -> Börgerwald II | B6: =IF('Wettkampf 1'!D6>0,1,0) -> 1 | C6: =IF('2'!$D6>0,1,0) -> 1 | D6: =IF('3'!$D6>0,1,0) -> 1 | E6: =IF('4'!$D6>0,1,0) -> 1 | F6: =IF('5'!$D6>0,1,0) -> 1 | G6: =IF('6'!$D6>0,1,0) -> 1 | H6: 6 | I6: =IF('7'!$D6>0,1,0) -> 1 | J6: =IF('8'!$D6>0,1,0) -> 1 | K6: =IF('9'!$D6>0,1,0) -> 1 | L6: =IF('10'!$D6>0,1,0) -> 1 | M6: =IF('11'!$D6>0,1,0) -> 1 | N6: =IF('12'!$D6>0,1,0) -> 1 | O6: 6 | P6: 12 | S6: 3. Kreisklasse | T6: Schüler | U6: 2028/2029
A7: ='Wettkampf 1'!B7 -> Spahnharrenstätte II | B7: =IF('Wettkampf 1'!D7>0,1,0) -> 1 | C7: =IF('2'!$D7>0,1,0) -> 1 | D7: =IF('3'!$D7>0,1,0) -> 1 | E7: =IF('4'!$D7>0,1,0) -> 1 | F7: =IF('5'!$D7>0,1,0) -> 1 | G7: =IF('6'!$D7>0,1,0) -> 1 | H7: 6 | I7: =IF('7'!$D7>0,1,0) -> 1 | J7: =IF('8'!$D7>0,1,0) -> 1 | K7: =IF('9'!$D7>0,1,0) -> 1 | L7: =IF('10'!$D7>0,1,0) -> 1 | M7: =IF('11'!$D7>0,1,0) -> 1 | N7: =IF('12'!$D7>0,1,0) -> 1 | O7: 6 | P7: 12 | S7: 4. Kreisklasse | T7: offene Klasse FHLG | U7: 2039/2030
S8: 5. Kreisklasse | T8: Luftpistole
A9: Rolfes Wilhelm | B9: =IF('Wettkampf 1'!D10>0,1,0) -> 1 | C9: =IF('2'!$D10>0,1,0) -> 1 | D9: =IF('3'!$D10>0,1,0) -> 1 | E9: =IF('4'!$D10>0,1,0) -> 1 | F9: =IF('5'!$D10>0,1,0) -> 1 | G9: =IF('6'!$D10>0,1,0) -> 1 | H9: 6 | I9: =IF('7'!$D10>0,1,0) -> 1 | J9: =IF('8'!$D10>0,1,0) -> 1 | K9: =IF('9'!$D10>0,1,0) -> 1 | L9: =IF('10'!$D10>0,1,0) -> 1 | M9: =IF('11'!$D10>0,1,0) -> 1 | N9: =IF('12'!$D10>0,1,0) -> 1 | O9: 6 | P9: =O9+H9 -> 12 | S9: 6. Kreisklasse
A10: Steenken Klaus | B10: =IF('Wettkampf 1'!D11>0,1,0) -> 1 | C10: =IF('2'!$D11>0,1,0) -> 1 | D10: =IF('3'!$D11>0,1,0) -> 1 | E10: =IF('4'!$D11>0,1,0) -> 1 | F10: =IF('5'!$D11>0,1,0) -> 1 | G10: =IF('6'!$D11>0,1,0) -> 1 | H10: 6 | I10: =IF('7'!$D11>0,1,0) -> 1 | J10: =IF('8'!$D11>0,1,0) -> 1 | K10: =IF('9'!$D11>0,1,0) -> 1 | L10: =IF('10'!$D11>0,1,0) -> 1 | M10: =IF('11'!$D11>0,1,0) -> 1 | N10: =IF('12'!$D11>0,1,0) -> 1 | O10: 6 | P10: =O10+H10 -> 12 | S10: 7. Kreisklasse
A11: Breyer Wilfried | B11: =IF('Wettkampf 1'!D12>0,1,0) -> 1 | C11: =IF('2'!$D12>0,1,0) -> 1 | D11: =IF('3'!$D12>0,1,0) -> 1 | E11: =IF('4'!$D12>0,1,0) -> 1 | F11: =IF('5'!$D12>0,1,0) -> 1 | G11: =IF('6'!$D12>0,1,0) -> 1 | H11: 6 | I11: =IF('7'!$D12>0,1,0) -> 1 | J11: =IF('8'!$D12>0,1,0) -> 1 | K11: =IF('9'!$D12>0,1,0) -> 1 | L11: =IF('10'!$D12>0,1,0) -> 1 | M11: =IF('11'!$D12>0,1,0) -> 1 | N11: =IF('12'!$D12>0,1,0) -> 1 | O11: 6 | P11: 12
A12: Janßen Markus | B12: =IF('Wettkampf 1'!D13>0,1,0) -> 1 | C12: =IF('2'!$D13>0,1,0) -> 1 | D12: =IF('3'!$D13>0,1,0) -> 1 | E12: =IF('4'!$D13>0,1,0) -> 1 | F12: =IF('5'!$D13>0,1,0) -> 1 | G12: =IF('6'!$D13>0,1,0) -> 1 | H12: 6 | I12: =IF('7'!$D13>0,1,0) -> 1 | J12: =IF('8'!$D13>0,1,0) -> 1 | K12: =IF('9'!$D13>0,1,0) -> 1 | L12: =IF('10'!$D13>0,1,0) -> 1 | M12: =IF('11'!$D13>0,1,0) -> 1 | N12: =IF('12'!$D13>0,1,0) -> 1 | O12: 6 | P12: 12
A13: Thyen Werner | B13: =IF('Wettkampf 1'!D14>0,1,0) -> 1 | C13: =IF('2'!$D14>0,1,0) -> 1 | D13: =IF('3'!$D14>0,1,0) -> 1 | E13: =IF('4'!$D14>0,1,0) -> 1 | F13: =IF('5'!$D14>0,1,0) -> 1 | G13: =IF('6'!$D14>0,1,0) -> 1 | H13: 6 | I13: =IF('7'!$D14>0,1,0) -> 1 | J13: =IF('8'!$D14>0,1,0) -> 1 | K13: =IF('9'!$D14>0,1,0) -> 1 | L13: =IF('10'!$D14>0,1,0) -> 1 | M13: =IF('11'!$D14>0,1,0) -> 1 | N13: =IF('12'!$D14>0,1,0) -> 1 | O13: 6 | P13: 12
A14: Peters Carsten | B14: =IF('Wettkampf 1'!D15>0,1,0) -> 0 | C14: =IF('2'!$D15>0,1,0) -> 0 | D14: =IF('3'!$D15>0,1,0) -> 0 | E14: =IF('4'!$D15>0,1,0) -> 0 | F14: =IF('5'!$D15>0,1,0) -> 0 | G14: =IF('6'!$D15>0,1,0) -> 0 | H14: 0 | I14: =IF('7'!$D15>0,1,0) -> 0 | J14: =IF('8'!$D15>0,1,0) -> 0 | K14: =IF('9'!$D15>0,1,0) -> 0 | L14: =IF('10'!$D15>0,1,0) -> 0 | M14: =IF('11'!$D15>0,1,0) -> 0 | N14: =IF('12'!$D15>0,1,0) -> 0 | O14: 0 | P14: 0
A15: Wotte Robert | B15: =IF('Wettkampf 1'!D16>0,1,0) -> 1 | C15: =IF('2'!$D16>0,1,0) -> 1 | D15: =IF('3'!$D16>0,1,0) -> 1 | E15: =IF('4'!$D16>0,1,0) -> 1 | F15: =IF('5'!$D16>0,1,0) -> 1 | G15: =IF('6'!$D16>0,1,0) -> 1 | H15: 6 | I15: =IF('7'!$D16>0,1,0) -> 1 | J15: =IF('8'!$D16>0,1,0) -> 1 | K15: =IF('9'!$D16>0,1,0) -> 1 | L15: =IF('10'!$D16>0,1,0) -> 1 | M15: =IF('11'!$D16>0,1,0) -> 1 | N15: =IF('12'!$D16>0,1,0) -> 1 | O15: 6 | P15: 12
A16: Müller Helmut | B16: =IF('Wettkampf 1'!D17>0,1,0) -> 1 | C16: =IF('2'!$D17>0,1,0) -> 1 | D16: =IF('3'!$D17>0,1,0) -> 1 | E16: =IF('4'!$D17>0,1,0) -> 1 | F16: =IF('5'!$D17>0,1,0) -> 1 | G16: =IF('6'!$D17>0,1,0) -> 1 | H16: 6 | I16: =IF('7'!$D17>0,1,0) -> 1 | J16: =IF('8'!$D17>0,1,0) -> 1 | K16: =IF('9'!$D17>0,1,0) -> 1 | L16: =IF('10'!$D17>0,1,0) -> 1 | M16: =IF('11'!$D17>0,1,0) -> 1 | N16: =IF('12'!$D17>0,1,0) -> 1 | O16: 6 | P16: 12
A17: Bookjans Günther | B17: =IF('Wettkampf 1'!D18>0,1,0) -> 1 | C17: =IF('2'!$D18>0,1,0) -> 1 | D17: =IF('3'!$D18>0,1,0) -> 1 | E17: =IF('4'!$D18>0,1,0) -> 1 | F17: =IF('5'!$D18>0,1,0) -> 1 | G17: =IF('6'!$D18>0,1,0) -> 1 | H17: 6 | I17: =IF('7'!$D18>0,1,0) -> 1 | J17: =IF('8'!$D18>0,1,0) -> 1 | K17: =IF('9'!$D18>0,1,0) -> 1 | L17: =IF('10'!$D18>0,1,0) -> 1 | M17: =IF('11'!$D18>0,1,0) -> 1 | N17: =IF('12'!$D18>0,1,0) -> 1 | O17: 6 | P17: 12
A18: Meer Michael | B18: =IF('Wettkampf 1'!D19>0,1,0) -> 1 | C18: =IF('2'!$D19>0,1,0) -> 1 | D18: =IF('3'!$D19>0,1,0) -> 1 | E18: =IF('4'!$D19>0,1,0) -> 1 | F18: =IF('5'!$D19>0,1,0) -> 1 | G18: =IF('6'!$D19>0,1,0) -> 1 | H18: 6 | I18: =IF('7'!$D19>0,1,0) -> 1 | J18: =IF('8'!$D19>0,1,0) -> 1 | K18: =IF('9'!$D19>0,1,0) -> 1 | L18: =IF('10'!$D19>0,1,0) -> 1 | M18: =IF('11'!$D19>0,1,0) -> 1 | N18: =IF('12'!$D19>0,1,0) -> 1 | O18: 6 | P18: 12
A19: Lindemann Rita | B19: =IF('Wettkampf 1'!D20>0,1,0) -> 0 | C19: =IF('2'!$D20>0,1,0) -> 0 | D19: =IF('3'!$D20>0,1,0) -> 0 | E19: =IF('4'!$D20>0,1,0) -> 0 | F19: =IF('5'!$D20>0,1,0) -> 0 | G19: =IF('6'!$D20>0,1,0) -> 0 | H19: 0 | I19: =IF('7'!$D20>0,1,0) -> 1 | J19: =IF('8'!$D20>0,1,0) -> 1 | K19: =IF('9'!$D20>0,1,0) -> 0 | L19: =IF('10'!$D20>0,1,0) -> 1 | M19: =IF('11'!$D20>0,1,0) -> 0 | N19: =IF('12'!$D20>0,1,0) -> 0 | O19: 3 | P19: 3
A20: Olliges Kai | B20: =IF('Wettkampf 1'!D21>0,1,0) -> 0 | C20: =IF('2'!$D21>0,1,0) -> 0 | D20: =IF('3'!$D21>0,1,0) -> 0 | E20: =IF('4'!$D21>0,1,0) -> 0 | F20: =IF('5'!$D21>0,1,0) -> 0 | G20: =IF('6'!$D21>0,1,0) -> 0 | H20: 0 | I20: =IF('7'!$D21>0,1,0) -> 1 | J20: =IF('8'!$D21>0,1,0) -> 0 | K20: =IF('9'!$D21>0,1,0) -> 0 | L20: =IF('10'!$D21>0,1,0) -> 0 | M20: =IF('11'!$D21>0,1,0) -> 0 | N20: =IF('12'!$D21>0,1,0) -> 0 | O20: 1 | P20: 1
A21: Zdralik Ingo | B21: =IF('Wettkampf 1'!D22>0,1,0) -> 1 | C21: =IF('2'!$D22>0,1,0) -> 1 | D21: =IF('3'!$D22>0,1,0) -> 1 | E21: =IF('4'!$D22>0,1,0) -> 1 | F21: =IF('5'!$D22>0,1,0) -> 1 | G21: =IF('6'!$D22>0,1,0) -> 1 | H21: 6 | I21: =IF('7'!$D22>0,1,0) -> 1 | J21: =IF('8'!$D22>0,1,0) -> 1 | K21: =IF('9'!$D22>0,1,0) -> 1 | L21: =IF('10'!$D22>0,1,0) -> 1 | M21: =IF('11'!$D22>0,1,0) -> 1 | N21: =IF('12'!$D22>0,1,0) -> 1 | O21: 6 | P21: 12
A22: Goldenstein Uwe | B22: =IF('Wettkampf 1'!D23>0,1,0) -> 1 | C22: =IF('2'!$D23>0,1,0) -> 1 | D22: =IF('3'!$D23>0,1,0) -> 1 | E22: =IF('4'!$D23>0,1,0) -> 1 | F22: =IF('5'!$D23>0,1,0) -> 1 | G22: =IF('6'!$D23>0,1,0) -> 1 | H22: 6 | I22: =IF('7'!$D23>0,1,0) -> 1 | J22: =IF('8'!$D23>0,1,0) -> 1 | K22: =IF('9'!$D23>0,1,0) -> 1 | L22: =IF('10'!$D23>0,1,0) -> 1 | M22: =IF('11'!$D23>0,1,0) -> 1 | N22: =IF('12'!$D23>0,1,0) -> 1 | O22: 6 | P22: 12
A23: Eckmann Mark | B23: =IF('Wettkampf 1'!D24>0,1,0) -> 1 | C23: =IF('2'!$D24>0,1,0) -> 1 | D23: =IF('3'!$D24>0,1,0) -> 1 | E23: =IF('4'!$D24>0,1,0) -> 1 | F23: =IF('5'!$D24>0,1,0) -> 1 | G23: =IF('6'!$D24>0,1,0) -> 1 | H23: 6 | I23: =IF('7'!$D24>0,1,0) -> 1 | J23: =IF('8'!$D24>0,1,0) -> 0 | K23: =IF('9'!$D24>0,1,0) -> 1 | L23: =IF('10'!$D24>0,1,0) -> 1 | M23: =IF('11'!$D24>0,1,0) -> 1 | N23: =IF('12'!$D24>0,1,0) -> 1 | O23: 5 | P23: 11
A24: Schulz Simon | B24: =IF('Wettkampf 1'!D25>0,1,0) -> 1 | C24: =IF('2'!$D25>0,1,0) -> 1 | D24: =IF('3'!$D25>0,1,0) -> 1 | E24: =IF('4'!$D25>0,1,0) -> 1 | F24: =IF('5'!$D25>0,1,0) -> 1 | G24: =IF('6'!$D25>0,1,0) -> 1 | H24: 6 | I24: =IF('7'!$D25>0,1,0) -> 1 | J24: =IF('8'!$D25>0,1,0) -> 1 | K24: =IF('9'!$D25>0,1,0) -> 1 | L24: =IF('10'!$D25>0,1,0) -> 0 | M24: =IF('11'!$D25>0,1,0) -> 1 | N24: =IF('12'!$D25>0,1,0) -> 1 | O24: 5 | P24: 11
A25: Schwarte Hermann | B25: =IF('Wettkampf 1'!D26>0,1,0) -> 1 | C25: =IF('2'!$D26>0,1,0) -> 1 | D25: =IF('3'!$D26>0,1,0) -> 1 | E25: =IF('4'!$D26>0,1,0) -> 1 | F25: =IF('5'!$D26>0,1,0) -> 1 | G25: =IF('6'!$D26>0,1,0) -> 0 | H25: 5 | I25: =IF('7'!$D26>0,1,0) -> 1 | J25: =IF('8'!$D26>0,1,0) -> 1 | K25: =IF('9'!$D26>0,1,0) -> 1 | L25: =IF('10'!$D26>0,1,0) -> 0 | M25: =IF('11'!$D26>0,1,0) -> 1 | N25: =IF('12'!$D26>0,1,0) -> 0 | O25: 4 | P25: 9
A26: Jungsthoefel Markus | B26: =IF('Wettkampf 1'!D27>0,1,0) -> 1 | C26: =IF('2'!$D27>0,1,0) -> 1 | D26: =IF('3'!$D27>0,1,0) -> 1 | E26: =IF('4'!$D27>0,1,0) -> 1 | F26: =IF('5'!$D27>0,1,0) -> 1 | G26: =IF('6'!$D27>0,1,0) -> 1 | H26: 6 | I26: =IF('7'!$D27>0,1,0) -> 1 | J26: =IF('8'!$D27>0,1,0) -> 1 | K26: =IF('9'!$D27>0,1,0) -> 1 | L26: =IF('10'!$D27>0,1,0) -> 1 | M26: =IF('11'!$D27>0,1,0) -> 1 | N26: =IF('12'!$D27>0,1,0) -> 1 | O26: 6 | P26: 12
A27: Aldfeld Helmut | B27: =IF('Wettkampf 1'!D28>0,1,0) -> 1 | C27: =IF('2'!$D28>0,1,0) -> 1 | D27: =IF('3'!$D28>0,1,0) -> 0 | E27: =IF('4'!$D28>0,1,0) -> 0 | F27: =IF('5'!$D28>0,1,0) -> 1 | G27: =IF('6'!$D28>0,1,0) -> 1 | H27: 4 | I27: =IF('7'!$D28>0,1,0) -> 0 | J27: =IF('8'!$D28>0,1,0) -> 0 | K27: =IF('9'!$D28>0,1,0) -> 0 | L27: =IF('10'!$D28>0,1,0) -> 0 | M27: =IF('11'!$D28>0,1,0) -> 0 | N27: =IF('12'!$D28>0,1,0) -> 0 | O27: 0 | P27: 4
A28: Schulte Mathias | B28: =IF('Wettkampf 1'!D29>0,1,0) -> 1 | C28: =IF('2'!$D29>0,1,0) -> 1 | D28: =IF('3'!$D29>0,1,0) -> 1 | E28: =IF('4'!$D29>0,1,0) -> 1 | F28: =IF('5'!$D29>0,1,0) -> 1 | G28: =IF('6'!$D29>0,1,0) -> 1 | H28: 6 | I28: =IF('7'!$D29>0,1,0) -> 1 | J28: =IF('8'!$D29>0,1,0) -> 1 | K28: =IF('9'!$D29>0,1,0) -> 1 | L28: =IF('10'!$D29>0,1,0) -> 1 | M28: =IF('11'!$D29>0,1,0) -> 1 | N28: =IF('12'!$D29>0,1,0) -> 1 | O28: 6 | P28: 12
A29: Middendorf Peter | B29: =IF('Wettkampf 1'!D30>0,1,0) -> 1 | C29: =IF('2'!$D30>0,1,0) -> 1 | D29: =IF('3'!$D30>0,1,0) -> 1 | E29: =IF('4'!$D30>0,1,0) -> 1 | F29: =IF('5'!$D30>0,1,0) -> 1 | G29: =IF('6'!$D30>0,1,0) -> 1 | H29: 6 | I29: =IF('7'!$D30>0,1,0) -> 1 | J29: =IF('8'!$D30>0,1,0) -> 1 | K29: =IF('9'!$D30>0,1,0) -> 1 | L29: =IF('10'!$D30>0,1,0) -> 1 | M29: =IF('11'!$D30>0,1,0) -> 1 | N29: =IF('12'!$D30>0,1,0) -> 1 | O29: 6 | P29: 12
A30: Meibers Michael | B30: =IF('Wettkampf 1'!D31>0,1,0) -> 1 | C30: =IF('2'!$D31>0,1,0) -> 1 | D30: =IF('3'!$D31>0,1,0) -> 1 | E30: =IF('4'!$D31>0,1,0) -> 1 | F30: =IF('5'!$D31>0,1,0) -> 1 | G30: =IF('6'!$D31>0,1,0) -> 1 | H30: 6 | I30: =IF('7'!$D31>0,1,0) -> 1 | J30: =IF('8'!$D31>0,1,0) -> 1 | K30: =IF('9'!$D31>0,1,0) -> 1 | L30: =IF('10'!$D31>0,1,0) -> 1 | M30: =IF('11'!$D31>0,1,0) -> 1 | N30: =IF('12'!$D31>0,1,0) -> 1 | O30: 6 | P30: 12
A31: Heidemann Jürgen | B31: =IF('Wettkampf 1'!D32>0,1,0) -> 1 | C31: =IF('2'!$D32>0,1,0) -> 1 | D31: =IF('3'!$D32>0,1,0) -> 1 | E31: =IF('4'!$D32>0,1,0) -> 0 | F31: =IF('5'!$D32>0,1,0) -> 0 | G31: =IF('6'!$D32>0,1,0) -> 0 | H31: 3 | I31: =IF('7'!$D32>0,1,0) -> 0 | J31: =IF('8'!$D32>0,1,0) -> 0 | K31: =IF('9'!$D32>0,1,0) -> 0 | L31: =IF('10'!$D32>0,1,0) -> 0 | M31: =IF('11'!$D32>0,1,0) -> 0 | N31: =IF('12'!$D32>0,1,0) -> 0 | O31: 0 | P31: 3
A32: Lindemann Gerd | B32: =IF('Wettkampf 1'!D33>0,1,0) -> 1 | C32: =IF('2'!$D33>0,1,0) -> 1 | D32: =IF('3'!$D33>0,1,0) -> 1 | E32: =IF('4'!$D33>0,1,0) -> 1 | F32: =IF('5'!$D33>0,1,0) -> 0 | G32: =IF('6'!$D33>0,1,0) -> 0 | H32: 4 | I32: =IF('7'!$D33>0,1,0) -> 0 | J32: =IF('8'!$D33>0,1,0) -> 0 | K32: =IF('9'!$D33>0,1,0) -> 1 | L32: =IF('10'!$D33>0,1,0) -> 1 | M32: =IF('11'!$D33>0,1,0) -> 1 | N32: =IF('12'!$D33>0,1,0) -> 1 | O32: 4 | P32: 8
A33: Hanenkamp Andre | B33: =IF('Wettkampf 1'!D34>0,1,0) -> 1 | C33: =IF('2'!$D34>0,1,0) -> 1 | D33: =IF('3'!$D34>0,1,0) -> 1 | E33: =IF('4'!$D34>0,1,0) -> 1 | F33: =IF('5'!$D34>0,1,0) -> 1 | G33: =IF('6'!$D34>0,1,0) -> 1 | H33: 6 | I33: =IF('7'!$D34>0,1,0) -> 1 | J33: =IF('8'!$D34>0,1,0) -> 1 | K33: =IF('9'!$D34>0,1,0) -> 1 | L33: =IF('10'!$D34>0,1,0) -> 1 | M33: =IF('11'!$D34>0,1,0) -> 1 | N33: =IF('12'!$D34>0,1,0) -> 1 | O33: 6 | P33: 12
A34: Antons Mathias | B34: =IF('Wettkampf 1'!D35>0,1,0) -> 1 | C34: =IF('2'!$D35>0,1,0) -> 1 | D34: =IF('3'!$D35>0,1,0) -> 1 | E34: =IF('4'!$D35>0,1,0) -> 1 | F34: =IF('5'!$D35>0,1,0) -> 1 | G34: =IF('6'!$D35>0,1,0) -> 1 | H34: 6 | I34: =IF('7'!$D35>0,1,0) -> 1 | J34: =IF('8'!$D35>0,1,0) -> 1 | K34: =IF('9'!$D35>0,1,0) -> 1 | L34: =IF('10'!$D35>0,1,0) -> 1 | M34: =IF('11'!$D35>0,1,0) -> 1 | N34: =IF('12'!$D35>0,1,0) -> 1 | O34: 6 | P34: 12
A35: Schröer Friedhelm | B35: =IF('Wettkampf 1'!D36>0,1,0) -> 1 | C35: =IF('2'!$D36>0,1,0) -> 1 | D35: =IF('3'!$D36>0,1,0) -> 1 | E35: =IF('4'!$D36>0,1,0) -> 1 | F35: =IF('5'!$D36>0,1,0) -> 1 | G35: =IF('6'!$D36>0,1,0) -> 1 | H35: 6 | I35: =IF('7'!$D36>0,1,0) -> 1 | J35: =IF('8'!$D36>0,1,0) -> 1 | K35: =IF('9'!$D36>0,1,0) -> 1 | L35: =IF('10'!$D36>0,1,0) -> 1 | M35: =IF('11'!$D36>0,1,0) -> 1 | N35: =IF('12'!$D36>0,1,0) -> 1 | O35: 6 | P35: 12
A36: Sebers Tobias | B36: =IF('Wettkampf 1'!D37>0,1,0) -> 1 | C36: =IF('2'!$D37>0,1,0) -> 1 | D36: =IF('3'!$D37>0,1,0) -> 1 | E36: =IF('4'!$D37>0,1,0) -> 1 | F36: =IF('5'!$D37>0,1,0) -> 1 | G36: =IF('6'!$D37>0,1,0) -> 1 | H36: 6 | I36: =IF('7'!$D37>0,1,0) -> 1 | J36: =IF('8'!$D37>0,1,0) -> 1 | K36: =IF('9'!$D37>0,1,0) -> 1 | L36: =IF('10'!$D37>0,1,0) -> 1 | M36: =IF('11'!$D37>0,1,0) -> 1 | N36: =IF('12'!$D37>0,1,0) -> 1 | O36: 6 | P36: 12
A37: Hanneken Moritz | B37: =IF('Wettkampf 1'!D38>0,1,0) -> 1 | C37: =IF('2'!$D38>0,1,0) -> 1 | D37: =IF('3'!$D38>0,1,0) -> 1 | E37: =IF('4'!$D38>0,1,0) -> 1 | F37: =IF('5'!$D38>0,1,0) -> 1 | G37: =IF('6'!$D38>0,1,0) -> 1 | H37: 6 | I37: =IF('7'!$D38>0,1,0) -> 1 | J37: =IF('8'!$D38>0,1,0) -> 1 | K37: =IF('9'!$D38>0,1,0) -> 1 | L37: =IF('10'!$D38>0,1,0) -> 1 | M37: =IF('11'!$D38>0,1,0) -> 1 | N37: =IF('12'!$D38>0,1,0) -> 1 | O37: 6 | P37: 12
A38: Speeker Dietmar | B38: =IF('Wettkampf 1'!D39>0,1,0) -> 1 | C38: =IF('2'!$D39>0,1,0) -> 0 | D38: =IF('3'!$D39>0,1,0) -> 0 | E38: =IF('4'!$D39>0,1,0) -> 0 | F38: =IF('5'!$D39>0,1,0) -> 0 | G38: =IF('6'!$D39>0,1,0) -> 0 | H38: 1 | I38: =IF('7'!$D39>0,1,0) -> 0 | J38: =IF('8'!$D39>0,1,0) -> 0 | K38: =IF('9'!$D39>0,1,0) -> 0 | L38: =IF('10'!$D39>0,1,0) -> 0 | M38: =IF('11'!$D39>0,1,0) -> 0 | N38: =IF('12'!$D39>0,1,0) -> 0 | O38: 0 | P38: 1
A39: Will Achim | B39: =IF('Wettkampf 1'!D40>0,1,0) -> 1 | C39: =IF('2'!$D40>0,1,0) -> 1 | D39: =IF('3'!$D40>0,1,0) -> 1 | E39: =IF('4'!$D40>0,1,0) -> 1 | F39: =IF('5'!$D40>0,1,0) -> 1 | G39: =IF('6'!$D40>0,1,0) -> 1 | H39: 6 | I39: =IF('7'!$D40>0,1,0) -> 1 | J39: =IF('8'!$D40>0,1,0) -> 1 | K39: =IF('9'!$D40>0,1,0) -> 1 | L39: =IF('10'!$D40>0,1,0) -> 1 | M39: =IF('11'!$D40>0,1,0) -> 1 | N39: =IF('12'!$D40>0,1,0) -> 1 | O39: 6 | P39: =O39+H39 -> 12
A40: Meyer Dirk | B40: =IF('Wettkampf 1'!D41>0,1,0) -> 1 | C40: =IF('2'!$D41>0,1,0) -> 1 | D40: =IF('3'!$D41>0,1,0) -> 1 | E40: =IF('4'!$D41>0,1,0) -> 1 | F40: =IF('5'!$D41>0,1,0) -> 1 | G40: =IF('6'!$D41>0,1,0) -> 1 | H40: 6 | I40: =IF('7'!$D41>0,1,0) -> 1 | J40: =IF('8'!$D41>0,1,0) -> 1 | K40: =IF('9'!$D41>0,1,0) -> 0 | L40: =IF('10'!$D41>0,1,0) -> 1 | M40: =IF('11'!$D41>0,1,0) -> 1 | N40: =IF('12'!$D41>0,1,0) -> 1 | O40: 5 | P40: 11
A41: Micksch Heiko | B41: =IF('Wettkampf 1'!D42>0,1,0) -> 1 | C41: =IF('2'!$D42>0,1,0) -> 1 | D41: =IF('3'!$D42>0,1,0) -> 1 | E41: =IF('4'!$D42>0,1,0) -> 1 | F41: =IF('5'!$D42>0,1,0) -> 1 | G41: =IF('6'!$D42>0,1,0) -> 1 | H41: 6 | I41: =IF('7'!$D42>0,1,0) -> 1 | J41: =IF('8'!$D42>0,1,0) -> 1 | K41: =IF('9'!$D42>0,1,0) -> 1 | L41: =IF('10'!$D42>0,1,0) -> 1 | M41: =IF('11'!$D42>0,1,0) -> 1 | N41: =IF('12'!$D42>0,1,0) -> 1 | O41: 6 | P41: 12
A42: Hahnenkamp Ulrich | B42: =IF('Wettkampf 1'!D43>0,1,0) -> 0 | C42: =IF('2'!$D43>0,1,0) -> 1 | D42: =IF('3'!$D43>0,1,0) -> 0 | E42: =IF('4'!$D43>0,1,0) -> 1 | F42: =IF('5'!$D43>0,1,0) -> 1 | G42: =IF('6'!$D43>0,1,0) -> 0 | H42: 3 | I42: =IF('7'!$D43>0,1,0) -> 1 | J42: =IF('8'!$D43>0,1,0) -> 1 | K42: =IF('9'!$D43>0,1,0) -> 1 | L42: =IF('10'!$D43>0,1,0) -> 1 | M42: =IF('11'!$D43>0,1,0) -> 1 | N42: =IF('12'!$D43>0,1,0) -> 1 | O42: 6 | P42: 9
A43: Hahnenkamp Markus | B43: =IF('Wettkampf 1'!D44>0,1,0) -> 0 | C43: =IF('2'!$D44>0,1,0) -> 0 | D43: =IF('3'!$D44>0,1,0) -> 0 | E43: =IF('4'!$D44>0,1,0) -> 0 | F43: =IF('5'!$D44>0,1,0) -> 1 | G43: =IF('6'!$D44>0,1,0) -> 1 | H43: 2 | I43: =IF('7'!$D44>0,1,0) -> 1 | J43: =IF('8'!$D44>0,1,0) -> 1 | K43: =IF('9'!$D44>0,1,0) -> 1 | L43: =IF('10'!$D44>0,1,0) -> 0 | M43: =IF('11'!$D44>0,1,0) -> 1 | N43: =IF('12'!$D44>0,1,0) -> 1 | O43: 5 | P43: 7
A44: Walker Stefan | B44: =IF('Wettkampf 1'!D45>0,1,0) -> 0 | C44: =IF('2'!$D45>0,1,0) -> 0 | D44: =IF('3'!$D45>0,1,0) -> 0 | E44: =IF('4'!$D45>0,1,0) -> 1 | F44: =IF('5'!$D45>0,1,0) -> 1 | G44: =IF('6'!$D45>0,1,0) -> 1 | H44: 3 | I44: =IF('7'!$D45>0,1,0) -> 0 | J44: =IF('8'!$D45>0,1,0) -> 0 | K44: =IF('9'!$D45>0,1,0) -> 0 | L44: =IF('10'!$D45>0,1,0) -> 0 | M44: =IF('11'!$D45>0,1,0) -> 1 | N44: =IF('12'!$D45>0,1,0) -> 1 | O44: 2 | P44: 5
B45: =SUM(B9:B44) -> 30.00 | C45: =SUM(C9:C44) -> 30.00 | D45: 28.00 | E45: 29.00 | F45: 30.00 | G45: 28.00 | H45: =SUM(H9:H44) -> 175.00 | I45: =SUM(I9:I44) -> 30.00 | J45: =SUM(J9:J44) -> 28.00 | K45: 28.00 | L45: 27.00 | M45: 30.00 | N45: 29.00 | O45: =SUM(O9:O44) -> 172.00 | P45: =SUM(P9:P44) -> 347.00

Sheet Übersicht Gruppen (hidden)
B2: Rastdorf III | C2: =VLOOKUP($B$2:$B$7,'Wettkampf 1'!$B$2:$D$7,3,FALSE) -> 946.0 | D2: =VLOOKUP($B$2:$B$7,'2'!$B$2:$D$7,3,FALSE) -> 938.7 | E2: =VLOOKUP($B$2:$B$7,'3'!$B$2:$D$7,3,FALSE) -> 935.6 | F2: =VLOOKUP($B$2:$B$7,'4'!$B$2:$D$7,3,FALSE) -> 929.8 | G2: =VLOOKUP($B$2:$B$7,'5'!$B$2:$D$7,3,FALSE) -> 946.3 | H2: =VLOOKUP($B$2:$B$7,'6'!$B$2:$D$7,3,FALSE) -> 939.2 | I2: =IF(Formelhilfe!H3 > 0,J2/Formelhilfe!H3,0) -> 939.3 | J2: =SUM(C2:H2) -> 5,635.6 | K2: =VLOOKUP($B$2:$B$7,'7'!$B$2:$D$7,3,FALSE) -> 936.4 | L2: =VLOOKUP($B$2:$B$7,'8'!$B$2:$D$7,3,FALSE) -> 934.4 | M2: =VLOOKUP($B$2:$B$7,'9'!$B$2:$D$7,3,FALSE) -> 936.0 | N2: =VLOOKUP($B$2:$B$7,'10'!$B$2:$D$7,3,FALSE) -> 923.3 | O2: =VLOOKUP($B$2:$B$7,'11'!$B$2:$D$7,3,FALSE) -> 945.9 | P2: =VLOOKUP($B$2:$B$7,'12'!$B$2:$D$7,3,FALSE) -> 935.5 | Q2: =IF(Formelhilfe!O3>0,R2/Formelhilfe!O3,0) -> 935.3 | R2: =SUM(K2:P2) -> 5,611.5 | S2: =IF(Formelhilfe!P3>0,T2/Formelhilfe!P3,0) -> 937.3 | T2: =SUM(C2:H2,K2:P2) -> 11,247.1
B3: Esterwegen III | C3: =VLOOKUP($B$2:$B$7,'Wettkampf 1'!$B$2:$D$7,3,FALSE) -> 933.3 | D3: =VLOOKUP($B$2:$B$7,'2'!$B$2:$D$7,3,FALSE) -> 936.7 | E3: =VLOOKUP($B$2:$B$7,'3'!$B$2:$D$7,3,FALSE) -> 935.7 | F3: =VLOOKUP($B$2:$B$7,'4'!$B$2:$D$7,3,FALSE) -> 938.6 | G3: =VLOOKUP($B$2:$B$7,'5'!$B$2:$D$7,3,FALSE) -> 941.7 | H3: =VLOOKUP($B$2:$B$7,'6'!$B$2:$D$7,3,FALSE) -> 936.1 | I3: =IF(Formelhilfe!H2 > 0,J3/Formelhilfe!H2,0) -> 937.0 | J3: =SUM(C3:H3) -> 5,622.1 | K3: =VLOOKUP($B$2:$B$7,'7'!$B$2:$D$7,3,FALSE) -> 937.1 | L3: =VLOOKUP($B$2:$B$7,'8'!$B$2:$D$7,3,FALSE) -> 934.1 | M3: =VLOOKUP($B$2:$B$7,'9'!$B$2:$D$7,3,FALSE) -> 932.5 | N3: =VLOOKUP($B$2:$B$7,'10'!$B$2:$D$7,3,FALSE) -> 938.9 | O3: =VLOOKUP($B$2:$B$7,'11'!$B$2:$D$7,3,FALSE) -> 939.4 | P3: =VLOOKUP($B$2:$B$7,'12'!$B$2:$D$7,3,FALSE) -> 941.9 | Q3: =IF(Formelhilfe!O2>0,R3/Formelhilfe!O2,0) -> 937.3 | R3: =SUM(K3:P3) -> 5,623.9 | S3: =IF(Formelhilfe!P2>0,T3/Formelhilfe!P2,0) -> 937.2 | T3: =SUM(C3:H3,K3:P3) -> 11,246.0
B4: Spahnharrenstätte II | C4: =VLOOKUP($B$2:$B$7,'Wettkampf 1'!$B$2:$D$7,3,FALSE) -> 928.7 | D4: =VLOOKUP($B$2:$B$7,'2'!$B$2:$D$7,3,FALSE) -> 934.5 | E4: =VLOOKUP($B$2:$B$7,'3'!$B$2:$D$7,3,FALSE) -> 931.6 | F4: =VLOOKUP($B$2:$B$7,'4'!$B$2:$D$7,3,FALSE) -> 935.7 | G4: =VLOOKUP($B$2:$B$7,'5'!$B$2:$D$7,3,FALSE) -> 940.9 | H4: =VLOOKUP($B$2:$B$7,'6'!$B$2:$D$7,3,FALSE) -> 937.0 | I4: =IF(Formelhilfe!H6 > 0,J4/Formelhilfe!H6,0) -> 934.7 | J4: =SUM(C4:H4) -> 5,608.4 | K4: =VLOOKUP($B$2:$B$7,'7'!$B$2:$D$7,3,FALSE) -> 931.1 | L4: =VLOOKUP($B$2:$B$7,'8'!$B$2:$D$7,3,FALSE) -> 934.4 | M4: =VLOOKUP($B$2:$B$7,'9'!$B$2:$D$7,3,FALSE) -> 915.8 | N4: =VLOOKUP($B$2:$B$7,'10'!$B$2:$D$7,3,FALSE) -> 924.5 | O4: =VLOOKUP($B$2:$B$7,'11'!$B$2:$D$7,3,FALSE) -> 933.6 | P4: =VLOOKUP($B$2:$B$7,'12'!$B$2:$D$7,3,FALSE) -> 931.4 | Q4: =IF(Formelhilfe!O6>0,R4/Formelhilfe!O6,0) -> 928.5 | R4: =SUM(K4:P4) -> 5,570.8 | S4: =IF(Formelhilfe!P6>0,T4/Formelhilfe!P6,0) -> 931.6 | T4: =SUM(C4:H4,K4:P4) -> 11,179.2
B5: Neuvrees I | C5: =VLOOKUP($B$2:$B$7,'Wettkampf 1'!$B$2:$D$7,3,FALSE) -> 938.6 | D5: =VLOOKUP($B$2:$B$7,'2'!$B$2:$D$7,3,FALSE) -> 931.2 | E5: =VLOOKUP($B$2:$B$7,'3'!$B$2:$D$7,3,FALSE) -> 924.7 | F5: =VLOOKUP($B$2:$B$7,'4'!$B$2:$D$7,3,FALSE) -> 929.7 | G5: =VLOOKUP($B$2:$B$7,'5'!$B$2:$D$7,3,FALSE) -> 936.5 | H5: =VLOOKUP($B$2:$B$7,'6'!$B$2:$D$7,3,FALSE) -> 934.1 | I5: =IF(Formelhilfe!H4 > 0,J5/Formelhilfe!H4,0) -> 932.5 | J5: =SUM(C5:H5) -> 5,594.8 | K5: =VLOOKUP($B$2:$B$7,'7'!$B$2:$D$7,3,FALSE) -> 929.6 | L5: =VLOOKUP($B$2:$B$7,'8'!$B$2:$D$7,3,FALSE) -> 929.5 | M5: =VLOOKUP($B$2:$B$7,'9'!$B$2:$D$7,3,FALSE) -> 931.7 | N5: =VLOOKUP($B$2:$B$7,'10'!$B$2:$D$7,3,FALSE) -> 923.2 | O5: =VLOOKUP($B$2:$B$7,'11'!$B$2:$D$7,3,FALSE) -> 934.5 | P5: =VLOOKUP($B$2:$B$7,'12'!$B$2:$D$7,3,FALSE) -> 935.0 | Q5: =IF(Formelhilfe!O4>0,R5/Formelhilfe!O4,0) -> 930.6 | R5: =SUM(K5:P5) -> 5,583.5 | S5: =IF(Formelhilfe!P4>0,T5/Formelhilfe!P4,0) -> 931.5 | T5: =SUM(C5:H5,K5:P5) -> 11,178.3
B6: Börgerwald II | C6: =VLOOKUP($B$2:$B$7,'Wettkampf 1'!$B$2:$D$7,3,FALSE) -> 929.6 | D6: =VLOOKUP($B$2:$B$7,'2'!$B$2:$D$7,3,FALSE) -> 922.8 | E6: =VLOOKUP($B$2:$B$7,'3'!$B$2:$D$7,3,FALSE) -> 930.4 | F6: =VLOOKUP($B$2:$B$7,'4'!$B$2:$D$7,3,FALSE) -> 931.3 | G6: =VLOOKUP($B$2:$B$7,'5'!$B$2:$D$7,3,FALSE) -> 931.3 | H6: =VLOOKUP($B$2:$B$7,'6'!$B$2:$D$7,3,FALSE) -> 930.7 | I6: =IF(Formelhilfe!H7 > 0,J6/Formelhilfe!H7,0) -> 929.4 | J6: =SUM(C6:H6) -> 5,576.1 | K6: =VLOOKUP($B$2:$B$7,'7'!$B$2:$D$7,3,FALSE) -> 924.5 | L6: =VLOOKUP($B$2:$B$7,'8'!$B$2:$D$7,3,FALSE) -> 930.7 | M6: =VLOOKUP($B$2:$B$7,'9'!$B$2:$D$7,3,FALSE) -> 933.5 | N6: =VLOOKUP($B$2:$B$7,'10'!$B$2:$D$7,3,FALSE) -> 931.6 | O6: =VLOOKUP($B$2:$B$7,'11'!$B$2:$D$7,3,FALSE) -> 942.3 | P6: =VLOOKUP($B$2:$B$7,'12'!$B$2:$D$7,3,FALSE) -> 939.6 | Q6: =IF(Formelhilfe!O7>0,R6/Formelhilfe!O7,0) -> 933.7 | R6: =SUM(K6:P6) -> 5,602.2 | S6: =IF(Formelhilfe!P7>0,T6/Formelhilfe!P7,0) -> 931.5 | T6: =SUM(C6:H6,K6:P6) -> 11,178.3
B7: Börger II | C7: =VLOOKUP($B$2:$B$7,'Wettkampf 1'!$B$2:$D$7,3,FALSE) -> 935.7 | D7: =VLOOKUP($B$2:$B$7,'2'!$B$2:$D$7,3,FALSE) -> 916.1 | E7: =VLOOKUP($B$2:$B$7,'3'!$B$2:$D$7,3,FALSE) -> 923.6 | F7: =VLOOKUP($B$2:$B$7,'4'!$B$2:$D$7,3,FALSE) -> 923.5 | G7: =VLOOKUP($B$2:$B$7,'5'!$B$2:$D$7,3,FALSE) -> 934.2 | H7: =VLOOKUP($B$2:$B$7,'6'!$B$2:$D$7,3,FALSE) -> 923.2 | I7: =IF(Formelhilfe!H5 > 0,J7/Formelhilfe!H5,0) -> 926.1 | J7: =SUM(C7:H7) -> 5,556.3 | K7: =VLOOKUP($B$2:$B$7,'7'!$B$2:$D$7,3,FALSE) -> 918.7 | L7: =VLOOKUP($B$2:$B$7,'8'!$B$2:$D$7,3,FALSE) -> 928.2 | M7: =VLOOKUP($B$2:$B$7,'9'!$B$2:$D$7,3,FALSE) -> 928.9 | N7: =VLOOKUP($B$2:$B$7,'10'!$B$2:$D$7,3,FALSE) -> 916.6 | O7: =VLOOKUP($B$2:$B$7,'11'!$B$2:$D$7,3,FALSE) -> 935.0 | P7: =VLOOKUP($B$2:$B$7,'12'!$B$2:$D$7,3,FALSE) -> 930.7 | Q7: =IF(Formelhilfe!O5>0,R7/Formelhilfe!O5,0) -> 926.4 | R7: =SUM(K7:P7) -> 5,558.1 | S7: =IF(Formelhilfe!P5>0,T7/Formelhilfe!P5,0) -> 926.2 | T7: =SUM(C7:H7,K7:P7) -> 11,114.4
